Workbook

Sheet 292 Club
A1: State Qualifiers (ctrl+q)
A2: School | B2: Name | C2: Score
A3: =IF(C3=0,0,IF(C3>291,TEAMS!$AC$1030,0)) -> 0 | B3: =IF(C3=0,0,IF(C3>291,TEAMS!AC$1031,0)) -> 0 | C3: =IF(TEAMS!AC$1032=0,0,IF(TEAMS!AC$1032>291,TEAMS!AC$1032,0)) -> 0 | D3: 1
A4: =IF(C4=0,0,IF(C4>291,TEAMS!$AC$1,0)) -> 0 | B4: =IF(C4=0,0,IF(C4>291,TEAMS!$AF$2,0)) -> 0 | C4: =IF(TEAMS!$AF$3=0,0,IF(TEAMS!$AF$3>291,TEAMS!$AF$3,0)) -> 0 | D4: 2
A5: =IF(C5=0,0,IF(C5>291,TEAMS!$AC$1346,0)) -> 0 | B5: =IF(C5=0,0,IF(C5>291,TEAMS!AE$1347,0)) -> 0 | C5: =IF(TEAMS!AE$1348=0,0,IF(TEAMS!AE$1348>291,TEAMS!AE$1348,0)) -> 0 | D5: 3
A6: =IF(C6=0,0,IF(C6>291,TEAMS!$AC$29,0)) -> 0 | B6: =IF(C6=0,0,IF(C6>291,TEAMS!$AC$30,0)) -> 0 | C6: =IF(TEAMS!$AC$31=0,0,IF(TEAMS!$AC$31>291,TEAMS!$AC$31,0)) -> 0 | D6: 4
A7: =IF(C7=0,0,IF(C7>291,TEAMS!$AC$1267,0)) -> 0 | B7: =IF(C7=0,0,IF(C7>291,TEAMS!$AC$1268,0)) -> 0 | C7: =IF(TEAMS!AC$1269=0,0,IF(TEAMS!AC$1269>291,TEAMS!AC$1269,0)) -> 0 | D7: 5
A8: =IF(C8=0,0,IF(C8>291,TEAMS!$AC$635,0)) -> 0 | B8: =IF(C8=0,0,IF(C8>291,TEAMS!AC636,0)) -> 0 | C8: =IF(TEAMS!AC637=0,0,IF(TEAMS!AC637>291,TEAMS!AC637,0)) -> 0 | D8: 6
A9: =IF(C9=0,0,IF(C9>291,TEAMS!$AC$1,0)) -> 0 | B9: =IF(C9=0,0,IF(C9>291,TEAMS!$AC$2,0)) -> 0 | C9: =IF(TEAMS!$AC$3=0,0,IF(TEAMS!$AC$3>291,TEAMS!$AC$3,0)) -> 0 | D9: 7
A10: =IF(C10=0,0,IF(C10>291,TEAMS!$AC$793,0)) -> 0 | B10: =IF(C10=0,0,IF(C10>291,TEAMS!AC$794,0)) -> 0 | C10: =IF(TEAMS!AC$795=0,0,IF(TEAMS!AC$795>291,TEAMS!AC$795,0)) -> 0 | D10: 8
A11: =IF(C11=0,0,IF(C11>291,TEAMS!$AC$1346,0)) -> 0 | B11: =IF(C11=0,0,IF(C11>291,TEAMS!AC$1347,0)) -> 0 | C11: =IF(TEAMS!AC$1348=0,0,IF(TEAMS!AC$1348>291,TEAMS!AC$1348,0)) -> 0 | D11: 9
A12: =IF(C12=0,0,IF(C12>291,TEAMS!$AC$1,0)) -> 0 | B12: =IF(C12=0,0,IF(C12>291,TEAMS!$AG$2,0)) -> 0 | C12: =IF(TEAMS!$AG$3=0,0,IF(TEAMS!$AG$3>291,TEAMS!$AG$3,0)) -> 0 | D12: 10
A13: =IF(C13=0,0,IF(C13>291,TEAMS!$AC$82,0)) -> 0 | B13: =IF(C13=0,0,IF(C13>291,TEAMS!AC83,0)) -> 0 | C13: =IF(TEAMS!AC84=0,0,IF(TEAMS!AC84>291,TEAMS!AC84,0)) -> 0 | D13: 11
A14: =IF(C14=0,0,IF(C14>291,TEAMS!$AC$82,0)) -> 0 | B14: =IF(C14=0,0,IF(C14>291,TEAMS!AF83,0)) -> 0 | C14: =IF(TEAMS!AF84=0,0,IF(TEAMS!AF84>291,TEAMS!AF84,0)) -> 0 | D14: 12
A15: =IF(C15=0,0,IF(C15>291,TEAMS!$AC$82,0)) -> 0 | B15: =IF(C15=0,0,IF(C15>291,TEAMS!AD83,0)) -> 0 | C15: =IF(TEAMS!AD84=0,0,IF(TEAMS!AD84>291,TEAMS!AD84,0)) -> 0 | D15: 13
A16: =IF(C16=0,0,IF(C16>291,TEAMS!AC556,0)) -> 0 | B16: =IF(C16=0,0,IF(C16>291,TEAMS!AF557,0)) -> 0 | C16: =IF(TEAMS!AF558=0,0,IF(TEAMS!AF558>291,TEAMS!AF558,0)) -> 0 | D16: 14
A17: =IF(C17=0,0,IF(C17>291,TEAMS!AC556,0)) -> 0 | B17: =IF(C17=0,0,IF(C17>291,TEAMS!AG557,0)) -> 0 | C17: =IF(TEAMS!AG558=0,0,IF(TEAMS!AG558>291,TEAMS!AG558,0)) -> 0 | D17: 15
A18: =IF(C18=0,0,IF(C18>291,TEAMS!$AC$1109,0)) -> 0 | B18: =IF(C18=0,0,IF(C18>291,TEAMS!AE$1110,0)) -> 0 | C18: =IF(TEAMS!AE$1111=0,0,IF(TEAMS!AE$1111>291,TEAMS!AE$1111,0)) -> 0 | D18: 16
A19: =IF(C19=0,0,IF(C19>291,TEAMS!AC556,0)) -> 0 | B19: =IF(C19=0,0,IF(C19>291,TEAMS!AE557,0)) -> 0 | C19: =IF(TEAMS!AE558=0,0,IF(TEAMS!AE558>291,TEAMS!AE558,0)) -> 0 | D19: 17
A20: =IF(C20=0,0,IF(C20>291,TEAMS!$AC$1109,0)) -> 0 | B20: =IF(C20=0,0,IF(C20>291,TEAMS!AC$1110,0)) -> 0 | C20: =IF(TEAMS!AC$1111=0,0,IF(TEAMS!AC$1111>291,TEAMS!AC$1111,0)) -> 0 | D20: 18
A21: =IF(C21=0,0,IF(C21>291,TEAMS!$AC$82,0)) -> 0 | B21: =IF(C21=0,0,IF(C21>291,TEAMS!AD109,0)) -> 0 | C21: =IF(TEAMS!AD110=0,0,IF(TEAMS!AD110>291,TEAMS!AD110,0)) -> 0 | D21: 19
A22: =IF(C22=0,0,IF(C22>291,TEAMS!$AC$951,0)) -> 0 | B22: =IF(C22=0,0,IF(C22>291,TEAMS!AF$952,0)) -> 0 | C22: =IF(TEAMS!AF$953=0,0,IF(TEAMS!AF$953>291,TEAMS!AF$953,0)) -> 0 | D22: 20
A23: =IF(C23=0,0,IF(C23>291,TEAMS!$AC$1109,0)) -> 0 | B23: =IF(C23=0,0,IF(C23>291,TEAMS!AD$1110,0)) -> 0 | C23: =IF(TEAMS!AD$1111=0,0,IF(TEAMS!AD$1111>291,TEAMS!AD$1111,0)) -> 0 | D23: 21
A24: =IF(C24=0,0,IF(C24>291,TEAMS!$AC$1109,0)) -> 0 | B24: =IF(C24=0,0,IF(C24>291,TEAMS!AF$1110,0)) -> 0 | C24: =IF(TEAMS!AF$1111=0,0,IF(TEAMS!AF$1111>291,TEAMS!AF$1111,0)) -> 0 | D24: 22
A25: =IF(C25=0,0,IF(C25>291,TEAMS!$AC$951,0)) -> 0 | B25: =IF(C25=0,0,IF(C25>291,TEAMS!AC$952,0)) -> 0 | C25: =IF(TEAMS!AC$953=0,0,IF(TEAMS!AC$953>291,TEAMS!AC$953,0)) -> 0 | D25: 23
A26: =IF(C26=0,0,IF(C26>291,TEAMS!$AC$477,0)) -> 0 | B26: =IF(C26=0,0,IF(C26>291,TEAMS!$AD$478,0)) -> 0 | C26: =IF(TEAMS!AD$479=0,0,IF(TEAMS!AD$479>291,TEAMS!AD$479,0)) -> 0 | D26: 24
A27: =IF(C27=0,0,IF(C27>291,TEAMS!$AC$951,0)) -> 0 | B27: =IF(C27=0,0,IF(C27>291,TEAMS!AD$952,0)) -> 0 | C27: =IF(TEAMS!AD$953=0,0,IF(TEAMS!AD$953>291,TEAMS!AD$953,0)) -> 0 | D27: 25
A28: =IF(C28=0,0,IF(C28>291,TEAMS!$AC$1030,0)) -> 0 | B28: =IF(C28=0,0,IF(C28>291,TEAMS!AF$1031,0)) -> 0 | C28: =IF(TEAMS!AF$1032=0,0,IF(TEAMS!AF$1032>291,TEAMS!AF$1032,0)) -> 0 | D28: 26
A29: =IF(C29=0,0,IF(C29>291,TEAMS!AC556,0)) -> 0 | B29: =IF(C29=0,0,IF(C29>291,TEAMS!AD557,0)) -> 0 | C29: =IF(TEAMS!AD558=0,0,IF(TEAMS!AD558>291,TEAMS!AD558,0)) -> 0 | D29: 27
A30: =IF(C30=0,0,IF(C30>291,TEAMS!$AC$1030,0)) -> 0 | B30: =IF(C30=0,0,IF(C30>291,TEAMS!AD$1031,0)) -> 0 | C30: =IF(TEAMS!AD$1032=0,0,IF(TEAMS!AD$1032>291,TEAMS!AD$1032,0)) -> 0 | D30: 28
A31: =IF(C31=0,0,IF(C31>291,TEAMS!$AC$1030,0)) -> 0 | B31: =IF(C31=0,0,IF(C31>291,TEAMS!AG$1031,0)) -> 0 | C31: =IF(TEAMS!AG$1032=0,0,IF(TEAMS!AG$1032>291,TEAMS!AG$1032,0)) -> 0 | D31: 29
A32: =IF(C32=0,0,IF(C32>291,TEAMS!$AC$635,0)) -> 0 | B32: =IF(C32=0,0,IF(C32>291,TEAMS!AD636,0)) -> 0 | C32: =IF(TEAMS!AD637=0,0,IF(TEAMS!AD637>291,TEAMS!AD637,0)) -> 0 | D32: 30
A33: =IF(C33=0,0,IF(C33>291,TEAMS!AC82,0)) -> 0 | B33: =IF(C33=0,0,IF(C33>291,TEAMS!AG83,0)) -> 0 | C33: =IF(TEAMS!AG84=0,0,IF(TEAMS!AG84>291,TEAMS!AG84,0)) -> 0 | D33: 31
A34: =IF(C34=0,0,IF(C34>291,TEAMS!$AC$240,0)) -> 0 | B34: =IF(C34=0,0,IF(C34>291,TEAMS!AC241,0)) -> 0 | C34: =IF(TEAMS!AC242=0,0,IF(TEAMS!AC242>291,TEAMS!AC242,0)) -> 0 | D34: 32
A35: =IF(C35=0,0,IF(C35>291,TEAMS!$AC$1030,0)) -> 0 | B35: =IF(C35=0,0,IF(C35>291,TEAMS!AE$1031,0)) -> 0 | C35: =IF(TEAMS!AE$1032=0,0,IF(TEAMS!AE$1032>291,TEAMS!AE$1032,0)) -> 0 | D35: 33
A36: =IF(C36=0,0,IF(C36>291,TEAMS!$AC$240,0)) -> 0 | B36: =IF(C36=0,0,IF(C36>291,TEAMS!AE241,0)) -> 0 | C36: =IF(TEAMS!AE242=0,0,IF(TEAMS!AE242>291,TEAMS!AE242,0)) -> 0 | D36: 34
A37: =IF(C37=0,0,IF(C37>291,TEAMS!$AC$240,0)) -> 0 | B37: =IF(C37=0,0,IF(C37>291,TEAMS!AD241,0)) -> 0 | C37: =IF(TEAMS!AD242=0,0,IF(TEAMS!AD242>291,TEAMS!AD242,0)) -> 0 | D37: 35
A38: =IF(C38=0,0,IF(C38>291,TEAMS!$AC$82,0)) -> 0 | B38: =IF(C38=0,0,IF(C38>291,TEAMS!AC109,0)) -> 0 | C38: =IF(TEAMS!AC110=0,0,IF(TEAMS!AC110>291,TEAMS!AC110,0)) -> 0 | D38: 36
A39: =IF(C39=0,0,IF(C39>291,TEAMS!$AC$477,0)) -> 0 | B39: =IF(C39=0,0,IF(C39>291,TEAMS!$AC$478,0)) -> 0 | C39: =IF(TEAMS!AC$479=0,0,IF(TEAMS!AC$479>291,TEAMS!AC$479,0)) -> 0 | D39: 37
A40: =IF(C40=0,0,IF(C40>291,TEAMS!$AC$1,0)) -> 0 | B40: =IF(C40=0,0,IF(C40>291,TEAMS!$AD$2,0)) -> 0 | C40: =IF(TEAMS!$AD$3=0,0,IF(TEAMS!$AD$3>291,TEAMS!$AD$3,0)) -> 0 | D40: 38
A41: =IF(C41=0,0,IF(C41>291,TEAMS!$AC$1,0)) -> 0 | B41: =IF(C41=0,0,IF(C41>291,TEAMS!$AE$2,0)) -> 0 | C41: =IF(TEAMS!$AE$3=0,0,IF(TEAMS!$AE$3>291,TEAMS!$AE$3,0)) -> 0 | D41: 39
A42: =IF(C42=0,0,IF(C42>291,TEAMS!$AC$29,0)) -> 0 | B42: =IF(C42=0,0,IF(C42>291,TEAMS!$AD$30,0)) -> 0 | C42: =IF(TEAMS!$AD$31=0,0,IF(TEAMS!$AD$31>291,TEAMS!$AD$31,0)) -> 0 | D42: 40
A43: =IF(C43=0,0,IF(C43>291,TEAMS!$AC$29,0)) -> 0 | B43: =IF(C43=0,0,IF(C43>291,TEAMS!$AE$30,0)) -> 0 | C43: =IF(TEAMS!$AE$31=0,0,IF(TEAMS!$AE$31>291,TEAMS!$AE$31,0)) -> 0 | D43: 41
A44: =IF(C44=0,0,IF(C44>291,TEAMS!$AC$29,0)) -> 0 | B44: =IF(C44=0,0,IF(C44>291,TEAMS!$AF$30,0)) -> 0 | C44: =IF(TEAMS!$AF$31=0,0,IF(TEAMS!$AF$31>291,TEAMS!$AF$31,0)) -> 0 | D44: 42
A45: =IF(C45=0,0,IF(C45>291,TEAMS!$AC$55,0)) -> 0 | B45: =IF(C45=0,0,IF(C45>291,TEAMS!$AG$30,0)) -> 0 | C45: =IF(TEAMS!$AG$31=0,0,IF(TEAMS!$AG$31>291,TEAMS!$AG$31,0)) -> 0 | D45: 43
A46: =IF(C46=0,0,IF(C46>291,TEAMS!$AC$55,0)) -> 0 | B46: =IF(C46=0,0,IF(C46>291,TEAMS!$AC$56,0)) -> 0 | C46: =IF(TEAMS!$AC$57=0,0,IF(TEAMS!$AC$57>291,TEAMS!$AC$57,0)) -> 0 | D46: 44
A47: =IF(C47=0,0,IF(C47>291,TEAMS!$AC$55,0)) -> 0 | B47: =IF(C47=0,0,IF(C47>291,TEAMS!$AD$56,0)) -> 0 | C47: =IF(TEAMS!$AD$57=0,0,IF(TEAMS!$AD$57>291,TEAMS!$AD$57,0)) -> 0 | D47: 45
A48: =IF(C48=0,0,IF(C48>291,TEAMS!$AC$55,0)) -> 0 | B48: =IF(C48=0,0,IF(C48>291,TEAMS!$AE$56,0)) -> 0 | C48: =IF(TEAMS!$AE$57=0,0,IF(TEAMS!$AE$57>291,TEAMS!$AE$57,0)) -> 0 | D48: 46
A49: =IF(C49=0,0,IF(C49>291,TEAMS!$AC$55,0)) -> 0 | B49: =IF(C49=0,0,IF(C49>291,TEAMS!$AF$56,0)) -> 0 | C49: =IF(TEAMS!$AF$57=0,0,IF(TEAMS!$AF$57>291,TEAMS!$AF$57,0)) -> 0 | D49: 47
A50: =IF(C50=0,0,IF(C50>291,TEAMS!$AC$55,0)) -> 0 | B50: =IF(C50=0,0,IF(C50>291,TEAMS!$AG$56,0)) -> 0 | C50: =IF(TEAMS!$AG$57=0,0,IF(TEAMS!$AG$57>291,TEAMS!$AG$57,0)) -> 0 | D50: 48
A51: =IF(C51=0,0,IF(C51>291,TEAMS!$AC$82,0)) -> 0 | B51: =IF(C51=0,0,IF(C51>291,TEAMS!AE83,0)) -> 0 | C51: =IF(TEAMS!AE84=0,0,IF(TEAMS!AE84>291,TEAMS!AE84,0)) -> 0 | D51: 49
A52: =IF(C52=0,0,IF(C52>291,TEAMS!$AC$82,0)) -> 0 | B52: =IF(C52=0,0,IF(C52>291,TEAMS!AE109,0)) -> 0 | C52: =IF(TEAMS!AE110=0,0,IF(TEAMS!AE110>291,TEAMS!AE110,0)) -> 0 | D52: 50
A53: =IF(C53=0,0,IF(C53>291,TEAMS!$AC$82,0)) -> 0 | B53: =IF(C53=0,0,IF(C53>291,TEAMS!AF109,0)) -> 0 | C53: =IF(TEAMS!AF110=0,0,IF(TEAMS!AF110>291,TEAMS!AF110,0)) -> 0 | D53: 51
A54: =IF(C54=0,0,IF(C54>291,TEAMS!$AC$82,0)) -> 0 | B54: =IF(C54=0,0,IF(C54>291,TEAMS!AG109,0)) -> 0 | C54: =IF(TEAMS!AG110=0,0,IF(TEAMS!AG110>291,TEAMS!AG110,0)) -> 0 | D54: 52
A55: =IF(C55=0,0,IF(C55>291,TEAMS!$AC$134,0)) -> 0 | B55: =IF(C55=0,0,IF(C55>291,TEAMS!$AC$135,0)) -> 0 | C55: =IF(TEAMS!AC$136=0,0,IF(TEAMS!AC$136>291,TEAMS!AC$136,0)) -> 0 | D55: 53
A56: =IF(C56=0,0,IF(C56>291,TEAMS!$AC$134,0)) -> 0 | B56: =IF(C56=0,0,IF(C56>291,TEAMS!$AD$135,0)) -> 0 | C56: =IF(TEAMS!AD$136=0,0,IF(TEAMS!AD$136>291,TEAMS!AD$136,0)) -> 0 | D56: 54
A57: =IF(C57=0,0,IF(C57>291,TEAMS!$AC$134,0)) -> 0 | B57: =IF(C57=0,0,IF(C57>291,TEAMS!$AE$135,0)) -> 0 | C57: =IF(TEAMS!AE$136=0,0,IF(TEAMS!AE$136>291,TEAMS!AE$136,0)) -> 0 | D57: 55
A58: =IF(C58=0,0,IF(C58>291,TEAMS!$AC$134,0)) -> 0 | B58: =IF(C58=0,0,IF(C58>291,TEAMS!$AF$135,0)) -> 0 | C58: =IF(TEAMS!AF$136=0,0,IF(TEAMS!AF$136>291,TEAMS!AF$136,0)) -> 0 | D58: 56
A59: =IF(C59=0,0,IF(C59>291,TEAMS!$AC$134,0)) -> 0 | B59: =IF(C59=0,0,IF(C59>291,TEAMS!$AG$135,0)) -> 0 | C59: =IF(TEAMS!AG$136=0,0,IF(TEAMS!AG$136>291,TEAMS!AG$136,0)) -> 0 | D59: 57
A60: =IF(C60=0,0,IF(C60>291,TEAMS!$AC$161,0)) -> 0 | B60: =IF(C60=0,0,IF(C60>291,TEAMS!$AC$162,0)) -> 0 | C60: =IF(TEAMS!$AC$163=0,0,IF(TEAMS!$AC$163>291,TEAMS!$AC$163,0)) -> 0 | D60: 58
A61: =IF(C61=0,0,IF(C61>291,TEAMS!$AC$161,0)) -> 0 | B61: =IF(C61=0,0,IF(C61>291,TEAMS!$AD$162,0)) -> 0 | C61: =IF(TEAMS!$AD$163=0,0,IF(TEAMS!$AD$163>291,TEAMS!$AD$163,0)) -> 0 | D61: 59
A62: =IF(C62=0,0,IF(C62>291,TEAMS!$AC$161,0)) -> 0 | B62: =IF(C62=0,0,IF(C62>291,TEAMS!$AE$162,0)) -> 0 | C62: =IF(TEAMS!$AE$163=0,0,IF(TEAMS!$AE$163>291,TEAMS!$AE$163,0)) -> 0 | D62: 60
A63: =IF(C63=0,0,IF(C63>291,TEAMS!$AC$161,0)) -> 0 | B63: =IF(C63=0,0,IF(C63>291,TEAMS!$AF$162,0)) -> 0 | C63: =IF(TEAMS!$AF$163=0,0,IF(TEAMS!$AF$163>291,TEAMS!$AF$163,0)) -> 0 | D63: 61
A64: =IF(C64=0,0,IF(C64>291,TEAMS!$AC$161,0)) -> 0 | B64: =IF(C64=0,0,IF(C64>291,TEAMS!$AG$162,0)) -> 0 | C64: =IF(TEAMS!$AG$163=0,0,IF(TEAMS!$AG$163>291,TEAMS!$AG$163,0)) -> 0 | D64: 62
A65: =IF(C65=0,0,IF(C65>291,TEAMS!$AC$187,0)) -> 0 | B65: =IF(C65=0,0,IF(C65>291,TEAMS!$AC$188,0)) -> 0 | C65: =IF(TEAMS!$AC$189=0,0,IF(TEAMS!$AC$189>291,TEAMS!$AC$189,0)) -> 0 | D65: 63
A66: =IF(C66=0,0,IF(C66>291,TEAMS!$AC$187,0)) -> 0 | B66: =IF(C66=0,0,IF(C66>291,TEAMS!$AD$188,0)) -> 0 | C66: =IF(TEAMS!$AD$189=0,0,IF(TEAMS!$AD$189>291,TEAMS!$AD$189,0)) -> 0 | D66: 64
A67: =IF(C67=0,0,IF(C67>291,TEAMS!$AC$187,0)) -> 0 | B67: =IF(C67=0,0,IF(C67>291,TEAMS!$AE$188,0)) -> 0 | C67: =IF(TEAMS!$AE$189=0,0,IF(TEAMS!$AE$189>291,TEAMS!$AE$189,0)) -> 0 | D67: 65
A68: =IF(C68=0,0,IF(C68>291,TEAMS!$AC$187,0)) -> 0 | B68: =IF(C68=0,0,IF(C68>291,TEAMS!$AF$188,0)) -> 0 | C68: =IF(TEAMS!$AF$189=0,0,IF(TEAMS!$AF$189>291,TEAMS!$AF$189,0)) -> 0 | D68: 66
A69: =IF(C69=0,0,IF(C69>291,TEAMS!$AC$187,0)) -> 0 | B69: =IF(C69=0,0,IF(C69>291,TEAMS!$AG$188,0)) -> 0 | C69: =IF(TEAMS!$AG$189=0,0,IF(TEAMS!$AG$189>291,TEAMS!$AG$189,0)) -> 0 | D69: 67
A70: =IF(C70=0,0,IF(C70>291,TEAMS!$AC$213,0)) -> 0 | B70: =IF(C70=0,0,IF(C70>291,TEAMS!$AC$214,0)) -> 0 | C70: =IF(TEAMS!$AC$215=0,0,IF(TEAMS!$AC$215>291,TEAMS!$AC$215,0)) -> 0 | D70: 68
A71: =IF(C71=0,0,IF(C71>291,TEAMS!$AC$213,0)) -> 0 | B71: =IF(C71=0,0,IF(C71>291,TEAMS!$AD$214,0)) -> 0 | C71: =IF(TEAMS!$AD$215=0,0,IF(TEAMS!$AD$215>291,TEAMS!$AD$215,0)) -> 0 | D71: 69
A72: =IF(C72=0,0,IF(C72>291,TEAMS!$AC$213,0)) -> 0 | B72: =IF(C72=0,0,IF(C72>291,TEAMS!$AE$214,0)) -> 0 | C72: =IF(TEAMS!$AE$215=0,0,IF(TEAMS!$AE$215>291,TEAMS!$AE$215,0)) -> 0 | D72: 70
A73: =IF(C73=0,0,IF(C73>291,TEAMS!$AC$213,0)) -> 0 | B73: =IF(C73=0,0,IF(C73>291,TEAMS!$AF$214,0)) -> 0 | C73: =IF(TEAMS!$AF$215=0,0,IF(TEAMS!$AF$215>291,TEAMS!$AF$215,0)) -> 0 | D73: 71
A74: =IF(C74=0,0,IF(C74>291,TEAMS!$AC$213,0)) -> 0 | B74: =IF(C74=0,0,IF(C74>291,TEAMS!$AG$214,0)) -> 0 | C74: =IF(TEAMS!$AG$215=0,0,IF(TEAMS!$AG$215>291,TEAMS!$AG$215,0)) -> 0 | D74: 72
A75: =IF(C75=0,0,IF(C75>291,TEAMS!$AC$240,0)) -> 0 | B75: =IF(C75=0,0,IF(C75>291,TEAMS!AF241,0)) -> 0 | C75: =IF(TEAMS!AF242=0,0,IF(TEAMS!AF242>291,TEAMS!AF242,0)) -> 0 | D75: 73
A76: =IF(C76=0,0,IF(C76>291,TEAMS!$AC$240,0)) -> 0 | B76: =IF(C76=0,0,IF(C76>291,TEAMS!AG241,0)) -> 0 | C76: =IF(TEAMS!AG242=0,0,IF(TEAMS!AG242>291,TEAMS!AG242,0)) -> 0 | D76: 74
A77: =IF(C77=0,0,IF(C77>291,TEAMS!$AC$240,0)) -> 0 | B77: =IF(C77=0,0,IF(C77>291,TEAMS!AC267,0)) -> 0 | C77: =IF(TEAMS!AC268=0,0,IF(TEAMS!AC268>291,TEAMS!AC268,0)) -> 0 | D77: 75
A78: =IF(C78=0,0,IF(C78>291,TEAMS!$AC$240,0)) -> 0 | B78: =IF(C78=0,0,IF(C78>291,TEAMS!AD267,0)) -> 0 | C78: =IF(TEAMS!AD268=0,0,IF(TEAMS!AD268>291,TEAMS!AD268,0)) -> 0 | D78: 76
A79: =IF(C79=0,0,IF(C79>291,TEAMS!$AC$240,0)) -> 0 | B79: =IF(C79=0,0,IF(C79>291,TEAMS!AE267,0)) -> 0 | C79: =IF(TEAMS!AE268=0,0,IF(TEAMS!AE268>291,TEAMS!AE268,0)) -> 0 | D79: 77
A80: =IF(C80=0,0,IF(C80>291,TEAMS!$AC$240,0)) -> 0 | B80: =IF(C80=0,0,IF(C80>291,TEAMS!AF267,0)) -> 0 | C80: =IF(TEAMS!AF268=0,0,IF(TEAMS!AF268>291,TEAMS!AF268,0)) -> 0 | D80: 78
A81: =IF(C81=0,0,IF(C81>291,TEAMS!$AC$240,0)) -> 0 | B81: =IF(C81=0,0,IF(C81>291,TEAMS!AG267,0)) -> 0 | C81: =IF(TEAMS!AG268=0,0,IF(TEAMS!AG268>291,TEAMS!AG268,0)) -> 0 | D81: 79
A82: =IF(C82=0,0,IF(C82>291,TEAMS!$AC$292,0)) -> 0 | B82: =IF(C82=0,0,IF(C82>291,TEAMS!$AC$293,0)) -> 0 | C82: =IF(TEAMS!AC$294=0,0,IF(TEAMS!AC$294>291,TEAMS!AC$294,0)) -> 0 | D82: 80
A83: =IF(C83=0,0,IF(C83>291,TEAMS!$AC$292,0)) -> 0 | B83: =IF(C83=0,0,IF(C83>291,TEAMS!$AD$293,0)) -> 0 | C83: =IF(TEAMS!AD$294=0,0,IF(TEAMS!AD$294>291,TEAMS!AD$294,0)) -> 0 | D83: 81
A84: =IF(C84=0,0,IF(C84>291,TEAMS!$AC$292,0)) -> 0 | B84: =IF(C84=0,0,IF(C84>291,TEAMS!$AE$293,0)) -> 0 | C84: =IF(TEAMS!AE$294=0,0,IF(TEAMS!AE$294>291,TEAMS!AE$294,0)) -> 0 | D84: 82
A85: =IF(C85=0,0,IF(C85>291,TEAMS!$AC$292,0)) -> 0 | B85: =IF(C85=0,0,IF(C85>291,TEAMS!$AF$293,0)) -> 0 | C85: =IF(TEAMS!AF$294=0,0,IF(TEAMS!AF$294>291,TEAMS!AF$294,0)) -> 0 | D85: 83
A86: =IF(C86=0,0,IF(C86>291,TEAMS!$AC$292,0)) -> 0 | B86: =IF(C86=0,0,IF(C86>291,TEAMS!$AG$293,0)) -> 0 | C86: =IF(TEAMS!AG$294=0,0,IF(TEAMS!AG$294>291,TEAMS!AG$294,0)) -> 0 | D86: 84
A87: =IF(C87=0,0,IF(C87>291,TEAMS!$AC$319,0)) -> 0 | B87: =IF(C87=0,0,IF(C87>291,TEAMS!$AC$320,0)) -> 0 | C87: =IF(TEAMS!AC$321=0,0,IF(TEAMS!AC$321>291,TEAMS!AC$321,0)) -> 0 | D87: 85
A88: =IF(C88=0,0,IF(C88>291,TEAMS!$AC$319,0)) -> 0 | B88: =IF(C88=0,0,IF(C88>291,TEAMS!$AD$320,0)) -> 0 | C88: =IF(TEAMS!AD$321=0,0,IF(TEAMS!AD$321>291,TEAMS!AD$321,0)) -> 0 | D88: 86
A89: =IF(C89=0,0,IF(C89>291,TEAMS!$AC$319,0)) -> 0 | B89: =IF(C89=0,0,IF(C89>291,TEAMS!$AE$320,0)) -> 0 | C89: =IF(TEAMS!AE$321=0,0,IF(TEAMS!AE$321>291,TEAMS!AE$321,0)) -> 0 | D89: 87
A90: =IF(C90=0,0,IF(C90>291,TEAMS!$AC$319,0)) -> 0 | B90: =IF(C90=0,0,IF(C90>291,TEAMS!$AF$320,0)) -> 0 | C90: =IF(TEAMS!AF$321=0,0,IF(TEAMS!AF$321>291,TEAMS!AF$321,0)) -> 0 | D90: 88
A91: =IF(C91=0,0,IF(C91>291,TEAMS!$AC$319,0)) -> 0 | B91: =IF(C91=0,0,IF(C91>291,TEAMS!$AG$320,0)) -> 0 | C91: =IF(TEAMS!AG$321=0,0,IF(TEAMS!AG$321>291,TEAMS!AG$321,0)) -> 0 | D91: 89
A92: =IF(C92=0,0,IF(C92>291,TEAMS!$AC$319,0)) -> 0 | B92: =IF(C92=0,0,IF(C92>291,TEAMS!$AC$346,0)) -> 0 | C92: =IF(TEAMS!AC$347=0,0,IF(TEAMS!AC$347>291,TEAMS!AC$347,0)) -> 0 | D92: 90
A93: =IF(C93=0,0,IF(C93>291,TEAMS!$AC$319,0)) -> 0 | B93: =IF(C93=0,0,IF(C93>291,TEAMS!$AD$346,0)) -> 0 | C93: =IF(TEAMS!AD$347=0,0,IF(TEAMS!AD$347>291,TEAMS!AD$347,0)) -> 0 | D93: 91
A94: =IF(C94=0,0,IF(C94>291,TEAMS!$AC$319,0)) -> 0 | B94: =IF(C94=0,0,IF(C94>291,TEAMS!$AE$346,0)) -> 0 | C94: =IF(TEAMS!AE$347=0,0,IF(TEAMS!AE$347>291,TEAMS!AE$347,0)) -> 0 | D94: 92
A95: =IF(C95=0,0,IF(C95>291,TEAMS!$AC$319,0)) -> 0 | B95: =IF(C95=0,0,IF(C95>291,TEAMS!$AF$346,0)) -> 0 | C95: =IF(TEAMS!AF$347=0,0,IF(TEAMS!AF$347>291,TEAMS!AF$347,0)) -> 0 | D95: 93
A96: =IF(C96=0,0,IF(C96>291,TEAMS!$AC$319,0)) -> 0 | B96: =IF(C96=0,0,IF(C96>291,TEAMS!$AG$346,0)) -> 0 | C96: =IF(TEAMS!AG$347=0,0,IF(TEAMS!AG$347>291,TEAMS!AG$347,0)) -> 0 | D96: 94
A97: =IF(C97=0,0,IF(C97>291,TEAMS!$AC$371,0)) -> 0 | B97: =IF(C97=0,0,IF(C97>291,TEAMS!$AC$372,0)) -> 0 | C97: =IF(TEAMS!AC$373=0,0,IF(TEAMS!AC$373>291,TEAMS!AC$373,0)) -> 0 | D97: 95
A98: =IF(C98=0,0,IF(C98>291,TEAMS!$AC$371,0)) -> 0 | B98: =IF(C98=0,0,IF(C98>291,TEAMS!$AD$372,0)) -> 0 | C98: =IF(TEAMS!AD$373=0,0,IF(TEAMS!AD$373>291,TEAMS!AD$373,0)) -> 0 | D98: 96
A99: =IF(C99=0,0,IF(C99>291,TEAMS!$AC$371,0)) -> 0 | B99: =IF(C99=0,0,IF(C99>291,TEAMS!$AE$372,0)) -> 0 | C99: =IF(TEAMS!AE$373=0,0,IF(TEAMS!AE$373>291,TEAMS!AE$373,0)) -> 0 | D99: 97
A100: =IF(C100=0,0,IF(C100>291,TEAMS!$AC$371,0)) -> 0 | B100: =IF(C100=0,0,IF(C100>291,TEAMS!$AF$372,0)) -> 0 | C100: =IF(TEAMS!AF$373=0,0,IF(TEAMS!AF$373>291,TEAMS!AF$373,0)) -> 0 | D100: 98
A101: =IF(C101=0,0,IF(C101>291,TEAMS!$AC$371,0)) -> 0 | B101: =IF(C101=0,0,IF(C101>291,TEAMS!$AG$372,0)) -> 0 | C101: =IF(TEAMS!AG$373=0,0,IF(TEAMS!AG$373>291,TEAMS!AG$373,0)) -> 0 | D101: 99
A102: =IF(C102=0,0,IF(C102>291,TEAMS!$AC$398,0)) -> 0 | B102: =IF(C102=0,0,IF(C102>291,TEAMS!$AC$399,0)) -> 0 | C102: =IF(TEAMS!AC400=0,0,IF(TEAMS!AC400>291,TEAMS!AC400,0)) -> 0 | D102: 100
A103: =IF(C103=0,0,IF(C103>291,TEAMS!$AC$398,0)) -> 0 | B103: =IF(C103=0,0,IF(C103>291,TEAMS!AD399,0)) -> 0 | C103: =IF(TEAMS!AD400=0,0,IF(TEAMS!AD400>291,TEAMS!AD400,0)) -> 0 | D103: 101
A104: =IF(C104=0,0,IF(C104>291,TEAMS!$AC$398,0)) -> 0 | B104: =IF(C104=0,0,IF(C104>291,TEAMS!AE399,0)) -> 0 | C104: =IF(TEAMS!AE400=0,0,IF(TEAMS!AE400>291,TEAMS!AE400,0)) -> 0 | D104: 102
A105: =IF(C105=0,0,IF(C105>291,TEAMS!$AC$398,0)) -> 0 | B105: =IF(C105=0,0,IF(C105>291,TEAMS!AF399,0)) -> 0 | C105: =IF(TEAMS!AF400=0,0,IF(TEAMS!AF400>291,TEAMS!AF400,0)) -> 0 | D105: 103
A106: =IF(C106=0,0,IF(C106>291,TEAMS!$AC$398,0)) -> 0 | B106: =IF(C106=0,0,IF(C106>291,TEAMS!AG399,0)) -> 0 | C106: =IF(TEAMS!AG400=0,0,IF(TEAMS!AG400>291,TEAMS!AG400,0)) -> 0 | D106: 104
A107: =IF(C107=0,0,IF(C107>291,TEAMS!$AC$398,0)) -> 0 | B107: =IF(C107=0,0,IF(C107>291,TEAMS!AC425,0)) -> 0 | C107: =IF(TEAMS!AC426=0,0,IF(TEAMS!AC426>291,TEAMS!AC426,0)) -> 0 | D107: 105
A108: =IF(C108=0,0,IF(C108>291,TEAMS!$AC$398,0)) -> 0 | B108: =IF(C108=0,0,IF(C108>291,TEAMS!AD425,0)) -> 0 | C108: =IF(TEAMS!AD426=0,0,IF(TEAMS!AD426>291,TEAMS!AD426,0)) -> 0 | D108: 106
A109: =IF(C109=0,0,IF(C109>291,TEAMS!$AC$398,0)) -> 0 | B109: =IF(C109=0,0,IF(C109>291,TEAMS!AE425,0)) -> 0 | C109: =IF(TEAMS!AE426=0,0,IF(TEAMS!AE426>291,TEAMS!AE426,0)) -> 0 | D109: 107
A110: =IF(C110=0,0,IF(C110>291,TEAMS!$AC$398,0)) -> 0 | B110: =IF(C110=0,0,IF(C110>291,TEAMS!AF425,0)) -> 0 | C110: =IF(TEAMS!AF426=0,0,IF(TEAMS!AF426>291,TEAMS!AF426,0)) -> 0 | D110: 108
A111: =IF(C111=0,0,IF(C111>291,TEAMS!$AC$398,0)) -> 0 | B111: =IF(C111=0,0,IF(C111>291,TEAMS!AG425,0)) -> 0 | C111: =IF(TEAMS!AG426=0,0,IF(TEAMS!AG426>291,TEAMS!AG426,0)) -> 0 | D111: 109
A112: =IF(C112=0,0,IF(C112>291,TEAMS!$AC$450,0)) -> 0 | B112: =IF(C112=0,0,IF(C112>291,TEAMS!$AC$451,0)) -> 0 | C112: =IF(TEAMS!AC$452=0,0,IF(TEAMS!AC$452>291,TEAMS!AC$452,0)) -> 0 | D112: 110
A113: =IF(C113=0,0,IF(C113>291,TEAMS!$AC$450,0)) -> 0 | B113: =IF(C113=0,0,IF(C113>291,TEAMS!$AD$451,0)) -> 0 | C113: =IF(TEAMS!AD$452=0,0,IF(TEAMS!AD$452>291,TEAMS!AD$452,0)) -> 0 | D113: 111
A114: =IF(C114=0,0,IF(C114>291,TEAMS!$AC$450,0)) -> 0 | B114: =IF(C114=0,0,IF(C114>291,TEAMS!$AE$451,0)) -> 0 | C114: =IF(TEAMS!AE$452=0,0,IF(TEAMS!AE$452>291,TEAMS!AE$452,0)) -> 0 | D114: 112
A115: =IF(C115=0,0,IF(C115>291,TEAMS!$AC$450,0)) -> 0 | B115: =IF(C115=0,0,IF(C115>291,TEAMS!$AF$451,0)) -> 0 | C115: =IF(TEAMS!AF$452=0,0,IF(TEAMS!AF$452>291,TEAMS!AF$452,0)) -> 0 | D115: 113
A116: =IF(C116=0,0,IF(C116>291,TEAMS!$AC$450,0)) -> 0 | B116: =IF(C116=0,0,IF(C116>291,TEAMS!$AG$451,0)) -> 0 | C116: =IF(TEAMS!AG$452=0,0,IF(TEAMS!AG$452>291,TEAMS!AG$452,0)) -> 0 | D116: 114
A117: =IF(C117=0,0,IF(C117>291,TEAMS!$AC$477,0)) -> 0 | B117: =IF(C117=0,0,IF(C117>291,TEAMS!$AE$478,0)) -> 0 | C117: =IF(TEAMS!AE$479=0,0,IF(TEAMS!AE$479>291,TEAMS!AE$479,0)) -> 0 | D117: 115
A118: =IF(C118=0,0,IF(C118>291,TEAMS!$AC$477,0)) -> 0 | B118: =IF(C118=0,0,IF(C118>291,TEAMS!$AF$478,0)) -> 0 | C118: =IF(TEAMS!AF$479=0,0,IF(TEAMS!AF$479>291,TEAMS!AF$479,0)) -> 0 | D118: 116
A119: =IF(C119=0,0,IF(C119>291,TEAMS!$AC$477,0)) -> 0 | B119: =IF(C119=0,0,IF(C119>291,TEAMS!$AG$478,0)) -> 0 | C119: =IF(TEAMS!AG$479=0,0,IF(TEAMS!AG$479>291,TEAMS!AG$479,0)) -> 0 | D119: 117
A120: =IF(C120=0,0,IF(C120>291,TEAMS!$AC$477,0)) -> 0 | B120: =IF(C120=0,0,IF(C120>291,TEAMS!$AC$504,0)) -> 0 | C120: =IF(TEAMS!AC$505=0,0,IF(TEAMS!AC$505>291,TEAMS!AC$505,0)) -> 0 | D120: 118
A121: =IF(C121=0,0,IF(C121>291,TEAMS!$AC$477,0)) -> 0 | B121: =IF(C121=0,0,IF(C121>291,TEAMS!$AD$504,0)) -> 0 | C121: =IF(TEAMS!AD$505=0,0,IF(TEAMS!AD$505>291,TEAMS!AD$505,0)) -> 0 | D121: 119
A122: =IF(C122=0,0,IF(C122>291,TEAMS!$AC$477,0)) -> 0 | B122: =IF(C122=0,0,IF(C122>291,TEAMS!$AE$504,0)) -> 0 | C122: =IF(TEAMS!AE$505=0,0,IF(TEAMS!AE$505>291,TEAMS!AE$505,0)) -> 0 | D122: 120
A123: =IF(C123=0,0,IF(C123>291,TEAMS!$AC$477,0)) -> 0 | B123: =IF(C123=0,0,IF(C123>291,TEAMS!$AF$504,0)) -> 0 | C123: =IF(TEAMS!AF$505=0,0,IF(TEAMS!AF$505>291,TEAMS!AF$505,0)) -> 0 | D123: 121
A124: =IF(C124=0,0,IF(C124>291,TEAMS!$AC$477,0)) -> 0 | B124: =IF(C124=0,0,IF(C124>291,TEAMS!$AG$504,0)) -> 0 | C124: =IF(TEAMS!AG$505=0,0,IF(TEAMS!AG$505>291,TEAMS!AG$505,0)) -> 0 | D124: 122
A125: =IF(C125=0,0,IF(C125>291,TEAMS!$AC$529,0)) -> 0 | B125: =IF(C125=0,0,IF(C125>291,TEAMS!$AC$530,0)) -> 0 | C125: =IF(TEAMS!AC$531=0,0,IF(TEAMS!AC$531>291,TEAMS!AC$531,0)) -> 0 | D125: 123
A126: =IF(C126=0,0,IF(C126>291,TEAMS!$AC$529,0)) -> 0 | B126: =IF(C126=0,0,IF(C126>291,TEAMS!$AD$530,0)) -> 0 | C126: =IF(TEAMS!AD$531=0,0,IF(TEAMS!AD$531>291,TEAMS!AD$531,0)) -> 0 | D126: 124
A127: =IF(C127=0,0,IF(C127>291,TEAMS!$AC$529,0)) -> 0 | B127: =IF(C127=0,0,IF(C127>291,TEAMS!$AE$530,0)) -> 0 | C127: =IF(TEAMS!AE$531=0,0,IF(TEAMS!AE$531>291,TEAMS!AE$531,0)) -> 0 | D127: 125
A128: =IF(C128=0,0,IF(C128>291,TEAMS!$AC$529,0)) -> 0 | B128: =IF(C128=0,0,IF(C128>291,TEAMS!$AF$530,0)) -> 0 | C128: =IF(TEAMS!AF$531=0,0,IF(TEAMS!AF$531>291,TEAMS!AF$531,0)) -> 0 | D128: 126
A129: =IF(C129=0,0,IF(C129>291,TEAMS!$AC$529,0)) -> 0 | B129: =IF(C129=0,0,IF(C129>291,TEAMS!$AG$530,0)) -> 0 | C129: =IF(TEAMS!AG$531=0,0,IF(TEAMS!AG$531>291,TEAMS!AG$531,0)) -> 0 | D129: 127
A130: =IF(C130=0,0,IF(C130>291,TEAMS!AC556,0)) -> 0 | B130: =IF(C130=0,0,IF(C130>291,TEAMS!AC557,0)) -> 0 | C130: =IF(TEAMS!AC558=0,0,IF(TEAMS!AC558>291,TEAMS!AC558,0)) -> 0 | D130: 128
A131: =IF(C131=0,0,IF(C131>291,TEAMS!AC582,0)) -> 0 | B131: =IF(C131=0,0,IF(C131>291,TEAMS!AC583,0)) -> 0 | C131: =IF(TEAMS!AC584=0,0,IF(TEAMS!AC584>291,TEAMS!AC584,0)) -> 0 | D131: 129
A132: =IF(C132=0,0,IF(C132>291,TEAMS!AC582,0)) -> 0 | B132: =IF(C132=0,0,IF(C132>291,TEAMS!AD583,0)) -> 0 | C132: =IF(TEAMS!AD584=0,0,IF(TEAMS!AD584>291,TEAMS!AD584,0)) -> 0 | D132: 130
A133: =IF(C133=0,0,IF(C133>291,TEAMS!AC582,0)) -> 0 | B133: =IF(C133=0,0,IF(C133>291,TEAMS!AE583,0)) -> 0 | C133: =IF(TEAMS!AE584=0,0,IF(TEAMS!AE584>291,TEAMS!AE584,0)) -> 0 | D133: 131
A134: =IF(C134=0,0,IF(C134>291,TEAMS!AC582,0)) -> 0 | B134: =IF(C134=0,0,IF(C134>291,TEAMS!AF583,0)) -> 0 | C134: =IF(TEAMS!AF584=0,0,IF(TEAMS!AF584>291,TEAMS!AF584,0)) -> 0 | D134: 132
A135: =IF(C135=0,0,IF(C135>291,TEAMS!AC556,0)) -> 0 | B135: =IF(C135=0,0,IF(C135>291,TEAMS!AG583,0)) -> 0 | C135: =IF(TEAMS!AG584=0,0,IF(TEAMS!AG584>291,TEAMS!AG584,0)) -> 0 | D135: 133
A136: =IF(C136=0,0,IF(C136>291,TEAMS!$AC$608,0)) -> 0 | B136: =IF(C136=0,0,IF(C136>291,TEAMS!$AC$609,0)) -> 0 | C136: =IF(TEAMS!AC$610=0,0,IF(TEAMS!AC$610>291,TEAMS!AC$610,0)) -> 0 | D136: 134
A137: =IF(C137=0,0,IF(C137>291,TEAMS!$AC$608,0)) -> 0 | B137: =IF(C137=0,0,IF(C137>291,TEAMS!$AD$609,0)) -> 0 | C137: =IF(TEAMS!AD$610=0,0,IF(TEAMS!AD$610>291,TEAMS!AD$610,0)) -> 0 | D137: 135
A138: =IF(C138=0,0,IF(C138>291,TEAMS!$AC$608,0)) -> 0 | B138: =IF(C138=0,0,IF(C138>291,TEAMS!$AE$609,0)) -> 0 | C138: =IF(TEAMS!AE$610=0,0,IF(TEAMS!AE$610>291,TEAMS!AE$610,0)) -> 0 | D138: 136
A139: =IF(C139=0,0,IF(C139>291,TEAMS!$AC$608,0)) -> 0 | B139: =IF(C139=0,0,IF(C139>291,TEAMS!$AF$609,0)) -> 0 | C139: =IF(TEAMS!AF$610=0,0,IF(TEAMS!AF$610>291,TEAMS!AF$610,0)) -> 0 | D139: 137
A140: =IF(C140=0,0,IF(C140>291,TEAMS!$AC$608,0)) -> 0 | B140: =IF(C140=0,0,IF(C140>291,TEAMS!$AG$609,0)) -> 0 | C140: =IF(TEAMS!AG$610=0,0,IF(TEAMS!AG$610>291,TEAMS!AG$610,0)) -> 0 | D140: 138
A141: =IF(C141=0,0,IF(C141>291,TEAMS!$AC$635,0)) -> 0 | B141: =IF(C141=0,0,IF(C141>291,TEAMS!AE636,0)) -> 0 | C141: =IF(TEAMS!AE637=0,0,IF(TEAMS!AE637>291,TEAMS!AE637,0)) -> 0 | D141: 139
A142: =IF(C142=0,0,IF(C142>291,TEAMS!$AC$635,0)) -> 0 | B142: =IF(C142=0,0,IF(C142>291,TEAMS!AF636,0)) -> 0 | C142: =IF(TEAMS!AF637=0,0,IF(TEAMS!AF637>291,TEAMS!AF637,0)) -> 0 | D142: 140
A143: =IF(C143=0,0,IF(C143>291,TEAMS!$AC$635,0)) -> 0 | B143: =IF(C143=0,0,IF(C143>291,TEAMS!AG636,0)) -> 0 | C143: =IF(TEAMS!AG637=0,0,IF(TEAMS!AG637>291,TEAMS!AG637,0)) -> 0 | D143: 141
A144: =IF(C144=0,0,IF(C144>291,TEAMS!$AC$635,0)) -> 0 | B144: =IF(C144=0,0,IF(C144>291,TEAMS!AC662,0)) -> 0 | C144: =IF(TEAMS!AC$663=0,0,IF(TEAMS!AC$663>291,TEAMS!AC$663,0)) -> 0 | D144: 142
A145: =IF(C145=0,0,IF(C145>291,TEAMS!$AC$635,0)) -> 0 | B145: =IF(C145=0,0,IF(C145>291,TEAMS!AD662,0)) -> 0 | C145: =IF(TEAMS!AD$663=0,0,IF(TEAMS!AD$663>291,TEAMS!AD$663,0)) -> 0 | D145: 143
A146: =IF(C146=0,0,IF(C146>291,TEAMS!$AC$635,0)) -> 0 | B146: =IF(C146=0,0,IF(C146>291,TEAMS!AE662,0)) -> 0 | C146: =IF(TEAMS!AE$663=0,0,IF(TEAMS!AE$663>291,TEAMS!AE$663,0)) -> 0 | D146: 144
A147: =IF(C147=0,0,IF(C147>291,TEAMS!$AC$635,0)) -> 0 | B147: =IF(C147=0,0,IF(C147>291,TEAMS!AF662,0)) -> 0 | C147: =IF(TEAMS!AF$663=0,0,IF(TEAMS!AF$663>291,TEAMS!AF$663,0)) -> 0 | D147: 145
A148: =IF(C148=0,0,IF(C148>291,TEAMS!$AC$635,0)) -> 0 | B148: =IF(C148=0,0,IF(C148>291,TEAMS!AG662,0)) -> 0 | C148: =IF(TEAMS!AG$663=0,0,IF(TEAMS!AG$663>291,TEAMS!AG$663,0)) -> 0 | D148: 146
A149: =IF(C149=0,0,IF(C149>291,TEAMS!$AC$687,0)) -> 0 | B149: =IF(C149=0,0,IF(C149>291,TEAMS!$AC$688,0)) -> 0 | C149: =IF(TEAMS!AC$689=0,0,IF(TEAMS!AC$689>291,TEAMS!AC$689,0)) -> 0 | D149: 147
A150: =IF(C150=0,0,IF(C150>291,TEAMS!$AC$687,0)) -> 0 | B150: =IF(C150=0,0,IF(C150>291,TEAMS!$AD$688,0)) -> 0 | C150: =IF(TEAMS!AD$689=0,0,IF(TEAMS!AD$689>291,TEAMS!AD$689,0)) -> 0 | D150: 148
A151: =IF(C151=0,0,IF(C151>291,TEAMS!$AC$687,0)) -> 0 | B151: =IF(C151=0,0,IF(C151>291,TEAMS!$AE$688,0)) -> 0 | C151: =IF(TEAMS!AE$689=0,0,IF(TEAMS!AE$689>291,TEAMS!AE$689,0)) -> 0 | D151: 149
A152: =IF(C152=0,0,IF(C152>291,TEAMS!$AC$687,0)) -> 0 | B152: =IF(C152=0,0,IF(C152>291,TEAMS!$AF$688,0)) -> 0 | C152: =IF(TEAMS!AF$689=0,0,IF(TEAMS!AF$689>291,TEAMS!AF$689,0)) -> 0 | D152: 150
A153: =IF(C153=0,0,IF(C153>291,TEAMS!$AC$687,0)) -> 0 | B153: =IF(C153=0,0,IF(C153>291,TEAMS!$AG$688,0)) -> 0 | C153: =IF(TEAMS!AG$689=0,0,IF(TEAMS!AG$689>291,TEAMS!AG$689,0)) -> 0 | D153: 151
A154: =IF(C154=0,0,IF(C154>291,TEAMS!$AC$714,0)) -> 0 | B154: =IF(C154=0,0,IF(C154>291,TEAMS!AC$715,0)) -> 0 | C154: =IF(TEAMS!AC$716=0,0,IF(TEAMS!AC$716>291,TEAMS!AC$716,0)) -> 0 | D154: 152
A155: =IF(C155=0,0,IF(C155>291,TEAMS!$AC$714,0)) -> 0 | B155: =IF(C155=0,0,IF(C155>291,TEAMS!AD$715,0)) -> 0 | C155: =IF(TEAMS!AD$716=0,0,IF(TEAMS!AD$716>291,TEAMS!AD$716,0)) -> 0 | D155: 153
A156: =IF(C156=0,0,IF(C156>291,TEAMS!$AC$714,0)) -> 0 | B156: =IF(C156=0,0,IF(C156>291,TEAMS!AE$715,0)) -> 0 | C156: =IF(TEAMS!AE$716=0,0,IF(TEAMS!AE$716>291,TEAMS!AE$716,0)) -> 0 | D156: 154
A157: =IF(C157=0,0,IF(C157>291,TEAMS!$AC$714,0)) -> 0 | B157: =IF(C157=0,0,IF(C157>291,TEAMS!AF$715,0)) -> 0 | C157: =IF(TEAMS!AF$716=0,0,IF(TEAMS!AF$716>291,TEAMS!AF$716,0)) -> 0 | D157: 155
A158: =IF(C158=0,0,IF(C158>291,TEAMS!$AC$714,0)) -> 0 | B158: =IF(C158=0,0,IF(C158>291,TEAMS!AG$715,0)) -> 0 | C158: =IF(TEAMS!AG$716=0,0,IF(TEAMS!AG$716>291,TEAMS!AG$716,0)) -> 0 | D158: 156
A159: =IF(C159=0,0,IF(C159>291,TEAMS!$AC$714,0)) -> 0 | B159: =IF(C159=0,0,IF(C159>291,TEAMS!AC$741,0)) -> 0 | C159: =IF(TEAMS!AC$742=0,0,IF(TEAMS!AC$742>291,TEAMS!AC$742,0)) -> 0 | D159: 157
A160: =IF(C160=0,0,IF(C160>291,TEAMS!$AC$714,0)) -> 0 | B160: =IF(C160=0,0,IF(C160>291,TEAMS!AD$741,0)) -> 0 | C160: =IF(TEAMS!AD$742=0,0,IF(TEAMS!AD$742>291,TEAMS!AD$742,0)) -> 0 | D160: 158
A161: =IF(C161=0,0,IF(C161>291,TEAMS!$AC$714,0)) -> 0 | B161: =IF(C161=0,0,IF(C161>291,TEAMS!AE$741,0)) -> 0 | C161: =IF(TEAMS!AE$742=0,0,IF(TEAMS!AE$742>291,TEAMS!AE$742,0)) -> 0 | D161: 159
A162: =IF(C162=0,0,IF(C162>291,TEAMS!$AC$714,0)) -> 0 | B162: =IF(C162=0,0,IF(C162>291,TEAMS!AF$741,0)) -> 0 | C162: =IF(TEAMS!AF$742=0,0,IF(TEAMS!AF$742>291,TEAMS!AF$742,0)) -> 0 | D162: 160
A163: =IF(C163=0,0,IF(C163>291,TEAMS!$AC$714,0)) -> 0 | B163: =IF(C163=0,0,IF(C163>291,TEAMS!AG$741,0)) -> 0 | C163: =IF(TEAMS!AG$742=0,0,IF(TEAMS!AG$742>291,TEAMS!AG$742,0)) -> 0 | D163: 161
A164: =IF(C164=0,0,IF(C164>291,TEAMS!$AC$766,0)) -> 0 | B164: =IF(C164=0,0,IF(C164>291,TEAMS!$AC$767,0)) -> 0 | C164: =IF(TEAMS!AC$768=0,0,IF(TEAMS!AC$768>291,TEAMS!AC$768,0)) -> 0 | D164: 162
A165: =IF(C165=0,0,IF(C165>291,TEAMS!$AC$766,0)) -> 0 | B165: =IF(C165=0,0,IF(C165>291,TEAMS!$AD$767,0)) -> 0 | C165: =IF(TEAMS!AD$768=0,0,IF(TEAMS!AD$768>291,TEAMS!AD$768,0)) -> 0 | D165: 163
A166: =IF(C166=0,0,IF(C166>291,TEAMS!$AC$766,0)) -> 0 | B166: =IF(C166=0,0,IF(C166>291,TEAMS!$AE$767,0)) -> 0 | C166: =IF(TEAMS!AE$768=0,0,IF(TEAMS!AE$768>291,TEAMS!AE$768,0)) -> 0 | D166: 164
A167: =IF(C167=0,0,IF(C167>291,TEAMS!$AC$766,0)) -> 0 | B167: =IF(C167=0,0,IF(C167>291,TEAMS!$AF$767,0)) -> 0 | C167: =IF(TEAMS!AF$768=0,0,IF(TEAMS!AF$768>291,TEAMS!AF$768,0)) -> 0 | D167: 165
A168: =IF(C168=0,0,IF(C168>291,TEAMS!$AC$766,0)) -> 0 | B168: =IF(C168=0,0,IF(C168>291,TEAMS!$AG$767,0)) -> 0 | C168: =IF(TEAMS!AG$768=0,0,IF(TEAMS!AG$768>291,TEAMS!AG$768,0)) -> 0 | D168: 166
A169: =IF(C169=0,0,IF(C169>291,TEAMS!$AC$793,0)) -> 0 | B169: =IF(C169=0,0,IF(C169>291,TEAMS!AD$794,0)) -> 0 | C169: =IF(TEAMS!AD$795=0,0,IF(TEAMS!AD$795>291,TEAMS!AD$795,0)) -> 0 | D169: 167
A170: =IF(C170=0,0,IF(C170>291,TEAMS!$AC$793,0)) -> 0 | B170: =IF(C170=0,0,IF(C170>291,TEAMS!AE$794,0)) -> 0 | C170: =IF(TEAMS!AE$795=0,0,IF(TEAMS!AE$795>291,TEAMS!AE$795,0)) -> 0 | D170: 168
A171: =IF(C171=0,0,IF(C171>291,TEAMS!$AC$793,0)) -> 0 | B171: =IF(C171=0,0,IF(C171>291,TEAMS!AF$794,0)) -> 0 | C171: =IF(TEAMS!AF$795=0,0,IF(TEAMS!AF$795>291,TEAMS!AF$795,0)) -> 0 | D171: 169
A172: =IF(C172=0,0,IF(C172>291,TEAMS!$AC$793,0)) -> 0 | B172: =IF(C172=0,0,IF(C172>291,TEAMS!AG$794,0)) -> 0 | C172: =IF(TEAMS!AG$795=0,0,IF(TEAMS!AG$795>291,TEAMS!AG$795,0)) -> 0 | D172: 170
A173: =IF(C173=0,0,IF(C173>291,TEAMS!$AC$793,0)) -> 0 | B173: =IF(C173=0,0,IF(C173>291,TEAMS!AC$820,0)) -> 0 | C173: =IF(TEAMS!AC$821=0,0,IF(TEAMS!AC$821>291,TEAMS!AC$821,0)) -> 0 | D173: 171
A174: =IF(C174=0,0,IF(C174>291,TEAMS!$AC$793,0)) -> 0 | B174: =IF(C174=0,0,IF(C174>291,TEAMS!AD$820,0)) -> 0 | C174: =IF(TEAMS!AD$821=0,0,IF(TEAMS!AD$821>291,TEAMS!AD$821,0)) -> 0 | D174: 172
A175: =IF(C175=0,0,IF(C175>291,TEAMS!$AC$793,0)) -> 0 | B175: =IF(C175=0,0,IF(C175>291,TEAMS!AE$820,0)) -> 0 | C175: =IF(TEAMS!AE$821=0,0,IF(TEAMS!AE$821>291,TEAMS!AE$821,0)) -> 0 | D175: 173
A176: =IF(C176=0,0,IF(C176>291,TEAMS!$AC$793,0)) -> 0 | B176: =IF(C176=0,0,IF(C176>291,TEAMS!AF$820,0)) -> 0 | C176: =IF(TEAMS!AF$821=0,0,IF(TEAMS!AF$821>291,TEAMS!AF$821,0)) -> 0 | D176: 174
A177: =IF(C177=0,0,IF(C177>291,TEAMS!$AC$793,0)) -> 0 | B177: =IF(C177=0,0,IF(C177>291,TEAMS!AG$820,0)) -> 0 | C177: =IF(TEAMS!AG$821=0,0,IF(TEAMS!AG$821>291,TEAMS!AG$821,0)) -> 0 | D177: 175
A178: =IF(C178=0,0,IF(C178>291,TEAMS!$AC$845,0)) -> 0 | B178: =IF(C178=0,0,IF(C178>291,TEAMS!$AC$846,0)) -> 0 | C178: =IF(TEAMS!AC$847=0,0,IF(TEAMS!AC$847>291,TEAMS!AC$847,0)) -> 0 | D178: 176
A179: =IF(C179=0,0,IF(C179>291,TEAMS!$AC$845,0)) -> 0 | B179: =IF(C179=0,0,IF(C179>291,TEAMS!$AD$846,0)) -> 0 | C179: =IF(TEAMS!AD$847=0,0,IF(TEAMS!AD$847>291,TEAMS!AD$847,0)) -> 0 | D179: 177
A180: =IF(C180=0,0,IF(C180>291,TEAMS!$AC$845,0)) -> 0 | B180: =IF(C180=0,0,IF(C180>291,TEAMS!$AE$846,0)) -> 0 | C180: =IF(TEAMS!AE$847=0,0,IF(TEAMS!AE$847>291,TEAMS!AE$847,0)) -> 0 | D180: 178
A181: =IF(C181=0,0,IF(C181>291,TEAMS!$AC$845,0)) -> 0 | B181: =IF(C181=0,0,IF(C181>291,TEAMS!$AF$846,0)) -> 0 | C181: =IF(TEAMS!AF$847=0,0,IF(TEAMS!AF$847>291,TEAMS!AF$847,0)) -> 0 | D181: 179
A182: =IF(C182=0,0,IF(C182>291,TEAMS!$AC$845,0)) -> 0 | B182: =IF(C182=0,0,IF(C182>291,TEAMS!$AG$846,0)) -> 0 | C182: =IF(TEAMS!AG$847=0,0,IF(TEAMS!AG$847>291,TEAMS!AG$847,0)) -> 0 | D182: 180
A183: =IF(C183=0,0,IF(C183>291,TEAMS!$AC$872,0)) -> 0 | B183: =IF(C183=0,0,IF(C183>291,TEAMS!AC$873,0)) -> 0 | C183: =IF(TEAMS!AC$874=0,0,IF(TEAMS!AC$874>291,TEAMS!AC$874,0)) -> 0 | D183: 181
A184: =IF(C184=0,0,IF(C184>291,TEAMS!$AC$872,0)) -> 0 | B184: =IF(C184=0,0,IF(C184>291,TEAMS!AD$873,0)) -> 0 | C184: =IF(TEAMS!AD$874=0,0,IF(TEAMS!AD$874>291,TEAMS!AD$874,0)) -> 0 | D184: 182
A185: =IF(C185=0,0,IF(C185>291,TEAMS!$AC$872,0)) -> 0 | B185: =IF(C185=0,0,IF(C185>291,TEAMS!AE$873,0)) -> 0 | C185: =IF(TEAMS!AE$874=0,0,IF(TEAMS!AE$874>291,TEAMS!AE$874,0)) -> 0 | D185: 183
A186: =IF(C186=0,0,IF(C186>291,TEAMS!$AC$872,0)) -> 0 | B186: =IF(C186=0,0,IF(C186>291,TEAMS!AF$873,0)) -> 0 | C186: =IF(TEAMS!AF$874=0,0,IF(TEAMS!AF$874>291,TEAMS!AF$874,0)) -> 0 | D186: 184
A187: =IF(C187=0,0,IF(C187>291,TEAMS!$AC$872,0)) -> 0 | B187: =IF(C187=0,0,IF(C187>291,TEAMS!AG$873,0)) -> 0 | C187: =IF(TEAMS!AG$874=0,0,IF(TEAMS!AG$874>291,TEAMS!AG$874,0)) -> 0 | D187: 185
A188: =IF(C188=0,0,IF(C188>291,TEAMS!$AC$872,0)) -> 0 | B188: =IF(C188=0,0,IF(C188>291,TEAMS!AC$899,0)) -> 0 | C188: =IF(TEAMS!AC$900=0,0,IF(TEAMS!AC$900>291,TEAMS!AC$900,0)) -> 0 | D188: 186
A189: =IF(C189=0,0,IF(C189>291,TEAMS!$AC$872,0)) -> 0 | B189: =IF(C189=0,0,IF(C189>291,TEAMS!AD$899,0)) -> 0 | C189: =IF(TEAMS!AD$900=0,0,IF(TEAMS!AD$900>291,TEAMS!AD$900,0)) -> 0 | D189: 187
A190: =IF(C190=0,0,IF(C190>291,TEAMS!$AC$872,0)) -> 0 | B190: =IF(C190=0,0,IF(C190>291,TEAMS!AE$899,0)) -> 0 | C190: =IF(TEAMS!AE$900=0,0,IF(TEAMS!AE$900>291,TEAMS!AE$900,0)) -> 0 | D190: 188
A191: =IF(C191=0,0,IF(C191>291,TEAMS!$AC$872,0)) -> 0 | B191: =IF(C191=0,0,IF(C191>291,TEAMS!AF$899,0)) -> 0 | C191: =IF(TEAMS!AF$900=0,0,IF(TEAMS!AF$900>291,TEAMS!AF$900,0)) -> 0 | D191: 189
A192: =IF(C192=0,0,IF(C192>291,TEAMS!$AC$872,0)) -> 0 | B192: =IF(C192=0,0,IF(C192>291,TEAMS!AG$899,0)) -> 0 | C192: =IF(TEAMS!AG$900=0,0,IF(TEAMS!AG$900>291,TEAMS!AG$900,0)) -> 0 | D192: 190
A193: =IF(C193=0,0,IF(C193>291,TEAMS!$AC$924,0)) -> 0 | B193: =IF(C193=0,0,IF(C193>291,TEAMS!$AC$925,0)) -> 0 | C193: =IF(TEAMS!AC$926=0,0,IF(TEAMS!AC$926>291,TEAMS!AC$926,0)) -> 0 | D193: 191
A194: =IF(C194=0,0,IF(C194>291,TEAMS!$AC$924,0)) -> 0 | B194: =IF(C194=0,0,IF(C194>291,TEAMS!$AD$925,0)) -> 0 | C194: =IF(TEAMS!AD$926=0,0,IF(TEAMS!AD$926>291,TEAMS!AD$926,0)) -> 0 | D194: 192
A195: =IF(C195=0,0,IF(C195>291,TEAMS!$AC$924,0)) -> 0 | B195: =IF(C195=0,0,IF(C195>291,TEAMS!$AE$925,0)) -> 0 | C195: =IF(TEAMS!AE$926=0,0,IF(TEAMS!AE$926>291,TEAMS!AE$926,0)) -> 0 | D195: 193
A196: =IF(C196=0,0,IF(C196>291,TEAMS!$AC$924,0)) -> 0 | B196: =IF(C196=0,0,IF(C196>291,TEAMS!$AF$925,0)) -> 0 | C196: =IF(TEAMS!AF$926=0,0,IF(TEAMS!AF$926>291,TEAMS!AF$926,0)) -> 0 | D196: 194
A197: =IF(C197=0,0,IF(C197>291,TEAMS!$AC$924,0)) -> 0 | B197: =IF(C197=0,0,IF(C197>291,TEAMS!$AG$925,0)) -> 0 | C197: =IF(TEAMS!AG$926=0,0,IF(TEAMS!AG$926>291,TEAMS!AG$926,0)) -> 0 | D197: 195
A198: =IF(C198=0,0,IF(C198>291,TEAMS!$AC$951,0)) -> 0 | B198: =IF(C198=0,0,IF(C198>291,TEAMS!AE$952,0)) -> 0 | C198: =IF(TEAMS!AE$953=0,0,IF(TEAMS!AE$953>291,TEAMS!AE$953,0)) -> 0 | D198: 196
A199: =IF(C199=0,0,IF(C199>291,TEAMS!$AC$951,0)) -> 0 | B199: =IF(C199=0,0,IF(C199>291,TEAMS!AG$952,0)) -> 0 | C199: =IF(TEAMS!AG$953=0,0,IF(TEAMS!AG$953>291,TEAMS!AG$953,0)) -> 0 | D199: 197
A200: =IF(C200=0,0,IF(C200>291,TEAMS!$AC$951,0)) -> 0 | B200: =IF(C200=0,0,IF(C200>291,TEAMS!AC$978,0)) -> 0 | C200: =IF(TEAMS!AC$979=0,0,IF(TEAMS!AC$979>291,TEAMS!AC$979,0)) -> 0 | D200: 198
... 102 more rows

Sheet 2025
E1: Area 2 Standing (2025 - 2026 Season)
E2: Teams North (ctrl+n) | H2: Team - *10 Avg | I2: Won | J2: Lost | K2: Win %
D3: 1 | E3: =TEAMS!$AC$82 -> CO | F3: =TEAMS!$A$81 -> Colquitt County | H3: =TEXT(TEAMS!$AA$105,"0000.00")&TEXT(TEAMS!$AB$105,"-000.00") -> 1062.08-025.08 | I3: =SUM($C$69>$D$69,$F$69>$G$69,$J$68>$I$68,$L$70>$M$70,$D$84>$C$84,$G$86>$F$86,$I$88>$J$88,$G$97>$F$97,$J$96>$I$96,$L$98>$M$98,$D$113>$C$113,$F$113>$G$113) -> 12 | J3: =SUM($C$69<$D$69,$F$69<$G$69,$J$68<$I$68,$L$70<$M$70,$D$84<$C$84,$G$86<$F$86,$I$88<$J$88,$G$97<$F$97,$J$96<$I$96,$L$98<$M$98,$D$113<$C$113,$F$113<$G$113) -> 0 | K3: =IF(I3>0,I3/(I3+J3),0) -> 1
D4: 2 | E4: =TEAMS!$AC$1109 -> WI | F4: =TEAMS!$A$1108 -> Wilcox County | H4: =TEXT(TEAMS!$AA$1132,"0000.00")&TEXT(TEAMS!$AB$1132,"-000.00") -> 1061.64-028.36 | I4: =SUM($C$72>$D$72,$F$71>$G$71,$J$74>$I$74,$M$72>$L$72,$D$85>$C$85,$I$84>$J$84,$M$84>$L$84,$G$100>$F$100,$I$101>$J$101,$L$101>$M$101,$D$115>$C$115,$F$114>$G$114) -> 10 | J4: =SUM($C$72<$D$72,$F$71<$G$71,$J$74<$I$74,$M$72<$L$72,$D$85<$C$85,$I$84<$J$84,$M$84<$L$84,$G$100<$F$100,$I$101<$J$101,$L$101<$M$101,$D$115<$C$115,$F$114<$G$114) -> 1 | K4: 0.9090909091
D5: 3 | E5: =TEAMS!$AC$714 -> SU | F5: =TEAMS!$A$713 -> Sumter | H5: =TEXT(TEAMS!$AA$737,"0000.00")&TEXT(TEAMS!$AB$737,"-000.00") -> 1060.90-034.00 | I5: =SUM($D$74>$C$74,$F$74>$G$74,$J$71>$I$71,$D$86>$C$86,$G$88>$F$88,$J$83>$I$83,$L$84>$M$84,$C$96>$D$96,$F$99>$G$99,$M$101>$L$101,$F$115>$G$115,$J$111>$I$111) -> 8 | J5: =SUM($D$74<$C$74,$F$74<$G$74,$J$71<$I$71,$D$86<$C$86,$G$88<$F$88,$J$83<$I$83,$L$84<$M$84,$C$96<$D$96,$F$99<$G$99,$M$101<$L$101,$F$115<$G$115,$J$111<$I$111) -> 2 | K5: 0.8
D6: 4 | E6: =TEAMS!$AC$635 -> LO | F6: =TEAMS!$A$634 -> Lowndes County | H6: =TEXT(TEAMS!$AA$658,"0000.00")&TEXT(TEAMS!$AB$658,"-000.00") -> 1052.92-025.83 | I6: =SUM($D$68>$C$68,$G$70>$F$70,$I$68>$J$68,$M$68>$L$68,$C$82>$D$82,$F$83>$G$83,$J$84>$I$84,$F$98>$G$98,$I$98>$J$98,$M$98>$L$98,$C$112>$D$112,$G$112>$F$112) -> 8 | J6: =SUM($D$68<$C$68,$G$70<$F$70,$I$68<$J$68,$M$68<$L$68,$C$82<$D$82,$F$83<$G$83,$J$84<$I$84,$F$98<$G$98,$I$98<$J$98,$M$98<$L$98,$C$112<$D$112,$G$112<$F$112) -> 4 | K6: 0.6666666667
D7: 5 | E7: =TEAMS!$AC$1188 -> WO | F7: =TEAMS!$A$1187 -> Worth County | H7: =TEXT(TEAMS!$AA$1211,"0000.00")&TEXT(TEAMS!$AB$1211,"-000.00") -> 1042.17-026.08 | I7: =SUM($C$68>$D$68,$G$68>$F$68,$I$70>$J$70,$M$69>$L$69,$C$84>$D$84,$G$82>$F$82,$I$83>$J$83,$G$98>$F$98,$I$97>$J$97,$M$97>$L$97,$C$111>$D$111,$G$113>$F$113) -> 8 | J7: =SUM($C$68<$D$68,$G$68<$F$68,$I$70<$J$70,$M$69<$L$69,$C$84<$D$84,$G$82<$F$82,$I$83<$J$83,$G$98<$F$98,$I$97<$J$97,$M$97<$L$97,$C$111<$D$111,$G$113<$F$113) -> 4 | K7: 0.6666666667
D8: 6 | E8: =TEAMS!$AC$161 -> CR | F8: =TEAMS!$A$160 -> Crisp County | H8: =TEXT(TEAMS!$AA$184,"0000.00")&TEXT(TEAMS!$AB$184,"-000.00") -> 1026.45-023.90 | I8: =SUM($C$71>$D$71,$G$71>$F$71,$I$71>$J$72,$L$74>$M$74,$C$85>$D$85,$G$83>$F$83,$J$88>$I$88,$C$98>$D$98,$F$101>$G$101,$J$99>$I$99,$M$100>$L$100,$G$115>$F$115) -> 7 | J8: =SUM($C$71<$D$71,$G$71<$F$71,$I$71<$J$71,$L$74<$M$74,$C$85<$D$85,$G$83<$F$83,$J$88<$I$88,$C$98<$D$98,$F$101<$G$101,$J$99<$I$99,$M$100<$L$100,$G$115<$F$115) -> 4 | K8: 0.6363636364
D9: 7 | E9: =TEAMS!$AC$1 -> CA | F9: =TEAMS!$A$2 -> Cairo | H9: =TEXT(TEAMS!$AA$26,"0000.00")&TEXT(TEAMS!$AB$26,"-000.00") -> 0996.92-018.50 | I9: =SUM($C$70>$D$70,$G$69>$F$69,$I$69>$J$69,$L$69>$M$69,$D$82>$C$82,$G$84>$F$84,$I$85>$J$85,$G$96>$F$96,$I$96>$J$96,$M$96>$L$96,$D$111>$C$111,$F$112>$G$112) -> 6 | J9: =SUM($C$70<$D$70,$G$69<$F$69,$I$69<$J$69,$L$69<$M$69,$D$82<$C$82,$G$84<$F$84,$I$85<$J$85,$G$96<$F$96,$I$96<$J$96,$M$96<$L$96,$D$111<$C$111,$F$112<$G$112) -> 6 | K9: 0.5
D10: 8 | E10: =TEAMS!$AC$872 -> TU | F10: =TEAMS!$A$871 -> Turner County | H10: =TEXT(TEAMS!$AA$895,"0000.00")&TEXT(TEAMS!$AB$895,"-000.00") -> 0870.22-013.89 | I10: =SUM($C$74>$D$74,$F$72>$G$72,$J$72>$I$72,$M$72>$L$72,$C$88>$D$88,$F$86>$G$86,$J$85>$I$85,$M$83>$L$83,$F$97>$G$97,$I$98>$J$98,$L$97>$M$97,$J$112>$I$112) -> 5 | J10: =SUM($C$74<$D$74,$F$72<$G$72,$J$72<$I$72,$M$72<$L$72,$C$88<$D$88,$F$86<$G$86,$J$85<$I$85,$M$83<$L$83,$F$97<$G$97,$I$98<$J$98,$L$97<$M$97,$J$112<$I$112) -> 7 | K10: 0.4166666667
D11: 9 | E11: =TEAMS!$AC$793 -> MA | F11: =TEAMS!$A$792 -> Macon County | H11: =TEXT(TEAMS!$AA$816,"0000.00")&TEXT(TEAMS!$AB$816,"-000.00") -> 0934.17-011.83 | I11: =SUM($G$72>$F$72,$I$74>$J$74,$L$71>$M$71,$D$88>$C$88,$G$85>$F$85,$I$82>$J$82,$L$83>$M$83,$D$98>$C$98,$G$99>$F$99,$I$99>$J$99,$C$114>$D$114,$G$114>$F$114) -> 3 | J11: =SUM($G$72<$F$72,$I$74<$J$74,$L$71<$M$71,$D$88<$C$88,$G$85<$F$85,$I$82<$J$82,$L$83<$M$83,$D$98<$C$98,$G$99<$F$99,$I$99<$J$99,$C$114<$D$114,$G$114<$F$114) -> 9 | K11: 0.25
D12: 10 | E12: =TEAMS!$AC$319 -> DU | F12: =TEAMS!$A$318 -> Dougherty County | H12: =TEXT(TEAMS!$AA$974,"0000.00")&TEXT(TEAMS!$AB$974,"-000.00") -> 0893.67-008.00 | I12: =SUM($D$71>$C$71,$I$71>$J$71,$M$71>$L$71,$C$86>$D$86,$F$84>$G$84,$J$85>$I$85,$L$82>$M$82,$D$96>$C$96,$J$100>$I$100,$L$100>$M$100,$C$115>$D$115,$J$112>$I$112) -> 2 | J12: =SUM($D$71<$C$71,$I$71<$J$72,$M$71<$L$71,$C$86<$D$86,$F$84<$G$84,$J$85<$I$85,$L$82<$M$82,$D$96<$C$96,$J$100<$I$100,$L$100<$M$100,$C$115<$D$115,$J$112<$I$112) -> 8 | K12: 0.2
D13: 11 | E13: =TEAMS!$AC$240 -> DL | F13: =TEAMS!$A$239 -> Dooly | H13: =TEXT(TEAMS!$AA$263,"0000.00")&TEXT(TEAMS!$AB$263,"-000.00") -> 0712.25-003.38 | I13: =SUM($D$72>$C$72,$G$74>$F$74,$M$74>$L$74,$C$88>$D$88,$F$82>$G$82,$M$82>$L$82,$C$97>$D$97,$F$100>$G$100,$I$100>$J$100,$M$99>$L$99,$D$114>$C$114,$I$111>$J$111) -> 2 | J13: =SUM($D$72<$C$72,$G$74<$F$74,$M$74<$L$74,$C$88<$D$88,$F$82<$G$82,$M$82<$L$82,$C$97<$D$97,$F$100<$G$100,$I$100<$J$100,$M$99<$L$99,$D$114<$C$114,$I$111<$J$111) -> 8 | K13: 0.2
D14: 12 | E14: =TEAMS!$AC$1030 -> WE | F14: =TEAMS!$A$1029 -> Westover | H14: =TEXT(TEAMS!$AA$1053,"0000.00")&TEXT(TEAMS!$AB$1053,"-000.00") -> 0907.58-009.33 | I14: =SUM($D$69>$C$69,$F$68>$G$68,$J$69>$I$69,$L$68>$M$68,$D$83>$C$83,$F$88>$G$88,$J$82>$I$82,$F$97>$G$97,$J$97>$I$97,$L$96>$M$96,$D$112>$C$112,$F$111>$G$111) -> 2 | J14: =SUM($D$69<$C$69,$F$68<$G$68,$J$69<$I$69,$L$68<$M$68,$D$83<$C$83,$F$88<$G$88,$J$82<$I$82,$F$97<$G$97,$J$97<$I$97,$L$96<$M$96,$D$112<$C$112,$F$111<$G$111) -> 10 | K14: 0.1666666667
D15: 13 | E15: =TEAMS!$AC$951 -> VA | F15: =TEAMS!$A$950 -> Valdosta | H15: =TEXT(TEAMS!$AA$974,"0000.00")&TEXT(TEAMS!$AB$974,"-000.00") -> 0893.67-008.00 | I15: =SUM($D$70>$C$70,$F$70>$G$70,$J$70>$I$70,$M$70>$L$70,$C$83>$D$83,$F$85>$G$85,$J$86>$I$86,$F$96>$G$96,$J$98>$I$98,$L$97>$M$97,$C$113>$D$113,$G$111>$F$111) -> 2 | J15: =SUM($D$70<$C$70,$F$70<$G$70,$J$70<$I$70,$M$70<$L$70,$C$83<$D$83,$F$85<$G$85,$J$86<$I$86,$F$96<$G$96,$J$98<$I$98,$L$97<$M$97,$C$113<$D$113,$G$111<$F$111) -> 10 | K15: 0.1666666667
D16: 7 | E16: Teams South (ctrl+u) | H16: Team - *10 Avg | I16: Won | J16: Lost | K16: Win %
D17: 15 | E17: =TEAMS!$AC$477 -> IR | F17: =TEAMS!$A$476 -> Irwin County | H17: =TEXT(TEAMS!$AA$500,"0000.00")&TEXT(TEAMS!$AB$500,"-000.00") -> 0000.00-000.00 | I17: =SUM($D$69>$C$69,$F$69>$G$69,$L$70>$M$70,$J$68>$I$68,$D$82>$C$82,$G$85>$F$85,$J$84>$I$84,$L$85>$M$85,$C$111>$D$111,$D$97>$C$97,$F$111>$G$111,$F$97>$G$97) -> 5 | J17: =SUM($D$69<$C$69,$F$69<$G$69,$L$70<$M$70,$J$68<$I$68,$D$82<$C$82,$G$85<$F$85,$J$84<$I$84,$L$85<$M$85,$C$111<$D$111,$D$97<$C$97,$F$111<$G$111,$F$97<$G$97) -> 6 | K17: =IF(I17>0,I17/(I17+J17),0) -> 0.4545454545
D18: 16 | E18: =TEAMS!$AC$398 -> FI | F18: =TEAMS!$A$397 -> Fitzgerald | H18: =TEXT(TEAMS!$AA$421,"0000.00")&TEXT(TEAMS!$AB$421,"-000.00") -> 0000.00-000.00 | K18: =IF(I18>0,I18/(I18+J18),0) -> 0
D19: 17 | E19: =TEAMS!$AC$556 -> LE | F19: =TEAMS!$A$555 -> Lee County | H19: =TEXT(TEAMS!$AA$579,"0000.00")&TEXT(TEAMS!$AB$579,"-000.00") -> 0000.00-000.00 | I19: =SUM($C$71>$D$71,$F$70>$G$70,$J$69>$I$69,$D$85>$C$85,$G$98>$F$98,$J$85>$I$85,$M$85>$L$85,$C$99>$D$99,$M$98>$L$98,$I$98>$J$98,$D$113>$C$113,$F$114>$G$114) -> 5 | J19: =SUM($C$71<$D$71,$F$70<$G$70,$J$69<$I$69,$D$85<$C$85,$G$98<$F$98,$J$85<$I$85,$M$85<$L$85,$C$99<$D$99,$M$98<$L$98,$I$98<$J$98,$D$113<$C$113,$F$114<$G$114) -> 5 | K19: =IF(I19>0,I19/(I19+J19),0) -> 0.5
D20: 18 | E20: =TEAMS!$AC$1267 -> Z17 | F20: =TEAMS!$A$1266 -> Z 17 | H20: =TEXT(TEAMS!$AA$1290,"0000.00")&TEXT(TEAMS!$AB$1290,"-000.00") -> 0000.00-000.00 | K20: =IF(I20>0,I20/(I20+J20),0) -> 0
D21: 19 | E21: =TEAMS!$AC$1346 -> Z18 | F21: =TEAMS!$A$1345 -> Z 18 | H21: =TEXT(TEAMS!$AA$1369,"0000.00")&TEXT(TEAMS!$AB$1369,"-000.00") -> 0000.00-000.00 | K21: =IF(I21>0,I21/(I21+J21),0) -> 0
B23: Match Score - (*10) Inner Tens
B24: Team | C24: 1 | D24: 2 | E24: 3 | F24: 4 | G24: 5 | H24: 6 | I24: 7 | J24: 8 | K24: 9 | L24: 10 | M24: 11
B25: =TEAMS!$AC$1 -> CA | C25: =TEXT(TEAMS!$AA$4, "0000") & TEXT(TEAMS!$AB$4, "-000") -> 1040-019 | D25: =TEXT(TEAMS!$AA$5, "0000") & TEXT(TEAMS!$AB$5, "-000") -> 1020-021 | E25: =TEXT(TEAMS!$AA$6, "0000") & TEXT(TEAMS!$AB$6, "-000") -> 0978-015 | F25: =TEXT(TEAMS!$AA$7, "0000") & TEXT(TEAMS!$AB$7, "-000") -> 0986-021 | G25: =TEXT(TEAMS!$AA$8, "0000") & TEXT(TEAMS!$AB$8, "-000") -> 1046-027 | H25: =TEXT(TEAMS!$AA$9, "0000") & TEXT(TEAMS!$AB$9, "-000") -> 0994-017 | I25: =TEXT(TEAMS!$AA$10, "0000") & TEXT(TEAMS!$AB$10, "-000") -> 1013-019 | J25: BYE | K25: BYE | L25: =TEXT(TEAMS!$AA$13, "0000") & TEXT(TEAMS!$AB$13, "-000") -> 1011-024 | M25: =TEXT(TEAMS!$AA$14, "0000") & TEXT(TEAMS!$AB$14, "-000") -> 0953-013
B26: =TEAMS!$AC$82 -> CO | C26: =TEXT(TEAMS!$AA$83, "0000")&TEXT(TEAMS!$AB$83, "-000") -> 1032-023 | D26: =TEXT(TEAMS!$AA$84, "0000")&TEXT(TEAMS!$AB$84, "-000") -> 1063-032 | E26: =TEXT(TEAMS!$AA$85, "0000") & TEXT(TEAMS!$AB$85, "-000") -> 1059-031 | F26: =TEXT(TEAMS!$AA$86, "0000")&TEXT(TEAMS!$AB$86, "-000") -> 1054-020 | G26: =TEXT(TEAMS!$AA$87, "0000")&TEXT(TEAMS!$AB$87, "-000") -> 1051-025 | H26: =TEXT(TEAMS!$AA$88, "0000")&TEXT(TEAMS!$AB$88, "-000") -> 1071-027 | I26: =TEXT(TEAMS!$AA$89, "0000")&TEXT(TEAMS!$AB$89, "-000") -> 1047-022 | J26: BYE | K26: BYE | L26: =TEXT(TEAMS!$AA$92, "0000")&TEXT(TEAMS!$AB$92, "-000") -> 1060-024 | M26: =TEXT(TEAMS!$AA$93, "0000")&TEXT(TEAMS!$AB$93, "-000") -> 1074-021
B27: =TEAMS!$AC$161 -> CR | C27: =TEXT(TEAMS!$AA$162, "0000")&TEXT(TEAMS!$AB$162, "-000") -> 1042 | D27: =TEXT(TEAMS!$AA$163, "0000")&TEXT(TEAMS!$AB$163, "-000") -> 1019-023 | E27: =TEXT(TEAMS!$AA$164, "0000")&TEXT(TEAMS!$AB$164, "-000") -> 1006-025 | F27: =TEXT(TEAMS!$AA$165, "0000")&TEXT(TEAMS!$AB$165, "-000") -> 1056-025 | G27: =TEXT(TEAMS!$AA$166, "0000")&TEXT(TEAMS!$AB$166, "-000") -> 0983-014 | H27: =TEXT(TEAMS!$AA$167, "0000")&TEXT(TEAMS!$AB$167, "-000") -> 0992-022 | I27: =TEXT(TEAMS!$AA$168, "0000")&TEXT(TEAMS!$AB$168, "-000") -> 1029-020 | J27: BYE | K27: =TEXT(TEAMS!$AA$170, "0000")&TEXT(TEAMS!$AB$170, "-000") -> 1059-018 | L27: =TEXT(TEAMS!$AA$171, "0000")&TEXT(TEAMS!$AB$171, "-000") -> 1002-026 | M27: =TEXT(TEAMS!$AA$172, "0000")&TEXT(TEAMS!$AB$172, "-000") -> 1050-037
B28: =TEAMS!$AC$240 -> DL | C28: =TEXT(TEAMS!$AA$241, "0000")&TEXT(TEAMS!$AB$241, "-000") -> 0636-002 | D28: =TEXT(TEAMS!$AA$242, "0000")&TEXT(TEAMS!$AB$242, "-000") -> 0676-002 | E28: BYE | F28: =TEXT(TEAMS!$AA$244, "0000")&TEXT(TEAMS!$AB$244, "-000") -> 0719-002 | G28: =TEXT(TEAMS!$AA$245, "0000")&TEXT(TEAMS!$AB$245, "-000") -> 0656-003 | H28: =TEXT(TEAMS!$AA$246, "0000")&TEXT(TEAMS!$AB$246, "-000") -> 0678-001 | I28: BYE | J28: =TEXT(TEAMS!$AA$248, "0000")&TEXT(TEAMS!$AB$248, "-000") ->  | K28: =TEXT(TEAMS!$AA$249, "0000")&TEXT(TEAMS!$AB$249, "-000") -> 0773-007 | L28: =TEXT(TEAMS!$AA$250, "0000")&TEXT(TEAMS!$AB$250, "-000") -> 0763-006 | M28: =TEXT(TEAMS!$AA$251, "0000")&TEXT(TEAMS!$AB$251, "-000") -> FORFEIT
B29: =TEAMS!$AC$319 -> DU | C29: =TEXT(TEAMS!$AA$320, "0000")&TEXT(TEAMS!$AB$320, "-000") -> 0810 | D29: BYE | E29: =TEXT(TEAMS!$AA$322, "0000")&TEXT(TEAMS!$AB$322, "-000") -> WIN | F29: =TEXT(TEAMS!$AA$323, "0000")&TEXT(TEAMS!$AB$323, "-000") -> 0746-009 | G29: =TEXT(TEAMS!$AA$324, "0000")&TEXT(TEAMS!$AB$324, "-000") -> 0818-005 | H29: =TEXT(TEAMS!$AA$325, "0000")&TEXT(TEAMS!$AB$325, "-000") -> 0756-005 | I29: =TEXT(TEAMS!$AA$326, "0000")&TEXT(TEAMS!$AB$326, "-000") -> 0785-002 | J29: =TEXT(TEAMS!$AA$327, "0000")&TEXT(TEAMS!$AB$327, "-000") ->  | K29: =TEXT(TEAMS!$AA$328, "0000")&TEXT(TEAMS!$AB$328, "-000") -> 0886-010 | L29: BYE | M29: =TEXT(TEAMS!$AA$330, "0000")&TEXT(TEAMS!$AB$330, "-000") -> WIN
B30: =TEAMS!$AC$398 -> FI | C30: =TEXT(TEAMS!$AA$399, "0000")&TEXT(TEAMS!$AB$399, "-000") ->  | D30: =TEXT(TEAMS!$AA$400, "0000")&TEXT(TEAMS!$AB$400, "-000") -> not | E30: =TEXT(TEAMS!$AA$401, "0000")&TEXT(TEAMS!$AB$401, "-000") -> shooting | F30: =TEXT(TEAMS!$AA$402, "0000")&TEXT(TEAMS!$AB$402, "-000") -> this | G30: =TEXT(TEAMS!$AA$403, "0000")&TEXT(TEAMS!$AB$403, "-000") -> year | H30: =TEXT(TEAMS!$AA$404, "0000")&TEXT(TEAMS!$AB$404, "-000") ->  | I30: =TEXT(TEAMS!$AA$405, "0000")&TEXT(TEAMS!$AB$405, "-000") ->  | J30: =TEXT(TEAMS!$AA$406, "0000")&TEXT(TEAMS!$AB$406, "-000") ->  | K30: =TEXT(TEAMS!$AA$407, "0000")&TEXT(TEAMS!$AB$407, "-000") ->  | L30: =TEXT(TEAMS!$AA$408, "0000")&TEXT(TEAMS!$AB$408, "-000") ->  | M30: =TEXT(TEAMS!$AA$409, "0000")&TEXT(TEAMS!$AB$409, "-000") -> not
B31: =TEAMS!$AC$477 -> IR | C31: =TEXT(TEAMS!$AA$478, "0000")&TEXT(TEAMS!$AB$478, "-000") ->  | D31: =TEXT(TEAMS!$AA$479, "0000")&TEXT(TEAMS!$AB$479, "-000") ->  | E31: =TEXT(TEAMS!$AA$480, "0000")&TEXT(TEAMS!$AB$480, "-000") -> not | F31: =TEXT(TEAMS!$AA$481, "0000")&TEXT(TEAMS!$AB$481, "-000") -> shooting | G31: =TEXT(TEAMS!$AA$482, "0000")&TEXT(TEAMS!$AB$482, "-000") -> this | H31: =TEXT(TEAMS!$AA$483, "0000")&TEXT(TEAMS!$AB$483, "-000") -> year | I31: =TEXT(TEAMS!$AA$484, "0000")&TEXT(TEAMS!$AB$484, "-000") ->  | J31: =TEXT(TEAMS!$AA$485, "0000")&TEXT(TEAMS!$AB$485, "-000") ->  | K31: =TEXT(TEAMS!$AA$486, "0000")&TEXT(TEAMS!$AB$486, "-000") ->  | L31: =TEXT(TEAMS!$AA$487, "0000")&TEXT(TEAMS!$AB$487, "-000") ->  | M31: =TEXT(TEAMS!$AA$488, "0000")&TEXT(TEAMS!$AB$488, "-000") -> 
B32: =TEAMS!$AC$556 -> LE | C32: =TEXT(TEAMS!$AA$557, "0000")&TEXT(TEAMS!$AB$557, "-000") ->  | D32: =TEXT(TEAMS!$AA$558, "0000")&TEXT(TEAMS!$AB$558, "-000") ->  | E32: =TEXT(TEAMS!$AA$559, "0000")&TEXT(TEAMS!$AB$559, "-000") -> not | F32: =TEXT(TEAMS!$AA$560, "0000")&TEXT(TEAMS!$AB$560, "-000") -> shooting | G32: =TEXT(TEAMS!$AA$561, "0000")&TEXT(TEAMS!$AB$561, "-000") -> this | H32: =TEXT(TEAMS!$AA$562, "0000")&TEXT(TEAMS!$AB$562, "-000") -> year | I32: =TEXT(TEAMS!$AA$563, "0000")&TEXT(TEAMS!$AB$563, "-000") ->  | J32: =TEXT(TEAMS!$AA$564, "0000")&TEXT(TEAMS!$AB$564, "-000") ->  | K32: =TEXT(TEAMS!$AA$565, "0000")&TEXT(TEAMS!$AB$565, "-000") ->  | L32: =TEXT(TEAMS!$AA$566, "0000")&TEXT(TEAMS!$AB$566, "-000") ->  | M32: =TEXT(TEAMS!$AA$567, "0000")&TEXT(TEAMS!$AB$567, "-000") -> 
B33: =TEAMS!$AC$635 -> LO | C33: =TEXT(TEAMS!$AA$636,"0000")&TEXT(TEAMS!$AB$636,"-000") -> 1021-025 | D33: =TEXT(TEAMS!$AA$637, "0000")&TEXT(TEAMS!$AB$637, "-000") -> 1057-029 | E33: =TEXT(TEAMS!$AA$638, "0000")&TEXT(TEAMS!$AB$638, "-000") -> 1042-020 | F33: =TEXT(TEAMS!$AA$639, "0000")&TEXT(TEAMS!$AB$639, "-000") -> 1031-029 | G33: =TEXT(TEAMS!$AA$640, "0000")&TEXT(TEAMS!$AB$640, "-000") -> 1062-024 | H33: =TEXT(TEAMS!$AA$641, "0000")&TEXT(TEAMS!$AB$641, "-000") -> 1054-028 | I33: =TEXT(TEAMS!$AA$642, "0000")&TEXT(TEAMS!$AB$642, "-000") -> 1059-022 | J33: BYE | K33: BYE | L33: =TEXT(TEAMS!$AA$645, "0000")&TEXT(TEAMS!$AB$645, "-000") -> 1072-028 | M33: =TEXT(TEAMS!$AA$646, "0000")&TEXT(TEAMS!$AB$646, "-000") -> 1039-021
B34: =TEAMS!$AC$714 -> SU | C34: =TEXT(TEAMS!$AA$715, "0000")&TEXT(TEAMS!$AB$715, "-000") -> 0832-013 | D34: =TEXT(TEAMS!$AA$716, "0000")&TEXT(TEAMS!$AB$716, "-000") -> 1018-016 | E34: =TEXT(TEAMS!$AA$717, "0000")&TEXT(TEAMS!$AB$717, "-000") -> 1115-044 | F34: BYE | G34: =TEXT(TEAMS!$AA$719, "0000")&TEXT(TEAMS!$AB$719, "-000") -> 1056-026 | H34: =TEXT(TEAMS!$AA$720, "0000")&TEXT(TEAMS!$AB$720, "-000") -> 1093-042 | I34: =TEXT(TEAMS!$AA$721, "0000")&TEXT(TEAMS!$AB$721, "-000") -> 1099-043 | J34: =TEXT(TEAMS!$AA$722, "0000")&TEXT(TEAMS!$AB$722, "-000") -> 1081-039 | K34: =TEXT(TEAMS!$AA$723, "0000")&TEXT(TEAMS!$AB$723, "-000") -> 1103-040 | L34: =TEXT(TEAMS!$AA$724, "0000")&TEXT(TEAMS!$AB$724, "-000") -> 1092-034 | M34: BYE
B35: =TEAMS!$AC$793 -> MA | C35: BYE | D35: =TEXT(TEAMS!$AA$795, "0000")&TEXT(TEAMS!$AB$795, "-000") -> 0774-006 | E35: =TEXT(TEAMS!$AA$796, "0000")&TEXT(TEAMS!$AB$796, "-000") -> 0917-008 | F35: =TEXT(TEAMS!$AA$797, "0000")&TEXT(TEAMS!$AB$797, "-000") -> 0891-011 | G35: =TEXT(TEAMS!$AA$798, "0000")&TEXT(TEAMS!$AB$798, "-000") -> 0907-020 | H35: =TEXT(TEAMS!$AA$799, "0000")&TEXT(TEAMS!$AB$799, "-000") -> 0900-007 | I35: =TEXT(TEAMS!$AA$800, "0000")&TEXT(TEAMS!$AB$800, "-000") -> 0965-017 | J35: =TEXT(TEAMS!$AA$801, "0000")&TEXT(TEAMS!$AB$801, "-000") -> 0992-014 | K35: =TEXT(TEAMS!$AA$802, "0000")&TEXT(TEAMS!$AB$802, "-000") -> 0956-012 | L35: =TEXT(TEAMS!$AA$803, "0000")&TEXT(TEAMS!$AB$803, "-000") -> 0964-008 | M35: =TEXT(TEAMS!$AA$804, "0000")&TEXT(TEAMS!$AB$804, "-000") -> 0962-008
B36: =TEAMS!$AC$872 -> TU | C36: =TEXT(TEAMS!$AA$873, "0000")&TEXT(TEAMS!$AB$873, "-000") -> 0982-012 | D36: =TEXT(TEAMS!$AA$874, "0000")&TEXT(TEAMS!$AB$874, "-000") -> 1029-024 | E36: =TEXT(TEAMS!$AA$875, "0000")&TEXT(TEAMS!$AB$875, "-000") -> FORFEIT | F36: =TEXT(TEAMS!$AA$876, "0000")&TEXT(TEAMS!$AB$876, "-000") -> 1039-019 | G36: BYE | H36: =TEXT(TEAMS!$AA$878, "0000")&TEXT(TEAMS!$AB$878, "-000") -> 1028-016 | I36: =TEXT(TEAMS!$AA$879, "0000")&TEXT(TEAMS!$AB$879, "-000") -> 1015-018 | J36: =TEXT(TEAMS!$AA$880, "0000")&TEXT(TEAMS!$AB$880, "-000") -> 1012-016 | K36: =TEXT(TEAMS!$AA$881, "0000")&TEXT(TEAMS!$AB$881, "-000") -> 0472-005 | L36: =TEXT(TEAMS!$AA$882, "0000")&TEXT(TEAMS!$AB$882, "-000") -> 0995-014 | M36: =TEXT(TEAMS!$AA$883, "0000")&TEXT(TEAMS!$AB$883, "-000") -> 0260-001
B37: =TEAMS!$AC$1188 -> WO | C37: =TEXT(TEAMS!$AA$1189,"0000")&TEXT(TEAMS!$AB$1189,"-000") -> 1018-014 | D37: =TEXT(TEAMS!$AA$1190,"0000")&TEXT(TEAMS!$AB$1190,"-000") -> 1026-026 | E37: =TEXT(TEAMS!$AA$1191,"0000")&TEXT(TEAMS!$AB$1191,"-000") -> 1033-030 | F37: =TEXT(TEAMS!$AA$1192,"0000")&TEXT(TEAMS!$AB$1192,"-000") -> 1059-025 | G37: =TEXT(TEAMS!$AA$1193,"0000")&TEXT(TEAMS!$AB$1193,"-000") -> 1007-022 | H37: =TEXT(TEAMS!$AA$1194,"0000")&TEXT(TEAMS!$AB$1194,"-000") -> 1033-027 | I37: =TEXT(TEAMS!$AA$1195,"0000")&TEXT(TEAMS!$AB$1195,"-000") -> 1063-024 | J37: BYE | K37: BYE | L37: =TEXT(TEAMS!$AA$1198,"0000")&TEXT(TEAMS!$AB$1198,"-000") -> 1059-029 | M37: =TEXT(TEAMS!$AA$1199,"0000")&TEXT(TEAMS!$AB$1199,"-000") -> 1065-031
B38: =TEAMS!$AC$951 -> VA | C38: =TEXT(TEAMS!$AA$952, "0000")&TEXT(TEAMS!$AB$952, "-000") -> 0849-005 | D38: =TEXT(TEAMS!$AA$953, "0000")&TEXT(TEAMS!$AB$953, "-000") -> 0906-007 | E38: =TEXT(TEAMS!$AA$954, "0000")&TEXT(TEAMS!$AB$954, "-000") -> 0855-004 | F38: =TEXT(TEAMS!$AA$955, "0000")&TEXT(TEAMS!$AB$955, "-000") -> 0865-003 | G38: =TEXT(TEAMS!$AA$956, "0000")&TEXT(TEAMS!$AB$956, "-000") -> 0901-011 | H38: =TEXT(TEAMS!$AA$957, "0000")&TEXT(TEAMS!$AB$957, "-000") -> 0876-008 | I38: =TEXT(TEAMS!$AA$958, "0000")&TEXT(TEAMS!$AB$958, "-000") -> 0910-013 | J38: BYE | K38: BYE | L38: =TEXT(TEAMS!$AA$961, "0000")&TEXT(TEAMS!$AB$961, "-000") -> 0912-009 | M38: =TEXT(TEAMS!$AA$962, "0000")&TEXT(TEAMS!$AB$962, "-000") -> 0934-009
B39: =TEAMS!$AC$1030 -> WE | C39: =TEXT(TEAMS!$AA$1031, "0000")&TEXT(TEAMS!$AB$1031, "-000") -> 0877-012 | D39: =TEXT(TEAMS!$AA$1032, "0000")&TEXT(TEAMS!$AB$1032, "-000") -> 0876-005 | E39: =TEXT(TEAMS!$AA$1033, "0000")&TEXT(TEAMS!$AB$1033, "-000") -> 0897-007 | F39: =TEXT(TEAMS!$AA$1034, "0000")&TEXT(TEAMS!$AB$1034, "-000") -> 0868-009 | G39: =TEXT(TEAMS!$AA$1035, "0000")&TEXT(TEAMS!$AB$1035, "-000") -> 0893-010 | H39: =TEXT(TEAMS!$AA$1036, "0000")&TEXT(TEAMS!$AB$1036, "-000") -> 0909-007 | I39: =TEXT(TEAMS!$AA$1037, "0000")&TEXT(TEAMS!$AB$1037, "-000") -> 0909-006 | J39: BYE | K39: BYE | L39: =TEXT(TEAMS!$AA$1040, "0000")&TEXT(TEAMS!$AB$1040, "-000") -> 0942-014 | M39: =TEXT(TEAMS!$AA$1041, "0000")&TEXT(TEAMS!$AB$1041, "-000") -> 0939-008
B40: =TEAMS!$AC$1109 -> WI | C40: =TEXT(TEAMS!$AA$1110,"0000")&TEXT(TEAMS!$AB$1110,"-000") -> 0873-012 | D40: =TEXT(TEAMS!$AA$1111,"0000")&TEXT(TEAMS!$AB$1111,"-000") -> 1089-025 | E40: =TEXT(TEAMS!$AA$1112,"0000")&TEXT(TEAMS!$AB$1112,"-000") -> 1040-022 | F40: =TEXT(TEAMS!$AA$1113,"0000")&TEXT(TEAMS!$AB$1113,"-000") -> 1087-036 | G40: =TEXT(TEAMS!$AA$1114,"0000")&TEXT(TEAMS!$AB$1114,"-000") -> 1065-030 | H40: BYE | I40: =TEXT(TEAMS!$AA$1116,"0000")&TEXT(TEAMS!$AB$1116,"-000") -> 1075-026 | J40: =TEXT(TEAMS!$AA$1117,"0000")&TEXT(TEAMS!$AB$1117,"-000") -> 1103-030 | K40: BYE | L40: =TEXT(TEAMS!$AA$1119,"0000")&TEXT(TEAMS!$AB$1119,"-000") -> 1086-036 | M40: =TEXT(TEAMS!$AA$1120,"0000")&TEXT(TEAMS!$AB$1120,"-000") -> 1081-024
B41: =TEAMS!$AC$1267 -> Z17 | C41: =TEXT(TEAMS!$AA$1268,"0000")&TEXT(TEAMS!$AB$1268,"-000") ->  | D41: =TEXT(TEAMS!$AA$1269,"0000")&TEXT(TEAMS!$AB$1269,"-000") ->  | E41: =TEXT(TEAMS!$AA$1270,"0000")&TEXT(TEAMS!$AB$1270,"-000") ->  | F41: =TEXT(TEAMS!$AA$1271,"0000")&TEXT(TEAMS!$AB$1271,"-000") ->  | G41: =TEXT(TEAMS!$AA$1272,"0000")&TEXT(TEAMS!$AB$1272,"-000") ->  | H41: =TEXT(TEAMS!$AA$1273,"0000")&TEXT(TEAMS!$AB$1273,"-000") ->  | I41: =TEXT(TEAMS!$AA$1274,"0000")&TEXT(TEAMS!$AB$1274,"-000") ->  | J41: =TEXT(TEAMS!$AA$1275,"0000")&TEXT(TEAMS!$AB$1275,"-000") ->  | K41: =TEXT(TEAMS!$AA$1276,"0000")&TEXT(TEAMS!$AB$1276,"-000") ->  | L41: =TEXT(TEAMS!$AA$1277,"0000")&TEXT(TEAMS!$AB$1277,"-000") ->  | M41: =TEXT(TEAMS!$AA$1278,"0000")&TEXT(TEAMS!$AB$1278,"-000") -> 
B42: =TEAMS!$AC$1346 -> Z18 | C42: =TEXT(TEAMS!$AA$1347,"0000")&TEXT(TEAMS!$AB$1347,"-000") ->  | D42: =TEXT(TEAMS!$AA$1348,"0000")&TEXT(TEAMS!$AB$1348,"-000") ->  | E42: =TEXT(TEAMS!$AA$1349,"0000")&TEXT(TEAMS!$AB$1349,"-000") ->  | F42: =TEXT(TEAMS!$AA$1350,"0000")&TEXT(TEAMS!$AB$1350,"-000") ->  | G42: =TEXT(TEAMS!$AA$1351,"0000")&TEXT(TEAMS!$AB$1351,"-000") ->  | H42: =TEXT(TEAMS!$AA$1352,"0000")&TEXT(TEAMS!$AB$1352,"-000") ->  | I42: =TEXT(TEAMS!$AA$1353,"0000")&TEXT(TEAMS!$AB$1353,"-000") ->  | J42: =TEXT(TEAMS!$AA$1354,"0000")&TEXT(TEAMS!$AB$1354,"-000") ->  | K42: =TEXT(TEAMS!$AA$1355,"0000")&TEXT(TEAMS!$AB$1355,"-000") ->  | L42: =TEXT(TEAMS!$AA$1356,"0000")&TEXT(TEAMS!$AB$1356,"-000") ->  | M42: =TEXT(TEAMS!$AA$1357,"0000")&TEXT(TEAMS!$AB$1357,"-000") -> 
B44: Match Score - (*10) Inner Tens | L44: Sectional | M44: Area 2
B45: Team | C45: 12 | D45: 13 | E45: 14 | F45: 15 | G45: 16 | H45: 17 | I45: 18 | J45: 19 | K45: 20 | L45: Playoff | M45: Chmpnshp
B46: =TEAMS!$AC$1 -> CA | C46: =TEXT(TEAMS!$AA$15, "0000") & TEXT(TEAMS!$AB$15, "-000") -> 0976-016 | D46: =TEXT(TEAMS!$AA$16, "0000") & TEXT(TEAMS!$AB$16, "-000") -> 0960-014 | E46: =TEXT(TEAMS!$AA$17, "0000") & TEXT(TEAMS!$AB$17, "-000") -> 0986-016 | F46: =TEXT(TEAMS!$AA$18, "0000") & TEXT(TEAMS!$AB$18, "-000") ->  | G46: =TEXT(TEAMS!$AA$19, "0000") & TEXT(TEAMS!$AB$19, "-000") ->  | H46: =TEXT(TEAMS!$AA$20, "0000") & TEXT(TEAMS!$AB$20, "-000") ->  | I46: =TEXT(TEAMS!$AA$21, "0000") & TEXT(TEAMS!$AB$21, "-000") ->  | J46: =TEXT(TEAMS!$AA$22, "0000") & TEXT(TEAMS!$AB$22, "-000") ->  | K46: =TEXT(TEAMS!$AA$23, "0000") & TEXT(TEAMS!$AB$23, "-000") ->  | L46: =TEXT(TEAMS!$AA$24, "0000") & TEXT(TEAMS!$AB$24, "-000") ->  | M46: =TEXT(TEAMS!$AA$25, "0000") & TEXT(TEAMS!$AB$25, "-000") -> 
B47: =TEAMS!$AC$82 -> CO | C47: =TEXT(TEAMS!$AA$94, "0000")&TEXT(TEAMS!$AB$94, "-000") -> 1079-028 | D47: =TEXT(TEAMS!$AA$95, "0000")&TEXT(TEAMS!$AB$95, "-000") -> 1076-020 | E47: =TEXT(TEAMS!$AA$96, "0000")&TEXT(TEAMS!$AB$96, "-000") -> 1079-028 | F47: =TEXT(TEAMS!$AA$97, "0000")&TEXT(TEAMS!$AB$97, "-000") ->  | G47: =TEXT(TEAMS!$AA$98, "0000")&TEXT(TEAMS!$AB$98, "-000") ->  | H47: =TEXT(TEAMS!$AA$99, "0000")&TEXT(TEAMS!$AB$99, "-000") ->  | I47: =TEXT(TEAMS!$AA$100, "0000")&TEXT(TEAMS!$AB$100, "-000") ->  | J47: =TEXT(TEAMS!$AA$101, "0000")&TEXT(TEAMS!$AB$101, "-000") ->  | K47: =TEXT(TEAMS!$AA$102, "0000")&TEXT(TEAMS!$AB$102, "-000") ->  | L47: =TEXT(TEAMS!$AA$103, "0000")&TEXT(TEAMS!$AB$103, "-000") ->  | M47: =TEXT(TEAMS!$AA$104, "0000")&TEXT(TEAMS!$AB$104, "-000") -> 
B48: =TEAMS!$AC$161 -> CR | C48: =TEXT(TEAMS!$AA$173, "0000")&TEXT(TEAMS!$AB$173, "-000") -> 1053-029 | D48: BYE | E48: =TEXT(TEAMS!$AA$175, "0000")&TEXT(TEAMS!$AB$175, "-000") ->  | F48: =TEXT(TEAMS!$AA$176, "0000")&TEXT(TEAMS!$AB$176, "-000") ->  | G48: =TEXT(TEAMS!$AA$177, "0000")&TEXT(TEAMS!$AB$177, "-000") ->  | H48: =TEXT(TEAMS!$AA$178, "0000")&TEXT(TEAMS!$AB$178, "-000") ->  | I48: =TEXT(TEAMS!$AA$179, "0000")&TEXT(TEAMS!$AB$179, "-000") ->  | J48: =TEXT(TEAMS!$AA$180, "0000")&TEXT(TEAMS!$AB$180, "-000") ->  | K48: =TEXT(TEAMS!$AA$181, "0000")&TEXT(TEAMS!$AB$181, "-000") ->  | L48: =TEXT(TEAMS!$AA$182, "0000")&TEXT(TEAMS!$AB$182, "-000") ->  | M48: =TEXT(TEAMS!$AA$183, "0000")&TEXT(TEAMS!$AB$183, "-000") -> 
B49: =TEAMS!$AC$240 -> DL | C49: =TEXT(TEAMS!$AA$252, "0000")&TEXT(TEAMS!$AB$252, "-000") -> WIN | D49: =TEXT(TEAMS!$AA$253, "0000")&TEXT(TEAMS!$AB$253, "-000") -> 0797-004 | E49: BYE | F49: =TEXT(TEAMS!$AA$255, "0000")&TEXT(TEAMS!$AB$255, "-000") ->  | G49: =TEXT(TEAMS!$AA$256, "0000")&TEXT(TEAMS!$AB$256, "-000") ->  | H49: =TEXT(TEAMS!$AA$257, "0000")&TEXT(TEAMS!$AB$257, "-000") ->  | I49: =TEXT(TEAMS!$AA$258, "0000")&TEXT(TEAMS!$AB$258, "-000") ->  | J49: =TEXT(TEAMS!$AA$259, "0000")&TEXT(TEAMS!$AB$259, "-000") ->  | K49: =TEXT(TEAMS!$AA$260, "0000")&TEXT(TEAMS!$AB$260, "-000") ->  | L49: =TEXT(TEAMS!$AA$261, "0000")&TEXT(TEAMS!$AB$261, "-000") ->  | M49: =TEXT(TEAMS!$AA$262, "0000")&TEXT(TEAMS!$AB$262, "-000") -> 
B50: =TEAMS!$AC$319 -> DU | C50: =TEXT(TEAMS!$AA$331, "0000")&TEXT(TEAMS!$AB$331, "-000") -> 0863-006 | E50: BYE | F50: WIN | G50: =TEXT(TEAMS!$AA$335, "0000")&TEXT(TEAMS!$AB$335, "-000") ->  | H50: =TEXT(TEAMS!$AA$336, "0000")&TEXT(TEAMS!$AB$336, "-000") ->  | I50: =TEXT(TEAMS!$AA$337, "0000")&TEXT(TEAMS!$AB$337, "-000") ->  | J50: =TEXT(TEAMS!$AA$338, "0000")&TEXT(TEAMS!$AB$338, "-000") ->  | K50: =TEXT(TEAMS!$AA$339, "0000")&TEXT(TEAMS!$AB$339, "-000") ->  | L50: =TEXT(TEAMS!$AA$340, "0000")&TEXT(TEAMS!$AB$340, "-000") ->  | M50: =TEXT(TEAMS!$AA$262, "0000")&TEXT(TEAMS!$AB$262, "-000") -> 
B51: =TEAMS!$AC$398 -> FI | C51: =TEXT(TEAMS!$AA$410, "0000")&TEXT(TEAMS!$AB$410, "-000") -> shooting | D51: =TEXT(TEAMS!$AA$411, "0000")&TEXT(TEAMS!$AB$411, "-000") -> this | E51: =TEXT(TEAMS!$AA$412, "0000")&TEXT(TEAMS!$AB$412, "-000") -> year | F51: =TEXT(TEAMS!$AA$413, "0000")&TEXT(TEAMS!$AB$413, "-000") ->  | G51: =TEXT(TEAMS!$AA$414, "0000")&TEXT(TEAMS!$AB$414, "-000") ->  | H51: =TEXT(TEAMS!$AA$415, "0000")&TEXT(TEAMS!$AB$415, "-000") ->  | I51: =TEXT(TEAMS!$AA$416, "0000")&TEXT(TEAMS!$AB$416, "-000") ->  | J51: =TEXT(TEAMS!$AA$417, "0000")&TEXT(TEAMS!$AB$417, "-000") ->  | K51: =TEXT(TEAMS!$AA$418, "0000")&TEXT(TEAMS!$AB$418, "-000") ->  | L51: =TEXT(TEAMS!$AA$419, "0000")&TEXT(TEAMS!$AB$419, "-000") ->  | M51: =TEXT(TEAMS!$AA$420, "0000")&TEXT(TEAMS!$AB$420, "-000") -> 
B52: =TEAMS!$AC$477 -> IR | C52: =TEXT(TEAMS!$AA$489, "0000")&TEXT(TEAMS!$AB$489, "-000") -> not | D52: =TEXT(TEAMS!$AA$490, "0000")&TEXT(TEAMS!$AB$490, "-000") -> shooting | E52: =TEXT(TEAMS!$AA$491, "0000")&TEXT(TEAMS!$AB$491, "-000") -> this | F52: =TEXT(TEAMS!$AA$492, "0000")&TEXT(TEAMS!$AB$492, "-000") -> year | G52: =TEXT(TEAMS!$AA$493, "0000")&TEXT(TEAMS!$AB$493, "-000") ->  | H52: =TEXT(TEAMS!$AA$494, "0000")&TEXT(TEAMS!$AB$494, "-000") ->  | I52: =TEXT(TEAMS!$AA$495, "0000")&TEXT(TEAMS!$AB$495, "-000") ->  | J52: =TEXT(TEAMS!$AA$496, "0000")&TEXT(TEAMS!$AB$496, "-000") ->  | K52: =TEXT(TEAMS!$AA$497, "0000")&TEXT(TEAMS!$AB$497, "-000") ->  | L52: =TEXT(TEAMS!$AA$498, "0000")&TEXT(TEAMS!$AB$498, "-000") ->  | M52: =TEXT(TEAMS!$AA$499, "0000")&TEXT(TEAMS!$AB$499, "-000") -> 
B53: =TEAMS!$AC$556 -> LE | C53: =TEXT(TEAMS!$AA$568, "0000")&TEXT(TEAMS!$AB$568, "-000") ->  | D53: =TEXT(TEAMS!$AA$569, "0000")&TEXT(TEAMS!$AB$569, "-000") -> not | E53: =TEXT(TEAMS!$AA$570, "0000")&TEXT(TEAMS!$AB$570, "-000") -> shooting | F53: =TEXT(TEAMS!$AA$571, "0000")&TEXT(TEAMS!$AB$571, "-000") -> this | G53: =TEXT(TEAMS!$AA$572, "0000")&TEXT(TEAMS!$AB$572, "-000") -> year | H53: =TEXT(TEAMS!$AA$573, "0000")&TEXT(TEAMS!$AB$573, "-000") ->  | I53: =TEXT(TEAMS!$AA$574, "0000")&TEXT(TEAMS!$AB$574, "-000") ->  | J53: =TEXT(TEAMS!$AA$575, "0000")&TEXT(TEAMS!$AB$575, "-000") ->  | K53: =TEXT(TEAMS!$AA$576, "0000")&TEXT(TEAMS!$AB$576, "-000") ->  | L53: =TEXT(TEAMS!$AA$577, "0000")&TEXT(TEAMS!$AB$577, "-000") ->  | M53: =TEXT(TEAMS!$AA$578, "0000")&TEXT(TEAMS!$AB$578, "-000") -> 
B54: =TEAMS!$AC$635 -> LO | C54: =TEXT(TEAMS!$AA$647, "0000")&TEXT(TEAMS!$AB$647, "-000") -> 1067-032 | D54: =TEXT(TEAMS!$AA$648, "0000")&TEXT(TEAMS!$AB$648, "-000") -> 1075-022 | E54: =TEXT(TEAMS!$AA$649, "0000")&TEXT(TEAMS!$AB$649, "-000") -> 1056-030 | F54: =TEXT(TEAMS!$AA$650, "0000")&TEXT(TEAMS!$AB$650, "-000") ->  | G54: =TEXT(TEAMS!$AA$651, "0000")&TEXT(TEAMS!$AB$651, "-000") ->  | I54: =TEXT(TEAMS!$AA$653, "0000")&TEXT(TEAMS!$AB$653, "-000") ->  | J54: =TEXT(TEAMS!$AA$654, "0000")&TEXT(TEAMS!$AB$654, "-000") ->  | K54: =TEXT(TEAMS!$AA$655, "0000")&TEXT(TEAMS!$AB$655, "-000") ->  | L54: =TEXT(TEAMS!$AA$656, "0000")&TEXT(TEAMS!$AB$656, "-000") ->  | M54: =TEXT(TEAMS!$AA$657, "0000")&TEXT(TEAMS!$AB$657, "-000") -> 
B55: =TEAMS!$AC$714 -> SU | C55: =TEXT(TEAMS!$AA$726, "0000")&TEXT(TEAMS!$AB$726, "-000") -> 1120-043 | D55: BYE | E55: =TEXT(TEAMS!$AA$728, "0000")&TEXT(TEAMS!$AB$728, "-000") ->  | F55: =TEXT(TEAMS!$AA$729, "0000")&TEXT(TEAMS!$AB$729, "-000") ->  | G55: =TEXT(TEAMS!$AA$730, "0000")&TEXT(TEAMS!$AB$730, "-000") ->  | H55: =TEXT(TEAMS!$AA$731, "0000")&TEXT(TEAMS!$AB$731, "-000") ->  | I55: =TEXT(TEAMS!$AA$732, "0000")&TEXT(TEAMS!$AB$732, "-000") ->  | J55: =TEXT(TEAMS!$AA$733, "0000")&TEXT(TEAMS!$AB$733, "-000") ->  | K55: =TEXT(TEAMS!$AA$734, "0000")&TEXT(TEAMS!$AB$734, "-000") ->  | L55: =TEXT(TEAMS!$AA$735, "0000")&TEXT(TEAMS!$AB$735, "-000") ->  | M55: =TEXT(TEAMS!$AA$736, "0000")&TEXT(TEAMS!$AB$736, "-000") -> 
B56: =TEAMS!$AC$793 -> MA | C56: BYE | D56: =TEXT(TEAMS!$AA$806, "0000")&TEXT(TEAMS!$AB$806, "-000") -> 0987-015 | E56: =TEXT(TEAMS!$AA$807, "0000")&TEXT(TEAMS!$AB$807, "-000") -> 0995-016 | F56: =TEXT(TEAMS!$AA$808, "0000")&TEXT(TEAMS!$AB$808, "-000") ->  | G56: =TEXT(TEAMS!$AA$809, "0000")&TEXT(TEAMS!$AB$809, "-000") ->  | H56: =TEXT(TEAMS!$AA$810, "0000")&TEXT(TEAMS!$AB$810, "-000") ->  | I56: =TEXT(TEAMS!$AA$811, "0000")&TEXT(TEAMS!$AB$811, "-000") ->  | J56: =TEXT(TEAMS!$AA$812, "0000")&TEXT(TEAMS!$AB$812, "-000") ->  | K56: =TEXT(TEAMS!$AA$813, "0000")&TEXT(TEAMS!$AB$813, "-000") ->  | L56: =TEXT(TEAMS!$AA$814, "0000")&TEXT(TEAMS!$AB$814, "-000") ->  | M56: =TEXT(TEAMS!$AA$815, "0000")&TEXT(TEAMS!$AB$815, "-000") -> 
B57: =TEAMS!$AC$872 -> TU | C57: =TEXT(TEAMS!$AA$884, "0000")&TEXT(TEAMS!$AB$884, "-000") -> FORFEIT | D57: BYE | E57: BYE | F57: FORFEIT | G57: =TEXT(TEAMS!$AA$888, "0000")&TEXT(TEAMS!$AB$888, "-000") ->  | H57: =TEXT(TEAMS!$AA$889, "0000")&TEXT(TEAMS!$AB$889, "-000") ->  | I57: =TEXT(TEAMS!$AA$890, "0000")&TEXT(TEAMS!$AB$890, "-000") ->  | J57: =TEXT(TEAMS!$AA$891, "0000")&TEXT(TEAMS!$AB$891, "-000") ->  | K57: =TEXT(TEAMS!$AA$892, "0000")&TEXT(TEAMS!$AB$892, "-000") ->  | L57: =TEXT(TEAMS!$AA$893, "0000")&TEXT(TEAMS!$AB$893, "-000") ->  | M57: =TEXT(TEAMS!$AA$894, "0000")&TEXT(TEAMS!$AB$894, "-000") -> 
B58: =TEAMS!$AC$1188 -> WO | C58: =TEXT(TEAMS!$AA$1200,"0000")&TEXT(TEAMS!$AB$1200,"-000") -> 1038-032 | D58: =TEXT(TEAMS!$AA$1201,"0000")&TEXT(TEAMS!$AB$1201,"-000") -> 1034-023 | E58: =TEXT(TEAMS!$AA$1202,"0000")&TEXT(TEAMS!$AB$1202,"-000") -> 1071-030 | F58: =TEXT(TEAMS!$AA$1203,"0000")&TEXT(TEAMS!$AB$1203,"-000") ->  | G58: =TEXT(TEAMS!$AA$1204,"0000")&TEXT(TEAMS!$AB$1204,"-000") ->  | H58: =TEXT(TEAMS!$AA$1205,"0000")&TEXT(TEAMS!$AB$1205,"-000") ->  | I58: =TEXT(TEAMS!$AA$1206,"0000")&TEXT(TEAMS!$AB$1206,"-000") ->  | J58: =TEXT(TEAMS!$AA$1207,"0000")&TEXT(TEAMS!$AB$1207,"-000") ->  | K58: =TEXT(TEAMS!$AA$1208,"0000")&TEXT(TEAMS!$AB$1208,"-000") ->  | L58: =TEXT(TEAMS!$AA$1209,"0000")&TEXT(TEAMS!$AB$1209,"-000") ->  | M58: =TEXT(TEAMS!$AA$1210,"0000")&TEXT(TEAMS!$AB$1210,"-000") -> 
B59: =TEAMS!$AC$951 -> VA | C59: =TEXT(TEAMS!$AA$963, "0000")&TEXT(TEAMS!$AB$963, "-000") -> 0889-008 | D59: =TEXT(TEAMS!$AA$964, "0000")&TEXT(TEAMS!$AB$964, "-000") -> 0858-006 | E59: =TEXT(TEAMS!$AA$965, "0000")&TEXT(TEAMS!$AB$965, "-000") -> 0969-013 | F59: =TEXT(TEAMS!$AA$966, "0000")&TEXT(TEAMS!$AB$966, "-000") ->  | G59: =TEXT(TEAMS!$AA$967, "0000")&TEXT(TEAMS!$AB$967, "-000") ->  | H59: =TEXT(TEAMS!$AA$968, "0000")&TEXT(TEAMS!$AB$968, "-000") ->  | I59: =TEXT(TEAMS!$AA$969, "0000")&TEXT(TEAMS!$AB$969, "-000") ->  | J59: =TEXT(TEAMS!$AA$970, "0000")&TEXT(TEAMS!$AB$970, "-000") ->  | K59: =TEXT(TEAMS!$AA$971, "0000")&TEXT(TEAMS!$AB$971, "-000") ->  | L59: =TEXT(TEAMS!$AA$972, "0000")&TEXT(TEAMS!$AB$972, "-000") ->  | M59: =TEXT(TEAMS!$AA$973, "0000")&TEXT(TEAMS!$AB$973, "-000") -> 
B60: =TEAMS!$AC$1030 -> WE | C60: =TEXT(TEAMS!$AA$1042, "0000")&TEXT(TEAMS!$AB$1042, "-000") -> 0912-009 | D60: =TEXT(TEAMS!$AA$1043, "0000")&TEXT(TEAMS!$AB$1043, "-000") -> 0904-006 | E60: =TEXT(TEAMS!$AA$1044, "0000")&TEXT(TEAMS!$AB$1044, "-000") -> 0965-019 | F60: =TEXT(TEAMS!$AA$1045, "0000")&TEXT(TEAMS!$AB$1045, "-000") ->  | G60: =TEXT(TEAMS!$AA$1046, "0000")&TEXT(TEAMS!$AB$1046, "-000") ->  | H60: =TEXT(TEAMS!$AA$1047, "0000")&TEXT(TEAMS!$AB$1047, "-000") ->  | I60: =TEXT(TEAMS!$AA$1048, "0000")&TEXT(TEAMS!$AB$1048, "-000") ->  | J60: =TEXT(TEAMS!$AA$1049, "0000")&TEXT(TEAMS!$AB$1049, "-000") ->  | K60: =TEXT(TEAMS!$AA$1050, "0000")&TEXT(TEAMS!$AB$1050, "-000") ->  | L60: =TEXT(TEAMS!$AA$1051, "0000")&TEXT(TEAMS!$AB$1051, "-000") ->  | M60: =TEXT(TEAMS!$AA$1052, "0000")&TEXT(TEAMS!$AB$1052, "-000") -> 
B61: =TEAMS!$AC$1109 -> WI | C61: =TEXT(TEAMS!$AA$1121,"0000")&TEXT(TEAMS!$AB$1121,"-000") -> 1074-040 | D61: =TEXT(TEAMS!$AA$1122,"0000")&TEXT(TEAMS!$AB$1122,"-000") ->  | E61: =TEXT(TEAMS!$AA$1123,"0000")&TEXT(TEAMS!$AB$1123,"-000") -> 1105-031 | F61: =TEXT(TEAMS!$AA$1124,"0000")&TEXT(TEAMS!$AB$1124,"-000") ->  | G61: =TEXT(TEAMS!$AA$1125,"0000")&TEXT(TEAMS!$AB$1125,"-000") ->  | H61: =TEXT(TEAMS!$AA$1126,"0000")&TEXT(TEAMS!$AB$1126,"-000") ->  | I61: =TEXT(TEAMS!$AA$1127,"0000")&TEXT(TEAMS!$AB$1127,"-000") ->  | J61: =TEXT(TEAMS!$AA$1128,"0000")&TEXT(TEAMS!$AB$1128,"-000") ->  | K61: =TEXT(TEAMS!$AA$1129,"0000")&TEXT(TEAMS!$AB$1129,"-000") ->  | L61: =TEXT(TEAMS!$AA$1130,"0000")&TEXT(TEAMS!$AB$1130,"-000") ->  | M61: =TEXT(TEAMS!$AA$1131,"0000")&TEXT(TEAMS!$AB$1131,"-000") -> 
B62: =TEAMS!$AC$1267 -> Z17 | C62: =TEXT(TEAMS!$AA$1279,"0000")&TEXT(TEAMS!$AB$1279,"-000") ->  | D62: =TEXT(TEAMS!$AA$1280,"0000")&TEXT(TEAMS!$AB$1280,"-000") ->  | E62: =TEXT(TEAMS!$AA$1281,"0000")&TEXT(TEAMS!$AB$1281,"-000") ->  | F62: =TEXT(TEAMS!$AA$1282,"0000")&TEXT(TEAMS!$AB$1282,"-000") ->  | G62: =TEXT(TEAMS!$AA$1283,"0000")&TEXT(TEAMS!$AB$1283,"-000") ->  | H62: =TEXT(TEAMS!$AA$1284,"0000")&TEXT(TEAMS!$AB$1284,"-000") ->  | I62: =TEXT(TEAMS!$AA$1285,"0000")&TEXT(TEAMS!$AB$1285,"-000") ->  | J62: =TEXT(TEAMS!$AA$1286,"0000")&TEXT(TEAMS!$AB$1286,"-000") ->  | K62: =TEXT(TEAMS!$AA$1287,"0000")&TEXT(TEAMS!$AB$1287,"-000") ->  | L62: =TEXT(TEAMS!$AA$1288,"0000")&TEXT(TEAMS!$AB$1288,"-000") ->  | M62: =TEXT(TEAMS!$AA$1289,"0000")&TEXT(TEAMS!$AB$1289,"-000") -> 
B63: =TEAMS!$AC$1346 -> Z18 | C63: =TEXT(TEAMS!$AA$1358,"0000")&TEXT(TEAMS!$AB$1358,"-000") ->  | D63: =TEXT(TEAMS!$AA$1359,"0000")&TEXT(TEAMS!$AB$1359,"-000") ->  | E63: =TEXT(TEAMS!$AA$1360,"0000")&TEXT(TEAMS!$AB$1360,"-000") ->  | F63: =TEXT(TEAMS!$AA$1361,"0000")&TEXT(TEAMS!$AB$1361,"-000") ->  | G63: =TEXT(TEAMS!$AA$1362,"0000")&TEXT(TEAMS!$AB$1362,"-000") ->  | H63: =TEXT(TEAMS!$AA$1363,"0000")&TEXT(TEAMS!$AB$1363,"-000") ->  | I63: =TEXT(TEAMS!$AA$1364,"0000")&TEXT(TEAMS!$AB$1364,"-000") ->  | J63: =TEXT(TEAMS!$AA$1365,"0000")&TEXT(TEAMS!$AB$1365,"-000") ->  | K63: =TEXT(TEAMS!$AA$1366,"0000")&TEXT(TEAMS!$AB$1366,"-000") ->  | L63: =TEXT(TEAMS!$AA$1367,"0000")&TEXT(TEAMS!$AB$1367,"-000") ->  | M63: =TEXT(TEAMS!$AA$1368,"0000")&TEXT(TEAMS!$AB$1368,"-000") -> 
B65: Matches
B66: 20-23 October 2025 (Match 1) | E66: 27-30 October 2025 (Match 2) | H66: 3-6 November 2025 (Match 3) | K66: 11-15 November 2025 (Match 4)
B67: North | E67: North | H67: North | K67: North
B68: WO @ LO | C68: =C37 -> 1018-014 | D68: =C33 -> 1021-025 | E68: WE @ WO | F68: =D39 -> 0876-005 | G68: =D37 -> 1026-026 | H68: LO @ CO | I68: =E33 -> 1042-020 | J68: =E26 -> 1059-031 | K68: WE @ LO | L68: =F39 -> 0868-009 | M68: =F33 -> 1031-029
B69: CO @ WE | C69: =C26 -> 1032-023 | D69: =C39 -> 0877-012 | E69: CO @ CA | F69: =D26 -> 1063-032 | G69: =D25 -> 1020-021 | H69: CA @ WE | I69: =E25 -> 0978-015 | J69: =E39 -> 0897-007 | K69: CA @ WO | L69: =F25 -> 0986-021 | M69: =F37 -> 1059-025
B70: CA @ VA | C70: =C25 -> 1040-019 | D70: =C38 -> 0849-005 | E70: VA @ LO | F70: =D38 -> 0906-007 | G70: =D33 -> 1057-029 | H70: WO @ VA | I70: =E37 -> 1033-030 | J70: =E38 -> 0855-004 | K70: CO @ VA | L70: =F26 -> 1054-020 | M70: =F33 -> 1031-029
B71: CR @ DU | C71: =C27 -> 1042 | D71: =C29 -> 0810 | E71: WI @ CR | F71: =D40 -> 1089-025 | G71: =D27 -> 1019-023 | H71: CR @ SU | I71: =E27 -> 1006-025 | J71: =E34 -> 1115-044 | K71: MA @ DU | L71: =F35 -> 0891-011 | M71: =F29 -> 0746-009
B72: WI @ DL | C72: =C40 -> 0873-012 | D72: =C28 -> 0636-002 | E72: TU @ MA | F72: =D36 -> 1029-024 | G72: =D35 -> 0774-006 | H72: DU @ TU | I72: =E29 -> WIN | J72: =E36 -> FORFEIT | K72: TU @ WI | L72: =F36 -> 1039-019 | M72: =F40 -> 1087-036
B73: South | E73: South | H73: South | K73: South
B74: SU @ TU | C74: =C34 -> 0832-013 | D74: =C36 -> 0982-012 | E74: SU @ DL | F74: =D34 -> 1018-016 | G74: =D28 -> 0676-002 | H74: MA @ WI | I74: =E35 -> 0917-008 | J74: =E40 -> 1040-022 | K74: CR @ DL | L74: =F27 -> 1056-025 | M74: =F28 -> 0719-002
B80: 17-20 November 2025 (Match 5) | E80: 1-4 December 2025 (Match 6) | H80: 8-11 December 2025 (Match 7) | K80: 15-18 December 2025 (Match 8)
B81: North | E81: North | H81: North | K81: North
B82: LO @ CA | C82: =G33 -> 1062-024 | D82: =G25 -> 1046-027 | E82: DL @ WO | F82: =H28 -> 0678-001 | G82: =H37 -> 1033-027 | H82: MA @ WE | I82: =I39 -> 0909-006 | J82: =I25 -> 1013-019 | K82: DU @ DL | L82: =J28 ->  | M82: =J28 -> 
B83: VA @ WE | C83: =G40 -> 1065-030 | D83: =G35 -> 0907-020 | E83: LO @ CR | F83: =H27 -> 0992-022 | G83: =H26 -> 1071-027 | H83: WO @ SU | I83: =I37 -> 1063-024 | J83: =I38 -> 0910-013 | K83: MA @ TU | L83: =J35 -> 0992-014 | M83: =J36 -> 1012-016
B84: WO @ CO | C84: =G37 -> 1007-022 | D84: =G26 -> 1051-025 | E84: DU @ CA | F84: =H29 -> 0756-005 | G84: =H25 -> 0994-017 | H84: WI @ LO | I84: =I40 -> 1075-026 | J84: =I33 -> 1059-022 | K84: SU @ WI | L84: =J34 -> 1081-039 | M84: =J40 -> 1103-030
B85: CR @ WI | C85: =G27 -> 0983-014 | D85: =G40 -> 1065-030 | E85: VA @ MA | F85: =H27 -> 0992-022 | G85: =H29 -> 0756-005 | H85: CA @ DU | I85: =I25 -> 1013-019 | J85: =I29 -> 0785-002
B86: DU @ SU | C86: =G29 -> 0818-005 | D86: =G34 -> 1056-026 | E86: TU @ CO | F86: =H36 -> 1028-016 | G86: =H26 -> 1071-027 | H86: TU @ VA | I86: =I35 -> 0965-017 | J86: =I38 -> 0910-013
B87: South | E87: South | H87: South | K87: South
B88: DL @ MA | C88: =G28 -> 0656-003 | D88: =G38 -> 0901-011 | E88: WE @ SU | F88: =H39 -> 0909-007 | G88: =H34 -> 1093-042 | H88: CO @ CR | I88: =I26 -> 1047-022 | J88: =I27 -> 1029-020
B94: 8 January 2026 (Match 9) | E94: 13 January 2026 (Match 10) | H94: 15 January 2026 (Match 11) | K94: 20 January 2026 (Match 12)
B95: North | E95: North | H95: North | K95: North
B96: SU @ DU | C96: =K34 -> 1103-040 | D96: =K29 -> 0886-010 | E96: VA @ CA | F96: =L38 -> 0912-009 | G96: =L25 -> 1011-024 | H96: CA @ CO | I96: =M25 -> 0953-013 | J96: =M26 -> 1074-021 | K96: WE @ CA | L96: =C60 -> 0912-009 | M96: =C46 -> 0976-016
B97: DL @ TU | C97: =K28 -> 0773-007 | D97: =K36 -> 0472-005 | E97: WE @ CO | F97: =L39 -> 0942-014 | G97: =L26 -> 1060-024 | H97: WO @ WE | I97: =M37 -> 1065-031 | J97: =M39 -> 0939-008 | K97: VA @ WO | L97: =C59 -> 0889-008 | M97: =C58 -> 1038-032
B98: CR @ MA | C98: =K27 -> 1059-018 | D98: =K35 -> 0956-012 | E98: LO @ WO | F98: =L33 -> 1072-028 | G98: =L37 -> 1059-029 | H98: LO @ VA | I98: =M33 -> 1039-021 | J98: =M38 -> 0934-009 | K98: CO @ LO | L98: =C47 -> 1079-028 | M98: =C54 -> 1067-032
E99: SU @ MA | F99: =L34 -> 1092-034 | G99: =L35 -> 0964-008 | H99: MA @ CR | I99: =M35 -> 0962-008 | J99: =M27 -> 1050-037 | K99: TU @ DL | L99: =C57 -> FORFEIT | M99: =C49 -> WIN
E100: DL @ WI | F100: =L28 -> 0763-006 | G100: =L40 -> 1086-036 | H100: DL @ DU | I100: =M28 -> FORFEIT | J100: =M29 -> WIN | K100: DU @ CR | L100: =C50 -> 0863-006 | M100: =C48 -> 1053-029
E101: CR @ TU | F101: =L27 -> 1002-026 | G101: =L36 -> 0995-014 | H101: WI @ TU | I101: =M40 -> 1081-024 | J101: =M36 -> 0260-001 | K101: WI @ SU | L101: =C61 -> 1074-040 | M101: =C55 -> 1120-043
B102: South | E102: South | H102: South | K102: South
B109: 22 January 2026 (Match 13) | E109: 27 January 2026 (Match 14) | H109: 29 January 2026 (Match 15) | K109: 3 February 2026 (Match 16)
B110: North | E110: North | H110: North | K110: North
B111: WO @ CA | C111: =D58 -> 1034-023 | D111: =D46 -> 0960-014 | E111: WE @ VA | F111: =E47 -> 1079-028 | G111: =E59 -> 0969-013 | H111: DL @ SU | I111: =F47 ->  | J111: =F46 ->  | L111: =G55 ->  | M111: =G56 -> 
B112: LO @ WE | C112: =D54 -> 1075-022 | D112: =D60 -> 0904-006 | E112: CA @ LO | F112: =E46 -> 0986-016 | G112: =E54 -> 1056-030 | H112: TU @ DU | I112: =F57 -> FORFEIT | J112: =F50 -> WIN | L112: =G48 ->  | M112: =G61 -> 
B113: VA @ CO | C113: =D59 -> 0858-006 | D113: =D47 -> 1076-020 | E113: CO @ WO | F113: =E47 -> 1079-028 | G113: =E58 -> 1071-030 | I113: =F60 ->  | J113: =F56 -> 
B114: MA @ DL | C114: =D56 -> 0987-015 | D114: =D49 -> 0797-004 | E114: WI @ MA | F114: =E61 -> 1105-031 | G114: =E56 -> 0995-016
B115: DU @ WI | D115: =D61 ->  | E115: SU @ CR | F115: =E48 -> 
B116: South | E116: South | H116: South | K116: South
B123: (Match 17) | E123: (Match 18) | H123: (Match 19) | K123: (Match 20)
B124: East | E124: East | H124: East | K124: East
B130: West | E130: West | H130: West | K130: West
B137: 6 February 2026 | H137: 6 February 2026
B138: Area 2 Championship | H138: Area 2 Championship Ranking
D139: Score | G139: Score | H139: Team | L139: Score | M139: Rank
B140: Colquitt | D140: =M47 ->  | G140: =M56 -> 
B141: Wilcox | D141: =M61 ->  | L141: =D146 ->  | M141: 1st
B142: Sumter | D142: =M55 ->  | L142: =D140 ->  | M142: 2nd
B143: Lowndes | D143: =M54 ->  | L143: =G142 ->  | M143: 3rd
B144: Worth | D144: =M58 ->  | L144: =D145 ->  | M144: 4th
B145: Crisp | D145: =M48 ->  | L145: =D141 ->  | M145: 5th
B146: Cairo | D146: =M46 ->  | L146: =G145 ->  | M146: 6th
B147: Macon | D147: =M56 -> 
B148: Westover | D148: =M60 -> 
B149: Valdosta | D149: =M59 -> 
A151: 1st Round/Sectionals 25 February 2025 Semifinals 04 March 2025 State Championship 15 March 2025

Sheet TEAMS
AC1: =A27 -> CA
A2: Cairo | B2: Cooper, Cloey, (12) | G2: Works, Kaiden, (11) | L2: Perez, Darwin, (11) | Q2: Owens, Kaleb, (9)R | V2: Groves, Hunter, (10) | AA2: MATCH | AC2: =B2 -> Cooper, Cloey, (12) | AD2: =G2 -> Works, Kaiden, (11) | AE2: =L2 -> Perez, Darwin, (11) | AF2: =Q2 -> Owens, Kaleb, (9)R | AG2: =V2 -> Groves, Hunter, (10) | AH2: Match 1 | AM2: RK | AN2: Match 2 | AS2: RK | AT2: Match 3 | AY2: RK | AZ2: Match 4 | BE2: RK | BF2: Match 5 | BK2: RK | BL2: Match 6 | BQ2: RK | BR2: Match 7 | BW2: RK | BX2: Match 8 | CC2: RK | CD2: Match 9 | CI2: RK | CJ2: Match 10 | CO2: RK | CP2: Match 11 | CU2: RK | CV2: Match 12 | DA2: RK | DB2: Match 13 | DG2: RK | DH2: Match 14 | DM2: RK | DN2: Match 15 | DS2: RK | DT2: Match 16 | DY2: RK | DZ2: Match 17 | EE2: RK | EF2: Match 18 | EK2: RK | EL2: Match 19 | EQ2: RK | ER2: Match 20 | EW2: RK | EX2: Area Playoff | FC2: RK | FD2: Area Championship | FI2: RK | FJ2: AGGR | FK2: Kneeling | FL2: Prone | FM2: Standing
A3: VS | B3: K | C3: P | D3: S | E3: AGGR | F3: *10 | G3: K | H3: P | I3: S | J3: AGGR | K3: *10 | L3: K | M3: P | N3: S | O3: AGGR | P3: *10 | Q3: K | R3: P | S3: S | T3: AGGR | U3: *10 | V3: K | W3: P | X3: S | Y3: AGGR | Z3: *10 | AA3: SCORE | AB3: *10 | AC3: =IF(SUM(E4:E25)>0,LARGE(E4:E25,1),0) -> 280 | AD3: =IF(SUM(J4:J25)>0,LARGE(J4:J25,1),0) -> 269 | AE3: =IF(SUM(O4:O25)>0,LARGE(O4:O25,1),0) -> 257 | AF3: =IF(SUM(T4:T25)>0,LARGE(T4:T25,1),0) -> 254 | AG3: =IF(SUM(Y4:Y25)>0,LARGE(Y4:Y25,1),0) -> 274 | AH3: AGGR | AI3: *10 | AJ3: K | AK3: P | AL3: S | AN3: AGGR | AO3: *10 | AP3: K | AQ3: P | AR3: S | AT3: AGGR | AU3: *10 | AV3: K | AW3: P | AX3: S | AZ3: AGGR | BA3: *10 | BB3: K | BC3: P | BD3: S | BF3: AGGR | BG3: *10 | BH3: K | BI3: P | BJ3: S | BL3: AGGR | BM3: *10 | BN3: K | BO3: P | BP3: S | BR3: AGGR | BS3: *10 | BT3: K | BU3: P | BV3: S | BX3: AGGR | BY3: *10 | BZ3: K | CA3: P | CB3: S | CD3: AGGR | CE3: *10 | CF3: K | CG3: P | CH3: S | CJ3: AGGR | CK3: *10 | CL3: K | CM3: P | CN3: S | CP3: AGGR | CQ3: *10 | CR3: K | CS3: P | CT3: S | CV3: AGGR | CW3: *10 | CX3: K | CY3: P | CZ3: S | DB3: AGGR | DC3: *10 | DD3: K | DE3: P | DF3: S | DH3: AGGR | DI3: *10 | DJ3: K | DK3: P | DL3: S | DN3: AGGR | DO3: *10 | DP3: K | DQ3: P | DR3: S | DT3: AGGR | DU3: *10 | DV3: K | DW3: P | DX3: S | DZ3: AGGR | EA3: *10 | EB3: K | EC3: P | ED3: S | EF3: AGGR | EG3: *10 | EH3: K | EI3: P | EJ3: S | EL3: AGGR | EM3: *10 | EN3: K | EO3: P | EP3: S | ER3: AGGR | ES3: *10 | ET3: K | EU3: P | EV3: S | EX3: AGGR | EY3: *10 | EZ3: K | FA3: P | FB3: S | FD3: AGGR | FE3: *10 | FF3: K | FG3: P | FH3: S | FJ3: Large | FK3: Large | FL3: Large | FM3: Large
A4: @ Valdosta | B4: 94 | C4: 94 | D4: 82 | E4: =IF(SUM(B4:D4)>0,SUM(B4:D4),"") -> 270 | F4: 7 | G4: 90 | H4: 92 | I4: 81 | J4: =IF(SUM(G4:I4)>0,SUM(G4:I4),"") -> 263 | K4: 6 | L4: 65 | M4: 90 | N4: 72 | O4: =IF(SUM(L4:N4)>0,SUM(L4:N4),"") -> 227 | P4: 3 | Q4: 86 | R4: 88 | S4: 75 | T4: =IF(SUM(Q4:S4)>0,SUM(Q4:S4),"") -> 249 | U4: 4 | V4: 85 | W4: 89 | X4: 84 | Y4: =IF(SUM(V4:X4)>0,SUM(V4:X4),"") -> 258 | Z4: 2 | AA4: =IF(SUM(E4,J4,O4,T4,Y4,E30,J30,O30,T30,Y30,E56,J56,O56,T56,Y56)>0,(LARGE((E4,J4,O4,T4,Y4,E30,J30,O30,T30,Y30,E56,J56,O56,T56,Y56),1)+LARGE((E4,J4,O4,T4,Y4,E30,J30,O30,T30,Y30,E56,J56,O56,T56,Y56),2)+LARGE((E4,J4,O4,T4,Y4,E30,J30,O30,T30,Y30,E56,J56,O56,T56,Y56),3)+LARGE((E4,J4,O4,T4,Y4,E30,J30,O30,T30,Y30,E56,J56,O56,T56,Y56),4)),"") -> 1040 | AB4: =IF(SUM(AI35)>0,SUM(AI35),"") -> 19 | AH4: =IF(SUM(B4:D4)>0,SUM(B4:D4),0) -> 270 | AI4: =IF(SUM(F4)>0,SUM(F4),0) -> 7 | AJ4: =B4 -> 94 | AK4: =C4 -> 94 | AL4: =D4 -> 82 | AN4: =IF(SUM(B5:D5)>0,SUM(B5:D5),0) -> 267 | AO4: =IF(SUM(F5)>0,SUM(F5),0) -> 8 | AP4: =B5 -> 93 | AQ4: =C5 -> 94 | AR4: =D5 -> 80 | AT4: =IF(SUM(B6:D6)>0,SUM(B6:D6),0) -> 0 | AU4: =IF(SUM(F6)>0,SUM(F6),0) -> 0 | AV4: =B6 -> 0 | AW4: =C6 -> 0 | AX4: =D6 -> 0 | AZ4: =IF(SUM(B7:D7)>0,SUM(B7:D7),0) -> 280 | BA4: =IF(SUM(F7)>0,SUM(F7),0) -> 11 | BB4: =B7 -> 97 | BC4: =C7 -> 97 | BD4: =D7 -> 86 | BF4: =IF(SUM(B8:D8)>0,SUM(B8:D8),0) -> 271 | BG4: =IF(SUM(F8)>0,SUM(F8),0) -> 7 | BH4: =B8 -> 95 | BI4: =C8 -> 91 | BJ4: =D8 -> 85 | BL4: =IF(SUM(B9:D9)>0,SUM(B9:D9),0) -> 0 | BM4: =IF(SUM(F9)>0,SUM(F9),0) -> 0 | BN4: =B9 -> 0 | BO4: =C9 -> 0 | BP4: =D9 -> 0 | BR4: =IF(SUM(B10:D10)>0,SUM(B10:D10),0) -> 0 | BS4: =IF(SUM(F10)>0,SUM(F10),0) -> 0 | BT4: =B10 -> 0 | BU4: =C10 -> 0 | BV4: =D10 -> 0 | BX4: =IF(SUM(B11:D11)>0,SUM(B11:D11),0) -> 0 | BY4: =IF(SUM(F11)>0,SUM(F11),0) -> 0 | BZ4: =B11 -> 0 | CA4: =C11 -> 0 | CB4: =D11 -> 0 | CD4: =IF(SUM(B12:D12)>0,SUM(B12:D12),0) -> 0 | CE4: =IF(SUM(F12)>0,SUM(F12),0) -> 0 | CF4: =B12 -> 0 | CG4: =C12 -> 0 | CH4: =D12 -> 0 | CJ4: =IF(SUM(B13:D13)>0,SUM(B13:D13),0) -> 0 | CK4: =IF(SUM(F13)>0,SUM(F13),0) -> 0 | CL4: =B13 -> 0 | CM4: =C13 -> 0 | CN4: =D13 -> 0 | CP4: =IF(SUM(B14:D14)>0,SUM(B14:D14),0) -> 0 | CQ4: =IF(SUM(F14)>0,SUM(F14),0) -> 0 | CR4: =B14 -> 0 | CS4: =C14 -> 0 | CT4: =D14 -> 0 | CV4: =IF(SUM(B15:D15)>0,SUM(B15:D15),0) -> 0 | CW4: =IF(SUM(F15)>0,SUM(F15),0) -> 0 | CX4: =B15 -> 0 | CY4: =C15 -> 0 | CZ4: =D15 -> 0 | DB4: =IF(SUM(B16:D16)>0,SUM(B16:D16),0) -> 0 | DC4: =IF(SUM(F16)>0,SUM(F16),0) -> 0 | DD4: =B16 -> 0 | DE4: =C16 -> 0 | DF4: =D16 -> 0 | DH4: =IF(SUM(B17:D17)>0,SUM(B17:D17),0) -> 0 | DI4: =IF(SUM(F17)>0,SUM(F17),0) -> 0 | DJ4: =B17 -> 0 | DK4: =C17 -> 0 | DL4: =D17 -> 0 | DN4: =IF(SUM(B18:D18)>0,SUM(B18:D18),0) -> 0 | DO4: =IF(SUM(F18)>0,SUM(F18),0) -> 0 | DP4: =B18 -> 0 | DQ4: =C18 -> 0 | DR4: =D18 -> 0 | DT4: =IF(SUM(B19:D19)>0,SUM(B19:D19),0) -> 0 | DU4: =IF(SUM(F19)>0,SUM(F19),0) -> 0 | DV4: =B19 -> 0 | DW4: =C19 -> 0 | DX4: =D19 -> 0 | DZ4: =IF(SUM(B20:D20)>0,SUM(B20:D20),0) -> 0 | EA4: =IF(SUM(F20)>0,SUM(F20),0) -> 0 | EB4: =B20 -> 0 | EC4: =C20 -> 0 | ED4: =D20 -> 0 | EF4: =IF(SUM(B21:D21)>0,SUM(B21:D21),0) -> 0 | EG4: =IF(SUM(F21)>0,SUM(F21),0) -> 0 | EH4: =B21 -> 0 | EI4: =C21 -> 0 | EJ4: =D21 -> 0 | EL4: =IF(SUM(B22:D22)>0,SUM(B22:D22),0) -> 0 | EM4: =IF(SUM(F22)>0,SUM(F22),0) -> 0 | EN4: =B22 -> 0 | EO4: =C22 -> 0 | EP4: =D22 -> 0 | ER4: =IF(SUM(B23:D23)>0,SUM(B23:D23),0) -> 0 | ES4: =IF(SUM(F23)>0,SUM(F23),0) -> 0 | ET4: =B23 -> 0 | EU4: =C23 -> 0 | EV4: =D23 -> 0 | EX4: =IF(SUM(B24:D24)>0,SUM(B24:D24),0) -> 0 | EY4: =IF(SUM(F24)>0,SUM(F24),0) -> 0 | EZ4: =B24 -> 0 | FA4: =C24 -> 0 | FB4: =D24 -> 0 | FD4: =IF(SUM(B25:D25)>0,SUM(B25:D25),0) -> 0 | FE4: =IF(SUM(F25)>0,SUM(F25),0) -> 0 | FF4: =B25 -> 0 | FG4: =C25 -> 0 | FH4: =D25 -> 0 | FJ4: =LARGE((FD4,EX4,ER4,EL4,EF4,DZ4,DT4,DN4,DH4,DB4,CV4,CP4,CJ4,CD4,BX4,BR4,BL4,BF4,AZ4,AT4,AN4,AH4),1) -> 280 | FK4: =LARGE((BT4,BZ4,CF4,CL4,CR4,CX4,DD4,DJ4,DP4,DV4,EB4,EH4,EN4,ET4,EZ4,FF4,BN4,BH4,BB4,AV4,AP4,AJ4),1) -> 97 | FL4: =LARGE((BU4,CA4,CG4,CM4,CS4,CY4,DE4,DK4,DQ4,DW4,EC4,EI4,EO4,EU4,FA4,FG4,BO4,BI4,BC4,AW4,AQ4,AK4),1) -> 97 | FM4: =LARGE((BV4,CB4,CH4,CN4,CT4,CZ4,DF4,DL4,DR4,DX4,ED4,EJ4,EP4,EV4,FB4,FH4,BP4,BJ4,BD4,AX4,AR4,AL4),1) -> 86
A5: Colquitt | B5: 93 | C5: 94 | D5: 80 | E5: 267 | F5: 8 | G5: 93 | H5: 90 | I5: 81 | J5: 264 | K5: 5 | L5: 85 | M5: 86 | N5: 70 | O5: 241 | P5: 5 | Q5: 83 | R5: 91 | S5: 74 | T5: 248 | U5: 3 | AA5: =IF(SUM(E5,J5,O5,T5,Y5,E31,J31,O31,T31,Y31,E57,J57,O57,T57,Y57)>0,(LARGE((E5,J5,O5,T5,Y5,E31,J31,O31,T31,Y31,E57,J57,O57,T57,Y57),1)+LARGE((E5,J5,O5,T5,Y5,E31,J31,O31,T31,Y31,E57,J57,O57,T57,Y57),2)+LARGE((E5,J5,O5,T5,Y5,E31,J31,O31,T31,Y31,E57,J57,O57,T57,Y57),3)+LARGE((E5,J5,O5,T5,Y5,E31,J31,O31,T31,Y31,E57,J57,O57,T57,Y57),4)),"") -> 1020 | AB5: =IF(SUM(AO35)>0,SUM(AO35),"") -> 21 | AH5: =IF(SUM(G4:I4)>0,SUM(G4:I4),0) -> 263 | AI5: =IF(SUM(K4)>0,SUM(K4),0) -> 6 | AJ5: =G4 -> 90 | AK5: =H4 -> 92 | AL5: =I4 -> 81 | AN5: =IF(SUM(G5:I5)>0,SUM(G5:I5),0) -> 264 | AO5: =IF(SUM(K5)>0,SUM(K5),0) -> 5 | AP5: =G5 -> 93 | AQ5: =H5 -> 90 | AR5: =I5 -> 81 | AT5: =IF(SUM(G6:I6)>0,SUM(G6:I6),0) -> 248 | AU5: =IF(SUM(K6)>0,SUM(K6),0) -> 3 | AV5: =G6 -> 89 | AW5: =H6 -> 87 | AX5: =I6 -> 72 | AZ5: =IF(SUM(G7:I7)>0,SUM(G7:I7),0) -> 263 | BA5: =IF(SUM(K7)>0,SUM(K7),0) -> 4 | BB5: =G7 -> 90 | BC5: =H7 -> 95 | BD5: =I7 -> 78 | BF5: =IF(SUM(G8:I8)>0,SUM(G8:I8),0) -> 261 | BG5: =IF(SUM(K8)>0,SUM(K8),0) -> 3 | BH5: =G8 -> 88 | BI5: =H8 -> 94 | BJ5: =I8 -> 79 | BL5: =IF(SUM(G9:I9)>0,SUM(G9:I9),0) -> 269 | BM5: =IF(SUM(K9)>0,SUM(K9),0) -> 7 | BN5: =G9 -> 93 | BO5: =H9 -> 93 | BP5: =I9 -> 83 | BR5: =IF(SUM(G10:I10)>0,SUM(G10:I10),0) -> 263 | BS5: =IF(SUM(K10)>0,SUM(K10),0) -> 8 | BT5: =G10 -> 90 | BU5: =H10 -> 95 | BV5: =I10 -> 78 | BX5: =IF(SUM(G11:I11)>0,SUM(G11:I11),0) -> 0 | BY5: =IF(SUM(K11)>0,SUM(K11),0) -> 0 | BZ5: =G11 -> 0 | CA5: =H11 -> 0 | CB5: =I11 -> 0 | CD5: =IF(SUM(G12:I12)>0,SUM(G12:I12),0) -> 0 | CE5: =IF(SUM(K12)>0,SUM(K12),0) -> 0 | CF5: =G12 -> 0 | CG5: =H12 -> 0 | CH5: =I12 -> 0 | CJ5: =IF(SUM(G13:I13)>0,SUM(G13:I13),0) -> 257 | CK5: =IF(SUM(K13)>0,SUM(K13),0) -> 7 | CL5: =G13 -> 91 | CM5: =H13 -> 92 | CN5: =I13 -> 74 | CP5: =IF(SUM(G14:I14)>0,SUM(G14:I14),0) -> 253 | CQ5: =IF(SUM(K14)>0,SUM(K14),0) -> 3 | CR5: =G14 -> 87 | CS5: =H14 -> 96 | CT5: =I14 -> 70 | CV5: =IF(SUM(G15:I15)>0,SUM(G15:I15),0) -> 252 | CW5: =IF(SUM(K15)>0,SUM(K15),0) -> 4 | CX5: =G15 -> 90 | CY5: =H15 -> 90 | CZ5: =I15 -> 72 | DB5: =IF(SUM(G16:I16)>0,SUM(G16:I16),0) -> 253 | DC5: =IF(SUM(K16)>0,SUM(K16),0) -> 4 | DD5: =G16 -> 89 | DE5: =H16 -> 90 | DF5: =I16 -> 74 | DH5: =IF(SUM(G17:I17)>0,SUM(G17:I17),0) -> 262 | DI5: =IF(SUM(K17)>0,SUM(K17),0) -> 6 | DJ5: =G17 -> 88 | DK5: =H17 -> 93 | DL5: =I17 -> 81 | DN5: =IF(SUM(G18:I18)>0,SUM(G18:I18),0) -> 0 | DO5: =IF(SUM(K18)>0,SUM(K18),0) -> 0 | DP5: =G18 -> 0 | DQ5: =H18 -> 0 | DR5: =I18 -> 0 | DT5: =IF(SUM(G19:I19)>0,SUM(G19:I19),0) -> 0 | DU5: =IF(SUM(K19)>0,SUM(K19),0) -> 0 | DV5: =G19 -> 0 | DW5: =H19 -> 0 | DX5: =I19 -> 0 | DZ5: =IF(SUM(G20:I20)>0,SUM(G20:I20),0) -> 0 | EA5: =IF(SUM(K20)>0,SUM(K20),0) -> 0 | EB5: =G20 -> 0 | EC5: =H20 -> 0 | ED5: =I20 -> 0 | EF5: =IF(SUM(G21:I21)>0,SUM(G21:I21),0) -> 0 | EG5: =IF(SUM(K21)>0,SUM(K21),0) -> 0 | EH5: =G21 -> 0 | EI5: =H21 -> 0 | EJ5: =I21 -> 0 | EL5: =IF(SUM(G22:I22)>0,SUM(G22:I22),0) -> 0 | EM5: =IF(SUM(K22)>0,SUM(K22),0) -> 0 | EN5: =G22 -> 0 | EO5: =H22 -> 0 | EP5: =I22 -> 0 | ER5: =IF(SUM(G23:I23)>0,SUM(G23:I23),0) -> 0 | ES5: =IF(SUM(K23)>0,SUM(K23),0) -> 0 | ET5: =G23 -> 0 | EU5: =H23 -> 0 | EV5: =I23 -> 0 | EX5: =IF(SUM(G24:I24)>0,SUM(G24:I24),0) -> 0 | EY5: =IF(SUM(K24)>0,SUM(K24),0) -> 0 | EZ5: =G24 -> 0 | FA5: =H24 -> 0 | FB5: =I24 -> 0 | FD5: =IF(SUM(G25:I25)>0,SUM(G25:I25),0) -> 0 | FE5: =IF(SUM(K25)>0,SUM(K25),0) -> 0 | FF5: =G25 -> 0 | FG5: =H25 -> 0 | FH5: =I25 -> 0 | FJ5: =LARGE((FD5,EX5,ER5,EL5,EF5,DZ5,DT5,DN5,DH5,DB5,CV5,CP5,CJ5,CD5,BX5,BR5,BL5,BF5,AZ5,AT5,AN5,AH5),1) -> 269 | FK5: =LARGE((BT5,BZ5,CF5,CL5,CR5,CX5,DD5,DJ5,DP5,DV5,EB5,EH5,EN5,ET5,EZ5,FF5,BN5,BH5,BB5,AV5,AP5,AJ5),1) -> 93 | FL5: =LARGE((BU5,CA5,CG5,CM5,CS5,CY5,DE5,DK5,DQ5,DW5,EC5,EI5,EO5,EU5,FA5,FG5,BO5,BI5,BC5,AW5,AQ5,AK5),1) -> 96 | FM5: =LARGE((BV5,CB5,CH5,CN5,CT5,CZ5,DF5,DL5,DR5,DX5,ED5,EJ5,EP5,EV5,FB5,FH5,BP5,BJ5,BD5,AX5,AR5,AL5),1) -> 83
A6: @ Westover | G6: 89 | H6: 87 | I6: 72 | J6: 248 | K6: 3 | L6: 84 | M6: 93 | N6: 65 | O6: 242 | P6: 3 | Q6: 79 | R6: 81 | S6: 71 | T6: 231 | U6: 2 | V6: 90 | W6: 96 | X6: 71 | Y6: 257 | Z6: 7 | AA6: =IF(SUM(E6,J6,O6,T6,Y6,E32,J32,O32,T32,Y32,E58,J58,O58,T58,Y58)>0,(LARGE((E6,J6,O6,T6,Y6,E32,J32,O32,T32,Y32,E58,J58,O58,T58,Y58),1)+LARGE((E6,J6,O6,T6,Y6,E32,J32,O32,T32,Y32,E58,J58,O58,T58,Y58),2)+LARGE((E6,J6,O6,T6,Y6,E32,J32,O32,T32,Y32,E58,J58,O58,T58,Y58),3)+LARGE((E6,J6,O6,T6,Y6,E32,J32,O32,T32,Y32,E58,J58,O58,T58,Y58),4)),"") -> 978 | AB6: =IF(SUM(AU35)>0, SUM(AU35),"") -> 15 | AH6: =IF(SUM(L4:N4)>0,SUM(L4:N4),0) -> 227 | AI6: =IF(SUM(P4)>0,SUM(P4),0) -> 3 | AJ6: =L4 -> 65 | AK6: =M4 -> 90 | AL6: =N4 -> 72 | AN6: =IF(SUM(L5:N5)>0,SUM(L5:N5),0) -> 241 | AO6: =IF(SUM(P5)>0,SUM(P5),0) -> 5 | AP6: =L5 -> 85 | AQ6: =M5 -> 86 | AR6: =N5 -> 70 | AT6: =IF(SUM(L6:N6)>0,SUM(L6:N6),0) -> 242 | AU6: =IF(SUM(P6)>0,SUM(P6),0) -> 3 | AV6: =L6 -> 84 | AW6: =M6 -> 93 | AX6: =N6 -> 65 | AZ6: =IF(SUM(L7:N7)>0,SUM(L7:N7),0) -> 181 | BA6: =IF(SUM(P7)>0,SUM(P7),0) -> 1 | BB6: =L7 -> 71 | BC6: =M7 -> 39 | BD6: =N7 -> 71 | BF6: =IF(SUM(L8:N8)>0,SUM(L8:N8),0) -> 238 | BG6: =IF(SUM(P8)>0,SUM(P8),0) -> 2 | BH6: =L8 -> 75 | BI6: =M8 -> 86 | BJ6: =N8 -> 77 | BL6: =IF(SUM(L9:N9)>0,SUM(L9:N9),0) -> 222 | BM6: =IF(SUM(P9)>0,SUM(P9),0) -> 1 | BN6: =L9 -> 73 | BO6: =M9 -> 83 | BP6: =N9 -> 66 | BR6: =IF(SUM(L10:N10)>0,SUM(L10:N10),0) -> 231 | BS6: =IF(SUM(P10)>0,SUM(P10),0) -> 2 | BT6: =L10 -> 65 | BU6: =M10 -> 88 | BV6: =N10 -> 78 | BX6: =IF(SUM(L11:N11)>0,SUM(L11:N11),0) -> 0 | BY6: =IF(SUM(P11)>0,SUM(P11),0) -> 0 | BZ6: =L11 -> 0 | CA6: =M11 -> 0 | CB6: =N11 -> 0 | CD6: =IF(SUM(L12:N12)>0,SUM(L12:N12),0) -> 0 | CE6: =IF(SUM(P12)>0,SUM(P12),0) -> 0 | CF6: =L12 -> 0 | CG6: =M12 -> 0 | CH6: =N12 -> 0 | CJ6: =IF(SUM(L13:N13)>0,SUM(L13:N13),0) -> 257 | CK6: =IF(SUM(P13)>0,SUM(P13),0) -> 8 | CL6: =L13 -> 80 | CM6: =M13 -> 96 | CN6: =N13 -> 81 | CP6: =IF(SUM(L14:N14)>0,SUM(L14:N14),0) -> 240 | CQ6: =IF(SUM(P14)>0,SUM(P14),0) -> 3 | CR6: =L14 -> 74 | CS6: =M14 -> 91 | CT6: =N14 -> 75 | CV6: =IF(SUM(L15:N15)>0,SUM(L15:N15),0) -> 257 | CW6: =IF(SUM(P15)>0,SUM(P15),0) -> 5 | CX6: =L15 -> 88 | CY6: =M15 -> 91 | CZ6: =N15 -> 78 | DB6: =IF(SUM(L16:N16)>0,SUM(L16:N16),0) -> 249 | DC6: =IF(SUM(P16)>0,SUM(P16),0) -> 4 | DD6: =L16 -> 82 | DE6: =M16 -> 93 | DF6: =N16 -> 74 | DH6: =IF(SUM(L17:N17)>0,SUM(L17:N17),0) -> 0 | DI6: =IF(SUM(P17)>0,SUM(P17),0) -> 0 | DJ6: =L17 -> 0 | DK6: =M17 -> 0 | DL6: =N17 -> 0 | DN6: =IF(SUM(L18:N18)>0,SUM(L18:N18),0) -> 0 | DO6: =IF(SUM(P18)>0,SUM(P18),0) -> 0 | DP6: =L18 -> 0 | DQ6: =M18 -> 0 | DR6: =N18 -> 0 | DT6: =IF(SUM(L19:N19)>0,SUM(L19:N19),0) -> 0 | DU6: =IF(SUM(P19)>0,SUM(P19),0) -> 0 | DV6: =L19 -> 0 | DW6: =M19 -> 0 | DX6: =N19 -> 0 | DZ6: =IF(SUM(L20:N20)>0,SUM(L20:N20),0) -> 0 | EA6: =IF(SUM(P20)>0,SUM(P20),0) -> 0 | EB6: =L20 -> 0 | EC6: =M20 -> 0 | ED6: =N20 -> 0 | EF6: =IF(SUM(L21:N21)>0,SUM(L21:N21),0) -> 0 | EG6: =IF(SUM(P21)>0,SUM(P21),0) -> 0 | EH6: =L21 -> 0 | EI6: =M21 -> 0 | EJ6: =N21 -> 0 | EL6: =IF(SUM(L22:N22)>0,SUM(L22:N22),0) -> 0 | EM6: =IF(SUM(P22)>0,SUM(P22),0) -> 0 | EN6: =L22 -> 0 | EO6: =M22 -> 0 | EP6: =N22 -> 0 | ER6: =IF(SUM(L23:N23)>0,SUM(L23:N23),0) -> 0 | ES6: =IF(SUM(P23)>0,SUM(P23),0) -> 0 | ET6: =L23 -> 0 | EU6: =M23 -> 0 | EV6: =N23 -> 0 | EX6: =IF(SUM(L24:N24)>0,SUM(L24:N24),0) -> 0 | EY6: =IF(SUM(P24)>0,SUM(P24),0) -> 0 | EZ6: =L24 -> 0 | FA6: =M24 -> 0 | FB6: =N24 -> 0 | FD6: =IF(SUM(L25:N25)>0,SUM(L25:N25),0) -> 0 | FE6: =IF(SUM(P25)>0,SUM(P25),0) -> 0 | FF6: =L25 -> 0 | FG6: =M25 -> 0 | FH6: =N25 -> 0 | FJ6: =LARGE((FD6,EX6,ER6,EL6,EF6,DZ6,DT6,DN6,DH6,DB6,CV6,CP6,CJ6,CD6,BX6,BR6,BL6,BF6,AZ6,AT6,AN6,AH6),1) -> 257 | FK6: =LARGE((BT6,BZ6,CF6,CL6,CR6,CX6,DD6,DJ6,DP6,DV6,EB6,EH6,EN6,ET6,EZ6,FF6,BN6,BH6,BB6,AV6,AP6,AJ6),1) -> 88 | FL6: =LARGE((BU6,CA6,CG6,CM6,CS6,CY6,DE6,DK6,DQ6,DW6,EC6,EI6,EO6,EU6,FA6,FG6,BO6,BI6,BC6,AW6,AQ6,AK6),1) -> 96 | FM6: =LARGE((BV6,CB6,CH6,CN6,CT6,CZ6,DF6,DL6,DR6,DX6,ED6,EJ6,EP6,EV6,FB6,FH6,BP6,BJ6,BD6,AX6,AR6,AL6),1) -> 81
A7: @ Worth | B7: 97 | C7: 97 | D7: 86 | E7: 280 | F7: 11 | G7: 90 | H7: 95 | I7: 78 | J7: 263 | K7: 4 | L7: 71 | M7: 39 | N7: 71 | O7: 181 | P7: 1 | Q7: 19 | R7: 94 | S7: 32 | T7: 145 | U7: 5 | V7: 92 | W7: 88 | X7: 82 | Y7: 262 | Z7: 5 | AA7: =IF(SUM(E7,J7,O7,T7,Y7,E33,J33,O33,T33,Y33,E59,J59,O59,T59,Y59)>0,(LARGE((E7,J7,O7,T7,Y7,E33,J33,O33,T33,Y33,E59,J59,O59,T59,Y59),1)+LARGE((E7,J7,O7,T7,Y7,E33,J33,O33,T33,Y33,E59,J59,O59,T59,Y59),2)+LARGE((E7,J7,O7,T7,Y7,E33,J33,O33,T33,Y33,E59,J59,O59,T59,Y59),3)+LARGE((E7,J7,O7,T7,Y7,E33,J33,O33,T33,Y33,E59,J59,O59,T59,Y59),4)),"") -> 986 | AB7: =IF(SUM(BA35)>0, SUM(BA35),"") -> 21 | AH7: =IF(SUM(Q4:S4)>0,SUM(Q4:S4),0) -> 249 | AI7: =IF(SUM(U4)>0,SUM(U4),0) -> 4 | AJ7: =Q4 -> 86 | AK7: =R4 -> 88 | AL7: =S4 -> 75 | AN7: =IF(SUM(Q5:S5)>0,SUM(Q5:S5),0) -> 248 | AO7: =IF(SUM(U5)>0,SUM(U5),0) -> 3 | AP7: =Q5 -> 83 | AQ7: =R5 -> 91 | AR7: =S5 -> 74 | AT7: =IF(SUM(Q6:S6)>0,SUM(Q6:S6),0) -> 231 | AU7: =IF(SUM(U6)>0,SUM(U6),0) -> 2 | AV7: =Q6 -> 79 | AW7: =R6 -> 81 | AX7: =S6 -> 71 | AZ7: =IF(SUM(Q7:S7)>0,SUM(Q7:S7),0) -> 145 | BA7: =IF(SUM(U7)>0,SUM(U7),0) -> 5 | BB7: =Q7 -> 19 | BC7: =R7 -> 94 | BD7: =S7 -> 32 | BF7: =IF(SUM(Q8:S8)>0,SUM(Q8:S8),0) -> 243 | BG7: =IF(SUM(U8)>0,SUM(U8),0) -> 8 | BH7: =Q8 -> 81 | BI7: =R8 -> 90 | BJ7: =S8 -> 72 | BL7: =IF(SUM(Q9:S9)>0,SUM(Q9:S9),0) -> 0 | BM7: =IF(SUM(U9)>0,SUM(U9),0) -> 0 | BN7: =Q9 -> 0 | BO7: =R9 -> 0 | BP7: =S9 -> 0 | BR7: =IF(SUM(Q10:S10)>0,SUM(Q10:S10),0) -> 245 | BS7: =IF(SUM(U10)>0,SUM(U10),0) -> 1 | BT7: =Q10 -> 80 | BU7: =R10 -> 91 | BV7: =S10 -> 74 | BX7: =IF(SUM(Q11:S11)>0,SUM(Q11:S11),0) -> 0 | BY7: =IF(SUM(U11)>0,SUM(U11),0) -> 0 | BZ7: =Q11 -> 0 | CA7: =R11 -> 0 | CB7: =S11 -> 0 | CD7: =IF(SUM(Q12:S12)>0,SUM(Q12:S12),0) -> 0 | CE7: =IF(SUM(U12)>0,SUM(U12),0) -> 0 | CF7: =Q12 -> 0 | CG7: =R12 -> 0 | CH7: =S12 -> 0 | CJ7: =IF(SUM(Q13:S13)>0,SUM(Q13:S13),0) -> 227 | CK7: =IF(SUM(U13)>0,SUM(U13),0) -> 2 | CL7: =Q13 -> 75 | CM7: =R13 -> 91 | CN7: =S13 -> 61 | CP7: =IF(SUM(Q14:S14)>0,SUM(Q14:S14),0) -> 245 | CQ7: =IF(SUM(U14)>0,SUM(U14),0) -> 5 | CR7: =Q14 -> 77 | CS7: =R14 -> 89 | CT7: =S14 -> 79 | CV7: =IF(SUM(Q15:S15)>0,SUM(Q15:S15),0) -> 229 | CW7: =IF(SUM(U15)>0,SUM(U15),0) -> 4 | CX7: =Q15 -> 69 | CY7: =R15 -> 92 | CZ7: =S15 -> 68 | DB7: =IF(SUM(Q16:S16)>0,SUM(Q16:S16),0) -> 0 | DC7: =IF(SUM(U16)>0,SUM(U16),0) -> 0 | DD7: =Q16 -> 0 | DE7: =R16 -> 0 | DF7: =S16 -> 0 | DH7: =IF(SUM(Q17:S17)>0,SUM(Q17:S17),0) -> 254 | DI7: =IF(SUM(U17)>0,SUM(U17),0) -> 3 | DJ7: =Q17 -> 84 | DK7: =R17 -> 91 | DL7: =S17 -> 79 | DN7: =IF(SUM(Q18:S18)>0,SUM(Q18:S18),0) -> 0 | DO7: =IF(SUM(U18)>0,SUM(U18),0) -> 0 | DP7: =Q18 -> 0 | DQ7: =R18 -> 0 | DR7: =S18 -> 0 | DT7: =IF(SUM(Q19:S19)>0,SUM(Q19:S19),0) -> 0 | DU7: =IF(SUM(U19)>0,SUM(U19),0) -> 0 | DV7: =Q19 -> 0 | DW7: =R19 -> 0 | DX7: =S19 -> 0 | DZ7: =IF(SUM(Q20:S20)>0,SUM(Q20:S20),0) -> 0 | EA7: =IF(SUM(U20)>0,SUM(U20),0) -> 0 | EB7: =Q20 -> 0 | EC7: =R20 -> 0 | ED7: =S20 -> 0 | EF7: =IF(SUM(Q21:S21)>0,SUM(Q21:S21),0) -> 0 | EG7: =IF(SUM(U21)>0,SUM(U21),0) -> 0 | EH7: =Q21 -> 0 | EI7: =R21 -> 0 | EJ7: =S21 -> 0 | EL7: =IF(SUM(Q22:S22)>0,SUM(Q22:S22),0) -> 0 | EM7: =IF(SUM(U22)>0,SUM(U22),0) -> 0 | EN7: =Q22 -> 0 | EO7: =R22 -> 0 | EP7: =S22 -> 0 | ER7: =IF(SUM(Q23:S23)>0,SUM(Q23:S23),0) -> 0 | ES7: =IF(SUM(U23)>0,SUM(U23),0) -> 0 | ET7: =Q23 -> 0 | EU7: =R23 -> 0 | EV7: =S23 -> 0 | EX7: =IF(SUM(Q24:S24)>0,SUM(Q24:S24),0) -> 0 | EY7: =IF(SUM(U24)>0,SUM(U24),0) -> 0 | EZ7: =Q24 -> 0 | FA7: =R24 -> 0 | FB7: =S24 -> 0 | FD7: =IF(SUM(Q25:S25)>0,SUM(Q25:S25),0) -> 0 | FE7: =IF(SUM(U25)>0,SUM(U25),0) -> 0 | FF7: =Q25 -> 0 | FG7: =R25 -> 0 | FH7: =S25 -> 0 | FJ7: =LARGE((FD7,EX7,ER7,EL7,EF7,DZ7,DT7,DN7,DH7,DB7,CV7,CP7,CJ7,CD7,BX7,BR7,BL7,BF7,AZ7,AT7,AN7,AH7),1) -> 254 | FK7: =LARGE((BT7,BZ7,CF7,CL7,CR7,CX7,DD7,DJ7,DP7,DV7,EB7,EH7,EN7,ET7,EZ7,FF7,BN7,BH7,BB7,AV7,AP7,AJ7),1) -> 86 | FL7: =LARGE((BU7,CA7,CG7,CM7,CS7,CY7,DE7,DK7,DQ7,DW7,EC7,EI7,EO7,EU7,FA7,FG7,BO7,BI7,BC7,AW7,AQ7,AK7),1) -> 94 | FM7: =LARGE((BV7,CB7,CH7,CN7,CT7,CZ7,DF7,DL7,DR7,DX7,ED7,EJ7,EP7,EV7,FB7,FH7,BP7,BJ7,BD7,AX7,AR7,AL7),1) -> 79
A8: Lowndes | B8: 95 | C8: 91 | D8: 85 | E8: 271 | F8: 7 | G8: 88 | H8: 94 | I8: 79 | J8: 261 | K8: 3 | L8: 75 | M8: 86 | N8: 77 | O8: 238 | P8: 2 | Q8: 81 | R8: 90 | S8: 72 | T8: 243 | U8: 8 | V8: 92 | W8: 96 | X8: 83 | Y8: 271 | Z8: 9 | AA8: =IF(SUM(E8,J8,O8,T8,Y8,E34,J34,O34,T34,Y34,E60,J60,O60,T60,Y60)>0,(LARGE((E8,J8,O8,T8,Y8,E34,J34,O34,T34,Y34,E60,J60,O60,T60,Y60),1)+LARGE((E8,J8,O8,T8,Y8,E34,J34,O34,T34,Y34,E60,J60,O60,T60,Y60),2)+LARGE((E8,J8,O8,T8,Y8,E34,J34,O34,T34,Y34,E60,J60,O60,T60,Y60),3)+LARGE((E8,J8,O8,T8,Y8,E34,J34,O34,T34,Y34,E60,J60,O60,T60,Y60),4)),"") -> 1046 | AB8: =IF(SUM(BG35)>0,SUM(BG35),"") -> 27 | AH8: =IF(SUM(V4:X4)>0,SUM(V4:X4),0) -> 258 | AI8: =IF(SUM(Z4)>0,SUM(Z4),0) -> 2 | AJ8: =V4 -> 85 | AK8: =W4 -> 89 | AL8: =X4 -> 84 | AN8: =IF(SUM(V5:X5)>0,SUM(V5:X5),0) -> 0 | AO8: =IF(SUM(Z5)>0,SUM(Z5),0) -> 0 | AP8: =V5 -> 0 | AQ8: =W5 -> 0 | AR8: =X5 -> 0 | AT8: =IF(SUM(V6:X6)>0,SUM(V6:X6),0) -> 257 | AU8: =IF(SUM(Z6)>0,SUM(Z6),0) -> 7 | AV8: =V6 -> 90 | AW8: =W6 -> 96 | AX8: =X6 -> 71 | AZ8: =IF(SUM(V7:X7)>0,SUM(V7:X7),0) -> 262 | BA8: =IF(SUM(Z7)>0,SUM(Z7),0) -> 5 | BB8: =V7 -> 92 | BC8: =W7 -> 88 | BD8: =X7 -> 82 | BF8: =IF(SUM(V8:X8)>0,SUM(V8:X8),0) -> 271 | BG8: =IF(SUM(Z8)>0,SUM(Z8),0) -> 9 | BH8: =V8 -> 92 | BI8: =W8 -> 96 | BJ8: =X8 -> 83 | BL8: =IF(SUM(V9:X9)>0,SUM(V9:X9),0) -> 267 | BM8: =IF(SUM(Z9)>0,SUM(Z9),0) -> 6 | BN8: =V9 -> 91 | BO8: =W9 -> 93 | BP8: =X9 -> 83 | BR8: =IF(SUM(V10:X10)>0,SUM(V10:X10),0) -> 274 | BS8: =IF(SUM(Z10)>0,SUM(Z10),0) -> 8 | BT8: =V10 -> 90 | BU8: =W10 -> 96 | BV8: =X10 -> 88 | BX8: =IF(SUM(V11:X11)>0,SUM(V11:X11),0) -> 0 | BY8: =IF(SUM(Z11)>0,SUM(Z11),0) -> 0 | BZ8: =V11 -> 0 | CA8: =W11 -> 0 | CB8: =X11 -> 0 | CD8: =IF(SUM(V12:X12)>0,SUM(V12:X12),0) -> 0 | CE8: =IF(SUM(Z12)>0,SUM(Z12),0) -> 0 | CF8: =V12 -> 0 | CG8: =W12 -> 0 | CH8: =X12 -> 0 | CJ8: =IF(SUM(V13:X13)>0,SUM(V13:X13),0) -> 0 | CK8: =IF(SUM(Z13)>0,SUM(Z13),0) -> 0 | CL8: =V13 -> 0 | CM8: =W13 -> 0 | CN8: =X13 -> 0 | CP8: =IF(SUM(V14:X14)>0,SUM(V14:X14),0) -> 0 | CQ8: =IF(SUM(Z14)>0,SUM(Z14),0) -> 0 | CR8: =V14 -> 0 | CS8: =W14 -> 0 | CT8: =X14 -> 0 | CV8: =IF(SUM(V15:X15)>0,SUM(V15:X15),0) -> 0 | CW8: =IF(SUM(Z15)>0,SUM(Z15),0) -> 0 | CX8: =V15 -> 0 | CY8: =W15 -> 0 | CZ8: =X15 -> 0 | DB8: =IF(SUM(V16:X16)>0,SUM(V16:X16),0) -> 0 | DC8: =IF(SUM(Z16)>0,SUM(Z16),0) -> 0 | DD8: =V16 -> 0 | DE8: =W16 -> 0 | DF8: =X16 -> 0 | DH8: =IF(SUM(V17:X17)>0,SUM(V17:X17),0) -> 0 | DI8: =IF(SUM(Z17)>0,SUM(Z17),0) -> 0 | DJ8: =V17 -> 0 | DK8: =W17 -> 0 | DL8: =X17 -> 0 | DN8: =IF(SUM(V18:X18)>0,SUM(V18:X18),0) -> 0 | DO8: =IF(SUM(Z18)>0,SUM(Z18),0) -> 0 | DP8: =V18 -> 0 | DQ8: =W18 -> 0 | DR8: =X18 -> 0 | DT8: =IF(SUM(V19:X19)>0,SUM(V19:X19),0) -> 0 | DU8: =IF(SUM(Z19)>0,SUM(Z19),0) -> 0 | DV8: =V19 -> 0 | DW8: =W19 -> 0 | DX8: =X19 -> 0 | DZ8: =IF(SUM(V20:X20)>0,SUM(V20:X20),0) -> 0 | EA8: =IF(SUM(Z20)>0,SUM(Z20),0) -> 0 | EB8: =V20 -> 0 | EC8: =W20 -> 0 | ED8: =X20 -> 0 | EF8: =IF(SUM(V21:X21)>0,SUM(V21:X21),0) -> 0 | EG8: =IF(SUM(Z21)>0,SUM(Z21),0) -> 0 | EH8: =V21 -> 0 | EI8: =W21 -> 0 | EJ8: =X21 -> 0 | EL8: =IF(SUM(V22:X22)>0,SUM(V22:X22),0) -> 0 | EM8: =IF(SUM(Z22)>0,SUM(Z22),0) -> 0 | EN8: =V22 -> 0 | EO8: =W22 -> 0 | EP8: =X22 -> 0 | ER8: =IF(SUM(V23:X23)>0,SUM(V23:X23),0) -> 0 | ES8: =IF(SUM(Z23)>0,SUM(Z23),0) -> 0 | ET8: =V23 -> 0 | EU8: =W23 -> 0 | EV8: =X23 -> 0 | EX8: =IF(SUM(V24:X24)>0,SUM(V24:X24),0) -> 0 | EY8: =IF(SUM(Z24)>0,SUM(Z24),0) -> 0 | EZ8: =V24 -> 0 | FA8: =W24 -> 0 | FB8: =X24 -> 0 | FD8: =IF(SUM(V25:X25)>0,SUM(V25:X25),0) -> 0 | FE8: =IF(SUM(Z25)>0,SUM(Z25),0) -> 0 | FF8: =V25 -> 0 | FG8: =W25 -> 0 | FH8: =X25 -> 0 | FJ8: =LARGE((FD8,EX8,ER8,EL8,EF8,DZ8,DT8,DN8,DH8,DB8,CV8,CP8,CJ8,CD8,BX8,BR8,BL8,BF8,AZ8,AT8,AN8,AH8),1) -> 274 | FK8: =LARGE((BT8,BZ8,CF8,CL8,CR8,CX8,DD8,DJ8,DP8,DV8,EB8,EH8,EN8,ET8,EZ8,FF8,BN8,BH8,BB8,AV8,AP8,AJ8),1) -> 92 | FL8: =LARGE((BU8,CA8,CG8,CM8,CS8,CY8,DE8,DK8,DQ8,DW8,EC8,EI8,EO8,EU8,FA8,FG8,BO8,BI8,BC8,AW8,AQ8,AK8),1) -> 96 | FM8: =LARGE((BV8,CB8,CH8,CN8,CT8,CZ8,DF8,DL8,DR8,DX8,ED8,EJ8,EP8,EV8,FB8,FH8,BP8,BJ8,BD8,AX8,AR8,AL8),1) -> 88
A9: Dougherty | G9: 93 | H9: 93 | I9: 83 | J9: 269 | K9: 7 | L9: 73 | M9: 83 | N9: 66 | O9: 222 | P9: 1 | V9: 91 | W9: 93 | X9: 83 | Y9: 267 | Z9: 6 | AA9: =IF(SUM(E9,J9,O9,T9,Y9,E35,J35,O35,T35,Y35,E61,J61,O61,T61,Y61)>0,(LARGE((E9,J9,O9,T9,Y9,E35,J35,O35,T35,Y35,E61,J61,O61,T61,Y61),1)+LARGE((E9,J9,O9,T9,Y9,E35,J35,O35,T35,Y35,E61,J61,O61,T61,Y61),2)+LARGE((E9,J9,O9,T9,Y9,E35,J35,O35,T35,Y35,E61,J61,O61,T61,Y61),3)+LARGE((E9,J9,O9,T9,Y9,E35,J35,O35,T35,Y35,E61,J61,O61,T61,Y61),4)),"") -> 994 | AB9: =IF(SUM(BM35)>0,SUM(BM35),"") -> 17 | AH9: =IF(SUM(B30:D30)>0,SUM(B30:D30),0) -> 242 | AI9: =IF(SUM(F30)>0,SUM(F30),0) -> 3 | AJ9: =B30 -> 81 | AK9: =C30 -> 90 | AL9: =D30 -> 71 | AN9: =IF(SUM(B31:D31)>0,SUM(B31:D31),0) -> 234 | AO9: =IF(SUM(F31)>0,SUM(F31),0) -> 2 | AP9: =B31 -> 80 | AQ9: =C31 -> 91 | AR9: =D31 -> 63 | AT9: =IF(SUM(B32:D32)>0,SUM(B32:D32),0) -> 212 | AU9: =IF(SUM(F32)>0,SUM(F32),0) -> 1 | AV9: =B32 -> 83 | AW9: =C32 -> 69 | AX9: =D32 -> 60 | AZ9: =IF(SUM(B33:D33)>0,SUM(B33:D33),0) -> 0 | BA9: =IF(SUM(F33)>0,SUM(F33),0) -> 0 | BB9: =B33 -> 0 | BC9: =C33 -> 0 | BD9: =D33 -> 0 | BF9: =IF(SUM(B34:D34)>0,SUM(B34:D34),0) -> 241 | BG9: =IF(SUM(F34)>0,SUM(F34),0) -> 0 | BH9: =B34 -> 79 | BI9: =C34 -> 85 | BJ9: =D34 -> 77 | BL9: =IF(SUM(B35:D35)>0,SUM(B35:D35),0) -> 236 | BM9: =IF(SUM(F35)>0,SUM(F35),0) -> 3 | BN9: =B35 -> 85 | BO9: =C35 -> 74 | BP9: =D35 -> 77 | BR9: =IF(SUM(B36:D36)>0,SUM(B36:D36),0) -> 0 | BS9: =IF(SUM(F36)>0,SUM(F36),0) -> 0 | BT9: =B36 -> 0 | BU9: =C36 -> 0 | BV9: =D36 -> 0 | BX9: =IF(SUM(B37:D37)>0,SUM(B37:D37),0) -> 0 | BY9: =IF(SUM(F37)>0,SUM(F37),0) -> 0 | BZ9: =B37 -> 0 | CA9: =C37 -> 0 | CB9: =D37 -> 0 | CD9: =IF(SUM(B38:D38)>0,SUM(B38:D38),0) -> 0 | CE9: =IF(SUM(F38)>0,SUM(F38),0) -> 0 | CF9: =B38 -> 0 | CG9: =C38 -> 0 | CH9: =D38 -> 0 | CJ9: =IF(SUM(B39:D39)>0,SUM(B39:D39),0) -> 248 | CK9: =IF(SUM(F39)>0,SUM(F39),0) -> 5 | CL9: =B39 -> 91 | CM9: =C39 -> 90 | CN9: =D39 -> 67 | CP9: =IF(SUM(B40:D40)>0,SUM(B40:D40),0) -> 215 | CQ9: =IF(SUM(F40)>0,SUM(F40),0) -> 2 | CR9: =B40 -> 81 | CS9: =C40 -> 79 | CT9: =D40 -> 55 | CV9: =IF(SUM(B41:D41)>0,SUM(B41:D41),0) -> 238 | CW9: =IF(SUM(F41)>0,SUM(F41),0) -> 3 | CX9: =B41 -> 83 | CY9: =C41 -> 88 | CZ9: =D41 -> 67 | DB9: =IF(SUM(B42:D42)>0,SUM(B42:D42),0) -> 255 | DC9: =IF(SUM(F42)>0,SUM(F42),0) -> 5 | DD9: =B42 -> 86 | DE9: =C42 -> 87 | DF9: =D42 -> 82 | DH9: =IF(SUM(B43:D43)>0,SUM(B43:D43),0) -> 261 | DI9: =IF(SUM(F43)>0,SUM(F43),0) -> 6 | DJ9: =B43 -> 86 | DK9: =C43 -> 92 | DL9: =D43 -> 83 | DN9: =IF(SUM(B44:D44)>0,SUM(B44:D44),0) -> 0 | DO9: =IF(SUM(F44)>0,SUM(F44),0) -> 0 | DP9: =B44 -> 0 | DQ9: =C44 -> 0 | DR9: =D44 -> 0 | DT9: =IF(SUM(B45:D45)>0,SUM(B45:D45),0) -> 0 | DU9: =IF(SUM(F45)>0,SUM(F45),0) -> 0 | DV9: =B45 -> 0 | DW9: =C45 -> 0 | DX9: =D45 -> 0 | DZ9: =IF(SUM(B46:D46)>0,SUM(B46:D46),0) -> 0 | EA9: =IF(SUM(F46)>0,SUM(F46),0) -> 0 | EB9: =B46 -> 0 | EC9: =C46 -> 0 | ED9: =D46 -> 0 | EF9: =IF(SUM(B47:D47)>0,SUM(B47:D47),0) -> 0 | EG9: =IF(SUM(F47)>0,SUM(F47),0) -> 0 | EH9: =B47 -> 0 | EI9: =C47 -> 0 | EJ9: =D47 -> 0 | EL9: =IF(SUM(B48:D48)>0,SUM(B48:D48),0) -> 0 | EM9: =IF(SUM(F48)>0,SUM(F48),0) -> 0 | EN9: =B48 -> 0 | EO9: =C48 -> 0 | EP9: =D48 -> 0 | ER9: =IF(SUM(B49:D49)>0,SUM(B49:D49),0) -> 0 | ES9: =IF(SUM(F49)>0,SUM(F49),0) -> 0 | ET9: =B49 -> 0 | EU9: =C49 -> 0 | EV9: =D49 -> 0 | EX9: =IF(SUM(B50:D50)>0,SUM(B50:D50),0) -> 0 | EY9: =IF(SUM(F50)>0,SUM(F50),0) -> 0 | EZ9: =B50 -> 0 | FA9: =C50 -> 0 | FB9: =D50 -> 0 | FD9: =IF(SUM(B51:D51)>0,SUM(B51:D51),0) -> 0 | FE9: =IF(SUM(F51)>0,SUM(F51),0) -> 0 | FF9: =B51 -> 0 | FG9: =C51 -> 0 | FH9: =D51 -> 0 | FJ9: =LARGE((FD9,EX9,ER9,EL9,EF9,DZ9,DT9,DN9,DH9,DB9,CV9,CP9,CJ9,CD9,BX9,BR9,BL9,BF9,AZ9,AT9,AN9,AH9),1) -> 261 | FK9: =LARGE((BT9,BZ9,CF9,CL9,CR9,CX9,DD9,DJ9,DP9,DV9,EB9,EH9,EN9,ET9,EZ9,FF9,BN9,BH9,BB9,AV9,AP9,AJ9),1) -> 91 | FL9: =LARGE((BU9,CA9,CG9,CM9,CS9,CY9,DE9,DK9,DQ9,DW9,EC9,EI9,EO9,EU9,FA9,FG9,BO9,BI9,BC9,AW9,AQ9,AK9),1) -> 92 | FM9: =LARGE((BV9,CB9,CH9,CN9,CT9,CZ9,DF9,DL9,DR9,DX9,ED9,EJ9,EP9,EV9,FB9,FH9,BP9,BJ9,BD9,AX9,AR9,AL9),1) -> 83
A10: @ Dougherty | G10: 90 | H10: 95 | I10: 78 | J10: 263 | K10: 8 | L10: 65 | M10: 88 | N10: 78 | O10: 231 | P10: 2 | Q10: 80 | R10: 91 | S10: 74 | T10: 245 | U10: 1 | V10: 90 | W10: 96 | X10: 88 | Y10: 274 | Z10: 8 | AA10: =IF(SUM(E10,J10,O10,T10,Y10,E36,J36,O36,T36,Y36,E62,J62,O62,T62,Y62)>0,(LARGE((E10,J10,O10,T10,Y10,E36,J36,O36,T36,Y36,E62,J62,O62,T62,Y62),1)+LARGE((E10,J10,O10,T10,Y10,E36,J36,O36,T36,Y36,E62,J62,O62,T62,Y62),2)+LARGE((E10,J10,O10,T10,Y10,E36,J36,O36,T36,Y36,E62,J62,O62,T62,Y62),3)+LARGE((E10,J10,O10,T10,Y10,E36,J36,O36,T36,Y36,E62,J62,O62,T62,Y62),4)),"") -> 1013 | AB10: =IF(SUM(BS35)>0,SUM(BS35),"") -> 19 | AH10: =IF(SUM(G30:I30)>0,SUM(G30:I30),0) -> 227 | AI10: =IF(SUM(K30)>0,SUM(K30),0) -> 2 | AJ10: =G30 -> 67 | AK10: =H30 -> 85 | AL10: =I30 -> 75 | AN10: =IF(SUM(G31:I31)>0,SUM(G31:I31),0) -> 204 | AO10: =IF(SUM(K31)>0,SUM(K31),0) -> 0 | AP10: =G31 -> 76 | AQ10: =H31 -> 84 | AR10: =I31 -> 44 | AT10: =IF(SUM(G32:I32)>0,SUM(G32:I32),0) -> 0 | AU10: =IF(SUM(K32)>0,SUM(K32),0) -> 0 | AV10: =G32 -> 0 | AW10: =H32 -> 0 | AX10: =I32 -> 0 | AZ10: =IF(SUM(G33:I33)>0,SUM(G33:I33),0) -> 0 | BA10: =IF(SUM(K33)>0,SUM(K33),0) -> 0 | BB10: =G33 -> 0 | BC10: =H33 -> 0 | BD10: =I33 -> 0 | BF10: =IF(SUM(G34:I34)>0,SUM(G34:I34),0) -> 0 | BG10: =IF(SUM(K34)>0,SUM(K34),0) -> 0 | BH10: =G34 -> 0 | BI10: =H34 -> 0 | BJ10: =I34 -> 0 | BL10: =IF(SUM(G35:I35)>0,SUM(G35:I35),0) -> 0 | BM10: =IF(SUM(K35)>0,SUM(K35),0) -> 0 | BN10: =G35 -> 0 | BO10: =H35 -> 0 | BP10: =I35 -> 0 | BR10: =IF(SUM(G36:I36)>0,SUM(G36:I36),0) -> 0 | BS10: =IF(SUM(K36)>0,SUM(K36),0) -> 0 | BT10: =G36 -> 0 | BU10: =H36 -> 0 | BV10: =I36 -> 0 | BX10: =IF(SUM(G37:I37)>0,SUM(G37:I37),0) -> 0 | BY10: =IF(SUM(K37)>0,SUM(K37),0) -> 0 | BZ10: =G37 -> 0 | CA10: =H37 -> 0 | CB10: =I37 -> 0 | CD10: =IF(SUM(G38:I38)>0,SUM(G38:I38),0) -> 0 | CE10: =IF(SUM(K38)>0,SUM(K38),0) -> 0 | CF10: =G38 -> 0 | CG10: =H38 -> 0 | CH10: =I38 -> 0 | CJ10: =IF(SUM(G39:I39)>0,SUM(G39:I39),0) -> 0 | CK10: =IF(SUM(K39)>0,SUM(K39),0) -> 0 | CL10: =G39 -> 0 | CM10: =H39 -> 0 | CN10: =I39 -> 0 | CP10: =IF(SUM(G40:I40)>0,SUM(G40:I40),0) -> 0 | CQ10: =IF(SUM(K40)>0,SUM(K40),0) -> 0 | CR10: =G40 -> 0 | CS10: =H40 -> 0 | CT10: =I40 -> 0 | CV10: =IF(SUM(G41:I41)>0,SUM(G41:I41),0) -> 0 | CW10: =IF(SUM(K41)>0,SUM(K41),0) -> 0 | CX10: =G41 -> 0 | CY10: =H41 -> 0 | CZ10: =I41 -> 0 | DB10: =IF(SUM(G42:I42)>0,SUM(G42:I42),0) -> 0 | DC10: =IF(SUM(K42)>0,SUM(K42),0) -> 0 | DD10: =G42 -> 0 | DE10: =H42 -> 0 | DF10: =I42 -> 0 | DH10: =IF(SUM(G43:I43)>0,SUM(G43:I43),0) -> 0 | DI10: =IF(SUM(K43)>0,SUM(K43),0) -> 0 | DJ10: =G43 -> 0 | DK10: =H43 -> 0 | DL10: =I43 -> 0 | DN10: =IF(SUM(G44:I44)>0,SUM(G44:I44),0) -> 0 | DO10: =IF(SUM(K44)>0,SUM(K44),0) -> 0 | DP10: =G44 -> 0 | DQ10: =H44 -> 0 | DR10: =I44 -> 0 | DT10: =IF(SUM(G45:I45)>0,SUM(G45:I45),0) -> 0 | DU10: =IF(SUM(K45)>0,SUM(K45),0) -> 0 | DV10: =G45 -> 0 | DW10: =H45 -> 0 | DX10: =I45 -> 0 | DZ10: =IF(SUM(G46:I46)>0,SUM(G46:I46),0) -> 0 | EA10: =IF(SUM(K46)>0,SUM(K46),0) -> 0 | EB10: =G46 -> 0 | EC10: =H46 -> 0 | ED10: =I46 -> 0 | EF10: =IF(SUM(G47:I47)>0,SUM(G47:I47),0) -> 0 | EG10: =IF(SUM(K47)>0,SUM(K47),0) -> 0 | EH10: =G47 -> 0 | EI10: =H47 -> 0 | EJ10: =I47 -> 0 | EL10: =IF(SUM(G48:I48)>0,SUM(G48:I48),0) -> 0 | EM10: =IF(SUM(K48)>0,SUM(K48),0) -> 0 | EN10: =G48 -> 0 | EO10: =H48 -> 0 | EP10: =I48 -> 0 | ER10: =IF(SUM(G49:I49)>0,SUM(G49:I49),0) -> 0 | ES10: =IF(SUM(K49)>0,SUM(K49),0) -> 0 | ET10: =G49 -> 0 | EU10: =H49 -> 0 | EV10: =I49 -> 0 | EX10: =IF(SUM(G50:I50)>0,SUM(G50:I50),0) -> 0 | EY10: =IF(SUM(K50)>0,SUM(K50),0) -> 0 | EZ10: =G50 -> 0 | FA10: =H50 -> 0 | FB10: =I50 -> 0 | FD10: =IF(SUM(G51:I51)>0,SUM(G51:I51),0) -> 0 | FE10: =IF(SUM(K51)>0,SUM(K51),0) -> 0 | FF10: =G51 -> 0 | FG10: =H51 -> 0 | FH10: =I51 -> 0 | FJ10: =LARGE((FD10,EX10,ER10,EL10,EF10,DZ10,DT10,DN10,DH10,DB10,CV10,CP10,CJ10,CD10,BX10,BR10,BL10,BF10,AZ10,AT10,AN10,AH10),1) -> 227 | FK10: =LARGE((BT10,BZ10,CF10,CL10,CR10,CX10,DD10,DJ10,DP10,DV10,EB10,EH10,EN10,ET10,EZ10,FF10,BN10,BH10,BB10,AV10,AP10,AJ10),1) -> 76 | FL10: =LARGE((BU10,CA10,CG10,CM10,CS10,CY10,DE10,DK10,DQ10,DW10,EC10,EI10,EO10,EU10,FA10,FG10,BO10,BI10,BC10,AW10,AQ10,AK10),1) -> 85 | FM10: =LARGE((BV10,CB10,CH10,CN10,CT10,CZ10,DF10,DL10,DR10,DX10,ED10,EJ10,EP10,EV10,FB10,FH10,BP10,BJ10,BD10,AX10,AR10,AL10),1) -> 75
A11: BYE | AA11: =IF(SUM(E11,J11,O11,T11,Y11,E37,J37,O37,T37,Y37,E63,J63,O63,T63,Y63)>0,(LARGE((E11,J11,O11,T11,Y11,E37,J37,O37,T37,Y37,E63,J63,O63,T63,Y63),1)+LARGE((E11,J11,O11,T11,Y11,E37,J37,O37,T37,Y37,E63,J63,O63,T63,Y63),2)+LARGE((E11,J11,O11,T11,Y11,E37,J37,O37,T37,Y37,E63,J63,O63,T63,Y63),3)+LARGE((E11,J11,O11,T11,Y11,E37,J37,O37,T37,Y37,E63,J63,O63,T63,Y63),4)),"") ->  | AB11: =IF(SUM(BY35)>0,SUM(BY35),"") ->  | AH11: =IF(SUM(L30:N30)>0,SUM(L30:N30),0) -> 0 | AI11: =IF(SUM(P30)>0,SUM(P30),0) -> 0 | AJ11: =L30 -> 0 | AK11: =M30 -> 0 | AL11: =N30 -> 0 | AN11: =IF(SUM(L31:N31)>0,SUM(L31:N31),0) -> 0 | AO11: =IF(SUM(P31)>0,SUM(P31),0) -> 0 | AP11: =L31 -> 0 | AQ11: =M31 -> 0 | AR11: =N31 -> 0 | AT11: =IF(SUM(L32:N32)>0,SUM(L32:N32),0) -> 0 | AU11: =IF(SUM(P32)>0,SUM(P32),0) -> 0 | AV11: =L32 -> 0 | AW11: =M32 -> 0 | AX11: =N32 -> 0 | AZ11: =IF(SUM(L33:N33)>0,SUM(L33:N33),0) -> 0 | BA11: =IF(SUM(P33)>0,SUM(P33),0) -> 0 | BB11: =L33 -> 0 | BC11: =M33 -> 0 | BD11: =N33 -> 0 | BF11: =IF(SUM(L34:N34)>0,SUM(L34:N34),0) -> 0 | BG11: =IF(SUM(P34)>0,SUM(P34),0) -> 0 | BH11: =L34 -> 0 | BI11: =M34 -> 0 | BJ11: =N34 -> 0 | BL11: =IF(SUM(L35:N35)>0,SUM(L35:N35),0) -> 208 | BM11: =IF(SUM(P35)>0,SUM(P35),0) -> 0 | BN11: =L35 -> 83 | BO11: =M35 -> 78 | BP11: =N35 -> 47 | BR11: =IF(SUM(L36:N36)>0,SUM(L36:N36),0) -> 0 | BS11: =IF(SUM(P36)>0,SUM(P36),0) -> 0 | BT11: =L36 -> 0 | BU11: =M36 -> 0 | BV11: =N36 -> 0 | BX11: =IF(SUM(L37:N37)>0,SUM(L37:N37),0) -> 0 | BY11: =IF(SUM(P37)>0,SUM(P37),0) -> 0 | BZ11: =L37 -> 0 | CA11: =M37 -> 0 | CB11: =N37 -> 0 | CD11: =IF(SUM(L38:N38)>0,SUM(L38:N38),0) -> 0 | CE11: =IF(SUM(P38)>0,SUM(P38),0) -> 0 | CF11: =L38 -> 0 | CG11: =M38 -> 0 | CH11: =N38 -> 0 | CJ11: =IF(SUM(L39:N39)>0,SUM(L39:N39),0) -> 0 | CK11: =IF(SUM(P39)>0,SUM(P39),0) -> 0 | CL11: =L39 -> 0 | CM11: =M39 -> 0 | CN11: =N39 -> 0 | CP11: =IF(SUM(L40:N40)>0,SUM(L40:N40),0) -> 0 | CQ11: =IF(SUM(P40)>0,SUM(P40),0) -> 0 | CR11: =L40 -> 0 | CS11: =M40 -> 0 | CT11: =N40 -> 0 | CV11: =IF(SUM(L41:N41)>0,SUM(L41:N41),0) -> 0 | CW11: =IF(SUM(P41)>0,SUM(P41),0) -> 0 | CX11: =L41 -> 0 | CY11: =M41 -> 0 | CZ11: =N41 -> 0 | DB11: =IF(SUM(L42:N42)>0,SUM(L42:N42),0) -> 203 | DC11: =IF(SUM(P42)>0,SUM(P42),0) -> 1 | DD11: =L42 -> 83 | DE11: =M42 -> 80 | DF11: =N42 -> 40 | DH11: =IF(SUM(L43:N43)>0,SUM(L43:N43),0) -> 199 | DI11: =IF(SUM(P43)>0,SUM(P43),0) -> 0 | DJ11: =L43 -> 79 | DK11: =M43 -> 75 | DL11: =N43 -> 45 | DN11: =IF(SUM(L44:N44)>0,SUM(L44:N44),0) -> 0 | DO11: =IF(SUM(P44)>0,SUM(P44),0) -> 0 | DP11: =L44 -> 0 | DQ11: =M44 -> 0 | DR11: =N44 -> 0 | DT11: =IF(SUM(L45:N45)>0,SUM(L45:N45),0) -> 0 | DU11: =IF(SUM(P45)>0,SUM(P45),0) -> 0 | DV11: =L45 -> 0 | DW11: =M45 -> 0 | DX11: =N45 -> 0 | DZ11: =IF(SUM(L46:N46)>0,SUM(L46:N46),0) -> 0 | EA11: =IF(SUM(P46)>0,SUM(P46),0) -> 0 | EB11: =L46 -> 0 | EC11: =M46 -> 0 | ED11: =N46 -> 0 | EF11: =IF(SUM(L47:N47)>0,SUM(L47:N47),0) -> 0 | EG11: =IF(SUM(P47)>0,SUM(P47),0) -> 0 | EH11: =L47 -> 0 | EI11: =M47 -> 0 | EJ11: =N47 -> 0 | EL11: =IF(SUM(L48:N48)>0,SUM(L48:N48),0) -> 0 | EM11: =IF(SUM(P48)>0,SUM(P48),0) -> 0 | EN11: =L48 -> 0 | EO11: =M48 -> 0 | EP11: =N48 -> 0 | ER11: =IF(SUM(L49:N49)>0,SUM(L49:N49),0) -> 0 | ES11: =IF(SUM(P49)>0,SUM(P49),0) -> 0 | ET11: =L49 -> 0 | EU11: =M49 -> 0 | EV11: =N49 -> 0 | EX11: =IF(SUM(L50:N50)>0,SUM(L50:N50),0) -> 0 | EY11: =IF(SUM(P50)>0,SUM(P50),0) -> 0 | EZ11: =L50 -> 0 | FA11: =M50 -> 0 | FB11: =N50 -> 0 | FD11: =IF(SUM(L51:N51)>0,SUM(L51:N51),0) -> 0 | FE11: =IF(SUM(P51)>0,SUM(P51),0) -> 0 | FF11: =L51 -> 0 | FG11: =M51 -> 0 | FH11: =N51 -> 0 | FJ11: =LARGE((FD11,EX11,ER11,EL11,EF11,DZ11,DT11,DN11,DH11,DB11,CV11,CP11,CJ11,CD11,BX11,BR11,BL11,BF11,AZ11,AT11,AN11,AH11),1) -> 208 | FK11: =LARGE((BT11,BZ11,CF11,CL11,CR11,CX11,DD11,DJ11,DP11,DV11,EB11,EH11,EN11,ET11,EZ11,FF11,BN11,BH11,BB11,AV11,AP11,AJ11),1) -> 83 | FL11: =LARGE((BU11,CA11,CG11,CM11,CS11,CY11,DE11,DK11,DQ11,DW11,EC11,EI11,EO11,EU11,FA11,FG11,BO11,BI11,BC11,AW11,AQ11,AK11),1) -> 80 | FM11: =LARGE((BV11,CB11,CH11,CN11,CT11,CZ11,DF11,DL11,DR11,DX11,ED11,EJ11,EP11,EV11,FB11,FH11,BP11,BJ11,BD11,AX11,AR11,AL11),1) -> 47
A12: BYE | AA12: =IF(SUM(E12,J12,O12,T12,Y12,E38,J38,O38,T38,Y38,E64,J64,O64,T64,Y64)>0,(LARGE((E12,J12,O12,T12,Y12,E38,J38,O38,T38,Y38,E64,J64,O64,T64,Y64),1)+LARGE((E12,J12,O12,T12,Y12,E38,J38,O38,T38,Y38,E64,J64,O64,T64,Y64),2)+LARGE((E12,J12,O12,T12,Y12,E38,J38,O38,T38,Y38,E64,J64,O64,T64,Y64),3)+LARGE((E12,J12,O12,T12,Y12,E38,J38,O38,T38,Y38,E64,J64,O64,T64,Y64),4)),"") ->  | AB12: =IF(SUM(CE35)>0,SUM(CE35),"") ->  | AH12: =IF(SUM(Q30:S30)>0,SUM(Q30:S30),0) -> 0 | AI12: =IF(SUM(U30)>0,SUM(U30),0) -> 0 | AJ12: =Q30 -> 0 | AK12: =R30 -> 0 | AL12: =S30 -> 0 | AN12: =IF(SUM(Q31:S31)>0,SUM(Q31:S31),0) -> 0 | AO12: =IF(SUM(U31)>0,SUM(U31),0) -> 0 | AP12: =Q31 -> 0 | AQ12: =R31 -> 0 | AR12: =S31 -> 0 | AT12: =IF(SUM(Q32:S32)>0,SUM(Q32:S32),0) -> 0 | AU12: =IF(SUM(U32)>0,SUM(U32),0) -> 0 | AV12: =Q32 -> 0 | AW12: =R32 -> 0 | AX12: =S32 -> 0 | AZ12: =IF(SUM(Q33:S33)>0,SUM(Q33:S33),0) -> 0 | BA12: =IF(SUM(U33)>0,SUM(U33),0) -> 0 | BB12: =Q33 -> 0 | BC12: =R33 -> 0 | BD12: =S33 -> 0 | BF12: =IF(SUM(Q34:S34)>0,SUM(Q34:S34),0) -> 0 | BG12: =IF(SUM(U34)>0,SUM(U34),0) -> 0 | BH12: =Q34 -> 0 | BI12: =R34 -> 0 | BJ12: =S34 -> 0 | BL12: =IF(SUM(Q35:S35)>0,SUM(Q35:S35),0) -> 0 | BM12: =IF(SUM(U35)>0,SUM(U35),0) -> 0 | BN12: =Q35 -> 0 | BO12: =R35 -> 0 | BP12: =S35 -> 0 | BR12: =IF(SUM(Q36:S36)>0,SUM(Q36:S36),0) -> 0 | BS12: =IF(SUM(U36)>0,SUM(U36),0) -> 0 | BT12: =Q36 -> 0 | BU12: =R36 -> 0 | BV12: =S36 -> 0 | BX12: =IF(SUM(Q37:S37)>0,SUM(Q37:S37),0) -> 0 | BY12: =IF(SUM(U37)>0,SUM(U37),0) -> 0 | BZ12: =Q37 -> 0 | CA12: =R37 -> 0 | CB12: =S37 -> 0 | CD12: =IF(SUM(Q38:S38)>0,SUM(Q38:S38),0) -> 0 | CE12: =IF(SUM(U38)>0,SUM(U38),0) -> 0 | CF12: =Q38 -> 0 | CG12: =R38 -> 0 | CH12: =S38 -> 0 | CJ12: =IF(SUM(Q39:S39)>0,SUM(Q39:S39),0) -> 249 | CK12: =IF(SUM(U39)>0,SUM(U39),0) -> 4 | CL12: =Q39 -> 92 | CM12: =R39 -> 89 | CN12: =S39 -> 68 | CP12: =IF(SUM(Q40:S40)>0,SUM(Q40:S40),0) -> 0 | CQ12: =IF(SUM(U40)>0,SUM(U40),0) -> 0 | CR12: =Q40 -> 0 | CS12: =R40 -> 0 | CT12: =S40 -> 0 | CV12: =IF(SUM(Q41:S41)>0,SUM(Q41:S41),0) -> 0 | CW12: =IF(SUM(U41)>0,SUM(U41),0) -> 0 | CX12: =Q41 -> 0 | CY12: =R41 -> 0 | CZ12: =S41 -> 0 | DB12: =IF(SUM(Q42:S42)>0,SUM(Q42:S42),0) -> 0 | DC12: =IF(SUM(U42)>0,SUM(U42),0) -> 0 | DD12: =Q42 -> 0 | DE12: =R42 -> 0 | DF12: =S42 -> 0 | DH12: =IF(SUM(Q43:S43)>0,SUM(Q43:S43),0) -> 0 | DI12: =IF(SUM(U43)>0,SUM(U43),0) -> 0 | DJ12: =Q43 -> 0 | DK12: =R43 -> 0 | DL12: =S43 -> 0 | DN12: =IF(SUM(Q44:S44)>0,SUM(Q44:S44),0) -> 0 | DO12: =IF(SUM(U44)>0,SUM(U44),0) -> 0 | DP12: =Q44 -> 0 | DQ12: =R44 -> 0 | DR12: =S44 -> 0 | DT12: =IF(SUM(Q45:S45)>0,SUM(Q45:S45),0) -> 0 | DU12: =IF(SUM(U45)>0,SUM(U45),0) -> 0 | DV12: =Q45 -> 0 | DW12: =R45 -> 0 | DX12: =S45 -> 0 | DZ12: =IF(SUM(Q46:S46)>0,SUM(Q46:S46),0) -> 0 | EA12: =IF(SUM(U46)>0,SUM(U46),0) -> 0 | EB12: =Q46 -> 0 | EC12: =R46 -> 0 | ED12: =S46 -> 0 | EF12: =IF(SUM(Q47:S47)>0,SUM(Q47:S47),0) -> 0 | EG12: =IF(SUM(U47)>0,SUM(U47),0) -> 0 | EH12: =Q47 -> 0 | EI12: =R47 -> 0 | EJ12: =S47 -> 0 | EL12: =IF(SUM(Q48:S48)>0,SUM(Q48:S48),0) -> 0 | EM12: =IF(SUM(U48)>0,SUM(U48),0) -> 0 | EN12: =Q48 -> 0 | EO12: =R48 -> 0 | EP12: =S48 -> 0 | ER12: =IF(SUM(Q49:S49)>0,SUM(Q49:S49),0) -> 0 | ES12: =IF(SUM(U49)>0,SUM(U49),0) -> 0 | ET12: =Q49 -> 0 | EU12: =R49 -> 0 | EV12: =S49 -> 0 | EX12: =IF(SUM(Q50:S50)>0,SUM(Q50:S50),0) -> 0 | EY12: =IF(SUM(U50)>0,SUM(U50),0) -> 0 | EZ12: =Q50 -> 0 | FA12: =R50 -> 0 | FB12: =S50 -> 0 | FD12: =IF(SUM(Q51:S51)>0,SUM(Q51:S51),0) -> 0 | FE12: =IF(SUM(U51)>0,SUM(U51),0) -> 0 | FF12: =Q51 -> 0 | FG12: =R51 -> 0 | FH12: =S51 -> 0 | FJ12: =LARGE((FD12,EX12,ER12,EL12,EF12,DZ12,DT12,DN12,DH12,DB12,CV12,CP12,CJ12,CD12,BX12,BR12,BL12,BF12,AZ12,AT12,AN12,AH12),1) -> 249 | FK12: =LARGE((BT12,BZ12,CF12,CL12,CR12,CX12,DD12,DJ12,DP12,DV12,EB12,EH12,EN12,ET12,EZ12,FF12,BN12,BH12,BB12,AV12,AP12,AJ12),1) -> 92 | FL12: =LARGE((BU12,CA12,CG12,CM12,CS12,CY12,DE12,DK12,DQ12,DW12,EC12,EI12,EO12,EU12,FA12,FG12,BO12,BI12,BC12,AW12,AQ12,AK12),1) -> 89 | FM12: =LARGE((BV12,CB12,CH12,CN12,CT12,CZ12,DF12,DL12,DR12,DX12,ED12,EJ12,EP12,EV12,FB12,FH12,BP12,BJ12,BD12,AX12,AR12,AL12),1) -> 68
A13: Valdosta | G13: 91 | H13: 92 | I13: 74 | J13: 257 | K13: 7 | L13: 80 | M13: 96 | N13: 81 | O13: 257 | P13: 8 | Q13: 75 | R13: 91 | S13: 61 | T13: 227 | U13: 2 | AA13: =IF(SUM(E13,J13,O13,T13,Y13,E39,J39,O39,T39,Y39,E65,J65,O65,T65,Y65)>0,(LARGE((E13,J13,O13,T13,Y13,E39,J39,O39,T39,Y39,E65,J65,O65,T65,Y65),1)+LARGE((E13,J13,O13,T13,Y13,E39,J39,O39,T39,Y39,E65,J65,O65,T65,Y65),2)+LARGE((E13,J13,O13,T13,Y13,E39,J39,O39,T39,Y39,E65,J65,O65,T65,Y65),3)+LARGE((E13,J13,O13,T13,Y13,E39,J39,O39,T39,Y39,E65,J65,O65,T65,Y65),4)),"") -> 1011 | AB13: =IF(SUM(CK35)>0,SUM(CK35),"") -> 24 | AH13: =IF(SUM(V30:X30)>0,SUM(V30:X30),0) -> 0 | AI13: =IF(SUM(Z30)>0,SUM(Z30),0) -> 0 | AJ13: =V30 -> 0 | AK13: =W30 -> 0 | AL13: =X30 -> 0 | AN13: =IF(SUM(V31:X31)>0,SUM(V31:X31),0) -> 0 | AO13: =IF(SUM(Z31)>0,SUM(Z31),0) -> 0 | AP13: =V31 -> 0 | AQ13: =W31 -> 0 | AR13: =X31 -> 0 | AT13: =IF(SUM(V32:X32)>0,SUM(V32:X32),0) -> 0 | AU13: =IF(SUM(Z32)>0,SUM(Z32),0) -> 0 | AV13: =V32 -> 0 | AW13: =W32 -> 0 | AX13: =X32 -> 0 | AZ13: =IF(SUM(V33:X33)>0,SUM(V33:X33),0) -> 0 | BA13: =IF(SUM(Z33)>0,SUM(Z33),0) -> 0 | BB13: =V33 -> 0 | BC13: =W33 -> 0 | BD13: =X33 -> 0 | BF13: =IF(SUM(V34:X34)>0,SUM(V34:X34),0) -> 0 | BG13: =IF(SUM(Z34)>0,SUM(Z34),0) -> 0 | BH13: =V34 -> 0 | BI13: =W34 -> 0 | BJ13: =X34 -> 0 | BL13: =IF(SUM(V35:X35)>0,SUM(V35:X35),0) -> 0 | BM13: =IF(SUM(Z35)>0,SUM(Z35),0) -> 0 | BN13: =V35 -> 0 | BO13: =W35 -> 0 | BP13: =X35 -> 0 | BR13: =IF(SUM(V36:X36)>0,SUM(V36:X36),0) -> 0 | BS13: =IF(SUM(Z36)>0,SUM(Z36),0) -> 0 | BT13: =V36 -> 0 | BU13: =W36 -> 0 | BV13: =X36 -> 0 | BX13: =IF(SUM(V37:X37)>0,SUM(V37:X37),0) -> 0 | BY13: =IF(SUM(Z37)>0,SUM(Z37),0) -> 0 | BZ13: =V37 -> 0 | CA13: =W37 -> 0 | CB13: =X37 -> 0 | CD13: =IF(SUM(V38:X38)>0,SUM(V38:X38),0) -> 0 | CE13: =IF(SUM(Z38)>0,SUM(Z38),0) -> 0 | CF13: =V38 -> 0 | CG13: =W38 -> 0 | CH13: =X38 -> 0 | CJ13: =IF(SUM(V39:X39)>0,SUM(V39:X39),0) -> 0 | CK13: =IF(SUM(Z39)>0,SUM(Z39),0) -> 0 | CL13: =V39 -> 0 | CM13: =W39 -> 0 | CN13: =X39 -> 0 | CP13: =IF(SUM(V40:X40)>0,SUM(V40:X40),0) -> 212 | CQ13: =IF(SUM(Z40)>0,SUM(Z40),0) -> 2 | CR13: =V40 -> 71 | CS13: =W40 -> 86 | CT13: =X40 -> 55 | CV13: =IF(SUM(V41:X41)>0,SUM(V41:X41),0) -> 0 | CW13: =IF(SUM(Z41)>0,SUM(Z41),0) -> 0 | CX13: =V41 -> 0 | CY13: =W41 -> 0 | CZ13: =X41 -> 0 | DB13: =IF(SUM(V42:X42)>0,SUM(V42:X42),0) -> 186 | DC13: =IF(SUM(Z42)>0,SUM(Z42),0) -> 2 | DD13: =V42 -> 59 | DE13: =W42 -> 87 | DF13: =X42 -> 40 | DH13: =IF(SUM(V43:X43)>0,SUM(V43:X43),0) -> 148 | DI13: =IF(SUM(Z43)>0,SUM(Z43),0) -> 0 | DJ13: =V43 -> 48 | DK13: =W43 -> 67 | DL13: =X43 -> 33 | DN13: =IF(SUM(V44:X44)>0,SUM(V44:X44),0) -> 0 | DO13: =IF(SUM(Z44)>0,SUM(Z44),0) -> 0 | DP13: =V44 -> 0 | DQ13: =W44 -> 0 | DR13: =X44 -> 0 | DT13: =IF(SUM(V45:X45)>0,SUM(V45:X45),0) -> 0 | DU13: =IF(SUM(Z45)>0,SUM(Z45),0) -> 0 | DV13: =V45 -> 0 | DW13: =W45 -> 0 | DX13: =X45 -> 0 | DZ13: =IF(SUM(V46:X46)>0,SUM(V46:X46),0) -> 0 | EA13: =IF(SUM(Z46)>0,SUM(Z46),0) -> 0 | EB13: =V46 -> 0 | EC13: =W46 -> 0 | ED13: =X46 -> 0 | EF13: =IF(SUM(V47:X47)>0,SUM(V47:X47),0) -> 0 | EG13: =IF(SUM(Z47)>0,SUM(Z47),0) -> 0 | EH13: =V47 -> 0 | EI13: =W47 -> 0 | EJ13: =X47 -> 0 | EL13: =IF(SUM(V48:X48)>0,SUM(V48:X48),0) -> 0 | EM13: =IF(SUM(Z48)>0,SUM(Z48),0) -> 0 | EN13: =V48 -> 0 | EO13: =W48 -> 0 | EP13: =X48 -> 0 | ER13: =IF(SUM(V49:X49)>0,SUM(V49:X49),0) -> 0 | ES13: =IF(SUM(Z49)>0,SUM(Z49),0) -> 0 | ET13: =V49 -> 0 | EU13: =W49 -> 0 | EV13: =X49 -> 0 | EX13: =IF(SUM(V50:X50)>0,SUM(V50:X50),0) -> 0 | EY13: =IF(SUM(Z50)>0,SUM(Z50),0) -> 0 | EZ13: =V50 -> 0 | FA13: =W50 -> 0 | FB13: =X50 -> 0 | FD13: =IF(SUM(V51:X51)>0,SUM(V51:X51),0) -> 0 | FE13: =IF(SUM(Z51)>0,SUM(Z51),0) -> 0 | FF13: =V51 -> 0 | FG13: =W51 -> 0 | FH13: =X51 -> 0 | FJ13: =LARGE((FD13,EX13,ER13,EL13,EF13,DZ13,DT13,DN13,DH13,DB13,CV13,CP13,CJ13,CD13,BX13,BR13,BL13,BF13,AZ13,AT13,AN13,AH13),1) -> 212 | FK13: =LARGE((BT13,BZ13,CF13,CL13,CR13,CX13,DD13,DJ13,DP13,DV13,EB13,EH13,EN13,ET13,EZ13,FF13,BN13,BH13,BB13,AV13,AP13,AJ13),1) -> 71 | FL13: =LARGE((BU13,CA13,CG13,CM13,CS13,CY13,DE13,DK13,DQ13,DW13,EC13,EI13,EO13,EU13,FA13,FG13,BO13,BI13,BC13,AW13,AQ13,AK13),1) -> 87 | FM13: =LARGE((BV13,CB13,CH13,CN13,CT13,CZ13,DF13,DL13,DR13,DX13,ED13,EJ13,EP13,EV13,FB13,FH13,BP13,BJ13,BD13,AX13,AR13,AL13),1) -> 55
A14: @ Colquitt | G14: 87 | H14: 96 | I14: 70 | J14: 253 | K14: 3 | L14: 74 | M14: 91 | N14: 75 | O14: 240 | P14: 3 | Q14: 77 | R14: 89 | S14: 79 | T14: 245 | U14: 5 | AA14: =IF(SUM(E14,J14,O14,T14,Y14,E40,J40,O40,T40,Y40,E66,J66,O66,T66,Y66)>0,(LARGE((E14,J14,O14,T14,Y14,E40,J40,O40,T40,Y40,E66,J66,O66,T66,Y66),1)+LARGE((E14,J14,O14,T14,Y14,E40,J40,O40,T40,Y40,E66,J66,O66,T66,Y66),2)+LARGE((E14,J14,O14,T14,Y14,E40,J40,O40,T40,Y40,E66,J66,O66,T66,Y66),3)+LARGE((E14,J14,O14,T14,Y14,E40,J40,O40,T40,Y40,E66,J66,O66,T66,Y66),4)),"") -> 953 | AB14: =IF(SUM(CQ35)>0,SUM(CQ35),"") -> 13 | AH14: =IF(SUM(B56:D56)>0,SUM(B56:D56),0) -> 0 | AI14: =IF(SUM(F56)>0,SUM(F56),0) -> 0 | AJ14: =B56 -> 0 | AK14: =C56 -> 0 | AL14: =D56 -> 0 | AN14: =IF(SUM(B57:D57)>0,SUM(B57:D57),0) -> 0 | AO14: =IF(SUM(F57)>0,SUM(F57),0) -> 0 | AP14: =B57 -> 0 | AQ14: =C57 -> 0 | AR14: =D57 -> 0 | AT14: =IF(SUM(B58:D58)>0,SUM(B58:D58),0) -> 0 | AU14: =IF(SUM(F58)>0,SUM(F58),0) -> 0 | AV14: =B58 -> 0 | AW14: =C58 -> 0 | AX14: =D58 -> 0 | AZ14: =IF(SUM(B59:D59)>0,SUM(B59:D59),0) -> 0 | BA14: =IF(SUM(F59)>0,SUM(F59),0) -> 0 | BB14: =B59 -> 0 | BC14: =C59 -> 0 | BD14: =D59 -> 0 | BF14: =IF(SUM(B60:D60)>0,SUM(B60:D60),0) -> 0 | BG14: =IF(SUM(F60)>0,SUM(F60),0) -> 0 | BH14: =B60 -> 0 | BI14: =C60 -> 0 | BJ14: =D60 -> 0 | BL14: =IF(SUM(B61:D61)>0,SUM(B61:D61),0) -> 0 | BM14: =IF(SUM(F61)>0,SUM(F61),0) -> 0 | BN14: =B61 -> 0 | BO14: =C61 -> 0 | BP14: =D61 -> 0 | BR14: =IF(SUM(B62:D62)>0,SUM(B62:D62),0) -> 0 | BS14: =IF(SUM(F62)>0,SUM(F62),0) -> 0 | BT14: =B62 -> 0 | BU14: =C62 -> 0 | BV14: =D62 -> 0 | BX14: =IF(SUM(B63:D63)>0,SUM(B63:D63),0) -> 0 | BY14: =IF(SUM(F63)>0,SUM(F63),0) -> 0 | BZ14: =B63 -> 0 | CA14: =C63 -> 0 | CB14: =D63 -> 0 | CD14: =IF(SUM(B64:D64)>0,SUM(B64:D64),0) -> 0 | CE14: =IF(SUM(F64)>0,SUM(F64),0) -> 0 | CF14: =B64 -> 0 | CG14: =C64 -> 0 | CH14: =D64 -> 0 | CJ14: =IF(SUM(B65:D65)>0,SUM(B65:D65),0) -> 0 | CK14: =IF(SUM(F65)>0,SUM(F65),0) -> 0 | CL14: =B65 -> 0 | CM14: =C65 -> 0 | CN14: =D65 -> 0 | CP14: =IF(SUM(B66:D66)>0,SUM(B66:D66),0) -> 0 | CQ14: =IF(SUM(F66)>0,SUM(F66),0) -> 0 | CR14: =B66 -> 0 | CS14: =C66 -> 0 | CT14: =D66 -> 0 | CV14: =IF(SUM(B67:D67)>0,SUM(B67:D67),0) -> 0 | CW14: =IF(SUM(F67)>0,SUM(F67),0) -> 0 | CX14: =B67 -> 0 | CY14: =C67 -> 0 | CZ14: =D67 -> 0 | DB14: =IF(SUM(B68:D68)>0,SUM(B68:D68),0) -> 0 | DC14: =IF(SUM(F68)>0,SUM(F68),0) -> 0 | DD14: =B68 -> 0 | DE14: =C68 -> 0 | DF14: =D68 -> 0 | DH14: =IF(SUM(B69:D69)>0,SUM(B69:D69),0) -> 209 | DI14: =IF(SUM(F69)>0,SUM(F69),0) -> 1 | DJ14: =B69 -> 81 | DK14: =C69 -> 78 | DL14: =D69 -> 50 | DN14: =IF(SUM(B70:D70)>0,SUM(B70:D70),0) -> 0 | DO14: =IF(SUM(F70)>0,SUM(F70),0) -> 0 | DP14: =B70 -> 0 | DQ14: =C70 -> 0 | DR14: =D70 -> 0 | DT14: =IF(SUM(B71:D71)>0,SUM(B71:D71),0) -> 0 | DU14: =IF(SUM(F71)>0,SUM(F71),0) -> 0 | DV14: =B71 -> 0 | DW14: =C71 -> 0 | DX14: =D71 -> 0 | DZ14: =IF(SUM(B72:D72)>0,SUM(B72:D72),0) -> 0 | EA14: =IF(SUM(F72)>0,SUM(F72),0) -> 0 | EB14: =B72 -> 0 | EC14: =C72 -> 0 | ED14: =D72 -> 0 | EF14: =IF(SUM(B73:D73)>0,SUM(B73:D73),0) -> 0 | EG14: =IF(SUM(F73)>0,SUM(F73),0) -> 0 | EH14: =B73 -> 0 | EI14: =C73 -> 0 | EJ14: =D73 -> 0 | EL14: =IF(SUM(B74:D74)>0,SUM(B74:D74),0) -> 0 | EM14: =IF(SUM(F74)>0,SUM(F74),0) -> 0 | EN14: =B74 -> 0 | EO14: =C74 -> 0 | EP14: =D74 -> 0 | ER14: =IF(SUM(B75:D75)>0,SUM(B75:D75),0) -> 0 | ES14: =IF(SUM(F75)>0,SUM(F75),0) -> 0 | ET14: =B75 -> 0 | EU14: =C75 -> 0 | EV14: =D75 -> 0 | EX14: =IF(SUM(B76:D76)>0,SUM(B76:D76),0) -> 0 | EY14: =IF(SUM(F76)>0,SUM(F76),0) -> 0 | EZ14: =B76 -> 0 | FA14: =C76 -> 0 | FB14: =D76 -> 0 | FD14: =IF(SUM(B77:D77)>0,SUM(B77:D77),0) -> 0 | FE14: =IF(SUM(F77)>0,SUM(F77),0) -> 0 | FF14: =B77 -> 0 | FG14: =C77 -> 0 | FH14: =D77 -> 0 | FJ14: =LARGE((FD14,EX14,ER14,EL14,EF14,DZ14,DT14,DN14,DH14,DB14,CV14,CP14,CJ14,CD14,BX14,BR14,BL14,BF14,AZ14,AT14,AN14,AH14),1) -> 209 | FK14: =LARGE((BT14,BZ14,CF14,CL14,CR14,CX14,DD14,DJ14,DP14,DV14,EB14,EH14,EN14,ET14,EZ14,FF14,BN14,BH14,BB14,AV14,AP14,AJ14),1) -> 81 | FL14: =LARGE((BU14,CA14,CG14,CM14,CS14,CY14,DE14,DK14,DQ14,DW14,EC14,EI14,EO14,EU14,FA14,FG14,BO14,BI14,BC14,AW14,AQ14,AK14),1) -> 78 | FM14: =LARGE((BV14,CB14,CH14,CN14,CT14,CZ14,DF14,DL14,DR14,DX14,ED14,EJ14,EP14,EV14,FB14,FH14,BP14,BJ14,BD14,AX14,AR14,AL14),1) -> 50
A15: Westover | G15: 90 | H15: 90 | I15: 72 | J15: 252 | K15: 4 | L15: 88 | M15: 91 | N15: 78 | O15: 257 | P15: 5 | Q15: 69 | R15: 92 | S15: 68 | T15: 229 | U15: 4 | AA15: =IF(SUM(E15,J15,O15,T15,Y15,E41,J41,O41,T41,Y41,E67,J67,O67,T67,Y67)>0,(LARGE((E15,J15,O15,T15,Y15,E41,J41,O41,T41,Y41,E67,J67,O67,T67,Y67),1)+LARGE((E15,J15,O15,T15,Y15,E41,J41,O41,T41,Y41,E67,J67,O67,T67,Y67),2)+LARGE((E15,J15,O15,T15,Y15,E41,J41,O41,T41,Y41,E67,J67,O67,T67,Y67),3)+LARGE((E15,J15,O15,T15,Y15,E41,J41,O41,T41,Y41,E67,J67,O67,T67,Y67),4)),"") -> 976 | AB15: =IF(SUM(CW35)>0,SUM(CW35),"") -> 16 | AH15: =IF(SUM(G56:I56)>0,SUM(G56:I56),0) -> 0 | AI15: =IF(SUM(K56)>0,SUM(K56),0) -> 0 | AJ15: =G56 -> 0 | AK15: =H56 -> 0 | AL15: =I56 -> 0 | AN15: =IF(SUM(G57:I57)>0,SUM(G57:I57),0) -> 0 | AO15: =IF(SUM(K57)>0,SUM(K57),0) -> 0 | AP15: =G57 -> 0 | AQ15: =H57 -> 0 | AR15: =I57 -> 0 | AT15: =IF(SUM(G58:I58)>0,SUM(G58:I58),0) -> 0 | AU15: =IF(SUM(K58)>0,SUM(K58),0) -> 0 | AV15: =G58 -> 0 | AW15: =H58 -> 0 | AX15: =I58 -> 0 | AZ15: =IF(SUM(G59:I59)>0,SUM(G59:I59),0) -> 0 | BA15: =IF(SUM(K59)>0,SUM(K59),0) -> 0 | BB15: =G59 -> 0 | BC15: =H59 -> 0 | BD15: =I59 -> 0 | BF15: =IF(SUM(G60:I60)>0,SUM(G60:I60),0) -> 0 | BG15: =IF(SUM(K60)>0,SUM(K60),0) -> 0 | BH15: =G60 -> 0 | BI15: =H60 -> 0 | BJ15: =I60 -> 0 | BL15: =IF(SUM(G61:I61)>0,SUM(G61:I61),0) -> 0 | BM15: =IF(SUM(K61)>0,SUM(K61),0) -> 0 | BN15: =G61 -> 0 | BO15: =H61 -> 0 | BP15: =I61 -> 0 | BR15: =IF(SUM(G62:I62)>0,SUM(G62:I62),0) -> 0 | BS15: =IF(SUM(K62)>0,SUM(K62),0) -> 0 | BT15: =G62 -> 0 | BU15: =H62 -> 0 | BV15: =I62 -> 0 | BX15: =IF(SUM(G63:I63)>0,SUM(G63:I63),0) -> 0 | BY15: =IF(SUM(K63)>0,SUM(K63),0) -> 0 | BZ15: =G63 -> 0 | CA15: =H63 -> 0 | CB15: =I63 -> 0 | CD15: =IF(SUM(G64:I64)>0,SUM(G64:I64),0) -> 0 | CE15: =IF(SUM(K64)>0,SUM(K64),0) -> 0 | CF15: =G64 -> 0 | CG15: =H64 -> 0 | CH15: =I64 -> 0 | CJ15: =IF(SUM(G65:I65)>0,SUM(G65:I65),0) -> 0 | CK15: =IF(SUM(K65)>0,SUM(K65),0) -> 0 | CL15: =G65 -> 0 | CM15: =H65 -> 0 | CN15: =I65 -> 0 | CP15: =IF(SUM(G66:I66)>0,SUM(G66:I66),0) -> 0 | CQ15: =IF(SUM(K66)>0,SUM(K66),0) -> 0 | CR15: =G66 -> 0 | CS15: =H66 -> 0 | CT15: =I66 -> 0 | CV15: =IF(SUM(G67:I67)>0,SUM(G67:I67),0) -> 0 | CW15: =IF(SUM(K67)>0,SUM(K67),0) -> 0 | CX15: =G67 -> 0 | CY15: =H67 -> 0 | CZ15: =I67 -> 0 | DB15: =IF(SUM(G68:I68)>0,SUM(G68:I68),0) -> 0 | DC15: =IF(SUM(K68)>0,SUM(K68),0) -> 0 | DD15: =G68 -> 0 | DE15: =H68 -> 0 | DF15: =I68 -> 0 | DH15: =IF(SUM(G69:I69)>0,SUM(G69:I69),0) -> 0 | DI15: =IF(SUM(K69)>0,SUM(K69),0) -> 0 | DJ15: =G69 -> 0 | DK15: =H69 -> 0 | DL15: =I69 -> 0 | DN15: =IF(SUM(G70:I70)>0,SUM(G70:I70),0) -> 0 | DO15: =IF(SUM(K70)>0,SUM(K70),0) -> 0 | DP15: =G70 -> 0 | DQ15: =H70 -> 0 | DR15: =I70 -> 0 | DT15: =IF(SUM(G71:I71)>0,SUM(G71:I71),0) -> 0 | DU15: =IF(SUM(K71)>0,SUM(K71),0) -> 0 | DV15: =G71 -> 0 | DW15: =H71 -> 0 | DX15: =I71 -> 0 | DZ15: =IF(SUM(G72:I72)>0,SUM(G72:I72),0) -> 0 | EA15: =IF(SUM(K72)>0,SUM(K72),0) -> 0 | EB15: =G72 -> 0 | EC15: =H72 -> 0 | ED15: =I72 -> 0 | EF15: =IF(SUM(G73:I73)>0,SUM(G73:I73),0) -> 0 | EG15: =IF(SUM(K73)>0,SUM(K73),0) -> 0 | EH15: =G73 -> 0 | EI15: =H73 -> 0 | EJ15: =I73 -> 0 | EL15: =IF(SUM(G74:I74)>0,SUM(G74:I74),0) -> 0 | EM15: =IF(SUM(K74)>0,SUM(K74),0) -> 0 | EN15: =G74 -> 0 | EO15: =H74 -> 0 | EP15: =I74 -> 0 | ER15: =IF(SUM(G75:I75)>0,SUM(G75:I75),0) -> 0 | ES15: =IF(SUM(K75)>0,SUM(K75),0) -> 0 | ET15: =G75 -> 0 | EU15: =H75 -> 0 | EV15: =I75 -> 0 | EX15: =IF(SUM(G76:I76)>0,SUM(G76:I76),0) -> 0 | EY15: =IF(SUM(K76)>0,SUM(K76),0) -> 0 | EZ15: =G76 -> 0 | FA15: =H76 -> 0 | FB15: =I76 -> 0 | FD15: =IF(SUM(G77:I77)>0,SUM(G77:I77),0) -> 0 | FE15: =IF(SUM(K77)>0,SUM(K77),0) -> 0 | FF15: =G77 -> 0 | FG15: =H77 -> 0 | FH15: =I77 -> 0 | FJ15: =LARGE((FD15,EX15,ER15,EL15,EF15,DZ15,DT15,DN15,DH15,DB15,CV15,CP15,CJ15,CD15,BX15,BR15,BL15,BF15,AZ15,AT15,AN15,AH15),1) -> 0 | FK15: =LARGE((BT15,BZ15,CF15,CL15,CR15,CX15,DD15,DJ15,DP15,DV15,EB15,EH15,EN15,ET15,EZ15,FF15,BN15,BH15,BB15,AV15,AP15,AJ15),1) -> 0 | FL15: =LARGE((BU15,CA15,CG15,CM15,CS15,CY15,DE15,DK15,DQ15,DW15,EC15,EI15,EO15,EU15,FA15,FG15,BO15,BI15,BC15,AW15,AQ15,AK15),1) -> 0 | FM15: =LARGE((BV15,CB15,CH15,CN15,CT15,CZ15,DF15,DL15,DR15,DX15,ED15,EJ15,EP15,EV15,FB15,FH15,BP15,BJ15,BD15,AX15,AR15,AL15),1) -> 0
A16: Worth | G16: 89 | H16: 90 | I16: 74 | J16: 253 | K16: 4 | L16: 82 | M16: 93 | N16: 74 | O16: 249 | P16: 4 | AA16: =IF(SUM(E16,J16,O16,T16,Y16,E42,J42,O42,T42,Y42,E68,J68,O68,T68,Y68)>0,(LARGE((E16,J16,O16,T16,Y16,E42,J42,O42,T42,Y42,E68,J68,O68,T68,Y68),1)+LARGE((E16,J16,O16,T16,Y16,E42,J42,O42,T42,Y42,E68,J68,O68,T68,Y68),2)+LARGE((E16,J16,O16,T16,Y16,E42,J42,O42,T42,Y42,E68,J68,O68,T68,Y68),3)+LARGE((E16,J16,O16,T16,Y16,E42,J42,O42,T42,Y42,E68,J68,O68,T68,Y68),4)),"") -> 960 | AB16: =IF(SUM(DC35)>0,SUM(DC35),"") -> 14 | AH16: =IF(SUM(L56:N56)>0,SUM(L56:N56),0) -> 0 | AI16: =IF(SUM(P56)>0,SUM(P56),0) -> 0 | AJ16: =L56 -> 0 | AK16: =M56 -> 0 | AL16: =N56 -> 0 | AN16: =IF(SUM(L57:N57)>0,SUM(L57:N57),0) -> 0 | AO16: =IF(SUM(P57)>0,SUM(P57),0) -> 0 | AP16: =L57 -> 0 | AQ16: =M57 -> 0 | AR16: =N57 -> 0 | AT16: =IF(SUM(L58:N58)>0,SUM(L58:N58),0) -> 0 | AU16: =IF(SUM(P58)>0,SUM(P58),0) -> 0 | AV16: =L58 -> 0 | AW16: =M58 -> 0 | AX16: =N58 -> 0 | AZ16: =IF(SUM(L59:N59)>0,SUM(L59:N59),0) -> 0 | BA16: =IF(SUM(P59)>0,SUM(P59),0) -> 0 | BB16: =L59 -> 0 | BC16: =M59 -> 0 | BD16: =N59 -> 0 | BF16: =IF(SUM(L60:N60)>0,SUM(L60:N60),0) -> 0 | BG16: =IF(SUM(P60)>0,SUM(P60),0) -> 0 | BH16: =L60 -> 0 | BI16: =M60 -> 0 | BJ16: =N60 -> 0 | BL16: =IF(SUM(L61:N61)>0,SUM(L61:N61),0) -> 0 | BM16: =IF(SUM(P61)>0,SUM(P61),0) -> 0 | BN16: =L61 -> 0 | BO16: =M61 -> 0 | BP16: =N61 -> 0 | BR16: =IF(SUM(L62:N62)>0,SUM(L62:N62),0) -> 0 | BS16: =IF(SUM(P62)>0,SUM(P62),0) -> 0 | BT16: =L62 -> 0 | BU16: =M62 -> 0 | BV16: =N62 -> 0 | BX16: =IF(SUM(L63:N63)>0,SUM(L63:N63),0) -> 0 | BY16: =IF(SUM(P63)>0,SUM(P63),0) -> 0 | BZ16: =L63 -> 0 | CA16: =M63 -> 0 | CB16: =N63 -> 0 | CD16: =IF(SUM(L64:N64)>0,SUM(L64:N64),0) -> 0 | CE16: =IF(SUM(P64)>0,SUM(P64),0) -> 0 | CF16: =L64 -> 0 | CG16: =M64 -> 0 | CH16: =N64 -> 0 | CJ16: =IF(SUM(L65:N65)>0,SUM(L65:N65),0) -> 0 | CK16: =IF(SUM(P65)>0,SUM(P65),0) -> 0 | CL16: =L65 -> 0 | CM16: =M65 -> 0 | CN16: =N65 -> 0 | CP16: =IF(SUM(L66:N66)>0,SUM(L66:N66),0) -> 0 | CQ16: =IF(SUM(P66)>0,SUM(P66),0) -> 0 | CR16: =L66 -> 0 | CS16: =M66 -> 0 | CT16: =N66 -> 0 | CV16: =IF(SUM(L67:N67)>0,SUM(L67:N67),0) -> 0 | CW16: =IF(SUM(P67)>0,SUM(P67),0) -> 0 | CX16: =L67 -> 0 | CY16: =M67 -> 0 | CZ16: =N67 -> 0 | DB16: =IF(SUM(L68:N68)>0,SUM(L68:N68),0) -> 0 | DC16: =IF(SUM(P68)>0,SUM(P68),0) -> 0 | DD16: =L68 -> 0 | DE16: =M68 -> 0 | DF16: =N68 -> 0 | DH16: =IF(SUM(L69:N69)>0,SUM(L69:N69),0) -> 0 | DI16: =IF(SUM(P69)>0,SUM(P69),0) -> 0 | DJ16: =L69 -> 0 | DK16: =M69 -> 0 | DL16: =N69 -> 0 | DN16: =IF(SUM(L70:N70)>0,SUM(L70:N70),0) -> 0 | DO16: =IF(SUM(P70)>0,SUM(P70),0) -> 0 | DP16: =L70 -> 0 | DQ16: =M70 -> 0 | DR16: =N70 -> 0 | DT16: =IF(SUM(L71:N71)>0,SUM(L71:N71),0) -> 0 | DU16: =IF(SUM(P71)>0,SUM(P71),0) -> 0 | DV16: =L71 -> 0 | DW16: =M71 -> 0 | DX16: =N71 -> 0 | DZ16: =IF(SUM(L72:N72)>0,SUM(L72:N72),0) -> 0 | EA16: =IF(SUM(P72)>0,SUM(P72),0) -> 0 | EB16: =L72 -> 0 | EC16: =M72 -> 0 | ED16: =N72 -> 0 | EF16: =IF(SUM(L73:N73)>0,SUM(L73:N73),0) -> 0 | EG16: =IF(SUM(P73)>0,SUM(P73),0) -> 0 | EH16: =L73 -> 0 | EI16: =M73 -> 0 | EJ16: =N73 -> 0 | EL16: =IF(SUM(L74:N74)>0,SUM(L74:N74),0) -> 0 | EM16: =IF(SUM(P74)>0,SUM(P74),0) -> 0 | EN16: =L74 -> 0 | EO16: =M74 -> 0 | EP16: =N74 -> 0 | ER16: =IF(SUM(L75:N75)>0,SUM(L75:N75),0) -> 0 | ES16: =IF(SUM(P75)>0,SUM(P75),0) -> 0 | ET16: =L75 -> 0 | EU16: =M75 -> 0 | EV16: =N75 -> 0 | EX16: =IF(SUM(L76:N76)>0,SUM(L76:N76),0) -> 0 | EY16: =IF(SUM(P76)>0,SUM(P76),0) -> 0 | EZ16: =L76 -> 0 | FA16: =M76 -> 0 | FB16: =N76 -> 0 | FD16: =IF(SUM(L77:N77)>0,SUM(L77:N77),0) -> 0 | FE16: =IF(SUM(P77)>0,SUM(P77),0) -> 0 | FF16: =L77 -> 0 | FG16: =M77 -> 0 | FH16: =N77 -> 0 | FJ16: =LARGE((FD16,EX16,ER16,EL16,EF16,DZ16,DT16,DN16,DH16,DB16,CV16,CP16,CJ16,CD16,BX16,BR16,BL16,BF16,AZ16,AT16,AN16,AH16),1) -> 0 | FK16: =LARGE((BT16,BZ16,CF16,CL16,CR16,CX16,DD16,DJ16,DP16,DV16,EB16,EH16,EN16,ET16,EZ16,FF16,BN16,BH16,BB16,AV16,AP16,AJ16),1) -> 0 | FL16: =LARGE((BU16,CA16,CG16,CM16,CS16,CY16,DE16,DK16,DQ16,DW16,EC16,EI16,EO16,EU16,FA16,FG16,BO16,BI16,BC16,AW16,AQ16,AK16),1) -> 0 | FM16: =LARGE((BV16,CB16,CH16,CN16,CT16,CZ16,DF16,DL16,DR16,DX16,ED16,EJ16,EP16,EV16,FB16,FH16,BP16,BJ16,BD16,AX16,AR16,AL16),1) -> 0
A17: @ Lowndes | G17: 88 | H17: 93 | I17: 81 | J17: 262 | K17: 6 | Q17: 84 | R17: 91 | S17: 79 | T17: 254 | U17: 3 | AA17: =IF(SUM(E17,J17,O17,T17,Y17,E43,J43,O43,T43,Y43,E69,J69,O69,T69,Y69)>0,(LARGE((E17,J17,O17,T17,Y17,E43,J43,O43,T43,Y43,E69,J69,O69,T69,Y69),1)+LARGE((E17,J17,O17,T17,Y17,E43,J43,O43,T43,Y43,E69,J69,O69,T69,Y69),2)+LARGE((E17,J17,O17,T17,Y17,E43,J43,O43,T43,Y43,E69,J69,O69,T69,Y69),3)+LARGE((E17,J17,O17,T17,Y17,E43,J43,O43,T43,Y43,E69,J69,O69,T69,Y69),4)),"") -> 986 | AB17: =IF(SUM(DI35)>0,SUM(DI35),"") -> 16 | AH17: =IF(SUM(Q56:S56)>0,SUM(Q56:S56),0) -> 0 | AI17: =IF(SUM(U56)>0,SUM(U56),0) -> 0 | AJ17: =Q56 -> 0 | AK17: =R56 -> 0 | AL17: =S56 -> 0 | AN17: =IF(SUM(Q57:S57)>0,SUM(Q57:S57),0) -> 0 | AO17: =IF(SUM(U57)>0,SUM(U57),0) -> 0 | AP17: =Q57 -> 0 | AQ17: =R57 -> 0 | AR17: =S57 -> 0 | AT17: =IF(SUM(Q58:S58)>0,SUM(Q58:S58),0) -> 0 | AU17: =IF(SUM(U58)>0,SUM(U58),0) -> 0 | AV17: =Q58 -> 0 | AW17: =R58 -> 0 | AX17: =S58 -> 0 | AZ17: =IF(SUM(Q59:S59)>0,SUM(Q59:S59),0) -> 0 | BA17: =IF(SUM(U59)>0,SUM(U59),0) -> 0 | BB17: =Q59 -> 0 | BC17: =R59 -> 0 | BD17: =S59 -> 0 | BF17: =IF(SUM(Q60:S60)>0,SUM(Q60:S60),0) -> 0 | BG17: =IF(SUM(U60)>0,SUM(U60),0) -> 0 | BH17: =Q60 -> 0 | BI17: =R60 -> 0 | BJ17: =S60 -> 0 | BL17: =IF(SUM(Q61:S61)>0,SUM(Q61:S61),0) -> 0 | BM17: =IF(SUM(U61)>0,SUM(U61),0) -> 0 | BN17: =Q61 -> 0 | BO17: =R61 -> 0 | BP17: =S61 -> 0 | BR17: =IF(SUM(Q62:S62)>0,SUM(Q62:S62),0) -> 0 | BS17: =IF(SUM(U62)>0,SUM(U62),0) -> 0 | BT17: =Q62 -> 0 | BU17: =R62 -> 0 | BV17: =S62 -> 0 | BX17: =IF(SUM(Q63:S63)>0,SUM(Q63:S63),0) -> 0 | BY17: =IF(SUM(U63)>0,SUM(U63),0) -> 0 | BZ17: =Q63 -> 0 | CA17: =R63 -> 0 | CB17: =S63 -> 0 | CD17: =IF(SUM(Q64:S64)>0,SUM(Q64:S64),0) -> 0 | CE17: =IF(SUM(U64)>0,SUM(U64),0) -> 0 | CF17: =Q64 -> 0 | CG17: =R64 -> 0 | CH17: =S64 -> 0 | CJ17: =IF(SUM(Q65:S65)>0,SUM(Q65:S65),0) -> 0 | CK17: =IF(SUM(U65)>0,SUM(U65),0) -> 0 | CL17: =Q65 -> 0 | CM17: =R65 -> 0 | CN17: =S65 -> 0 | CP17: =IF(SUM(Q66:S66)>0,SUM(Q66:S66),0) -> 0 | CQ17: =IF(SUM(U66)>0,SUM(U66),0) -> 0 | CR17: =Q66 -> 0 | CS17: =R66 -> 0 | CT17: =S66 -> 0 | CV17: =IF(SUM(Q67:S67)>0,SUM(Q67:S67),0) -> 0 | CW17: =IF(SUM(U67)>0,SUM(U67),0) -> 0 | CX17: =Q67 -> 0 | CY17: =R67 -> 0 | CZ17: =S67 -> 0 | DB17: =IF(SUM(Q68:S68)>0,SUM(Q68:S68),0) -> 0 | DC17: =IF(SUM(U68)>0,SUM(U68),0) -> 0 | DD17: =Q68 -> 0 | DE17: =R68 -> 0 | DF17: =S68 -> 0 | DH17: =IF(SUM(Q69:S69)>0,SUM(Q69:S69),0) -> 0 | DI17: =IF(SUM(U69)>0,SUM(U69),0) -> 0 | DJ17: =Q69 -> 0 | DK17: =R69 -> 0 | DL17: =S69 -> 0 | DN17: =IF(SUM(Q70:S70)>0,SUM(Q70:S70),0) -> 0 | DO17: =IF(SUM(U70)>0,SUM(U70),0) -> 0 | DP17: =Q70 -> 0 | DQ17: =R70 -> 0 | DR17: =S70 -> 0 | DT17: =IF(SUM(Q71:S71)>0,SUM(Q71:S71),0) -> 0 | DU17: =IF(SUM(U71)>0,SUM(U71),0) -> 0 | DV17: =Q71 -> 0 | DW17: =R71 -> 0 | DX17: =S71 -> 0 | DZ17: =IF(SUM(Q72:S72)>0,SUM(Q72:S72),0) -> 0 | EA17: =IF(SUM(U72)>0,SUM(U72),0) -> 0 | EB17: =Q72 -> 0 | EC17: =R72 -> 0 | ED17: =S72 -> 0 | EF17: =IF(SUM(Q73:S73)>0,SUM(Q73:S73),0) -> 0 | EG17: =IF(SUM(U73)>0,SUM(U73),0) -> 0 | EH17: =Q73 -> 0 | EI17: =R73 -> 0 | EJ17: =S73 -> 0 | EL17: =IF(SUM(Q74:S74)>0,SUM(Q74:S74),0) -> 0 | EM17: =IF(SUM(U74)>0,SUM(U74),0) -> 0 | EN17: =Q74 -> 0 | EO17: =R74 -> 0 | EP17: =S74 -> 0 | ER17: =IF(SUM(Q75:S75)>0,SUM(Q75:S75),0) -> 0 | ES17: =IF(SUM(U75)>0,SUM(U75),0) -> 0 | ET17: =Q75 -> 0 | EU17: =R75 -> 0 | EV17: =S75 -> 0 | EX17: =IF(SUM(Q76:S76)>0,SUM(Q76:S76),0) -> 0 | EY17: =IF(SUM(U76)>0,SUM(U76),0) -> 0 | EZ17: =Q76 -> 0 | FA17: =R76 -> 0 | FB17: =S76 -> 0 | FD17: =IF(SUM(Q77:S77)>0,SUM(Q77:S77),0) -> 0 | FE17: =IF(SUM(U77)>0,SUM(U77),0) -> 0 | FF17: =Q77 -> 0 | FG17: =R77 -> 0 | FH17: =S77 -> 0 | FJ17: =LARGE((FD17,EX17,ER17,EL17,EF17,DZ17,DT17,DN17,DH17,DB17,CV17,CP17,CJ17,CD17,BX17,BR17,BL17,BF17,AZ17,AT17,AN17,AH17),1) -> 0 | FK17: =LARGE((BT17,BZ17,CF17,CL17,CR17,CX17,DD17,DJ17,DP17,DV17,EB17,EH17,EN17,ET17,EZ17,FF17,BN17,BH17,BB17,AV17,AP17,AJ17),1) -> 0 | FL17: =LARGE((BU17,CA17,CG17,CM17,CS17,CY17,DE17,DK17,DQ17,DW17,EC17,EI17,EO17,EU17,FA17,FG17,BO17,BI17,BC17,AW17,AQ17,AK17),1) -> 0 | FM17: =LARGE((BV17,CB17,CH17,CN17,CT17,CZ17,DF17,DL17,DR17,DX17,ED17,EJ17,EP17,EV17,FB17,FH17,BP17,BJ17,BD17,AX17,AR17,AL17),1) -> 0
O18: =IF(SUM(L18:N18)>0,SUM(L18:N18),"") ->  | AA18: =IF(SUM(E18,J18,O18,T18,Y18,E44,J44,O44,T44,Y44,E70,J70,O70,T70,Y70)>0,(LARGE((E18,J18,O18,T18,Y18,E44,J44,O44,T44,Y44,E70,J70,O70,T70,Y70),1)+LARGE((E18,J18,O18,T18,Y18,E44,J44,O44,T44,Y44,E70,J70,O70,T70,Y70),2)+LARGE((E18,J18,O18,T18,Y18,E44,J44,O44,T44,Y44,E70,J70,O70,T70,Y70),3)+LARGE((E18,J18,O18,T18,Y18,E44,J44,O44,T44,Y44,E70,J70,O70,T70,Y70),4)),"") ->  | AB18: =IF(SUM(DO35)>0,SUM(DO35),"") ->  | AH18: =IF(SUM(V56:X56)>0,SUM(V56:X56),0) -> 0 | AI18: =IF(SUM(Z56)>0,SUM(Z56),0) -> 0 | AJ18: =V56 -> 0 | AK18: =W56 -> 0 | AL18: =X56 -> 0 | AN18: =IF(SUM(V57:X57)>0,SUM(V57:X57),0) -> 0 | AO18: =IF(SUM(Z57)>0,SUM(Z57),0) -> 0 | AP18: =V57 -> 0 | AQ18: =W57 -> 0 | AR18: =X57 -> 0 | AT18: =IF(SUM(V58:X58)>0,SUM(V58:X58),0) -> 0 | AU18: =IF(SUM(Z58)>0,SUM(Z58),0) -> 0 | AV18: =V58 -> 0 | AW18: =W58 -> 0 | AX18: =X58 -> 0 | AZ18: =IF(SUM(V59:X59)>0,SUM(V59:X59),0) -> 0 | BA18: =IF(SUM(Z59)>0,SUM(Z59),0) -> 0 | BB18: =V59 -> 0 | BC18: =W59 -> 0 | BD18: =X59 -> 0 | BF18: =IF(SUM(V60:X60)>0,SUM(V60:X60),0) -> 0 | BG18: =IF(SUM(Z60)>0,SUM(Z60),0) -> 0 | BH18: =V60 -> 0 | BI18: =W60 -> 0 | BJ18: =X60 -> 0 | BL18: =IF(SUM(V61:X61)>0,SUM(V61:X61),0) -> 0 | BM18: =IF(SUM(Z61)>0,SUM(Z61),0) -> 0 | BN18: =V61 -> 0 | BO18: =W61 -> 0 | BP18: =X61 -> 0 | BR18: =IF(SUM(V62:X62)>0,SUM(V62:X62),0) -> 0 | BS18: =IF(SUM(Z62)>0,SUM(Z62),0) -> 0 | BT18: =V62 -> 0 | BU18: =W62 -> 0 | BV18: =X62 -> 0 | BX18: =IF(SUM(V63:X63)>0,SUM(V63:X63),0) -> 0 | BY18: =IF(SUM(Z63)>0,SUM(Z63),0) -> 0 | BZ18: =V63 -> 0 | CA18: =W63 -> 0 | CB18: =X63 -> 0 | CD18: =IF(SUM(V64:X64)>0,SUM(V64:X64),0) -> 0 | CE18: =IF(SUM(Z64)>0,SUM(Z64),0) -> 0 | CF18: =V64 -> 0 | CG18: =W64 -> 0 | CH18: =X64 -> 0 | CJ18: =IF(SUM(V65:X65)>0,SUM(V65:X65),0) -> 0 | CK18: =IF(SUM(Z65)>0,SUM(Z65),0) -> 0 | CL18: =V65 -> 0 | CM18: =W65 -> 0 | CN18: =X65 -> 0 | CP18: =IF(SUM(V66:X66)>0,SUM(V66:X66),0) -> 0 | CQ18: =IF(SUM(Z66)>0,SUM(Z66),0) -> 0 | CR18: =V66 -> 0 | CS18: =W66 -> 0 | CT18: =X66 -> 0 | CV18: =IF(SUM(V67:X67)>0,SUM(V67:X67),0) -> 0 | CW18: =IF(SUM(Z67)>0,SUM(Z67),0) -> 0 | CX18: =V67 -> 0 | CY18: =W67 -> 0 | CZ18: =X67 -> 0 | DB18: =IF(SUM(V68:X68)>0,SUM(V68:X68),0) -> 0 | DC18: =IF(SUM(Z68)>0,SUM(Z68),0) -> 0 | DD18: =V68 -> 0 | DE18: =W68 -> 0 | DF18: =X68 -> 0 | DH18: =IF(SUM(V69:X69)>0,SUM(V69:X69),0) -> 0 | DI18: =IF(SUM(Z69)>0,SUM(Z69),0) -> 0 | DJ18: =V69 -> 0 | DK18: =W69 -> 0 | DL18: =X69 -> 0 | DN18: =IF(SUM(V70:X70)>0,SUM(V70:X70),0) -> 0 | DO18: =IF(SUM(Z70)>0,SUM(Z70),0) -> 0 | DP18: =V70 -> 0 | DQ18: =W70 -> 0 | DR18: =X70 -> 0 | DT18: =IF(SUM(V71:X71)>0,SUM(V71:X71),0) -> 0 | DU18: =IF(SUM(Z71)>0,SUM(Z71),0) -> 0 | DV18: =V71 -> 0 | DW18: =W71 -> 0 | DX18: =X71 -> 0 | DZ18: =IF(SUM(V72:X72)>0,SUM(V72:X72),0) -> 0 | EA18: =IF(SUM(Z72)>0,SUM(Z72),0) -> 0 | EB18: =V72 -> 0 | EC18: =W72 -> 0 | ED18: =X72 -> 0 | EF18: =IF(SUM(V73:X73)>0,SUM(V73:X73),0) -> 0 | EG18: =IF(SUM(Z73)>0,SUM(Z73),0) -> 0 | EH18: =V73 -> 0 | EI18: =W73 -> 0 | EJ18: =X73 -> 0 | EL18: =IF(SUM(V74:X74)>0,SUM(V74:X74),0) -> 0 | EM18: =IF(SUM(Z74)>0,SUM(Z74),0) -> 0 | EN18: =V74 -> 0 | EO18: =W74 -> 0 | EP18: =X74 -> 0 | ER18: =IF(SUM(V75:X75)>0,SUM(V75:X75),0) -> 0 | ES18: =IF(SUM(Z75)>0,SUM(Z75),0) -> 0 | ET18: =V75 -> 0 | EU18: =W75 -> 0 | EV18: =X75 -> 0 | EX18: =IF(SUM(V76:X76)>0,SUM(V76:X76),0) -> 0 | EY18: =IF(SUM(Z76)>0,SUM(Z76),0) -> 0 | EZ18: =V76 -> 0 | FA18: =W76 -> 0 | FB18: =X76 -> 0 | FD18: =IF(SUM(V77:X77)>0,SUM(V77:X77),0) -> 0 | FE18: =IF(SUM(Z77)>0,SUM(Z77),0) -> 0 | FF18: =V77 -> 0 | FG18: =W77 -> 0 | FH18: =X77 -> 0 | FJ18: =LARGE((FD18,EX18,ER18,EL18,EF18,DZ18,DT18,DN18,DH18,DB18,CV18,CP18,CJ18,CD18,BX18,BR18,BL18,BF18,AZ18,AT18,AN18,AH18),1) -> 0 | FK18: =LARGE((BT18,BZ18,CF18,CL18,CR18,CX18,DD18,DJ18,DP18,DV18,EB18,EH18,EN18,ET18,EZ18,FF18,BN18,BH18,BB18,AV18,AP18,AJ18),1) -> 0 | FL18: =LARGE((BU18,CA18,CG18,CM18,CS18,CY18,DE18,DK18,DQ18,DW18,EC18,EI18,EO18,EU18,FA18,FG18,BO18,BI18,BC18,AW18,AQ18,AK18),1) -> 0 | FM18: =LARGE((BV18,CB18,CH18,CN18,CT18,CZ18,DF18,DL18,DR18,DX18,ED18,EJ18,EP18,EV18,FB18,FH18,BP18,BJ18,BD18,AX18,AR18,AL18),1) -> 0
AA19: =IF(SUM(E19,J19,O19,T19,Y19,E45,J45,O45,T45,Y45,E71,J71,O71,T71,Y71)>0,(LARGE((E19,J19,O19,T19,Y19,E45,J45,O45,T45,Y45,E71,J71,O71,T71,Y71),1)+LARGE((E19,J19,O19,T19,Y19,E45,J45,O45,T45,Y45,E71,J71,O71,T71,Y71),2)+LARGE((E19,J19,O19,T19,Y19,E45,J45,O45,T45,Y45,E71,J71,O71,T71,Y71),3)+LARGE((E19,J19,O19,T19,Y19,E45,J45,O45,T45,Y45,E71,J71,O71,T71,Y71),4)),"") ->  | AB19: =IF(SUM(DU35)>0,SUM(DU35),"") ->  | AH19: =SUM(AH4:AH18) -> 1736 | AI19: =SUM(AI4:AI18) -> 27 | AJ19: =SUM(AJ4:AJ18) -> 568 | AK19: =SUM(AK4:AK18) -> 628 | AL19: =SUM(AL4:AL18) -> 540 | AN19: =SUM(AN4:AN18) -> 1458 | AO19: =SUM(AO4:AO18) -> 23 | AP19: =SUM(AP4:AP18) -> 510 | AQ19: =SUM(AQ4:AQ18) -> 536 | AR19: =SUM(AR4:AR18) -> 412 | AT19: =SUM(AT4:AT18) -> 1190 | AU19: 16 | AV19: 425 | AW19: 426 | AX19: 339 | AZ19: 1131 | BA19: 26 | BB19: 369 | BC19: 413 | BD19: 349 | BF19: 1525 | BG19: 29 | BH19: 510 | BI19: 542 | BJ19: 473 | BL19: 1202 | BM19: 17 | BN19: 425 | BO19: 421 | BP19: 356 | BR19: 1013 | BS19: 19 | BT19: 325 | BU19: 370 | BV19: 318 | BX19: 0 | BY19: 0 | BZ19: 0 | CA19: 0 | CB19: 0 | CD19: 0 | CE19: 0 | CF19: 0 | CG19: 0 | CH19: 0 | CJ19: 1238 | CK19: 26 | CL19: 429 | CM19: 458 | CN19: 351 | CP19: 1165 | CQ19: 15 | CR19: 390 | CS19: 441 | CT19: 334 | CV19: 976 | CW19: 16 | CX19: 330 | CY19: 361 | CZ19: 285 | DB19: 1146 | DC19: 16 | DD19: 399 | DE19: 437 | DF19: 310 | DH19: 1333 | DI19: 16 | DJ19: 466 | DK19: 496 | DL19: 371 | DN19: 0 | DO19: 0 | DP19: 0 | DQ19: 0 | DR19: 0 | DT19: 0 | DU19: 0 | DV19: 0 | DW19: 0 | DX19: 0 | DZ19: =SUM(DZ4:DZ18) -> 0 | EA19: 0 | EB19: 0 | EC19: 0 | ED19: 0 | EF19: 0 | EG19: 0 | EH19: 0 | EI19: 0 | EJ19: 0 | EL19: 0 | EM19: 0 | EN19: 0 | EO19: 0 | EP19: 0 | ER19: 0 | ES19: 0 | ET19: 0 | EU19: 0 | EV19: 0 | EX19: =SUM(EX4:EX18) -> 0 | EY19: =SUM(EY4:EY18) -> 0 | EZ19: =SUM(EZ4:EZ18) -> 0 | FA19: =SUM(FA4:FA18) -> 0 | FB19: =SUM(FB4:FB18) -> 0 | FD19: =SUM(FD4:FD18) -> 0 | FE19: =SUM(FE4:FE18) -> 0 | FF19: =SUM(FF4:FF18) -> 0 | FG19: =SUM(FG4:FG18) -> 0 | FH19: =SUM(FH4:FH18) -> 0
AA20: =IF(SUM(E20,J20,O20,T20,Y20,E46,J46,O46,T46,Y46,E72,J72,O72,T72,Y72)>0,(LARGE((E20,J20,O20,T20,Y20,E46,J46,O46,T46,Y46,E72,J72,O72,T72,Y72),1)+LARGE((E20,J20,O20,T20,Y20,E46,J46,O46,T46,Y46,E72,J72,O72,T72,Y72),2)+LARGE((E20,J20,O20,T20,Y20,E46,J46,O46,T46,Y46,E72,J72,O72,T72,Y72),3)+LARGE((E20,J20,O20,T20,Y20,E46,J46,O46,T46,Y46,E72,J72,O72,T72,Y72),4)),"") ->  | AB20: =IF(SUM(EA35)>0,SUM(EA35),"") ->  | AK20: =TEXT(AH4, "000")&TEXT(AI4, "-00") & TEXT(AL4, "-000") & TEXT(AK4, "-000") & TEXT(AJ4, "-000") -> 270-07-082-094-094 | AL20: =COUNTIF(AK20:AK34, ">=" & AK20) -> 1 | AM20: =RANK(AL20,AL20:AL34,1)+COUNTIF(AK20:AK20,AK20)-1 -> 1 | AQ20: =TEXT(AN4, "000") & TEXT(AO4, "-00") & TEXT(AR4, "-000") & TEXT(AQ4, "-000") & TEXT(AP4, "-000") -> 267-08-080-094-093 | AR20: =COUNTIF(AQ20:AQ34, ">=" & AQ20) -> 1 | AS20: =RANK(AR20,AR20:AR34,1)+COUNTIF(AQ20:AQ20,AQ20)-1 -> 1 | AW20: =TEXT(AT4, "000") & TEXT(AU4, "-00") & TEXT(AX4, "-000") & TEXT(AW4, "-000") & TEXT(AV4, "-000") -> 000-00-000-000-000 | AX20: =COUNTIF(AW20:AW34, ">=" & AW20) -> 15 | AY20: =RANK(AX20,AX20:AX34,1)+COUNTIF(AW20:AW20,AW20)-1 -> 6 | BC20: =TEXT(AZ4, "000") & TEXT(BA4, "-00") & TEXT(BD4, "-000") & TEXT(BC4, "-000") & TEXT(BB4, "-000") -> 280-11-086-097-097 | BD20: =COUNTIF(BC20:BC34, ">=" & BC20) -> 1 | BE20: =RANK(BD20,BD20:BD34,1)+COUNTIF(BC20:BC20,BC20)-1 -> 1 | BI20: =TEXT(BF4, "000") & TEXT(BG4, "-00") & TEXT(BJ4, "-000") & TEXT(BI4, "-000") & TEXT(BH4, "-000") -> 271-07-085-091-095 | BJ20: =COUNTIF(BI20:BI34, ">=" & BI20) -> 2 | BK20: =RANK(BJ20,BJ20:BJ34,1)+COUNTIF(BI20:BI20,BI20)-1 -> 2 | BO20: =TEXT(BL4, "000") & TEXT(BM4, "-00") & TEXT(BP4, "-000") & TEXT(BO4, "-000") & TEXT(BN4, "-000") -> 000-00-000-000-000 | BP20: =COUNTIF(BO20:BO34, ">=" & BO20) -> 15 | BQ20: =RANK(BP20,BP20:BP34,1)+COUNTIF(BO20:BO20,BO20)-1 -> 6 | BU20: =TEXT(BR4, "000") & TEXT(BS4, "-00") & TEXT(BV4, "-000") & TEXT(BU4, "-000") & TEXT(BT4, "-000") -> 000-00-000-000-000 | BV20: =COUNTIF(BU20:BU34, ">=" & BU20) -> 15 | BW20: =RANK(BV20,BV20:BV34,1)+COUNTIF(BU20:BU20,BU20)-1 -> 5 | CA20: =TEXT(BX4, "000") & TEXT(BY4, "-00") & TEXT(CB4, "-000") & TEXT(CA4, "-000") & TEXT(BZ4, "-000") -> 000-00-000-000-000 | CB20: =COUNTIF(CA20:CA34, ">=" & CA20) -> 15 | CC20: =RANK(CB20,CB20:CB34,1)+COUNTIF(CA20:CA20,CA20)-1 -> 1 | CG20: =TEXT(CD4, "000") & TEXT(CE4, "-00") & TEXT(CH4, "-000") & TEXT(CG4, "-000") & TEXT(CF4, "-000") -> 000-00-000-000-000 | CH20: =COUNTIF(CG20:CG34, ">=" & CG20) -> 15 | CI20: =RANK(CH20,CH20:CH34,1)+COUNTIF(CG20:CG20,CG20)-1 -> 1 | CM20: =TEXT(CJ4, "000") & TEXT(CK4, "-00") & TEXT(CN4, "-000") & TEXT(CM4, "-000") & TEXT(CL4, "-000") -> 000-00-000-000-000 | CN20: =COUNTIF(CM20:CM34, ">=" & CM20) -> 15 | CO20: =RANK(CN20,CN20:CN34,1)+COUNTIF(CM20:CM20,CM20)-1 -> 6 | CS20: =TEXT(CP4, "000") & TEXT(CQ4, "-00") & TEXT(CT4, "-000") & TEXT(CS4, "-000") & TEXT(CR4, "-000") -> 000-00-000-000-000 | CT20: =COUNTIF(CS20:CS34, ">=" & CS20) -> 15 | CU20: =RANK(CT20,CT20:CT34,1)+COUNTIF(CS20:CS20,CS20)-1 -> 6 | CY20: =TEXT(CV4, "000") & TEXT(CW4, "-00") & TEXT(CZ4, "-000") & TEXT(CY4, "-000") & TEXT(CX4, "-000") -> 000-00-000-000-000 | CZ20: =COUNTIF(CY20:CY34, ">=" & CY20) -> 15 | DA20: =RANK(CZ20,CZ20:CZ34,1)+COUNTIF(CY20:CY20,CY20)-1 -> 5 | DE20: =TEXT(DB4, "000") & TEXT(DC4, "-00") & TEXT(DF4, "-000") & TEXT(DE4, "-000") & TEXT(DD4, "-000") -> 000-00-000-000-000 | DF20: =COUNTIF(DE20:DE34, ">=" & DE20) -> 15 | DG20: =RANK(DF20,DF20:DF34,1)+COUNTIF(DE20:DE20,DE20)-1 -> 6 | DK20: =TEXT(DH4, "000") & TEXT(DI4, "-00") & TEXT(DL4, "-000") & TEXT(DK4, "-000") & TEXT(DJ4, "-000") -> 000-00-000-000-000 | DL20: =COUNTIF(DK20:DK34, ">=" & DK20) -> 15 | DM20: =RANK(DL20,DL20:DL34,1)+COUNTIF(DK20:DK20,DK20)-1 -> 7 | DQ20: =TEXT(DN4, "000") & TEXT(DO4, "-00") & TEXT(DR4, "-000") & TEXT(DQ4, "-000") & TEXT(DP4, "-000") -> 000-00-000-000-000 | DR20: =COUNTIF(DQ20:DQ34, ">=" & DQ20) -> 15 | DS20: =RANK(DR20,DR20:DR34,1)+COUNTIF(DQ20:DQ20,DQ20)-1 -> 1 | DW20: =TEXT(DT4, "000") & TEXT(DU4, "-00") & TEXT(DX4, "-000") & TEXT(DW4, "-000") & TEXT(DV4, "-000") -> 000-00-000-000-000 | DX20: =COUNTIF(DW20:DW34, ">=" & DW20) -> 15 | DY20: =RANK(DX20,DX20:DX34,1)+COUNTIF(DW20:DW20,DW20)-1 -> 1 | EC20: =TEXT(DZ4, "000") & TEXT(EA4, "-00") & TEXT(ED4, "-000") & TEXT(EC4, "-000") & TEXT(EB4, "-000") -> 000-00-000-000-000 | ED20: =COUNTIF(EC20:EC34, ">=" & EC20) -> 15 | EE20: =RANK(ED20,ED20:ED34,1)+COUNTIF(EC20:EC20,EC20)-1 -> 1 | EI20: =TEXT(EF4, "000") & TEXT(EG4, "-00") & TEXT(EJ4, "-000") & TEXT(EI4, "-000") & TEXT(EH4, "-000") -> 000-00-000-000-000 | EJ20: =COUNTIF(EI20:EI34, ">=" & EI20) -> 15 | EK20: =RANK(EJ20,EJ20:EJ34,1)+COUNTIF(EI20:EI20,EI20)-1 -> 1 | EO20: =TEXT(EL4, "000") & TEXT(EM4, "-00") & TEXT(EP4, "-000") & TEXT(EO4, "-000") & TEXT(EN4, "-000") -> 000-00-000-000-000 | EP20: =COUNTIF(EO20:EO34, ">=" & EO20) -> 15 | EQ20: =RANK(EP20,EP20:EP34,1)+COUNTIF(EO20:EO20,EO20)-1 -> 1 | EU20: =TEXT(ER4, "000") & TEXT(ES4, "-00") & TEXT(EV4, "-000") & TEXT(EU4, "-000") & TEXT(ET4, "-000") -> 000-00-000-000-000 | EV20: =COUNTIF(EU20:EU34, ">=" & EU20) -> 15 | EW20: =RANK(EV20,EV20:EV34,1)+COUNTIF(EU20:EU20,EU20)-1 -> 1 | FA20: =TEXT(EX4, "000") & TEXT(EY4, "-00") & TEXT(FB4, "-000") & TEXT(FA4, "-000") & TEXT(EZ4, "-000") -> 000-00-000-000-000 | FB20: =COUNTIF(FA20:FA34, ">=" & FA20) -> 15 | FC20: =RANK(FB20,FB20:FB34,1)+COUNTIF(FA20:FA20,FA20)-1 -> 1 | FG20: =TEXT(FD4, "000") & TEXT(FE4, "-00") & TEXT(FH4, "-000") & TEXT(FG4, "-000") & TEXT(FF4, "-000") -> 000-00-000-000-000 | FH20: =COUNTIF(FG20:FG34, ">=" & FG20) -> 15 | FI20: =RANK(FH20,FH20:FH34,1)+COUNTIF(FG20:FG20,FG20)-1 -> 1
AA21: =IF(SUM(E21,J21,O21,T21,Y21,E47,J47,O47,T47,Y47,E73,J73,O73,T73,Y73)>0,(LARGE((E21,J21,O21,T21,Y21,E47,J47,O47,T47,Y47,E73,J73,O73,T73,Y73),1)+LARGE((E21,J21,O21,T21,Y21,E47,J47,O47,T47,Y47,E73,J73,O73,T73,Y73),2)+LARGE((E21,J21,O21,T21,Y21,E47,J47,O47,T47,Y47,E73,J73,O73,T73,Y73),3)+LARGE((E21,J21,O21,T21,Y21,E47,J47,O47,T47,Y47,E73,J73,O73,T73,Y73),4)),"") ->  | AB21: =IF(SUM(EG35)>0,SUM(EG35),"") ->  | AK21: =TEXT(AH5, "000")&TEXT(AI5, "-00") & TEXT(AL5, "-000") & TEXT(AK5, "-000") & TEXT(AJ5, "-000") -> 263-06-081-092-090 | AL21: =COUNTIF(AK20:AK34, ">=" & AK21) -> 2 | AM21: =RANK(AL21,AL20:AL34,1)+COUNTIF(AK20:AK21,AK21)-1 -> 2 | AQ21: =TEXT(AN5, "000") & TEXT(AO5, "-00") & TEXT(AR5, "-000") & TEXT(AQ5, "-000") & TEXT(AP5, "-000") -> 264-05-081-090-093 | AR21: =COUNTIF(AQ20:AQ34, ">=" & AQ21) -> 2 | AS21: =RANK(AR21,AR20:AR34,1)+COUNTIF(AQ20:AQ21,AQ21)-1 -> 2 | AW21: =TEXT(AT5, "000") & TEXT(AU5, "-00") & TEXT(AX5, "-000") & TEXT(AW5, "-000") & TEXT(AV5, "-000") -> 248-03-072-087-089 | AX21: =COUNTIF(AW20:AW34, ">=" & AW21) -> 2 | AY21: =RANK(AX21,AX20:AX34,1)+COUNTIF(AW20:AW21,AW21)-1 -> 2 | BC21: =TEXT(AZ5, "000") & TEXT(BA5, "-00") & TEXT(BD5, "-000") & TEXT(BC5, "-000") & TEXT(BB5, "-000") -> 263-04-078-095-090 | BD21: =COUNTIF(BC20:BC34, ">=" & BC21) -> 2 | BE21: =RANK(BD21,BD20:BD34,1)+COUNTIF(BC20:BC21,BC21)-1 -> 2 | BI21: =TEXT(BF5, "000") & TEXT(BG5, "-00") & TEXT(BJ5, "-000") & TEXT(BI5, "-000") & TEXT(BH5, "-000") -> 261-03-079-094-088 | BJ21: =COUNTIF(BI20:BI34, ">=" & BI21) -> 3 | BK21: =RANK(BJ21,BJ20:BJ34,1)+COUNTIF(BI20:BI21,BI21)-1 -> 3 | BO21: =TEXT(BL5, "000") & TEXT(BM5, "-00") & TEXT(BP5, "-000") & TEXT(BO5, "-000") & TEXT(BN5, "-000") -> 269-07-083-093-093 | BP21: =COUNTIF(BO20:BO34, ">=" & BO21) -> 1 | BQ21: =RANK(BP21,BP20:BP34,1)+COUNTIF(BO20:BO21,BO21)-1 -> 1 | BU21: =TEXT(BR5, "000") & TEXT(BS5, "-00") & TEXT(BV5, "-000") & TEXT(BU5, "-000") & TEXT(BT5, "-000") -> 263-08-078-095-090 | BV21: =COUNTIF(BU20:BU34, ">=" & BU21) -> 2 | BW21: =RANK(BV21,BV20:BV34,1)+COUNTIF(BU20:BU21,BU21)-1 -> 2 | CA21: =TEXT(BX5, "000") & TEXT(BY5, "-00") & TEXT(CB5, "-000") & TEXT(CA5, "-000") & TEXT(BZ5, "-000") -> 000-00-000-000-000 | CB21: =COUNTIF(CA20:CA34, ">=" & CA21) -> 15 | CC21: =RANK(CB21,CB20:CB34,1)+COUNTIF(CA20:CA21,CA21)-1 -> 2 | CG21: =TEXT(CD5, "000") & TEXT(CE5, "-00") & TEXT(CH5, "-000") & TEXT(CG5, "-000") & TEXT(CF5, "-000") -> 000-00-000-000-000 | CH21: =COUNTIF(CG20:CG34, ">=" & CG21) -> 15 | CI21: =RANK(CH21,CH20:CH34,1)+COUNTIF(CG20:CG21,CG21)-1 -> 2 | CM21: =TEXT(CJ5, "000") & TEXT(CK5, "-00") & TEXT(CN5, "-000") & TEXT(CM5, "-000") & TEXT(CL5, "-000") -> 257-07-074-092-091 | CN21: =COUNTIF(CM20:CM34, ">=" & CM21) -> 2 | CO21: =RANK(CN21,CN20:CN34,1)+COUNTIF(CM20:CM21,CM21)-1 -> 2 | CS21: =TEXT(CP5, "000") & TEXT(CQ5, "-00") & TEXT(CT5, "-000") & TEXT(CS5, "-000") & TEXT(CR5, "-000") -> 253-03-070-096-087 | CT21: =COUNTIF(CS20:CS34, ">=" & CS21) -> 1 | CU21: =RANK(CT21,CT20:CT34,1)+COUNTIF(CS20:CS21,CS21)-1 -> 1 | CY21: =TEXT(CV5, "000") & TEXT(CW5, "-00") & TEXT(CZ5, "-000") & TEXT(CY5, "-000") & TEXT(CX5, "-000") -> 252-04-072-090-090 | CZ21: =COUNTIF(CY20:CY34, ">=" & CY21) -> 2 | DA21: =RANK(CZ21,CZ20:CZ34,1)+COUNTIF(CY20:CY21,CY21)-1 -> 2 | DE21: =TEXT(DB5, "000") & TEXT(DC5, "-00") & TEXT(DF5, "-000") & TEXT(DE5, "-000") & TEXT(DD5, "-000") -> 253-04-074-090-089 | DF21: =COUNTIF(DE20:DE34, ">=" & DE21) -> 2 | DG21: =RANK(DF21,DF20:DF34,1)+COUNTIF(DE20:DE21,DE21)-1 -> 2 | DK21: =TEXT(DH5, "000") & TEXT(DI5, "-00") & TEXT(DL5, "-000") & TEXT(DK5, "-000") & TEXT(DJ5, "-000") -> 262-06-081-093-088 | DL21: =COUNTIF(DK20:DK34, ">=" & DK21) -> 1 | DM21: =RANK(DL21,DL20:DL34,1)+COUNTIF(DK20:DK21,DK21)-1 -> 1 | DQ21: =TEXT(DN5, "000") & TEXT(DO5, "-00") & TEXT(DR5, "-000") & TEXT(DQ5, "-000") & TEXT(DP5, "-000") -> 000-00-000-000-000 | DR21: =COUNTIF(DQ20:DQ34, ">=" & DQ21) -> 15 | DS21: =RANK(DR21,DR20:DR34,1)+COUNTIF(DQ20:DQ21,DQ21)-1 -> 2 | DW21: =TEXT(DT5, "000") & TEXT(DU5, "-00") & TEXT(DX5, "-000") & TEXT(DW5, "-000") & TEXT(DV5, "-000") -> 000-00-000-000-000 | DX21: =COUNTIF(DW20:DW34, ">=" & DW21) -> 15 | DY21: =RANK(DX21,DX20:DX34,1)+COUNTIF(DW20:DW21,DW21)-1 -> 2 | EC21: =TEXT(DZ5, "000") & TEXT(EA5, "-00") & TEXT(ED5, "-000") & TEXT(EC5, "-000") & TEXT(EB5, "-000") -> 000-00-000-000-000 | ED21: =COUNTIF(EC20:EC34, ">=" & EC21) -> 15 | EE21: =RANK(ED21,ED20:ED34,1)+COUNTIF(EC20:EC21,EC21)-1 -> 2 | EI21: =TEXT(EF5, "000") & TEXT(EG5, "-00") & TEXT(EJ5, "-000") & TEXT(EI5, "-000") & TEXT(EH5, "-000") -> 000-00-000-000-000 | EJ21: =COUNTIF(EI20:EI34, ">=" & EI21) -> 15 | EK21: =RANK(EJ21,EJ20:EJ34,1)+COUNTIF(EI20:EI21,EI21)-1 -> 2 | EO21: =TEXT(EL5, "000") & TEXT(EM5, "-00") & TEXT(EP5, "-000") & TEXT(EO5, "-000") & TEXT(EN5, "-000") -> 000-00-000-000-000 | EP21: =COUNTIF(EO20:EO34, ">=" & EO21) -> 15 | EQ21: =RANK(EP21,EP20:EP34,1)+COUNTIF(EO20:EO21,EO21)-1 -> 2 | EU21: =TEXT(ER5, "000") & TEXT(ES5, "-00") & TEXT(EV5, "-000") & TEXT(EU5, "-000") & TEXT(ET5, "-000") -> 000-00-000-000-000 | EV21: =COUNTIF(EU20:EU34, ">=" & EU21) -> 15 | EW21: =RANK(EV21,EV20:EV34,1)+COUNTIF(EU20:EU21,EU21)-1 -> 2 | FA21: =TEXT(EX5, "000") & TEXT(EY5, "-00") & TEXT(FB5, "-000") & TEXT(FA5, "-000") & TEXT(EZ5, "-000") -> 000-00-000-000-000 | FB21: =COUNTIF(FA20:FA34, ">=" & FA21) -> 15 | FC21: =RANK(FB21,FB20:FB34,1)+COUNTIF(FA20:FA21,FA21)-1 -> 2 | FG21: =TEXT(FD5, "000") & TEXT(FE5, "-00") & TEXT(FH5, "-000") & TEXT(FG5, "-000") & TEXT(FF5, "-000") -> 000-00-000-000-000 | FH21: =COUNTIF(FG20:FG34, ">=" & FG21) -> 15 | FI21: =RANK(FH21,FH20:FH34,1)+COUNTIF(FG20:FG21,FG21)-1 -> 2
AA22: =IF(SUM(E22,J22,O22,T22,Y22,E48,J48,O48,T48,Y48,E74,J74,O74,T74,Y74)>0,(LARGE((E22,J22,O22,T22,Y22,E48,J48,O48,T48,Y48,E74,J74,O74,T74,Y74),1)+LARGE((E22,J22,O22,T22,Y22,E48,J48,O48,T48,Y48,E74,J74,O74,T74,Y74),2)+LARGE((E22,J22,O22,T22,Y22,E48,J48,O48,T48,Y48,E74,J74,O74,T74,Y74),3)+LARGE((E22,J22,O22,T22,Y22,E48,J48,O48,T48,Y48,E74,J74,O74,T74,Y74),4)),"") ->  | AB22: =IF(SUM(EM35)>0,SUM(EM35),"") ->  | AK22: 227-03-072-090-065 | AL22: =COUNTIF(AK20:AK34, ">=" & AK22) -> 6 | AM22: =RANK(AL22,AL20:AL34,1)+COUNTIF(AK20:AK22,AK22)-1 -> 6 | AQ22: 241-05-070-086-085 | AR22: =COUNTIF(AQ20:AQ34, ">=" & AQ22) -> 4 | AS22: =RANK(AR22,AR20:AR34,1)+COUNTIF(AQ20:AQ22,AQ22)-1 -> 4 | AW22: 242-03-065-093-084 | AX22: =COUNTIF(AW20:AW34, ">=" & AW22) -> 3 | AY22: =RANK(AX22,AX20:AX34,1)+COUNTIF(AW20:AW22,AW22)-1 -> 3 | BC22: 181-01-071-039-071 | BD22: =COUNTIF(BC20:BC34, ">=" & BC22) -> 4 | BE22: =RANK(BD22,BD20:BD34,1)+COUNTIF(BC20:BC22,BC22)-1 -> 4 | BI22: 238-02-077-086-075 | BJ22: =COUNTIF(BI20:BI34, ">=" & BI22) -> 6 | BK22: =RANK(BJ22,BJ20:BJ34,1)+COUNTIF(BI20:BI22,BI22)-1 -> 6 | BO22: 222-01-066-083-073 | BP22: =COUNTIF(BO20:BO34, ">=" & BO22) -> 4 | BQ22: =RANK(BP22,BP20:BP34,1)+COUNTIF(BO20:BO22,BO22)-1 -> 4 | BU22: 231-02-078-088-065 | BV22: =COUNTIF(BU20:BU34, ">=" & BU22) -> 4 | BW22: =RANK(BV22,BV20:BV34,1)+COUNTIF(BU20:BU22,BU22)-1 -> 4 | CA22: 000-00-000-000-000 | CB22: =COUNTIF(CA20:CA34, ">=" & CA22) -> 15 | CC22: =RANK(CB22,CB20:CB34,1)+COUNTIF(CA20:CA22,CA22)-1 -> 3 | CG22: 000-00-000-000-000 | CH22: =COUNTIF(CG20:CG34, ">=" & CG22) -> 15 | CI22: =RANK(CH22,CH20:CH34,1)+COUNTIF(CG20:CG22,CG22)-1 -> 3 | CM22: 257-08-081-096-080 | CN22: =COUNTIF(CM20:CM34, ">=" & CM22) -> 1 | CO22: =RANK(CN22,CN20:CN34,1)+COUNTIF(CM20:CM22,CM22)-1 -> 1 | CS22: 240-03-075-091-074 | CT22: =COUNTIF(CS20:CS34, ">=" & CS22) -> 3 | CU22: =RANK(CT22,CT20:CT34,1)+COUNTIF(CS20:CS22,CS22)-1 -> 3 | CY22: 257-05-078-091-088 | CZ22: =COUNTIF(CY20:CY34, ">=" & CY22) -> 1 | DA22: =RANK(CZ22,CZ20:CZ34,1)+COUNTIF(CY20:CY22,CY22)-1 -> 1 | DE22: 249-04-074-093-082 | DF22: =COUNTIF(DE20:DE34, ">=" & DE22) -> 3 | DG22: =RANK(DF22,DF20:DF34,1)+COUNTIF(DE20:DE22,DE22)-1 -> 3 | DK22: 000-00-000-000-000 | DL22: =COUNTIF(DK20:DK34, ">=" & DK22) -> 15 | DM22: =RANK(DL22,DL20:DL34,1)+COUNTIF(DK20:DK22,DK22)-1 -> 8 | DQ22: 000-00-000-000-000 | DR22: =COUNTIF(DQ20:DQ34, ">=" & DQ22) -> 15 | DS22: =RANK(DR22,DR20:DR34,1)+COUNTIF(DQ20:DQ22,DQ22)-1 -> 3 | DW22: 000-00-000-000-000 | DX22: =COUNTIF(DW20:DW34, ">=" & DW22) -> 15 | DY22: =RANK(DX22,DX20:DX34,1)+COUNTIF(DW20:DW22,DW22)-1 -> 3 | EC22: 000-00-000-000-000 | ED22: =COUNTIF(EC20:EC34, ">=" & EC22) -> 15 | EE22: =RANK(ED22,ED20:ED34,1)+COUNTIF(EC20:EC22,EC22)-1 -> 3 | EI22: 000-00-000-000-000 | EJ22: =COUNTIF(EI20:EI34, ">=" & EI22) -> 15 | EK22: =RANK(EJ22,EJ20:EJ34,1)+COUNTIF(EI20:EI22,EI22)-1 -> 3 | EO22: 000-00-000-000-000 | EP22: =COUNTIF(EO20:EO34, ">=" & EO22) -> 15 | EQ22: =RANK(EP22,EP20:EP34,1)+COUNTIF(EO20:EO22,EO22)-1 -> 3 | EU22: 000-00-000-000-000 | EV22: =COUNTIF(EU20:EU34, ">=" & EU22) -> 15 | EW22: =RANK(EV22,EV20:EV34,1)+COUNTIF(EU20:EU22,EU22)-1 -> 3 | FA22: 000-00-000-000-000 | FB22: =COUNTIF(FA20:FA34, ">=" & FA22) -> 15 | FC22: =RANK(FB22,FB20:FB34,1)+COUNTIF(FA20:FA22,FA22)-1 -> 3 | FG22: 000-00-000-000-000 | FH22: =COUNTIF(FG20:FG34, ">=" & FG22) -> 15 | FI22: =RANK(FH22,FH20:FH34,1)+COUNTIF(FG20:FG22,FG22)-1 -> 3
AA23: =IF(SUM(E23,J23,O23,T23,Y23,E49,J49,O49,T49,Y49,E75,J75,O75,T75,Y75)>0,(LARGE((E23,J23,O23,T23,Y23,E49,J49,O49,T49,Y49,E75,J75,O75,T75,Y75),1)+LARGE((E23,J23,O23,T23,Y23,E49,J49,O49,T49,Y49,E75,J75,O75,T75,Y75),2)+LARGE((E23,J23,O23,T23,Y23,E49,J49,O49,T49,Y49,E75,J75,O75,T75,Y75),3)+LARGE((E23,J23,O23,T23,Y23,E49,J49,O49,T49,Y49,E75,J75,O75,T75,Y75),4)),"") ->  | AB23: =IF(SUM(ES35)>0,SUM(ES35),"") ->  | AK23: 249-04-075-088-086 | AL23: =COUNTIF(AK20:AK34, ">=" & AK23) -> 4 | AM23: =RANK(AL23,AL20:AL34,1)+COUNTIF(AK20:AK23,AK23)-1 -> 4 | AQ23: 248-03-074-091-083 | AR23: =COUNTIF(AQ20:AQ34, ">=" & AQ23) -> 3 | AS23: =RANK(AR23,AR20:AR34,1)+COUNTIF(AQ20:AQ23,AQ23)-1 -> 3 | AW23: 231-02-071-081-079 | AX23: =COUNTIF(AW20:AW34, ">=" & AW23) -> 4 | AY23: =RANK(AX23,AX20:AX34,1)+COUNTIF(AW20:AW23,AW23)-1 -> 4 | BC23: 145-05-032-094-019 | BD23: =COUNTIF(BC20:BC34, ">=" & BC23) -> 5 | BE23: =RANK(BD23,BD20:BD34,1)+COUNTIF(BC20:BC23,BC23)-1 -> 5 | BI23: 243-08-072-090-081 | BJ23: =COUNTIF(BI20:BI34, ">=" & BI23) -> 4 | BK23: =RANK(BJ23,BJ20:BJ34,1)+COUNTIF(BI20:BI23,BI23)-1 -> 4 | BO23: 000-00-000-000-000 | BP23: =COUNTIF(BO20:BO34, ">=" & BO23) -> 15 | BQ23: =RANK(BP23,BP20:BP34,1)+COUNTIF(BO20:BO23,BO23)-1 -> 7 | BU23: 245-01-074-091-080 | BV23: =COUNTIF(BU20:BU34, ">=" & BU23) -> 3 | BW23: =RANK(BV23,BV20:BV34,1)+COUNTIF(BU20:BU23,BU23)-1 -> 3 | CA23: 000-00-000-000-000 | CB23: =COUNTIF(CA20:CA34, ">=" & CA23) -> 15 | CC23: =RANK(CB23,CB20:CB34,1)+COUNTIF(CA20:CA23,CA23)-1 -> 4 | CG23: 000-00-000-000-000 | CH23: =COUNTIF(CG20:CG34, ">=" & CG23) -> 15 | CI23: =RANK(CH23,CH20:CH34,1)+COUNTIF(CG20:CG23,CG23)-1 -> 4 | CM23: 227-02-061-091-075 | CN23: =COUNTIF(CM20:CM34, ">=" & CM23) -> 5 | CO23: =RANK(CN23,CN20:CN34,1)+COUNTIF(CM20:CM23,CM23)-1 -> 5 | CS23: 245-05-079-089-077 | CT23: =COUNTIF(CS20:CS34, ">=" & CS23) -> 2 | CU23: =RANK(CT23,CT20:CT34,1)+COUNTIF(CS20:CS23,CS23)-1 -> 2 | CY23: 229-04-068-092-069 | CZ23: =COUNTIF(CY20:CY34, ">=" & CY23) -> 4 | DA23: =RANK(CZ23,CZ20:CZ34,1)+COUNTIF(CY20:CY23,CY23)-1 -> 4 | DE23: 000-00-000-000-000 | DF23: =COUNTIF(DE20:DE34, ">=" & DE23) -> 15 | DG23: =RANK(DF23,DF20:DF34,1)+COUNTIF(DE20:DE23,DE23)-1 -> 7 | DK23: 254-03-079-091-084 | DL23: =COUNTIF(DK20:DK34, ">=" & DK23) -> 3 | DM23: =RANK(DL23,DL20:DL34,1)+COUNTIF(DK20:DK23,DK23)-1 -> 3 | DQ23: 000-00-000-000-000 | DR23: =COUNTIF(DQ20:DQ34, ">=" & DQ23) -> 15 | DS23: =RANK(DR23,DR20:DR34,1)+COUNTIF(DQ20:DQ23,DQ23)-1 -> 4 | DW23: 000-00-000-000-000 | DX23: =COUNTIF(DW20:DW34, ">=" & DW23) -> 15 | DY23: =RANK(DX23,DX20:DX34,1)+COUNTIF(DW20:DW23,DW23)-1 -> 4 | EC23: 000-00-000-000-000 | ED23: =COUNTIF(EC20:EC34, ">=" & EC23) -> 15 | EE23: =RANK(ED23,ED20:ED34,1)+COUNTIF(EC20:EC23,EC23)-1 -> 4 | EI23: 000-00-000-000-000 | EJ23: =COUNTIF(EI20:EI34, ">=" & EI23) -> 15 | EK23: =RANK(EJ23,EJ20:EJ34,1)+COUNTIF(EI20:EI23,EI23)-1 -> 4 | EO23: 000-00-000-000-000 | EP23: =COUNTIF(EO20:EO34, ">=" & EO23) -> 15 | EQ23: =RANK(EP23,EP20:EP34,1)+COUNTIF(EO20:EO23,EO23)-1 -> 4 | EU23: 000-00-000-000-000 | EV23: =COUNTIF(EU20:EU34, ">=" & EU23) -> 15 | EW23: =RANK(EV23,EV20:EV34,1)+COUNTIF(EU20:EU23,EU23)-1 -> 4 | FA23: 000-00-000-000-000 | FB23: =COUNTIF(FA20:FA34, ">=" & FA23) -> 15 | FC23: =RANK(FB23,FB20:FB34,1)+COUNTIF(FA20:FA23,FA23)-1 -> 4 | FG23: 000-00-000-000-000 | FH23: =COUNTIF(FG20:FG34, ">=" & FG23) -> 15 | FI23: =RANK(FH23,FH20:FH34,1)+COUNTIF(FG20:FG23,FG23)-1 -> 4
A24: Area Sectional/Playoff | AA24: =IF(SUM(E24,J24,O24,T24,Y24,E50,J50,O50,T50,Y50,E76,J76,O76,T76,Y76)>0,(LARGE((E24,J24,O24,T24,Y24,E50,J50,O50,T50,Y50,E76,J76,O76,T76,Y76),1)+LARGE((E24,J24,O24,T24,Y24,E50,J50,O50,T50,Y50,E76,J76,O76,T76,Y76),2)+LARGE((E24,J24,O24,T24,Y24,E50,J50,O50,T50,Y50,E76,J76,O76,T76,Y76),3)+LARGE((E24,J24,O24,T24,Y24,E50,J50,O50,T50,Y50,E76,J76,O76,T76,Y76),4)),"") ->  | AB24: =IF(SUM(EY35)>0,SUM(EY35),"") ->  | AK24: 258-02-084-089-085 | AL24: =COUNTIF(AK20:AK34, ">=" & AK24) -> 3 | AM24: =RANK(AL24,AL20:AL34,1)+COUNTIF(AK20:AK24,AK24)-1 -> 3 | AQ24: 000-00-000-000-000 | AR24: =COUNTIF(AQ20:AQ34, ">=" & AQ24) -> 15 | AS24: =RANK(AR24,AR20:AR34,1)+COUNTIF(AQ20:AQ24,AQ24)-1 -> 7 | AW24: 257-07-071-096-090 | AX24: =COUNTIF(AW20:AW34, ">=" & AW24) -> 1 | AY24: =RANK(AX24,AX20:AX34,1)+COUNTIF(AW20:AW24,AW24)-1 -> 1 | BC24: 262-05-082-088-092 | BD24: =COUNTIF(BC20:BC34, ">=" & BC24) -> 3 | BE24: =RANK(BD24,BD20:BD34,1)+COUNTIF(BC20:BC24,BC24)-1 -> 3 | BI24: 271-09-083-096-092 | BJ24: =COUNTIF(BI20:BI34, ">=" & BI24) -> 1 | BK24: =RANK(BJ24,BJ20:BJ34,1)+COUNTIF(BI20:BI24,BI24)-1 -> 1 | BO24: 267-06-083-093-091 | BP24: =COUNTIF(BO20:BO34, ">=" & BO24) -> 2 | BQ24: =RANK(BP24,BP20:BP34,1)+COUNTIF(BO20:BO24,BO24)-1 -> 2 | BU24: 274-08-088-096-090 | BV24: =COUNTIF(BU20:BU34, ">=" & BU24) -> 1 | BW24: =RANK(BV24,BV20:BV34,1)+COUNTIF(BU20:BU24,BU24)-1 -> 1 | CA24: 000-00-000-000-000 | CB24: =COUNTIF(CA20:CA34, ">=" & CA24) -> 15 | CC24: =RANK(CB24,CB20:CB34,1)+COUNTIF(CA20:CA24,CA24)-1 -> 5 | CG24: 000-00-000-000-000 | CH24: =COUNTIF(CG20:CG34, ">=" & CG24) -> 15 | CI24: =RANK(CH24,CH20:CH34,1)+COUNTIF(CG20:CG24,CG24)-1 -> 5 | CM24: 000-00-000-000-000 | CN24: =COUNTIF(CM20:CM34, ">=" & CM24) -> 15 | CO24: =RANK(CN24,CN20:CN34,1)+COUNTIF(CM20:CM24,CM24)-1 -> 7 | CS24: 000-00-000-000-000 | CT24: =COUNTIF(CS20:CS34, ">=" & CS24) -> 15 | CU24: =RANK(CT24,CT20:CT34,1)+COUNTIF(CS20:CS24,CS24)-1 -> 7 | CY24: 000-00-000-000-000 | CZ24: =COUNTIF(CY20:CY34, ">=" & CY24) -> 15 | DA24: =RANK(CZ24,CZ20:CZ34,1)+COUNTIF(CY20:CY24,CY24)-1 -> 6 | DE24: 000-00-000-000-000 | DF24: =COUNTIF(DE20:DE34, ">=" & DE24) -> 15 | DG24: =RANK(DF24,DF20:DF34,1)+COUNTIF(DE20:DE24,DE24)-1 -> 8 | DK24: 000-00-000-000-000 | DL24: =COUNTIF(DK20:DK34, ">=" & DK24) -> 15 | DM24: =RANK(DL24,DL20:DL34,1)+COUNTIF(DK20:DK24,DK24)-1 -> 9 | DQ24: 000-00-000-000-000 | DR24: =COUNTIF(DQ20:DQ34, ">=" & DQ24) -> 15 | DS24: =RANK(DR24,DR20:DR34,1)+COUNTIF(DQ20:DQ24,DQ24)-1 -> 5 | DW24: 000-00-000-000-000 | DX24: =COUNTIF(DW20:DW34, ">=" & DW24) -> 15 | DY24: =RANK(DX24,DX20:DX34,1)+COUNTIF(DW20:DW24,DW24)-1 -> 5 | EC24: 000-00-000-000-000 | ED24: =COUNTIF(EC20:EC34, ">=" & EC24) -> 15 | EE24: =RANK(ED24,ED20:ED34,1)+COUNTIF(EC20:EC24,EC24)-1 -> 5 | EI24: 000-00-000-000-000 | EJ24: =COUNTIF(EI20:EI34, ">=" & EI24) -> 15 | EK24: =RANK(EJ24,EJ20:EJ34,1)+COUNTIF(EI20:EI24,EI24)-1 -> 5 | EO24: 000-00-000-000-000 | EP24: =COUNTIF(EO20:EO34, ">=" & EO24) -> 15 | EQ24: =RANK(EP24,EP20:EP34,1)+COUNTIF(EO20:EO24,EO24)-1 -> 5 | EU24: 000-00-000-000-000 | EV24: =COUNTIF(EU20:EU34, ">=" & EU24) -> 15 | EW24: =RANK(EV24,EV20:EV34,1)+COUNTIF(EU20:EU24,EU24)-1 -> 5 | FA24: 000-00-000-000-000 | FB24: =COUNTIF(FA20:FA34, ">=" & FA24) -> 15 | FC24: =RANK(FB24,FB20:FB34,1)+COUNTIF(FA20:FA24,FA24)-1 -> 5 | FG24: 000-00-000-000-000 | FH24: =COUNTIF(FG20:FG34, ">=" & FG24) -> 15 | FI24: =RANK(FH24,FH20:FH34,1)+COUNTIF(FG20:FG24,FG24)-1 -> 5
A25: Area Championship | AA25: =IF(SUM(E25,J25,O25,T25,Y25,E51,J51,O51,T51,Y51,E77,J77,O77,T77,Y77)>0,(LARGE((E25,J25,O25,T25,Y25,E51,J51,O51,T51,Y51,E77,J77,O77,T77,Y77),1)+LARGE((E25,J25,O25,T25,Y25,E51,J51,O51,T51,Y51,E77,J77,O77,T77,Y77),2)+LARGE((E25,J25,O25,T25,Y25,E51,J51,O51,T51,Y51,E77,J77,O77,T77,Y77),3)+LARGE((E25,J25,O25,T25,Y25,E51,J51,O51,T51,Y51,E77,J77,O77,T77,Y77),4)),"") ->  | AB25: =IF(SUM(FE35)>0,SUM(FE35),"") ->  | AK25: 242-03-071-090-081 | AL25: =COUNTIF(AK20:AK34, ">=" & AK25) -> 5 | AM25: =RANK(AL25,AL20:AL34,1)+COUNTIF(AK20:AK25,AK25)-1 -> 5 | AQ25: 234-02-063-091-080 | AR25: =COUNTIF(AQ20:AQ34, ">=" & AQ25) -> 5 | AS25: =RANK(AR25,AR20:AR34,1)+COUNTIF(AQ20:AQ25,AQ25)-1 -> 5 | AW25: 212-01-060-069-083 | AX25: =COUNTIF(AW20:AW34, ">=" & AW25) -> 5 | AY25: =RANK(AX25,AX20:AX34,1)+COUNTIF(AW20:AW25,AW25)-1 -> 5 | BC25: 000-00-000-000-000 | BD25: =COUNTIF(BC20:BC34, ">=" & BC25) -> 15 | BE25: =RANK(BD25,BD20:BD34,1)+COUNTIF(BC20:BC25,BC25)-1 -> 6 | BI25: 241-00-077-085-079 | BJ25: =COUNTIF(BI20:BI34, ">=" & BI25) -> 5 | BK25: =RANK(BJ25,BJ20:BJ34,1)+COUNTIF(BI20:BI25,BI25)-1 -> 5 | BO25: 236-03-077-074-085 | BP25: =COUNTIF(BO20:BO34, ">=" & BO25) -> 3 | BQ25: =RANK(BP25,BP20:BP34,1)+COUNTIF(BO20:BO25,BO25)-1 -> 3 | BU25: 000-00-000-000-000 | BV25: =COUNTIF(BU20:BU34, ">=" & BU25) -> 15 | BW25: =RANK(BV25,BV20:BV34,1)+COUNTIF(BU20:BU25,BU25)-1 -> 6 | CA25: 000-00-000-000-000 | CB25: =COUNTIF(CA20:CA34, ">=" & CA25) -> 15 | CC25: =RANK(CB25,CB20:CB34,1)+COUNTIF(CA20:CA25,CA25)-1 -> 6 | CG25: 000-00-000-000-000 | CH25: =COUNTIF(CG20:CG34, ">=" & CG25) -> 15 | CI25: =RANK(CH25,CH20:CH34,1)+COUNTIF(CG20:CG25,CG25)-1 -> 6 | CM25: 248-05-067-090-091 | CN25: =COUNTIF(CM20:CM34, ">=" & CM25) -> 4 | CO25: =RANK(CN25,CN20:CN34,1)+COUNTIF(CM20:CM25,CM25)-1 -> 4 | CS25: 215-02-055-079-081 | CT25: =COUNTIF(CS20:CS34, ">=" & CS25) -> 4 | CU25: =RANK(CT25,CT20:CT34,1)+COUNTIF(CS20:CS25,CS25)-1 -> 4 | CY25: 238-03-067-088-083 | CZ25: =COUNTIF(CY20:CY34, ">=" & CY25) -> 3 | DA25: =RANK(CZ25,CZ20:CZ34,1)+COUNTIF(CY20:CY25,CY25)-1 -> 3 | DE25: 255-05-082-087-086 | DF25: =COUNTIF(DE20:DE34, ">=" & DE25) -> 1 | DG25: =RANK(DF25,DF20:DF34,1)+COUNTIF(DE20:DE25,DE25)-1 -> 1 | DK25: 261-06-083-092-086 | DL25: =COUNTIF(DK20:DK34, ">=" & DK25) -> 2 | DM25: =RANK(DL25,DL20:DL34,1)+COUNTIF(DK20:DK25,DK25)-1 -> 2 | DQ25: 000-00-000-000-000 | DR25: =COUNTIF(DQ20:DQ34, ">=" & DQ25) -> 15 | DS25: =RANK(DR25,DR20:DR34,1)+COUNTIF(DQ20:DQ25,DQ25)-1 -> 6 | DW25: 000-00-000-000-000 | DX25: =COUNTIF(DW20:DW34, ">=" & DW25) -> 15 | DY25: =RANK(DX25,DX20:DX34,1)+COUNTIF(DW20:DW25,DW25)-1 -> 6 | EC25: 000-00-000-000-000 | ED25: =COUNTIF(EC20:EC34, ">=" & EC25) -> 15 | EE25: =RANK(ED25,ED20:ED34,1)+COUNTIF(EC20:EC25,EC25)-1 -> 6 | EI25: 000-00-000-000-000 | EJ25: =COUNTIF(EI20:EI34, ">=" & EI25) -> 15 | EK25: =RANK(EJ25,EJ20:EJ34,1)+COUNTIF(EI20:EI25,EI25)-1 -> 6 | EO25: 000-00-000-000-000 | EP25: =COUNTIF(EO20:EO34, ">=" & EO25) -> 15 | EQ25: =RANK(EP25,EP20:EP34,1)+COUNTIF(EO20:EO25,EO25)-1 -> 6 | EU25: 000-00-000-000-000 | EV25: =COUNTIF(EU20:EU34, ">=" & EU25) -> 15 | EW25: =RANK(EV25,EV20:EV34,1)+COUNTIF(EU20:EU25,EU25)-1 -> 6 | FA25: 000-00-000-000-000 | FB25: =COUNTIF(FA20:FA34, ">=" & FA25) -> 15 | FC25: =RANK(FB25,FB20:FB34,1)+COUNTIF(FA20:FA25,FA25)-1 -> 6 | FG25: 000-00-000-000-000 | FH25: =COUNTIF(FG20:FG34, ">=" & FG25) -> 15 | FI25: =RANK(FH25,FH20:FH34,1)+COUNTIF(FG20:FG25,FG25)-1 -> 6
A26: Average | B26: =IF(SUM(B4:B25)=0,0,AVERAGE(B4:B25)) -> 94.75 | C26: =IF(SUM(C4:C25)=0,0,AVERAGE(C4:C25)) -> 94 | D26: =IF(SUM(D4:D25)=0,0,AVERAGE(D4:D25)) -> 83.25 | E26: =IF(SUM(E4:E25)=0,0,AVERAGE(E4:E25)) -> 272 | G26: =IF(SUM(G4:G25)=0,0,AVERAGE(G4:G25)) -> 89.83333333 | H26: =IF(SUM(H4:H25)=0,0,AVERAGE(H4:H25)) -> 92.25 | I26: =IF(SUM(I4:I25)=0,0,AVERAGE(I4:I25)) -> 76.91666667 | J26: =IF(SUM(J4:J25)=0,0,AVERAGE(J4:J25)) -> 259 | L26: =IF(SUM(L4:L25)=0,0,AVERAGE(L4:L25)) -> 76.54545455 | M26: =IF(SUM(M4:M25)=0,0,AVERAGE(M4:M25)) -> 85.09090909 | N26: =IF(SUM(N4:N25)=0,0,AVERAGE(N4:N25)) -> 73.36363636 | O26: =IF(SUM(O4:O25)=0,0,AVERAGE(O4:O25)) -> 235 | Q26: =IF(SUM(Q4:Q25)=0,0,AVERAGE(Q4:Q25)) -> 73.3 | R26: =IF(SUM(R4:R25)=0,0,AVERAGE(R4:R25)) -> 89.8 | S26: =IF(SUM(S4:S25)=0,0,AVERAGE(S4:S25)) -> 68.5 | T26: =IF(SUM(T4:T25)=0,0,AVERAGE(T4:T25)) -> 231.6 | V26: =IF(SUM(V4:V25)=0,0,AVERAGE(V4:V25)) -> 90 | W26: =IF(SUM(W4:W25)=0,0,AVERAGE(W4:W25)) -> 93 | X26: =IF(SUM(X4:X25)=0,0,AVERAGE(X4:X25)) -> 81.83333333 | Y26: =IF(SUM(Y4:Y25)=0,0,AVERAGE(Y4:Y25)) -> 264.8333333 | AA26: =IF(SUM(AA4:AA25)=0,0,AVERAGE(AA4:AA25)) -> 996.9166667 | AB26: =IF(SUM(AB4:AB25)=0,0,AVERAGE(AB4:AB25)) -> 18.5 | AK26: 227-02-075-085-067 | AL26: =COUNTIF(AK20:AK34, ">=" & AK26) -> 7 | AM26: =RANK(AL26,AL20:AL34,1)+COUNTIF(AK20:AK26,AK26)-1 -> 7 | AQ26: 204-00-044-084-076 | AR26: =COUNTIF(AQ20:AQ34, ">=" & AQ26) -> 6 | AS26: =RANK(AR26,AR20:AR34,1)+COUNTIF(AQ20:AQ26,AQ26)-1 -> 6 | AW26: 000-00-000-000-000 | AX26: =COUNTIF(AW20:AW34, ">=" & AW26) -> 15 | AY26: =RANK(AX26,AX20:AX34,1)+COUNTIF(AW20:AW26,AW26)-1 -> 7 | BC26: 000-00-000-000-000 | BD26: =COUNTIF(BC20:BC34, ">=" & BC26) -> 15 | BE26: =RANK(BD26,BD20:BD34,1)+COUNTIF(BC20:BC26,BC26)-1 -> 7 | BI26: 000-00-000-000-000 | BJ26: =COUNTIF(BI20:BI34, ">=" & BI26) -> 15 | BK26: =RANK(BJ26,BJ20:BJ34,1)+COUNTIF(BI20:BI26,BI26)-1 -> 7 | BO26: 000-00-000-000-000 | BP26: =COUNTIF(BO20:BO34, ">=" & BO26) -> 15 | BQ26: =RANK(BP26,BP20:BP34,1)+COUNTIF(BO20:BO26,BO26)-1 -> 8 | BU26: 000-00-000-000-000 | BV26: =COUNTIF(BU20:BU34, ">=" & BU26) -> 15 | BW26: =RANK(BV26,BV20:BV34,1)+COUNTIF(BU20:BU26,BU26)-1 -> 7 | CA26: 000-00-000-000-000 | CB26: =COUNTIF(CA20:CA34, ">=" & CA26) -> 15 | CC26: =RANK(CB26,CB20:CB34,1)+COUNTIF(CA20:CA26,CA26)-1 -> 7 | CG26: 000-00-000-000-000 | CH26: =COUNTIF(CG20:CG34, ">=" & CG26) -> 15 | CI26: =RANK(CH26,CH20:CH34,1)+COUNTIF(CG20:CG26,CG26)-1 -> 7 | CM26: 000-00-000-000-000 | CN26: =COUNTIF(CM20:CM34, ">=" & CM26) -> 15 | CO26: =RANK(CN26,CN20:CN34,1)+COUNTIF(CM20:CM26,CM26)-1 -> 8 | CS26: 000-00-000-000-000 | CT26: =COUNTIF(CS20:CS34, ">=" & CS26) -> 15 | CU26: =RANK(CT26,CT20:CT34,1)+COUNTIF(CS20:CS26,CS26)-1 -> 8 | CY26: 000-00-000-000-000 | CZ26: =COUNTIF(CY20:CY34, ">=" & CY26) -> 15 | DA26: =RANK(CZ26,CZ20:CZ34,1)+COUNTIF(CY20:CY26,CY26)-1 -> 7 | DE26: 000-00-000-000-000 | DF26: =COUNTIF(DE20:DE34, ">=" & DE26) -> 15 | DG26: =RANK(DF26,DF20:DF34,1)+COUNTIF(DE20:DE26,DE26)-1 -> 9 | DK26: 000-00-000-000-000 | DL26: =COUNTIF(DK20:DK34, ">=" & DK26) -> 15 | DM26: =RANK(DL26,DL20:DL34,1)+COUNTIF(DK20:DK26,DK26)-1 -> 10 | DQ26: 000-00-000-000-000 | DR26: =COUNTIF(DQ20:DQ34, ">=" & DQ26) -> 15 | DS26: =RANK(DR26,DR20:DR34,1)+COUNTIF(DQ20:DQ26,DQ26)-1 -> 7 | DW26: 000-00-000-000-000 | DX26: =COUNTIF(DW20:DW34, ">=" & DW26) -> 15 | DY26: =RANK(DX26,DX20:DX34,1)+COUNTIF(DW20:DW26,DW26)-1 -> 7 | EC26: 000-00-000-000-000 | ED26: =COUNTIF(EC20:EC34, ">=" & EC26) -> 15 | EE26: =RANK(ED26,ED20:ED34,1)+COUNTIF(EC20:EC26,EC26)-1 -> 7 | EI26: 000-00-000-000-000 | EJ26: =COUNTIF(EI20:EI34, ">=" & EI26) -> 15 | EK26: =RANK(EJ26,EJ20:EJ34,1)+COUNTIF(EI20:EI26,EI26)-1 -> 7 | EO26: 000-00-000-000-000 | EP26: =COUNTIF(EO20:EO34, ">=" & EO26) -> 15 | EQ26: =RANK(EP26,EP20:EP34,1)+COUNTIF(EO20:EO26,EO26)-1 -> 7 | EU26: 000-00-000-000-000 | EV26: =COUNTIF(EU20:EU34, ">=" & EU26) -> 15 | EW26: =RANK(EV26,EV20:EV34,1)+COUNTIF(EU20:EU26,EU26)-1 -> 7 | FA26: 000-00-000-000-000 | FB26: =COUNTIF(FA20:FA34, ">=" & FA26) -> 15 | FC26: =RANK(FB26,FB20:FB34,1)+COUNTIF(FA20:FA26,FA26)-1 -> 7 | FG26: 000-00-000-000-000 | FH26: =COUNTIF(FG20:FG34, ">=" & FG26) -> 15 | FI26: =RANK(FH26,FH20:FH34,1)+COUNTIF(FG20:FG26,FG26)-1 -> 7
A27: CA | AK27: 000-00-000-000-000 | AL27: =COUNTIF(AK20:AK34, ">=" & AK27) -> 15 | AM27: =RANK(AL27,AL20:AL34,1)+COUNTIF(AK20:AK27,AK27)-1 -> 8 | AQ27: 000-00-000-000-000 | AR27: =COUNTIF(AQ20:AQ34, ">=" & AQ27) -> 15 | AS27: =RANK(AR27,AR20:AR34,1)+COUNTIF(AQ20:AQ27,AQ27)-1 -> 8 | AW27: 000-00-000-000-000 | AX27: =COUNTIF(AW20:AW34, ">=" & AW27) -> 15 | AY27: =RANK(AX27,AX20:AX34,1)+COUNTIF(AW20:AW27,AW27)-1 -> 8 | BC27: 000-00-000-000-000 | BD27: =COUNTIF(BC20:BC34, ">=" & BC27) -> 15 | BE27: =RANK(BD27,BD20:BD34,1)+COUNTIF(BC20:BC27,BC27)-1 -> 8 | BI27: 000-00-000-000-000 | BJ27: =COUNTIF(BI20:BI34, ">=" & BI27) -> 15 | BK27: =RANK(BJ27,BJ20:BJ34,1)+COUNTIF(BI20:BI27,BI27)-1 -> 8 | BO27: 208-00-047-078-083 | BP27: =COUNTIF(BO20:BO34, ">=" & BO27) -> 5 | BQ27: =RANK(BP27,BP20:BP34,1)+COUNTIF(BO20:BO27,BO27)-1 -> 5 | BU27: 000-00-000-000-000 | BV27: =COUNTIF(BU20:BU34, ">=" & BU27) -> 15 | BW27: =RANK(BV27,BV20:BV34,1)+COUNTIF(BU20:BU27,BU27)-1 -> 8 | CA27: 000-00-000-000-000 | CB27: =COUNTIF(CA20:CA34, ">=" & CA27) -> 15 | CC27: =RANK(CB27,CB20:CB34,1)+COUNTIF(CA20:CA27,CA27)-1 -> 8 | CG27: 000-00-000-000-000 | CH27: =COUNTIF(CG20:CG34, ">=" & CG27) -> 15 | CI27: =RANK(CH27,CH20:CH34,1)+COUNTIF(CG20:CG27,CG27)-1 -> 8 | CM27: 000-00-000-000-000 | CN27: =COUNTIF(CM20:CM34, ">=" & CM27) -> 15 | CO27: =RANK(CN27,CN20:CN34,1)+COUNTIF(CM20:CM27,CM27)-1 -> 9 | CS27: 000-00-000-000-000 | CT27: =COUNTIF(CS20:CS34, ">=" & CS27) -> 15 | CU27: =RANK(CT27,CT20:CT34,1)+COUNTIF(CS20:CS27,CS27)-1 -> 9 | CY27: 000-00-000-000-000 | CZ27: =COUNTIF(CY20:CY34, ">=" & CY27) -> 15 | DA27: =RANK(CZ27,CZ20:CZ34,1)+COUNTIF(CY20:CY27,CY27)-1 -> 8 | DE27: 203-01-040-080-083 | DF27: =COUNTIF(DE20:DE34, ">=" & DE27) -> 4 | DG27: =RANK(DF27,DF20:DF34,1)+COUNTIF(DE20:DE27,DE27)-1 -> 4 | DK27: 199-00-045-075-079 | DL27: =COUNTIF(DK20:DK34, ">=" & DK27) -> 5 | DM27: =RANK(DL27,DL20:DL34,1)+COUNTIF(DK20:DK27,DK27)-1 -> 5 | DQ27: 000-00-000-000-000 | DR27: =COUNTIF(DQ20:DQ34, ">=" & DQ27) -> 15 | DS27: =RANK(DR27,DR20:DR34,1)+COUNTIF(DQ20:DQ27,DQ27)-1 -> 8 | DW27: 000-00-000-000-000 | DX27: =COUNTIF(DW20:DW34, ">=" & DW27) -> 15 | DY27: =RANK(DX27,DX20:DX34,1)+COUNTIF(DW20:DW27,DW27)-1 -> 8 | EC27: 000-00-000-000-000 | ED27: =COUNTIF(EC20:EC34, ">=" & EC27) -> 15 | EE27: =RANK(ED27,ED20:ED34,1)+COUNTIF(EC20:EC27,EC27)-1 -> 8 | EI27: 000-00-000-000-000 | EJ27: =COUNTIF(EI20:EI34, ">=" & EI27) -> 15 | EK27: =RANK(EJ27,EJ20:EJ34,1)+COUNTIF(EI20:EI27,EI27)-1 -> 8 | EO27: 000-00-000-000-000 | EP27: =COUNTIF(EO20:EO34, ">=" & EO27) -> 15 | EQ27: =RANK(EP27,EP20:EP34,1)+COUNTIF(EO20:EO27,EO27)-1 -> 8 | EU27: 000-00-000-000-000 | EV27: =COUNTIF(EU20:EU34, ">=" & EU27) -> 15 | EW27: =RANK(EV27,EV20:EV34,1)+COUNTIF(EU20:EU27,EU27)-1 -> 8 | FA27: 000-00-000-000-000 | FB27: =COUNTIF(FA20:FA34, ">=" & FA27) -> 15 | FC27: =RANK(FB27,FB20:FB34,1)+COUNTIF(FA20:FA27,FA27)-1 -> 8 | FG27: 000-00-000-000-000 | FH27: =COUNTIF(FG20:FG34, ">=" & FG27) -> 15 | FI27: =RANK(FH27,FH20:FH34,1)+COUNTIF(FG20:FG27,FG27)-1 -> 8
A28: Cairo | B28: Sales-Lopez, Mark, (11) | G28: Bell, Mack, (9)R | L28: Chilel, Elizeo, (10) | Q28: Dunham, Jaxson, (10) | V28: Solis, Jacob, (9)R | AK28: 000-00-000-000-000 | AL28: =COUNTIF(AK20:AK34, ">=" & AK28) -> 15 | AM28: =RANK(AL28,AL20:AL34,1)+COUNTIF(AK20:AK28,AK28)-1 -> 9 | AQ28: 000-00-000-000-000 | AR28: =COUNTIF(AQ20:AQ34, ">=" & AQ28) -> 15 | AS28: =RANK(AR28,AR20:AR34,1)+COUNTIF(AQ20:AQ28,AQ28)-1 -> 9 | AW28: 000-00-000-000-000 | AX28: =COUNTIF(AW20:AW34, ">=" & AW28) -> 15 | AY28: =RANK(AX28,AX20:AX34,1)+COUNTIF(AW20:AW28,AW28)-1 -> 9 | BC28: 000-00-000-000-000 | BD28: =COUNTIF(BC20:BC34, ">=" & BC28) -> 15 | BE28: =RANK(BD28,BD20:BD34,1)+COUNTIF(BC20:BC28,BC28)-1 -> 9 | BI28: 000-00-000-000-000 | BJ28: =COUNTIF(BI20:BI34, ">=" & BI28) -> 15 | BK28: =RANK(BJ28,BJ20:BJ34,1)+COUNTIF(BI20:BI28,BI28)-1 -> 9 | BO28: 000-00-000-000-000 | BP28: =COUNTIF(BO20:BO34, ">=" & BO28) -> 15 | BQ28: =RANK(BP28,BP20:BP34,1)+COUNTIF(BO20:BO28,BO28)-1 -> 9 | BU28: 000-00-000-000-000 | BV28: =COUNTIF(BU20:BU34, ">=" & BU28) -> 15 | BW28: =RANK(BV28,BV20:BV34,1)+COUNTIF(BU20:BU28,BU28)-1 -> 9 | CA28: 000-00-000-000-000 | CB28: =COUNTIF(CA20:CA34, ">=" & CA28) -> 15 | CC28: =RANK(CB28,CB20:CB34,1)+COUNTIF(CA20:CA28,CA28)-1 -> 9 | CG28: 000-00-000-000-000 | CH28: =COUNTIF(CG20:CG34, ">=" & CG28) -> 15 | CI28: =RANK(CH28,CH20:CH34,1)+COUNTIF(CG20:CG28,CG28)-1 -> 9 | CM28: 249-04-068-089-092 | CN28: =COUNTIF(CM20:CM34, ">=" & CM28) -> 3 | CO28: =RANK(CN28,CN20:CN34,1)+COUNTIF(CM20:CM28,CM28)-1 -> 3 | CS28: 000-00-000-000-000 | CT28: =COUNTIF(CS20:CS34, ">=" & CS28) -> 15 | CU28: =RANK(CT28,CT20:CT34,1)+COUNTIF(CS20:CS28,CS28)-1 -> 10 | CY28: 000-00-000-000-000 | CZ28: =COUNTIF(CY20:CY34, ">=" & CY28) -> 15 | DA28: =RANK(CZ28,CZ20:CZ34,1)+COUNTIF(CY20:CY28,CY28)-1 -> 9 | DE28: 000-00-000-000-000 | DF28: =COUNTIF(DE20:DE34, ">=" & DE28) -> 15 | DG28: =RANK(DF28,DF20:DF34,1)+COUNTIF(DE20:DE28,DE28)-1 -> 10 | DK28: 000-00-000-000-000 | DL28: =COUNTIF(DK20:DK34, ">=" & DK28) -> 15 | DM28: =RANK(DL28,DL20:DL34,1)+COUNTIF(DK20:DK28,DK28)-1 -> 11 | DQ28: 000-00-000-000-000 | DR28: =COUNTIF(DQ20:DQ34, ">=" & DQ28) -> 15 | DS28: =RANK(DR28,DR20:DR34,1)+COUNTIF(DQ20:DQ28,DQ28)-1 -> 9 | DW28: 000-00-000-000-000 | DX28: =COUNTIF(DW20:DW34, ">=" & DW28) -> 15 | DY28: =RANK(DX28,DX20:DX34,1)+COUNTIF(DW20:DW28,DW28)-1 -> 9 | EC28: 000-00-000-000-000 | ED28: =COUNTIF(EC20:EC34, ">=" & EC28) -> 15 | EE28: =RANK(ED28,ED20:ED34,1)+COUNTIF(EC20:EC28,EC28)-1 -> 9 | EI28: 000-00-000-000-000 | EJ28: =COUNTIF(EI20:EI34, ">=" & EI28) -> 15 | EK28: =RANK(EJ28,EJ20:EJ34,1)+COUNTIF(EI20:EI28,EI28)-1 -> 9 | EO28: 000-00-000-000-000 | EP28: =COUNTIF(EO20:EO34, ">=" & EO28) -> 15 | EQ28: =RANK(EP28,EP20:EP34,1)+COUNTIF(EO20:EO28,EO28)-1 -> 9 | EU28: 000-00-000-000-000 | EV28: =COUNTIF(EU20:EU34, ">=" & EU28) -> 15 | EW28: =RANK(EV28,EV20:EV34,1)+COUNTIF(EU20:EU28,EU28)-1 -> 9 | FA28: 000-00-000-000-000 | FB28: =COUNTIF(FA20:FA34, ">=" & FA28) -> 15 | FC28: =RANK(FB28,FB20:FB34,1)+COUNTIF(FA20:FA28,FA28)-1 -> 9 | FG28: 000-00-000-000-000 | FH28: =COUNTIF(FG20:FG34, ">=" & FG28) -> 15 | FI28: =RANK(FH28,FH20:FH34,1)+COUNTIF(FG20:FG28,FG28)-1 -> 9
A29: VS | B29: K | C29: P | D29: S | E29: AGGR | F29: *10 | G29: K | H29: P | I29: S | J29: AGGR | K29: *10 | L29: K | M29: P | N29: S | O29: AGGR | P29: *10 | Q29: K | R29: P | S29: S | T29: AGGR | U29: *10 | V29: K | W29: P | X29: S | Y29: AGGR | Z29: *10 | AC29: =A27 -> CA | AK29: 000-00-000-000-000 | AL29: =COUNTIF(AK20:AK34, ">=" & AK29) -> 15 | AM29: =RANK(AL29,AL20:AL34,1)+COUNTIF(AK20:AK29,AK29)-1 -> 10 | AQ29: 000-00-000-000-000 | AR29: =COUNTIF(AQ20:AQ34, ">=" & AQ29) -> 15 | AS29: =RANK(AR29,AR20:AR34,1)+COUNTIF(AQ20:AQ29,AQ29)-1 -> 10 | AW29: 000-00-000-000-000 | AX29: =COUNTIF(AW20:AW34, ">=" & AW29) -> 15 | AY29: =RANK(AX29,AX20:AX34,1)+COUNTIF(AW20:AW29,AW29)-1 -> 10 | BC29: 000-00-000-000-000 | BD29: =COUNTIF(BC20:BC34, ">=" & BC29) -> 15 | BE29: =RANK(BD29,BD20:BD34,1)+COUNTIF(BC20:BC29,BC29)-1 -> 10 | BI29: 000-00-000-000-000 | BJ29: =COUNTIF(BI20:BI34, ">=" & BI29) -> 15 | BK29: =RANK(BJ29,BJ20:BJ34,1)+COUNTIF(BI20:BI29,BI29)-1 -> 10 | BO29: 000-00-000-000-000 | BP29: =COUNTIF(BO20:BO34, ">=" & BO29) -> 15 | BQ29: =RANK(BP29,BP20:BP34,1)+COUNTIF(BO20:BO29,BO29)-1 -> 10 | BU29: 000-00-000-000-000 | BV29: =COUNTIF(BU20:BU34, ">=" & BU29) -> 15 | BW29: =RANK(BV29,BV20:BV34,1)+COUNTIF(BU20:BU29,BU29)-1 -> 10 | CA29: 000-00-000-000-000 | CB29: =COUNTIF(CA20:CA34, ">=" & CA29) -> 15 | CC29: =RANK(CB29,CB20:CB34,1)+COUNTIF(CA20:CA29,CA29)-1 -> 10 | CG29: 000-00-000-000-000 | CH29: =COUNTIF(CG20:CG34, ">=" & CG29) -> 15 | CI29: =RANK(CH29,CH20:CH34,1)+COUNTIF(CG20:CG29,CG29)-1 -> 10 | CM29: 000-00-000-000-000 | CN29: =COUNTIF(CM20:CM34, ">=" & CM29) -> 15 | CO29: =RANK(CN29,CN20:CN34,1)+COUNTIF(CM20:CM29,CM29)-1 -> 10 | CS29: 212-02-055-086-071 | CT29: =COUNTIF(CS20:CS34, ">=" & CS29) -> 5 | CU29: =RANK(CT29,CT20:CT34,1)+COUNTIF(CS20:CS29,CS29)-1 -> 5 | CY29: 000-00-000-000-000 | CZ29: =COUNTIF(CY20:CY34, ">=" & CY29) -> 15 | DA29: =RANK(CZ29,CZ20:CZ34,1)+COUNTIF(CY20:CY29,CY29)-1 -> 10 | DE29: 186-02-040-087-059 | DF29: =COUNTIF(DE20:DE34, ">=" & DE29) -> 5 | DG29: =RANK(DF29,DF20:DF34,1)+COUNTIF(DE20:DE29,DE29)-1 -> 5 | DK29: 148-00-033-067-048 | DL29: =COUNTIF(DK20:DK34, ">=" & DK29) -> 6 | DM29: =RANK(DL29,DL20:DL34,1)+COUNTIF(DK20:DK29,DK29)-1 -> 6 | DQ29: 000-00-000-000-000 | DR29: =COUNTIF(DQ20:DQ34, ">=" & DQ29) -> 15 | DS29: =RANK(DR29,DR20:DR34,1)+COUNTIF(DQ20:DQ29,DQ29)-1 -> 10 | DW29: 000-00-000-000-000 | DX29: =COUNTIF(DW20:DW34, ">=" & DW29) -> 15 | DY29: =RANK(DX29,DX20:DX34,1)+COUNTIF(DW20:DW29,DW29)-1 -> 10 | EC29: 000-00-000-000-000 | ED29: =COUNTIF(EC20:EC34, ">=" & EC29) -> 15 | EE29: =RANK(ED29,ED20:ED34,1)+COUNTIF(EC20:EC29,EC29)-1 -> 10 | EI29: 000-00-000-000-000 | EJ29: =COUNTIF(EI20:EI34, ">=" & EI29) -> 15 | EK29: =RANK(EJ29,EJ20:EJ34,1)+COUNTIF(EI20:EI29,EI29)-1 -> 10 | EO29: 000-00-000-000-000 | EP29: =COUNTIF(EO20:EO34, ">=" & EO29) -> 15 | EQ29: =RANK(EP29,EP20:EP34,1)+COUNTIF(EO20:EO29,EO29)-1 -> 10 | EU29: 000-00-000-000-000 | EV29: =COUNTIF(EU20:EU34, ">=" & EU29) -> 15 | EW29: =RANK(EV29,EV20:EV34,1)+COUNTIF(EU20:EU29,EU29)-1 -> 10 | FA29: 000-00-000-000-000 | FB29: =COUNTIF(FA20:FA34, ">=" & FA29) -> 15 | FC29: =RANK(FB29,FB20:FB34,1)+COUNTIF(FA20:FA29,FA29)-1 -> 10 | FG29: 000-00-000-000-000 | FH29: =COUNTIF(FG20:FG34, ">=" & FG29) -> 15 | FI29: =RANK(FH29,FH20:FH34,1)+COUNTIF(FG20:FG29,FG29)-1 -> 10
A30: @ Valdosta | B30: 81 | C30: 90 | D30: 71 | E30: =IF(SUM(B30:D30)>0,SUM(B30:D30),"") -> 242 | F30: 3 | G30: 67 | H30: 85 | I30: 75 | J30: =IF(SUM(G30:I30)>0,SUM(G30:I30),"") -> 227 | K30: 2 | O30: =IF(SUM(L30:N30)>0,SUM(L30:N30),"") ->  | T30: =IF(SUM(Q30:S30)>0,SUM(Q30:S30),"") ->  | Y30: =IF(SUM(V30:X30)>0,SUM(V30:X30),"") ->  | AC30: =B28 -> Sales-Lopez, Mark, (11) | AD30: =G28 -> Bell, Mack, (9)R | AE30: =L28 -> Chilel, Elizeo, (10) | AF30: =Q28 -> Dunham, Jaxson, (10) | AG30: =V28 -> Solis, Jacob, (9)R | AK30: 000-00-000-000-000 | AL30: =COUNTIF(AK20:AK34, ">=" & AK30) -> 15 | AM30: =RANK(AL30,AL20:AL34,1)+COUNTIF(AK20:AK30,AK30)-1 -> 11 | AQ30: 000-00-000-000-000 | AR30: =COUNTIF(AQ20:AQ34, ">=" & AQ30) -> 15 | AS30: =RANK(AR30,AR20:AR34,1)+COUNTIF(AQ20:AQ30,AQ30)-1 -> 11 | AW30: 000-00-000-000-000 | AX30: =COUNTIF(AW20:AW34, ">=" & AW30) -> 15 | AY30: =RANK(AX30,AX20:AX34,1)+COUNTIF(AW20:AW30,AW30)-1 -> 11 | BC30: 000-00-000-000-000 | BD30: =COUNTIF(BC20:BC34, ">=" & BC30) -> 15 | BE30: =RANK(BD30,BD20:BD34,1)+COUNTIF(BC20:BC30,BC30)-1 -> 11 | BI30: 000-00-000-000-000 | BJ30: =COUNTIF(BI20:BI34, ">=" & BI30) -> 15 | BK30: =RANK(BJ30,BJ20:BJ34,1)+COUNTIF(BI20:BI30,BI30)-1 -> 11 | BO30: 000-00-000-000-000 | BP30: =COUNTIF(BO20:BO34, ">=" & BO30) -> 15 | BQ30: =RANK(BP30,BP20:BP34,1)+COUNTIF(BO20:BO30,BO30)-1 -> 11 | BU30: 000-00-000-000-000 | BV30: =COUNTIF(BU20:BU34, ">=" & BU30) -> 15 | BW30: =RANK(BV30,BV20:BV34,1)+COUNTIF(BU20:BU30,BU30)-1 -> 11 | CA30: 000-00-000-000-000 | CB30: =COUNTIF(CA20:CA34, ">=" & CA30) -> 15 | CC30: =RANK(CB30,CB20:CB34,1)+COUNTIF(CA20:CA30,CA30)-1 -> 11 | CG30: 000-00-000-000-000 | CH30: =COUNTIF(CG20:CG34, ">=" & CG30) -> 15 | CI30: =RANK(CH30,CH20:CH34,1)+COUNTIF(CG20:CG30,CG30)-1 -> 11 | CM30: 000-00-000-000-000 | CN30: =COUNTIF(CM20:CM34, ">=" & CM30) -> 15 | CO30: =RANK(CN30,CN20:CN34,1)+COUNTIF(CM20:CM30,CM30)-1 -> 11 | CS30: 000-00-000-000-000 | CT30: =COUNTIF(CS20:CS34, ">=" & CS30) -> 15 | CU30: =RANK(CT30,CT20:CT34,1)+COUNTIF(CS20:CS30,CS30)-1 -> 11 | CY30: 000-00-000-000-000 | CZ30: =COUNTIF(CY20:CY34, ">=" & CY30) -> 15 | DA30: =RANK(CZ30,CZ20:CZ34,1)+COUNTIF(CY20:CY30,CY30)-1 -> 11 | DE30: 000-00-000-000-000 | DF30: =COUNTIF(DE20:DE34, ">=" & DE30) -> 15 | DG30: =RANK(DF30,DF20:DF34,1)+COUNTIF(DE20:DE30,DE30)-1 -> 11 | DK30: 209-01-050-078-081 | DL30: =COUNTIF(DK20:DK34, ">=" & DK30) -> 4 | DM30: =RANK(DL30,DL20:DL34,1)+COUNTIF(DK20:DK30,DK30)-1 -> 4 | DQ30: 000-00-000-000-000 | DR30: =COUNTIF(DQ20:DQ34, ">=" & DQ30) -> 15 | DS30: =RANK(DR30,DR20:DR34,1)+COUNTIF(DQ20:DQ30,DQ30)-1 -> 11 | DW30: 000-00-000-000-000 | DX30: =COUNTIF(DW20:DW34, ">=" & DW30) -> 15 | DY30: =RANK(DX30,DX20:DX34,1)+COUNTIF(DW20:DW30,DW30)-1 -> 11 | EC30: 000-00-000-000-000 | ED30: =COUNTIF(EC20:EC34, ">=" & EC30) -> 15 | EE30: =RANK(ED30,ED20:ED34,1)+COUNTIF(EC20:EC30,EC30)-1 -> 11 | EI30: 000-00-000-000-000 | EJ30: =COUNTIF(EI20:EI34, ">=" & EI30) -> 15 | EK30: =RANK(EJ30,EJ20:EJ34,1)+COUNTIF(EI20:EI30,EI30)-1 -> 11 | EO30: 000-00-000-000-000 | EP30: =COUNTIF(EO20:EO34, ">=" & EO30) -> 15 | EQ30: =RANK(EP30,EP20:EP34,1)+COUNTIF(EO20:EO30,EO30)-1 -> 11 | EU30: 000-00-000-000-000 | EV30: =COUNTIF(EU20:EU34, ">=" & EU30) -> 15 | EW30: =RANK(EV30,EV20:EV34,1)+COUNTIF(EU20:EU30,EU30)-1 -> 11 | FA30: 000-00-000-000-000 | FB30: =COUNTIF(FA20:FA34, ">=" & FA30) -> 15 | FC30: =RANK(FB30,FB20:FB34,1)+COUNTIF(FA20:FA30,FA30)-1 -> 11 | FG30: 000-00-000-000-000 | FH30: =COUNTIF(FG20:FG34, ">=" & FG30) -> 15 | FI30: =RANK(FH30,FH20:FH34,1)+COUNTIF(FG20:FG30,FG30)-1 -> 11
A31: Colquitt | B31: 80 | C31: 91 | D31: 63 | E31: 234 | F31: 2 | G31: 76 | H31: 84 | I31: 44 | J31: 204 | K31: 0 | AC31: =IF(SUM(E30:E51)>0,LARGE(E30:E51,1),0) -> 261 | AD31: =IF(SUM(J30:J51)>0,LARGE(J30:J51,1),0) -> 227 | AE31: =IF(SUM(O30:O51)>0,LARGE(O30:O51,1),0) -> 208 | AF31: =IF(SUM(T30:T51)>0,LARGE(T30:T51,1),0) -> 249 | AG31: =IF(SUM(Y30:Y51)>0,LARGE(Y30:Y51,1),0) -> 212 | AK31: 000-00-000-000-000 | AL31: =COUNTIF(AK20:AK34, ">=" & AK31) -> 15 | AM31: =RANK(AL31,AL20:AL34,1)+COUNTIF(AK20:AK31,AK31)-1 -> 12 | AQ31: 000-00-000-000-000 | AR31: =COUNTIF(AQ20:AQ34, ">=" & AQ31) -> 15 | AS31: =RANK(AR31,AR20:AR34,1)+COUNTIF(AQ20:AQ31,AQ31)-1 -> 12 | AW31: 000-00-000-000-000 | AX31: =COUNTIF(AW20:AW34, ">=" & AW31) -> 15 | AY31: =RANK(AX31,AX20:AX34,1)+COUNTIF(AW20:AW31,AW31)-1 -> 12 | BC31: 000-00-000-000-000 | BD31: =COUNTIF(BC20:BC34, ">=" & BC31) -> 15 | BE31: =RANK(BD31,BD20:BD34,1)+COUNTIF(BC20:BC31,BC31)-1 -> 12 | BI31: 000-00-000-000-000 | BJ31: =COUNTIF(BI20:BI34, ">=" & BI31) -> 15 | BK31: =RANK(BJ31,BJ20:BJ34,1)+COUNTIF(BI20:BI31,BI31)-1 -> 12 | BO31: 000-00-000-000-000 | BP31: =COUNTIF(BO20:BO34, ">=" & BO31) -> 15 | BQ31: =RANK(BP31,BP20:BP34,1)+COUNTIF(BO20:BO31,BO31)-1 -> 12 | BU31: 000-00-000-000-000 | BV31: =COUNTIF(BU20:BU34, ">=" & BU31) -> 15 | BW31: =RANK(BV31,BV20:BV34,1)+COUNTIF(BU20:BU31,BU31)-1 -> 12 | CA31: 000-00-000-000-000 | CB31: =COUNTIF(CA20:CA34, ">=" & CA31) -> 15 | CC31: =RANK(CB31,CB20:CB34,1)+COUNTIF(CA20:CA31,CA31)-1 -> 12 | CG31: 000-00-000-000-000 | CH31: =COUNTIF(CG20:CG34, ">=" & CG31) -> 15 | CI31: =RANK(CH31,CH20:CH34,1)+COUNTIF(CG20:CG31,CG31)-1 -> 12 | CM31: 000-00-000-000-000 | CN31: =COUNTIF(CM20:CM34, ">=" & CM31) -> 15 | CO31: =RANK(CN31,CN20:CN34,1)+COUNTIF(CM20:CM31,CM31)-1 -> 12 | CS31: 000-00-000-000-000 | CT31: =COUNTIF(CS20:CS34, ">=" & CS31) -> 15 | CU31: =RANK(CT31,CT20:CT34,1)+COUNTIF(CS20:CS31,CS31)-1 -> 12 | CY31: 000-00-000-000-000 | CZ31: =COUNTIF(CY20:CY34, ">=" & CY31) -> 15 | DA31: =RANK(CZ31,CZ20:CZ34,1)+COUNTIF(CY20:CY31,CY31)-1 -> 12 | DE31: 000-00-000-000-000 | DF31: =COUNTIF(DE20:DE34, ">=" & DE31) -> 15 | DG31: =RANK(DF31,DF20:DF34,1)+COUNTIF(DE20:DE31,DE31)-1 -> 12 | DK31: 000-00-000-000-000 | DL31: =COUNTIF(DK20:DK34, ">=" & DK31) -> 15 | DM31: =RANK(DL31,DL20:DL34,1)+COUNTIF(DK20:DK31,DK31)-1 -> 12 | DQ31: 000-00-000-000-000 | DR31: =COUNTIF(DQ20:DQ34, ">=" & DQ31) -> 15 | DS31: =RANK(DR31,DR20:DR34,1)+COUNTIF(DQ20:DQ31,DQ31)-1 -> 12 | DW31: 000-00-000-000-000 | DX31: =COUNTIF(DW20:DW34, ">=" & DW31) -> 15 | DY31: =RANK(DX31,DX20:DX34,1)+COUNTIF(DW20:DW31,DW31)-1 -> 12 | EC31: 000-00-000-000-000 | ED31: =COUNTIF(EC20:EC34, ">=" & EC31) -> 15 | EE31: =RANK(ED31,ED20:ED34,1)+COUNTIF(EC20:EC31,EC31)-1 -> 12 | EI31: 000-00-000-000-000 | EJ31: =COUNTIF(EI20:EI34, ">=" & EI31) -> 15 | EK31: =RANK(EJ31,EJ20:EJ34,1)+COUNTIF(EI20:EI31,EI31)-1 -> 12 | EO31: 000-00-000-000-000 | EP31: =COUNTIF(EO20:EO34, ">=" & EO31) -> 15 | EQ31: =RANK(EP31,EP20:EP34,1)+COUNTIF(EO20:EO31,EO31)-1 -> 12 | EU31: 000-00-000-000-000 | EV31: =COUNTIF(EU20:EU34, ">=" & EU31) -> 15 | EW31: =RANK(EV31,EV20:EV34,1)+COUNTIF(EU20:EU31,EU31)-1 -> 12 | FA31: 000-00-000-000-000 | FB31: =COUNTIF(FA20:FA34, ">=" & FA31) -> 15 | FC31: =RANK(FB31,FB20:FB34,1)+COUNTIF(FA20:FA31,FA31)-1 -> 12 | FG31: 000-00-000-000-000 | FH31: =COUNTIF(FG20:FG34, ">=" & FG31) -> 15 | FI31: =RANK(FH31,FH20:FH34,1)+COUNTIF(FG20:FG31,FG31)-1 -> 12
A32: @ Westover | B32: 83 | C32: 69 | D32: 60 | E32: 212 | F32: 1 | AA32: s | AK32: 000-00-000-000-000 | AL32: =COUNTIF(AK20:AK34, ">=" & AK32) -> 15 | AM32: =RANK(AL32,AL20:AL34,1)+COUNTIF(AK20:AK32,AK32)-1 -> 13 | AQ32: 000-00-000-000-000 | AR32: =COUNTIF(AQ20:AQ34, ">=" & AQ32) -> 15 | AS32: =RANK(AR32,AR20:AR34,1)+COUNTIF(AQ20:AQ32,AQ32)-1 -> 13 | AW32: 000-00-000-000-000 | AX32: =COUNTIF(AW20:AW34, ">=" & AW32) -> 15 | AY32: =RANK(AX32,AX20:AX34,1)+COUNTIF(AW20:AW32,AW32)-1 -> 13 | BC32: 000-00-000-000-000 | BD32: =COUNTIF(BC20:BC34, ">=" & BC32) -> 15 | BE32: =RANK(BD32,BD20:BD34,1)+COUNTIF(BC20:BC32,BC32)-1 -> 13 | BI32: 000-00-000-000-000 | BJ32: =COUNTIF(BI20:BI34, ">=" & BI32) -> 15 | BK32: =RANK(BJ32,BJ20:BJ34,1)+COUNTIF(BI20:BI32,BI32)-1 -> 13 | BO32: 000-00-000-000-000 | BP32: =COUNTIF(BO20:BO34, ">=" & BO32) -> 15 | BQ32: =RANK(BP32,BP20:BP34,1)+COUNTIF(BO20:BO32,BO32)-1 -> 13 | BU32: 000-00-000-000-000 | BV32: =COUNTIF(BU20:BU34, ">=" & BU32) -> 15 | BW32: =RANK(BV32,BV20:BV34,1)+COUNTIF(BU20:BU32,BU32)-1 -> 13 | CA32: 000-00-000-000-000 | CB32: =COUNTIF(CA20:CA34, ">=" & CA32) -> 15 | CC32: =RANK(CB32,CB20:CB34,1)+COUNTIF(CA20:CA32,CA32)-1 -> 13 | CG32: 000-00-000-000-000 | CH32: =COUNTIF(CG20:CG34, ">=" & CG32) -> 15 | CI32: =RANK(CH32,CH20:CH34,1)+COUNTIF(CG20:CG32,CG32)-1 -> 13 | CM32: 000-00-000-000-000 | CN32: =COUNTIF(CM20:CM34, ">=" & CM32) -> 15 | CO32: =RANK(CN32,CN20:CN34,1)+COUNTIF(CM20:CM32,CM32)-1 -> 13 | CS32: 000-00-000-000-000 | CT32: =COUNTIF(CS20:CS34, ">=" & CS32) -> 15 | CU32: =RANK(CT32,CT20:CT34,1)+COUNTIF(CS20:CS32,CS32)-1 -> 13 | CY32: 000-00-000-000-000 | CZ32: =COUNTIF(CY20:CY34, ">=" & CY32) -> 15 | DA32: =RANK(CZ32,CZ20:CZ34,1)+COUNTIF(CY20:CY32,CY32)-1 -> 13 | DE32: 000-00-000-000-000 | DF32: =COUNTIF(DE20:DE34, ">=" & DE32) -> 15 | DG32: =RANK(DF32,DF20:DF34,1)+COUNTIF(DE20:DE32,DE32)-1 -> 13 | DK32: 000-00-000-000-000 | DL32: =COUNTIF(DK20:DK34, ">=" & DK32) -> 15 | DM32: =RANK(DL32,DL20:DL34,1)+COUNTIF(DK20:DK32,DK32)-1 -> 13 | DQ32: 000-00-000-000-000 | DR32: =COUNTIF(DQ20:DQ34, ">=" & DQ32) -> 15 | DS32: =RANK(DR32,DR20:DR34,1)+COUNTIF(DQ20:DQ32,DQ32)-1 -> 13 | DW32: 000-00-000-000-000 | DX32: =COUNTIF(DW20:DW34, ">=" & DW32) -> 15 | DY32: =RANK(DX32,DX20:DX34,1)+COUNTIF(DW20:DW32,DW32)-1 -> 13 | EC32: 000-00-000-000-000 | ED32: =COUNTIF(EC20:EC34, ">=" & EC32) -> 15 | EE32: =RANK(ED32,ED20:ED34,1)+COUNTIF(EC20:EC32,EC32)-1 -> 13 | EI32: 000-00-000-000-000 | EJ32: =COUNTIF(EI20:EI34, ">=" & EI32) -> 15 | EK32: =RANK(EJ32,EJ20:EJ34,1)+COUNTIF(EI20:EI32,EI32)-1 -> 13 | EO32: 000-00-000-000-000 | EP32: =COUNTIF(EO20:EO34, ">=" & EO32) -> 15 | EQ32: =RANK(EP32,EP20:EP34,1)+COUNTIF(EO20:EO32,EO32)-1 -> 13 | EU32: 000-00-000-000-000 | EV32: =COUNTIF(EU20:EU34, ">=" & EU32) -> 15 | EW32: =RANK(EV32,EV20:EV34,1)+COUNTIF(EU20:EU32,EU32)-1 -> 13 | FA32: 000-00-000-000-000 | FB32: =COUNTIF(FA20:FA34, ">=" & FA32) -> 15 | FC32: =RANK(FB32,FB20:FB34,1)+COUNTIF(FA20:FA32,FA32)-1 -> 13 | FG32: 000-00-000-000-000 | FH32: =COUNTIF(FG20:FG34, ">=" & FG32) -> 15 | FI32: =RANK(FH32,FH20:FH34,1)+COUNTIF(FG20:FG32,FG32)-1 -> 13
A33: @ Worth | AA33: e | AK33: 000-00-000-000-000 | AL33: =COUNTIF(AK20:AK34, ">=" & AK33) -> 15 | AM33: =RANK(AL33,AL20:AL34,1)+COUNTIF(AK20:AK33,AK33)-1 -> 14 | AQ33: 000-00-000-000-000 | AR33: =COUNTIF(AQ20:AQ34, ">=" & AQ33) -> 15 | AS33: =RANK(AR33,AR20:AR34,1)+COUNTIF(AQ20:AQ33,AQ33)-1 -> 14 | AW33: 000-00-000-000-000 | AX33: =COUNTIF(AW20:AW34, ">=" & AW33) -> 15 | AY33: =RANK(AX33,AX20:AX34,1)+COUNTIF(AW20:AW33,AW33)-1 -> 14 | BC33: 000-00-000-000-000 | BD33: =COUNTIF(BC20:BC34, ">=" & BC33) -> 15 | BE33: =RANK(BD33,BD20:BD34,1)+COUNTIF(BC20:BC33,BC33)-1 -> 14 | BI33: 000-00-000-000-000 | BJ33: =COUNTIF(BI20:BI34, ">=" & BI33) -> 15 | BK33: =RANK(BJ33,BJ20:BJ34,1)+COUNTIF(BI20:BI33,BI33)-1 -> 14 | BO33: 000-00-000-000-000 | BP33: =COUNTIF(BO20:BO34, ">=" & BO33) -> 15 | BQ33: =RANK(BP33,BP20:BP34,1)+COUNTIF(BO20:BO33,BO33)-1 -> 14 | BU33: 000-00-000-000-000 | BV33: =COUNTIF(BU20:BU34, ">=" & BU33) -> 15 | BW33: =RANK(BV33,BV20:BV34,1)+COUNTIF(BU20:BU33,BU33)-1 -> 14 | CA33: 000-00-000-000-000 | CB33: =COUNTIF(CA20:CA34, ">=" & CA33) -> 15 | CC33: =RANK(CB33,CB20:CB34,1)+COUNTIF(CA20:CA33,CA33)-1 -> 14 | CG33: 000-00-000-000-000 | CH33: =COUNTIF(CG20:CG34, ">=" & CG33) -> 15 | CI33: =RANK(CH33,CH20:CH34,1)+COUNTIF(CG20:CG33,CG33)-1 -> 14 | CM33: 000-00-000-000-000 | CN33: =COUNTIF(CM20:CM34, ">=" & CM33) -> 15 | CO33: =RANK(CN33,CN20:CN34,1)+COUNTIF(CM20:CM33,CM33)-1 -> 14 | CS33: 000-00-000-000-000 | CT33: =COUNTIF(CS20:CS34, ">=" & CS33) -> 15 | CU33: =RANK(CT33,CT20:CT34,1)+COUNTIF(CS20:CS33,CS33)-1 -> 14 | CY33: 000-00-000-000-000 | CZ33: =COUNTIF(CY20:CY34, ">=" & CY33) -> 15 | DA33: =RANK(CZ33,CZ20:CZ34,1)+COUNTIF(CY20:CY33,CY33)-1 -> 14 | DE33: 000-00-000-000-000 | DF33: =COUNTIF(DE20:DE34, ">=" & DE33) -> 15 | DG33: =RANK(DF33,DF20:DF34,1)+COUNTIF(DE20:DE33,DE33)-1 -> 14 | DK33: 000-00-000-000-000 | DL33: =COUNTIF(DK20:DK34, ">=" & DK33) -> 15 | DM33: =RANK(DL33,DL20:DL34,1)+COUNTIF(DK20:DK33,DK33)-1 -> 14 | DQ33: 000-00-000-000-000 | DR33: =COUNTIF(DQ20:DQ34, ">=" & DQ33) -> 15 | DS33: =RANK(DR33,DR20:DR34,1)+COUNTIF(DQ20:DQ33,DQ33)-1 -> 14 | DW33: =TEXT(DT17, "000") & TEXT(DU17, "-00") & TEXT(DX17, "-000") & TEXT(DW17, "-000") & TEXT(DV17, "-000") -> 000-00-000-000-000 | DX33: =COUNTIF(DW20:DW34, ">=" & DW33) -> 15 | DY33: =RANK(DX33,DX20:DX34,1)+COUNTIF(DW20:DW33,DW33)-1 -> 14 | EC33: 000-00-000-000-000 | ED33: =COUNTIF(EC20:EC34, ">=" & EC33) -> 15 | EE33: =RANK(ED33,ED20:ED34,1)+COUNTIF(EC20:EC33,EC33)-1 -> 14 | EI33: 000-00-000-000-000 | EJ33: =COUNTIF(EI20:EI34, ">=" & EI33) -> 15 | EK33: =RANK(EJ33,EJ20:EJ34,1)+COUNTIF(EI20:EI33,EI33)-1 -> 14 | EO33: 000-00-000-000-000 | EP33: =COUNTIF(EO20:EO34, ">=" & EO33) -> 15 | EQ33: =RANK(EP33,EP20:EP34,1)+COUNTIF(EO20:EO33,EO33)-1 -> 14 | EU33: 000-00-000-000-000 | EV33: =COUNTIF(EU20:EU34, ">=" & EU33) -> 15 | EW33: =RANK(EV33,EV20:EV34,1)+COUNTIF(EU20:EU33,EU33)-1 -> 14 | FA33: 000-00-000-000-000 | FB33: =COUNTIF(FA20:FA34, ">=" & FA33) -> 15 | FC33: =RANK(FB33,FB20:FB34,1)+COUNTIF(FA20:FA33,FA33)-1 -> 14 | FG33: 000-00-000-000-000 | FH33: =COUNTIF(FG20:FG34, ">=" & FG33) -> 15 | FI33: =RANK(FH33,FH20:FH34,1)+COUNTIF(FG20:FG33,FG33)-1 -> 14
A34: Lowndes | B34: 79 | C34: 85 | D34: 77 | E34: 241 | F34: 0 | AA34: e | AK34: 000-00-000-000-000 | AL34: =COUNTIF(AK20:AK34, ">=" & AK34) -> 15 | AM34: =RANK(AL34,AL20:AL34,1)+COUNTIF(AK20:AK34,AK34)-1 -> 15 | AQ34: 000-00-000-000-000 | AR34: =COUNTIF(AQ20:AQ34, ">=" & AQ34) -> 15 | AS34: =RANK(AR34,AR20:AR34,1)+COUNTIF(AQ20:AQ34,AQ34)-1 -> 15 | AW34: 000-00-000-000-000 | AX34: =COUNTIF(AW20:AW34, ">=" & AW34) -> 15 | AY34: =RANK(AX34,AX20:AX34,1)+COUNTIF(AW20:AW34,AW34)-1 -> 15 | BC34: 000-00-000-000-000 | BD34: =COUNTIF(BC20:BC34, ">=" & BC34) -> 15 | BE34: =RANK(BD34,BD20:BD34,1)+COUNTIF(BC20:BC34,BC34)-1 -> 15 | BI34: 000-00-000-000-000 | BJ34: =COUNTIF(BI20:BI34, ">=" & BI34) -> 15 | BK34: =RANK(BJ34,BJ20:BJ34,1)+COUNTIF(BI20:BI34,BI34)-1 -> 15 | BO34: 000-00-000-000-000 | BP34: =COUNTIF(BO20:BO34, ">=" & BO34) -> 15 | BQ34: =RANK(BP34,BP20:BP34,1)+COUNTIF(BO20:BO34,BO34)-1 -> 15 | BU34: 000-00-000-000-000 | BV34: =COUNTIF(BU20:BU34, ">=" & BU34) -> 15 | BW34: =RANK(BV34,BV20:BV34,1)+COUNTIF(BU20:BU34,BU34)-1 -> 15 | CA34: 000-00-000-000-000 | CB34: =COUNTIF(CA20:CA34, ">=" & CA34) -> 15 | CC34: =RANK(CB34,CB20:CB34,1)+COUNTIF(CA20:CA34,CA34)-1 -> 15 | CG34: 000-00-000-000-000 | CH34: =COUNTIF(CG20:CG34, ">=" & CG34) -> 15 | CI34: =RANK(CH34,CH20:CH34,1)+COUNTIF(CG20:CG34,CG34)-1 -> 15 | CM34: 000-00-000-000-000 | CN34: =COUNTIF(CM20:CM34, ">=" & CM34) -> 15 | CO34: =RANK(CN34,CN20:CN34,1)+COUNTIF(CM20:CM34,CM34)-1 -> 15 | CS34: 000-00-000-000-000 | CT34: =COUNTIF(CS20:CS34, ">=" & CS34) -> 15 | CU34: =RANK(CT34,CT20:CT34,1)+COUNTIF(CS20:CS34,CS34)-1 -> 15 | CY34: 000-00-000-000-000 | CZ34: =COUNTIF(CY20:CY34, ">=" & CY34) -> 15 | DA34: =RANK(CZ34,CZ20:CZ34,1)+COUNTIF(CY20:CY34,CY34)-1 -> 15 | DE34: 000-00-000-000-000 | DF34: =COUNTIF(DE20:DE34, ">=" & DE34) -> 15 | DG34: =RANK(DF34,DF20:DF34,1)+COUNTIF(DE20:DE34,DE34)-1 -> 15 | DK34: 000-00-000-000-000 | DL34: =COUNTIF(DK20:DK34, ">=" & DK34) -> 15 | DM34: =RANK(DL34,DL20:DL34,1)+COUNTIF(DK20:DK34,DK34)-1 -> 15 | DQ34: 000-00-000-000-000 | DR34: =COUNTIF(DQ20:DQ34, ">=" & DQ34) -> 15 | DS34: =RANK(DR34,DR20:DR34,1)+COUNTIF(DQ20:DQ34,DQ34)-1 -> 15 | DW34: 000-00-000-000-000 | DX34: =COUNTIF(DW20:DW34, ">=" & DW34) -> 15 | DY34: =RANK(DX34,DX20:DX34,1)+COUNTIF(DW20:DW34,DW34)-1 -> 15 | EC34: 000-00-000-000-000 | ED34: =COUNTIF(EC20:EC34, ">=" & EC34) -> 15 | EE34: =RANK(ED34,ED20:ED34,1)+COUNTIF(EC20:EC34,EC34)-1 -> 15 | EI34: 000-00-000-000-000 | EJ34: =COUNTIF(EI20:EI34, ">=" & EI34) -> 15 | EK34: =RANK(EJ34,EJ20:EJ34,1)+COUNTIF(EI20:EI34,EI34)-1 -> 15 | EO34: 000-00-000-000-000 | EP34: =COUNTIF(EO20:EO34, ">=" & EO34) -> 15 | EQ34: =RANK(EP34,EP20:EP34,1)+COUNTIF(EO20:EO34,EO34)-1 -> 15 | EU34: 000-00-000-000-000 | EV34: =COUNTIF(EU20:EU34, ">=" & EU34) -> 15 | EW34: =RANK(EV34,EV20:EV34,1)+COUNTIF(EU20:EU34,EU34)-1 -> 15 | FA34: 000-00-000-000-000 | FB34: =COUNTIF(FA20:FA34, ">=" & FA34) -> 15 | FC34: =RANK(FB34,FB20:FB34,1)+COUNTIF(FA20:FA34,FA34)-1 -> 15 | FG34: 000-00-000-000-000 | FH34: =COUNTIF(FG20:FG34, ">=" & FG34) -> 15 | FI34: =RANK(FH34,FH20:FH34,1)+COUNTIF(FG20:FG34,FG34)-1 -> 15
A35: Dougherty | B35: 85 | C35: 74 | D35: 77 | E35: 236 | F35: 3 | L35: 83 | M35: 78 | N35: 47 | O35: 208 | AH35: =IF((OR(AA4="Forfeit",AA4="Win")),0,SUMIFS(AH4:AH18,AM20:AM34,"<=4")) -> 1040 | AI35: =IF((OR(AA4="Forfeit",AA4="Win")),0,SUMIFS(AI4:AI18,AM20:AM34,"<=4")) -> 19 | AJ35: =IF((OR(AA4="Forfeit",AA4="Win")),0,SUMIFS(AJ4:AJ18, AM20:AM34, "<=4")) -> 355 | AK35: =IF((OR(AA4="Forfeit",AA4="Win")),0,SUMIFS(AK4:AK18, AM20:AM34, "<=4")) -> 363 | AL35: =IF((OR(AA4="Forfeit",AA4="Win")),0,SUMIFS(AL4:AL18, AM20:AM34, "<=4")) -> 322 | AN35: =IF((OR(AA5="Forfeit",AA5="Win")),0,SUMIFS(AN4:AN18,AS20:AS34,"<=4")) -> 1020 | AO35: =IF((OR(AA5="Forfeit",AA5="Win")),0,SUMIFS(AO4:AO18,AS20:AS34,"<=4")) -> 21 | AP35: =IF((OR(AA5="Forfeit",AA5="Win")),0,SUMIFS(AP4:AP18, AS20:AS34, "<=4")) -> 354 | AQ35: =IF((OR(AA5="Forfeit",AA5="Win")),0,SUMIFS(AQ4:AQ18, AS20:AS34, "<=4")) -> 361 | AR35: =IF((OR(AA5="Forfeit",AA5="Win")),0,SUMIFS(AR4:AR18, AS20:AS34, "<=4")) -> 305 | AT35: =IF((OR(AA6="Forfeit",AA6="Win")),0,SUMIFS(AT4:AT18,AY20:AY34,"<=4")) -> 978 | AU35: =IF((OR(AA6="Forfeit",AA6="Win")),0,SUMIFS(AU4:AU18,AY20:AY34,"<=4")) -> 15 | AV35: =IF((OR(AA6="Forfeit",AA6="Win")),0,SUMIFS(AV4:AV18, AY20:AY34, "<=4")) -> 342 | AW35: =IF((OR(AA6="Forfeit",AA6="Win")),0,SUMIFS(AW4:AW18, AY20:AY34, "<=4")) -> 357 | AX35: =IF((OR(AA6="Forfeit",AA6="Win")),0,SUMIFS(AX4:AX18, AY20:AY34, "<=4")) -> 279 | AZ35: =IF((OR(AA7="Forfeit",AA7="Win")),0,SUMIFS(AZ4:AZ18,BE20:BE34,"<=4")) -> 986 | BA35: =IF((OR(AA7="Forfeit",AA7="Win")),0,SUMIFS(BA4:BA18,BE20:BE34,"<=4")) -> 21 | BB35: =IF((OR(AA7="Forfeit",AA7="Win")),0,SUMIFS(BB4:BB18, BE20:BE34, "<=4")) -> 350 | BC35: =IF((OR(AA7="Forfeit",AA7="Win")),0,SUMIFS(BC4:BC18, BE20:BE34, "<=4")) -> 319 | BD35: =IF((OR(AA7="Forfeit",AA7="Win")),0,SUMIFS(BD4:BD18, BE20:BE34, "<=4")) -> 317 | BF35: =IF((OR(AA8="Forfeit",AA8="Win")),0,SUMIFS(BF4:BF18,BK20:BK34,"<=4")) -> 1046 | BG35: =IF((OR(AA8="Forfeit",AA8="Win")),0,SUMIFS(BG4:BG18,BK20:BK34,"<=4")) -> 27 | BH35: =IF((OR(AA8="Forfeit",AA8="Win")),0,SUMIFS(BH4:BH18, BK20:BK34, "<=4")) -> 356 | BI35: =IF((OR(AA8="Forfeit",AA8="Win")),0,SUMIFS(BI4:BI18, BK20:BK34, "<=4")) -> 371 | BJ35: =IF((OR(AA8="Forfeit",AA8="Win")),0,SUMIFS(BJ4:BJ18, BK20:BK34, "<=4")) -> 319 | BL35: =IF((OR(AA9="Forfeit",AA9="Win")),0,SUMIFS(BL4:BL18,BQ20:BQ34,"<=4")) -> 994 | BM35: =IF((OR(AA9="Forfeit",AA9="Win")),0,SUMIFS(BM4:BM18,BQ20:BQ34,"<=4")) -> 17 | BN35: =IF((OR(AA9="Forfeit",AA9="Win")),0,SUMIFS(BN4:BN18, BQ20:BQ34, "<=4")) -> 342 | BO35: =IF((OR(AA9="Forfeit",AA9="Win")),0,SUMIFS(BO4:BO18, BQ20:BQ34, "<=4")) -> 343 | BP35: =IF((OR(AA9="Forfeit",AA9="Win")),0,SUMIFS(BP4:BP18, BQ20:BQ34, "<=4")) -> 309 | BR35: =IF((OR(AA10="Forfeit",AA10="Win")),0,SUMIFS(BR4:BR18,BW20:BW34,"<=4")) -> 1013 | BS35: =IF((OR(AA10="Forfeit",AA10="Win")),0,SUMIFS(BS4:BS18,BW20:BW34,"<=4")) -> 19 | BT35: =IF((OR(AA10="Forfeit",AA10="Win")),0,SUMIFS(BT4:BT18, BW20:BW34, "<=4")) -> 325 | BU35: =IF((OR(AA10="Forfeit",AA10="Win")),0,SUMIFS(BU4:BU18, BW20:BW34, "<=4")) -> 370 | BV35: =IF((OR(AA10="Forfeit",AA10="Win")),0,SUMIFS(BV4:BV18, BW20:BW34, "<=4")) -> 318 | BX35: =IF((OR(AA11="Forfeit",AA11="Win")),0,SUMIFS(BX4:BX18,CC20:CC34,"<=4")) -> 0 | BY35: =IF((OR(AA11="Forfeit",AA11="Win")),0,SUMIFS(BY4:BY18,CC20:CC34,"<=4")) -> 0 | BZ35: =IF((OR(AA11="Forfeit",AA11="Win")),0,SUMIFS(BZ4:BZ18, CC20:CC34, "<=4")) -> 0 | CA35: =IF((OR(AA11="Forfeit",AA11="Win")),0,SUMIFS(CA4:CA18, CC20:CC34, "<=4")) -> 0 | CB35: =IF((OR(AA11="Forfeit",AA11="Win")),0,SUMIFS(CB4:CB18, CC20:CC34, "<=4")) -> 0 | CD35: =IF((OR(AA12="Forfeit",AA12="Win")),0,SUMIFS(CD4:CD18,CI20:CI34,"<=4")) -> 0 | CE35: =IF((OR(AA12="Forfeit",AA12="Win")),0,SUMIFS(CE4:CE18,CI20:CI34,"<=4")) -> 0 | CF35: =IF((OR(AA12="Forfeit",AA12="Win")),0,SUMIFS(CF4:CF18, CI20:CI34, "<=4")) -> 0 | CG35: =IF((OR(AA12="Forfeit",AA12="Win")),0,SUMIFS(CG4:CG18, CI20:CI34, "<=4")) -> 0 | CH35: =IF((OR(AA12="Forfeit",AA12="Win")),0,SUMIFS(CH4:CH18, CI20:CI34, "<=4")) -> 0 | CJ35: =IF((OR(AA13="Forfeit",AA13="Win")),0,SUMIFS(CJ4:CJ18,CO20:CO34,"<=4")) -> 1011 | CK35: =IF((OR(AA13="Forfeit",AA13="Win")),0,SUMIFS(CK4:CK18,CO20:CO34,"<=4")) -> 24 | CL35: =IF((OR(AA13="Forfeit",AA13="Win")),0,SUMIFS(CL4:CL18, CO20:CO34, "<=4")) -> 354 | CM35: =IF((OR(AA13="Forfeit",AA13="Win")),0,SUMIFS(CM4:CM18, CO20:CO34, "<=4")) -> 367 | CN35: =IF((OR(AA13="Forfeit",AA13="Win")),0,SUMIFS(CN4:CN18, CO20:CO34, "<=4")) -> 290 | CP35: =IF((OR(AA14="Forfeit",AA14="Win")),0,SUMIFS(CP4:CP18,CU20:CU34,"<=4")) -> 953 | CQ35: =IF((OR(AA14="Forfeit",AA14="Win")),0,SUMIFS(CQ4:CQ18,CU20:CU34,"<=4")) -> 13 | CR35: =IF((OR(AA14="Forfeit",AA14="Win")),0,SUMIFS(CR4:CR18, CU20:CU34, "<=4")) -> 319 | CS35: =IF((OR(AA14="Forfeit",AA14="Win")),0,SUMIFS(CS4:CS18, CU20:CU34, "<=4")) -> 355 | CT35: =IF((OR(AA14="Forfeit",AA14="Win")),0,SUMIFS(CT4:CT18, CU20:CU34, "<=4")) -> 279 | CV35: =IF((OR(AA15="Forfeit",AA15="Win")),0,SUMIFS(CV4:CV18,DA20:DA34,"<=4")) -> 976 | CW35: =IF((OR(AA15="Forfeit",AA15="Win")),0,SUMIFS(CW4:CW18,DA20:DA34,"<=4")) -> 16 | CX35: =IF((OR(AA15="Forfeit",AA15="Win")),0,SUMIFS(CX4:CX18, DA20:DA34, "<=4")) -> 330 | CY35: =IF((OR(AA15="Forfeit",AA15="Win")),0,SUMIFS(CY4:CY18, DA20:DA34, "<=4")) -> 361 | CZ35: =IF((OR(AA15="Forfeit",AA15="Win")),0,SUMIFS(CZ4:CZ18, DA20:DA34, "<=4")) -> 285 | DB35: =IF((OR(AA16="Forfeit",AA16="Win")),0,SUMIFS(DB4:DB18,DG20:DG34,"<=4")) -> 960 | DC35: =IF((OR(AA16="Forfeit",AA16="Win")),0,SUMIFS(DC4:DC18,DG20:DG34,"<=4")) -> 14 | DD35: =IF((OR(AA16="Forfeit",AA16="Win")),0,SUMIFS(DD4:DD18, DG20:DG34, "<=4")) -> 340 | DE35: =IF((OR(AA16="Forfeit",AA16="Win")),0,SUMIFS(DE4:DE18, DG20:DG34, "<=4")) -> 350 | DF35: =IF((OR(AA16="Forfeit",AA16="Win")),0,SUMIFS(DF4:DF18, DG20:DG34, "<=4")) -> 270 | DH35: =IF((OR(AA17="Forfeit",AA17="Win")),0,SUMIFS(DH4:DH18,DM20:DM34,"<=4")) -> 986 | DI35: =IF((OR(AA17="Forfeit",AA17="Win")),0,SUMIFS(DI4:DI18,DM20:DM34,"<=4")) -> 16 | DJ35: =IF((OR(AA17="Forfeit",AA17="Win")),0,SUMIFS(DJ4:DJ18, DM20:DM34, "<=4")) -> 339 | DK35: =IF((OR(AA17="Forfeit",AA17="Win")),0,SUMIFS(DK4:DK18, DM20:DM34, "<=4")) -> 354 | DL35: =IF((OR(AA17="Forfeit",AA17="Win")),0,SUMIFS(DL4:DL18, DM20:DM34, "<=4")) -> 293 | DN35: =IF((OR(AA18="Forfeit",AA18="Win")),0,SUMIFS(DN4:DN18,DS20:DS34,"<=4")) -> 0 | DO35: =IF((OR(AA18="Forfeit",AA18="Win")),0,SUMIFS(DO4:DO18,DS20:DS34,"<=4")) -> 0 | DP35: =IF((OR(AA18="Forfeit",AA18="Win")),0,SUMIFS(DP4:DP18, DS20:DS34, "<=4")) -> 0 | DQ35: =IF((OR(AA18="Forfeit",AA18="Win")),0,SUMIFS(DQ4:DQ18, DS20:DS34, "<=4")) -> 0 | DR35: =IF((OR(AA18="Forfeit",AA18="Win")),0,SUMIFS(DR4:DR18, DS20:DS34, "<=4")) -> 0 | DT35: =IF((OR(AA19="Forfeit",AA19="Win")),0,SUMIFS(DT4:DT18,DY20:DY34,"<=4")) -> 0 | DU35: =IF((OR(AA19="Forfeit",AA19="Win")),0,SUMIFS(DU4:DU18,DY20:DY34,"<=4")) -> 0 | DV35: =IF((OR(AA19="Forfeit",AA19="Win")),0,SUMIFS(DV4:DV18, DY20:DY34, "<=4")) -> 0 | DW35: =IF((OR(AA19="Forfeit",AA19="Win")),0,SUMIFS(DW4:DW18, DY20:DY34, "<=4")) -> 0 | DX35: =IF((OR(AA19="Forfeit",AA19="Win")),0,SUMIFS(DX4:DX18, DY20:DY34, "<=4")) -> 0 | DZ35: =IF((OR(AA20="Forfeit",AA20="Win")),0,SUMIFS(DZ4:DZ18,EE20:EE34,"<=4")) -> 0 | EA35: =IF((OR(AA20="Forfeit",AA20="Win")),0,SUMIFS(EA4:EA18,EE20:EE34,"<=4")) -> 0 | EB35: =IF((OR(AA20="Forfeit",AA20="Win")),0,SUMIFS(EB4:EB18, EE20:EE34, "<=4")) -> 0 | EC35: =IF((OR(AA20="Forfeit",AA20="Win")),0,SUMIFS(EC4:EC18, EE20:EE34, "<=4")) -> 0 | ED35: =IF((OR(AA20="Forfeit",AA20="Win")),0,SUMIFS(ED4:ED18, EE20:EE34, "<=4")) -> 0 | EF35: =IF((OR(AA21="Forfeit",AA21="Win")),0,SUMIFS(EF4:EF18,EK20:EK34,"<=4")) -> 0 | EG35: =IF((OR(AA21="Forfeit",AA21="Win")),0,SUMIFS(EG4:EG18,EK20:EK34,"<=4")) -> 0 | EH35: =IF((OR(AA25="Forfeit",AA25="Win")),0,SUMIFS(EH4:EH18, EK20:EK34, "<=4")) -> 0 | EI35: =IF((OR(AA25="Forfeit",AA25="Win")),0,SUMIFS(EI4:EI18, EK20:EK34, "<=4")) -> 0 | EJ35: =IF((OR(AA25="Forfeit",AA25="Win")),0,SUMIFS(EJ4:EJ18, EK20:EK34, "<=4")) -> 0 | EL35: =IF((OR(AA22="Forfeit",AA22="Win")),0,SUMIFS(EL4:EL18,EQ20:EQ34,"<=4")) -> 0 | EM35: =IF((OR(AA22="Forfeit",AA22="Win")),0,SUMIFS(EM4:EM18,EQ20:EQ34,"<=4")) -> 0 | EN35: =IF((OR(AA22="Forfeit",AA22="Win")),0,SUMIFS(EN4:EN18, EQ20:EQ34, "<=4")) -> 0 | EO35: =IF((OR(AA22="Forfeit",AA22="Win")),0,SUMIFS(EO4:EO18, EQ20:EQ34, "<=4")) -> 0 | EP35: =IF((OR(AA22="Forfeit",AA22="Win")),0,SUMIFS(EP4:EP18, EQ20:EQ34, "<=4")) -> 0 | ER35: =IF((OR(AA23="Forfeit",AA23="Win")),0,SUMIFS(ER4:ER18,EW20:EW34,"<=4")) -> 0 | ES35: =IF((OR(AA23="Forfeit",AA23="Win")),0,SUMIFS(ES4:ES18,EW20:EW34,"<=4")) -> 0 | ET35: =IF((OR(AA23="Forfeit",AA23="Win")),0,SUMIFS(ET4:ET18, EW20:EW34, "<=4")) -> 0 | EU35: =IF((OR(AA23="Forfeit",AA23="Win")),0,SUMIFS(EU4:EU18, EW20:EW34, "<=4")) -> 0 | EV35: =IF((OR(AA23="Forfeit",AA23="Win")),0,SUMIFS(EV4:EV18, EW20:EW34, "<=4")) -> 0 | EX35: =IF((OR(AA24="Forfeit",AA24="Win")),0,SUMIFS(EX4:EX18,FC20:FC34,"<=4")) -> 0 | EY35: =IF((OR(AA24="Forfeit",AA24="Win")),0,SUMIFS(EY4:EY18,FC20:FC34,"<=4")) -> 0 | EZ35: =IF((OR(AA24="Forfeit",AA24="Win")),0,SUMIFS(EZ4:EZ18, FC20:FC34, "<=4")) -> 0 | FA35: =IF((OR(AA24="Forfeit",AA24="Win")),0,SUMIFS(FA4:FA18, FC20:FC34, "<=4")) -> 0 | FB35: =IF((OR(AA24="Forfeit",AA24="Win")),0,SUMIFS(FB4:FB18, FC20:FC34, "<=4")) -> 0 | FD35: =IF((OR(AA25="Forfeit",AA25="Win")),0,SUMIFS(FD4:FD18,FI20:FI34,"<=4")) -> 0 | FE35: =IF((OR(AA25="Forfeit",AA25="Win")),0,SUMIFS(FE4:FE18,FI20:FI34,"<=4")) -> 0 | FF35: =IF((OR(AA25="Forfeit",AA25="Win")),0,SUMIFS(FF4:FF18, FI20:FI34, "<=4")) -> 0 | FG35: =IF((OR(AA25="Forfeit",AA25="Win")),0,SUMIFS(FG4:FG18, FI20:FI34, "<=4")) -> 0 | FH35: =IF((OR(AA25="Forfeit",AA25="Win")),0,SUMIFS(FH4:FH18, FI20:FI34, "<=4")) -> 0
A36: @ Dougherty | E36: =IF(SUM(B36:D36)>0,SUM(B36:D36),"") ->  | J36: =IF(SUM(G36:I36)>0,SUM(G36:I36),"") ->  | O36: =IF(SUM(L36:N36)>0,SUM(L36:N36),"") ->  | T36: =IF(SUM(Q36:S36)>0,SUM(Q36:S36),"") ->  | Y36: =IF(SUM(V36:X36)>0,SUM(V36:X36),"") ->  | AA36: a
A37: BYE | E37: =IF(SUM(B37:D37)>0,SUM(B37:D37),"") ->  | J37: =IF(SUM(G37:I37)>0,SUM(G37:I37),"") ->  | AA37: b
A38: BYE | J38: =IF(SUM(G38:I38)>0,SUM(G38:I38),"") ->  | AA38: o
A39: Valdosta | B39: 91 | C39: 90 | D39: 67 | E39: 248 | F39: 5 | J39: =IF(SUM(G39:I39)>0,SUM(G39:I39),"") ->  | Q39: 92 | R39: 89 | S39: 68 | T39: 249 | U39: 4 | AA39: v
A40: @ Colquitt | B40: 81 | C40: 79 | D40: 55 | E40: 215 | F40: 2 | V40: 71 | W40: 86 | X40: 55 | Y40: 212 | Z40: 2 | AA40: e
A41: Westover | B41: 83 | C41: 88 | D41: 67 | E41: 238 | F41: 3
A42: Worth | B42: 86 | C42: 87 | D42: 82 | E42: 255 | F42: 5 | L42: 83 | M42: 80 | N42: 40 | O42: 203 | P42: 1 | V42: 59 | W42: 87 | X42: 40 | Y42: 186 | Z42: 2
A43: @ Lowndes | B43: 86 | C43: 92 | D43: 83 | E43: 261 | F43: 6 | L43: 79 | M43: 75 | N43: 45 | O43: 199 | P43: 0 | V43: 48 | W43: 67 | X43: 33 | Y43: 148 | Z43: 0
A50: Area Playoff
A51: Area Championship
A52: Average | B52: =IF(SUM(B30:B51)=0,0,AVERAGE(B30:B51)) -> 83.5 | C52: 84.5 | D52: 70.2 | E52: 238.2 | G52: 71.5 | H52: 84.5 | I52: 59.5 | J52: 215.5 | L52: 81.66666667 | M52: 77.66666667 | N52: 44 | O52: 203.3333333 | Q52: 92 | R52: 89 | S52: 68 | T52: 249 | V52: 59.33333333 | W52: 80 | X52: 42.66666667 | Y52: 182
A54: Cairo | B54: Hurst, Jacob, (9)R | G54: CA 12 | L54: CA 13 | Q54: CA 14 | V54: CA 15
A55: VS | B55: K | C55: P | D55: S | E55: AGGR | F55: *10 | G55: K | H55: P | I55: S | J55: AGGR | K55: *10 | L55: K | M55: P | N55: S | O55: AGGR | P55: *10 | Q55: K | R55: P | S55: S | T55: AGGR | U55: *10 | V55: K | W55: P | X55: S | Y55: AGGR | Z55: *10 | AC55: =A27 -> CA
A56: @ Valdosta | E56: =IF(SUM(B56:D56)>0,SUM(B56:D56),"") ->  | J56: =IF(SUM(G56:I56)>0,SUM(G56:I56),"") ->  | O56: =IF(SUM(L56:N56)>0,SUM(L56:N56),"") ->  | T56: =IF(SUM(Q56:S56)>0,SUM(Q56:S56),"") ->  | Y56: =IF(SUM(V56:X56)>0,SUM(V56:X56),"") ->  | AC56: =B54 -> Hurst, Jacob, (9)R | AD56: =G54 -> CA 12 | AE56: =L54 -> CA 13 | AF56: =Q54 -> CA 14 | AG56: =V54 -> CA 15
A57: Colquitt | J57: =IF(SUM(G57:I57)>0,SUM(G57:I57),"") ->  | AC57: =IF(SUM(E56:E77)>0,LARGE(E56:E77,1),0) -> 209 | AD57: =IF(SUM(J56:J77)>0,LARGE(J56:J77,1),0) -> 0 | AE57: =IF(SUM(O56:O77)>0,LARGE(O56:O77,1),0) -> 0 | AF57: =IF(SUM(T56:T77)>0,LARGE(T56:T77,1),0) -> 0 | AG57: =IF(SUM(Y56:Y77)>0,LARGE(Y56:Y77,1),0) -> 0
A58: @ Westover | J58: =IF(SUM(G58:I58)>0,SUM(G58:I58),"") ->  | AA58: s
A59: @ Worth | J59: =IF(SUM(G59:I59)>0,SUM(G59:I59),"") ->  | AA59: e
A60: Lowndes | AA60: e
A61: Dougherty | J61: =IF(SUM(G61:I61)>0,SUM(G61:I61),"") -> 
A62: @ Dougherty | J62: =IF(SUM(G62:I62)>0,SUM(G62:I62),"") ->  | O62: =IF(SUM(L62:N62)>0,SUM(L62:N62),"") ->  | T62: =IF(SUM(Q62:S62)>0,SUM(Q62:S62),"") ->  | Y62: =IF(SUM(V62:X62)>0,SUM(V62:X62),"") ->  | AA62: a
A63: BYE | J63: =IF(SUM(G63:I63)>0,SUM(G63:I63),"") ->  | O63: =IF(SUM(L63:N63)>0,SUM(L63:N63),"") ->  | T63: =IF(SUM(Q63:S63)>0,SUM(Q63:S63),"") ->  | Y63: =IF(SUM(V63:X63)>0,SUM(V63:X63),"") ->  | AA63: b
A64: BYE | J64: =IF(SUM(G64:I64)>0,SUM(G64:I64),"") ->  | O64: =IF(SUM(L64:N64)>0,SUM(L64:N64),"") ->  | T64: =IF(SUM(Q64:S64)>0,SUM(Q64:S64),"") ->  | Y64: =IF(SUM(V64:X64)>0,SUM(V64:X64),"") ->  | AA64: o
A65: Valdosta | J65: =IF(SUM(G65:I65)>0,SUM(G65:I65),"") ->  | O65: =IF(SUM(L65:N65)>0,SUM(L65:N65),"") ->  | T65: =IF(SUM(Q65:S65)>0,SUM(Q65:S65),"") ->  | Y65: =IF(SUM(V65:X65)>0,SUM(V65:X65),"") ->  | AA65: v
A66: @ Colquitt | AA66: e
A67: Westover
A68: Worth
A69: @ Lowndes | B69: 81 | C69: 78 | D69: 50 | E69: 209 | F69: 1
A76: Area Playoff
A77: Area Championship
A78: Average | B78: =IF(SUM(B56:B77)=0,0,AVERAGE(B56:B77)) -> 81 | C78: 78 | D78: 50 | E78: 209 | G78: 0 | H78: 0 | I78: 0 | J78: 0 | L78: 0 | M78: 0 | N78: 0 | O78: 0 | Q78: 0 | R78: 0 | S78: 0 | T78: 0 | V78: 0 | W78: 0 | X78: 0 | Y78: 0
A81: Colquitt County | B81: Perdew, Andrew, (12) | G81: Dwathleikhum, Mercy, (11) | L81: Moses, John, (12) | Q81: Cardenas, Fatima, (12) | V81: Norman, Lizbeth, (12) | AA81: MATCH | AH81: Match 1 | AM81: RK | AN81: Match 2 | AS81: RK | AT81: Match 3 | AY81: RK | AZ81: Match 4 | BE81: RK | BF81: Match 5 | BK81: RK | BL81: Match 6 | BQ81: RK | BR81: Match 7 | BW81: RK | BX81: Match 8 | CC81: RK | CD81: Match 9 | CI81: RK | CJ81: Match 10 | CO81: RK | CP81: Match 11 | CU81: RK | CV81: Match 12 | DA81: RK | DB81: Match 13 | DG81: RK | DH81: Match 14 | DM81: RK | DN81: Match 15 | DS81: RK | DT81: Match 16 | DY81: RK | DZ81: Match 17 | EE81: RK | EF81: Match 18 | EK81: RK | EL81: Match 19 | EQ81: RK | ER81: Match 20 | EW81: RK | EX81: Area Playoff | FC81: RK | FD81: Area Championship | FI81: RK | FJ81: AGGR | FK81: Kneeling | FL81: Prone | FM81: Standing
A82: VS | B82: K | C82: P | D82: S | E82: AGGR | F82: *10 | G82: K | H82: P | I82: S | J82: AGGR | K82: *10 | L82: K | M82: P | N82: S | O82: AGGR | P82: *10 | Q82: K | R82: P | S82: S | T82: AGGR | U82: *10 | V82: K | W82: P | X82: S | Y82: AGGR | Z82: *10 | AA82: SCORE | AB82: *10 | AC82: =A106 -> CO | AH82: AGGR | AI82: *10 | AJ82: K | AK82: P | AL82: S | AN82: AGGR | AO82: *10 | AP82: K | AQ82: P | AR82: S | AT82: AGGR | AU82: *10 | AV82: K | AW82: P | AX82: S | AZ82: AGGR | BA82: *10 | BB82: K | BC82: P | BD82: S | BF82: AGGR | BG82: *10 | BH82: K | BI82: P | BJ82: S | BL82: AGGR | BM82: *10 | BN82: K | BO82: P | BP82: S | BR82: AGGR | BS82: *10 | BT82: K | BU82: P | BV82: S | BX82: AGGR | BY82: *10 | BZ82: K | CA82: P | CB82: S | CD82: AGGR | CE82: *10 | CF82: K | CG82: P | CH82: S | CJ82: AGGR | CK82: *10 | CL82: K | CM82: P | CN82: S | CP82: AGGR | CQ82: *10 | CR82: K | CS82: P | CT82: S | CV82: AGGR | CW82: *10 | CX82: K | CY82: P | CZ82: S | DB82: AGGR | DC82: *10 | DD82: K | DE82: P | DF82: S | DH82: AGGR | DI82: *10 | DJ82: K | DK82: P | DL82: S | DN82: AGGR | DO82: *10 | DP82: K | DQ82: P | DR82: S | DT82: AGGR | DU82: *10 | DV82: K | DW82: P | DX82: S | DZ82: AGGR | EA82: *10 | EB82: K | EC82: P | ED82: S | EF82: AGGR | EG82: *10 | EH82: K | EI82: P | EJ82: S | EL82: AGGR | EM82: *10 | EN82: K | EO82: P | EP82: S | ER82: AGGR | ES82: *10 | ET82: K | EU82: P | EV82: S | EX82: AGGR | EY82: *10 | EZ82: K | FA82: P | FB82: S | FD82: AGGR | FE82: *10 | FF82: K | FG82: P | FH82: S | FJ82: Large | FK82: Large | FL82: Large | FM82: Large
A83: @ Westover | B83: 93 | C83: 93 | D83: 87 | E83: =IF(SUM(B83:D83)>0,SUM(B83:D83),"") -> 273 | F83: 6 | G83: 92 | H83: 87 | I83: 85 | J83: =IF(SUM(G83:I83)>0,SUM(G83:I83),"") -> 264 | K83: 7 | L83: 88 | M83: 98 | N83: 69 | O83: =IF(SUM(L83:N83)>0,SUM(L83:N83),"") -> 255 | P83: 10 | Q83: 80 | R83: 82 | S83: 78 | T83: =IF(SUM(Q83:S83)>0,SUM(Q83:S83),"") -> 240 | U83: 0 | V83: 73 | W83: 80 | X83: 84 | Y83: =IF(SUM(V83:X83)>0,SUM(V83:X83),"") -> 237 | Z83: 2 | AA83: =IF(SUM(E83,J83,O83,T83,Y83,E109,J109,O109,T109,Y109,E135,J135,O135,T135,Y135)>0,(LARGE((E83,J83,O83,T83,Y83,E109,J109,O109,T109,Y109,E135,J135,O135,T135,Y135),1)+LARGE((E83,J83,O83,T83,Y83,E109,J109,O109,T109,Y109,E135,J135,O135,T135,Y135),2)+LARGE((E83,J83,O83,T83,Y83,E109,J109,O109,T109,Y109,E135,J135,O135,T135,Y135),3)+LARGE((E83,J83,O83,T83,Y83,E109,J109,O109,T109,Y109,E135,J135,O135,T135,Y135),4)),"") -> 1032 | AB83: =IF(SUM(AI114)>0,SUM(AI114),"") -> 23 | AC83: =B81 -> Perdew, Andrew, (12) | AD83: =G81 -> Dwathleikhum, Mercy, (11) | AE83: =L81 -> Moses, John, (12) | AF83: =Q81 -> Cardenas, Fatima, (12) | AG83: =V81 -> Norman, Lizbeth, (12) | AH83: =IF(SUM(B83:D83)>0,SUM(B83:D83),0) -> 273 | AI83: =IF(SUM(F83)>0,SUM(F83),0) -> 6 | AJ83: =B83 -> 93 | AK83: =C83 -> 93 | AL83: =D83 -> 87 | AN83: =IF(SUM(B84:D84)>0,SUM(B84:D84),0) -> 272 | AO83: =IF(SUM(F84)>0,SUM(F84),0) -> 10 | AP83: =B84 -> 87 | AQ83: =C84 -> 99 | AR83: =D84 -> 86 | AT83: =IF(SUM(B85:D85)>0,SUM(B85:D85),0) -> 260 | AU83: =IF(SUM(F85)>0,SUM(F85),0) -> 6 | AV83: =B85 -> 89 | AW83: =C85 -> 92 | AX83: =D85 -> 79 | AZ83: =IF(SUM(B86:D86)>0,SUM(B86:D86),0) -> 270 | BA83: =IF(SUM(F86)>0,SUM(F86),0) -> 8 | BB83: =B86 -> 91 | BC83: =C86 -> 96 | BD83: =D86 -> 83 | BF83: =IF(SUM(B87:D87)>0,SUM(B87:D87),0) -> 262 | BG83: =IF(SUM(F87)>0,SUM(F87),0) -> 4 | BH83: =B87 -> 94 | BI83: =C87 -> 89 | BJ83: =D87 -> 79 | BL83: =IF(SUM(B88:D88)>0,SUM(B88:D88),0) -> 274 | BM83: =IF(SUM(F88)>0,SUM(F88),0) -> 6 | BN83: =B88 -> 93 | BO83: =C88 -> 96 | BP83: =D88 -> 85 | BR83: =IF(SUM(B89:D89)>0,SUM(B89:D89),0) -> 273 | BS83: =IF(SUM(F89)>0,SUM(F89),0) -> 5 | BT83: =B89 -> 91 | BU83: =C89 -> 96 | BV83: =D89 -> 86 | BX83: =IF(SUM(B90:D90)>0,SUM(B90:D90),0) -> 0 | BY83: =IF(SUM(F90)>0,SUM(F90),0) -> 0 | BZ83: =B90 -> 0 | CA83: =C90 -> 0 | CB83: =D90 -> 0 | CD83: =IF(SUM(B91:D91)>0,SUM(B91:D91),0) -> 0 | CE83: =IF(SUM(F91)>0,SUM(F91),0) -> 0 | CF83: =B91 -> 0 | CG83: =C91 -> 0 | CH83: =D91 -> 0 | CJ83: =IF(SUM(B92:D92)>0,SUM(B92:D92),0) -> 279 | CK83: =IF(SUM(F92)>0,SUM(F92),0) -> 7 | CL83: =B92 -> 94 | CM83: =C92 -> 95 | CN83: =D92 -> 90 | CP83: =IF(SUM(B93:D93)>0,SUM(B93:D93),0) -> 270 | CQ83: =IF(SUM(F93)>0,SUM(F93),0) -> 8 | CR83: =B93 -> 87 | CS83: =C93 -> 92 | CT83: =D93 -> 91 | CV83: =IF(SUM(B94:D94)>0,SUM(B94:D94),0) -> 270 | CW83: =IF(SUM(F94)>0,SUM(F94),0) -> 7 | CX83: =B94 -> 92 | CY83: =C94 -> 89 | CZ83: =D94 -> 89 | DB83: =IF(SUM(B95:D95)>0,SUM(B95:D95),0) -> 278 | DC83: =IF(SUM(F95)>0,SUM(F95),0) -> 7 | DD83: =B95 -> 91 | DE83: =C95 -> 95 | DF83: =D95 -> 92 | DH83: =IF(SUM(B96:D96)>0,SUM(B96:D96),0) -> 276 | DI83: =IF(SUM(F96)>0,SUM(F96),0) -> 7 | DJ83: =B96 -> 99 | DK83: =C96 -> 86 | DL83: =D96 -> 91 | DN83: =IF(SUM(B97:D97)>0,SUM(B97:D97),0) -> 0 | DO83: =IF(SUM(F97)>0,SUM(F97),0) -> 0 | DP83: =B97 -> 0 | DQ83: =C97 -> 0 | DR83: =D97 -> 0 | DT83: =IF(SUM(B98:D98)>0,SUM(B98:D98),0) -> 0 | DU83: =IF(SUM(F98)>0,SUM(F98),0) -> 0 | DV83: =B98 -> 0 | DW83: =C98 -> 0 | DX83: =D98 -> 0 | DZ83: =IF(SUM(B99:D99)>0,SUM(B99:D99),0) -> 0 | EA83: =IF(SUM(F99)>0,SUM(F99),0) -> 0 | EB83: =B99 -> 0 | EC83: =C99 -> 0 | ED83: =D99 -> 0 | EF83: =IF(SUM(B100:D100)>0,SUM(B100:D100),0) -> 0 | EG83: =IF(SUM(F100)>0,SUM(F100),0) -> 0 | EH83: =B100 -> 0 | EI83: =C100 -> 0 | EJ83: =D100 -> 0 | EL83: =IF(SUM(B101:D101)>0,SUM(B101:D101),0) -> 0 | EM83: =IF(SUM(F101)>0,SUM(F101),0) -> 0 | EN83: =B101 -> 0 | EO83: =C101 -> 0 | EP83: =D101 -> 0 | ER83: =IF(SUM(B102:D102)>0,SUM(B102:D102),0) -> 0 | ES83: =IF(SUM(F102)>0,SUM(F102),0) -> 0 | ET83: =B102 -> 0 | EU83: =C102 -> 0 | EV83: =D102 -> 0 | EX83: =IF(SUM(B103:D103)>0,SUM(B103:D103),0) -> 0 | EY83: =IF(SUM(F103)>0,SUM(F103),0) -> 0 | EZ83: =B103 -> 0 | FA83: =C103 -> 0 | FB83: =D103 -> 0 | FD83: =IF(SUM(B104:D104)>0,SUM(B104:D104),0) -> 0 | FE83: =IF(SUM(F104)>0,SUM(F104),0) -> 0 | FF83: =B104 -> 0 | FG83: =C104 -> 0 | FH83: =D104 -> 0 | FJ83: =LARGE((FD83,EX83,ER83,EL83,EF83,DZ83,DT83,DN83,DH83,DB83,CV83,CP83,CJ83,CD83,BX83,BR83,BL83,BF83,AZ83,AT83,AN83,AH83),1) -> 279 | FK83: =LARGE((BT83,BZ83,CF83,CL83,CR83,CX83,DD83,DJ83,DP83,DV83,EB83,EH83,EN83,ET83,EZ83,FF83,BN83,BH83,BB83,AV83,AP83,AJ83),1) -> 99 | FL83: =LARGE((BU83,CA83,CG83,CM83,CS83,CY83,DE83,DK83,DQ83,DW83,EC83,EI83,EO83,EU83,FA83,FG83,BO83,BI83,BC83,AW83,AQ83,AK83),1) -> 99 | FM83: =LARGE((BV83,CB83,CH83,CN83,CT83,CZ83,DF83,DL83,DR83,DX83,ED83,EJ83,EP83,EV83,FB83,FH83,BP83,BJ83,BD83,AX83,AR83,AL83),1) -> 92
A84: @ Cairo | B84: 87 | C84: 99 | D84: 86 | E84: 272 | F84: 10 | G84: 89 | H84: 91 | I84: 87 | J84: 267 | K84: 8 | L84: 85 | M84: 94 | N84: 89 | O84: 268 | P84: 10 | Q84: 77 | R84: 92 | S84: 85 | T84: 254 | U84: 6 | V84: 91 | W84: 87 | X84: 78 | Y84: 256 | Z84: 4 | AA84: =IF(SUM(E84,J84,O84,T84,Y84,E110,J110,O110,T110,Y110,E136,J136,O136,T136,Y136)>0,(LARGE((E84,J84,O84,T84,Y84,E110,J110,O110,T110,Y110,E136,J136,O136,T136,Y136),1)+LARGE((E84,J84,O84,T84,Y84,E110,J110,O110,T110,Y110,E136,J136,O136,T136,Y136),2)+LARGE((E84,J84,O84,T84,Y84,E110,J110,O110,T110,Y110,E136,J136,O136,T136,Y136),3)+LARGE((E84,J84,O84,T84,Y84,E110,J110,O110,T110,Y110,E136,J136,O136,T136,Y136),4)),"") -> 1063 | AB84: =IF(SUM(AO114)>0,SUM(AO114),"") -> 32 | AC84: =IF(SUM(E83:E104)>0,LARGE(E83:E104,1),0) -> 279 | AD84: =IF(SUM(J83:J104)>0,LARGE(J83:J104,1),0) -> 276 | AE84: =IF(SUM(O83:O104)>0,LARGE(O83:O104,1),0) -> 274 | AF84: =IF(SUM(T83:T104)>0,LARGE(T83:T104,1),0) -> 268 | AG84: =IF(SUM(Y83:Y104)>0,LARGE(Y83:Y104,1),0) -> 273 | AH84: =IF(SUM(G83:I83)>0,SUM(G83:I83),0) -> 264 | AI84: =IF(SUM(K83)>0,SUM(K83),0) -> 7 | AJ84: =G83 -> 92 | AK84: =H83 -> 87 | AL84: =I83 -> 85 | AN84: =IF(SUM(G84:I84)>0,SUM(G84:I84),0) -> 267 | AO84: =IF(SUM(K84)>0,SUM(K84),0) -> 8 | AP84: =G84 -> 89 | AQ84: =H84 -> 91 | AR84: =I84 -> 87 | AT84: =IF(SUM(G85:I85)>0,SUM(G85:I85),0) -> 256 | AU84: =IF(SUM(K85)>0,SUM(K85),0) -> 4 | AV84: =G85 -> 93 | AW84: =H85 -> 80 | AX84: =I85 -> 83 | AZ84: =IF(SUM(G86:I86)>0,SUM(G86:I86),0) -> 267 | BA84: =IF(SUM(K86)>0,SUM(K86),0) -> 5 | BB84: =G86 -> 95 | BC84: =H86 -> 85 | BD84: =I86 -> 87 | BF84: =IF(SUM(G87:I87)>0,SUM(G87:I87),0) -> 270 | BG84: =IF(SUM(K87)>0,SUM(K87),0) -> 9 | BH84: =G87 -> 92 | BI84: =H87 -> 87 | BJ84: =I87 -> 91 | BL84: =IF(SUM(G88:I88)>0,SUM(G88:I88),0) -> 273 | BM84: =IF(SUM(K88)>0,SUM(K88),0) -> 7 | BN84: =G88 -> 92 | BO84: =H88 -> 93 | BP84: =I88 -> 88 | BR84: =IF(SUM(G89:I89)>0,SUM(G89:I89),0) -> 250 | BS84: =IF(SUM(K89)>0,SUM(K89),0) -> 2 | BT84: =G89 -> 81 | BU84: =H89 -> 92 | BV84: =I89 -> 77 | BX84: =IF(SUM(G90:I90)>0,SUM(G90:I90),0) -> 0 | BY84: =IF(SUM(K90)>0,SUM(K90),0) -> 0 | BZ84: =G90 -> 0 | CA84: =H90 -> 0 | CB84: =I90 -> 0 | CD84: =IF(SUM(G91:I91)>0,SUM(G91:I91),0) -> 0 | CE84: =IF(SUM(K91)>0,SUM(K91),0) -> 0 | CF84: =G91 -> 0 | CG84: =H91 -> 0 | CH84: =I91 -> 0 | CJ84: =IF(SUM(G92:I92)>0,SUM(G92:I92),0) -> 0 | CK84: =IF(SUM(K92)>0,SUM(K92),0) -> 0 | CL84: =G92 -> 0 | CM84: =H92 -> 0 | CN84: =I92 -> 0 | CP84: =IF(SUM(G93:I93)>0,SUM(G93:I93),0) -> 273 | CQ84: =IF(SUM(K93)>0,SUM(K93),0) -> 4 | CR84: =G93 -> 93 | CS84: =H93 -> 90 | CT84: =I93 -> 90 | CV84: =IF(SUM(G94:I94)>0,SUM(G94:I94),0) -> 276 | CW84: =IF(SUM(K94)>0,SUM(K94),0) -> 10 | CX84: =G94 -> 92 | CY84: =H94 -> 95 | CZ84: =I94 -> 89 | DB84: =IF(SUM(G95:I95)>0,SUM(G95:I95),0) -> 275 | DC84: =IF(SUM(K95)>0,SUM(K95),0) -> 9 | DD84: =G95 -> 96 | DE84: =H95 -> 93 | DF84: =I95 -> 86 | DH84: =IF(SUM(G96:I96)>0,SUM(G96:I96),0) -> 267 | DI84: =IF(SUM(K96)>0,SUM(K96),0) -> 7 | DJ84: =G96 -> 92 | DK84: =H96 -> 84 | DL84: =I96 -> 91 | DN84: =IF(SUM(G97:I97)>0,SUM(G97:I97),0) -> 0 | DO84: =IF(SUM(K97)>0,SUM(K97),0) -> 0 | DP84: =G97 -> 0 | DQ84: =H97 -> 0 | DR84: =I97 -> 0 | DT84: =IF(SUM(G98:I98)>0,SUM(G98:I98),0) -> 0 | DU84: =IF(SUM(K98)>0,SUM(K98),0) -> 0 | DV84: =G98 -> 0 | DW84: =H98 -> 0 | DX84: =I98 -> 0 | DZ84: =IF(SUM(G99:I99)>0,SUM(G99:I99),0) -> 0 | EA84: =IF(SUM(K99)>0,SUM(K99),0) -> 0 | EB84: =G99 -> 0 | EC84: =H99 -> 0 | ED84: =I99 -> 0 | EF84: =IF(SUM(G100:I100)>0,SUM(G100:I100),0) -> 0 | EG84: =IF(SUM(K100)>0,SUM(K100),0) -> 0 | EH84: =G100 -> 0 | EI84: =H100 -> 0 | EJ84: =I100 -> 0 | EL84: =IF(SUM(G101:I101)>0,SUM(G101:I101),0) -> 0 | EM84: =IF(SUM(K101)>0,SUM(K101),0) -> 0 | EN84: =G101 -> 0 | EO84: =H101 -> 0 | EP84: =I101 -> 0 | ER84: =IF(SUM(G102:I102)>0,SUM(G102:I102),0) -> 0 | ES84: =IF(SUM(K102)>0,SUM(K102),0) -> 0 | ET84: =G102 -> 0 | EU84: =H102 -> 0 | EV84: =I102 -> 0 | EX84: =IF(SUM(G103:I103)>0,SUM(G103:I103),0) -> 0 | EY84: =IF(SUM(K103)>0,SUM(K103),0) -> 0 | EZ84: =G103 -> 0 | FA84: =H103 -> 0 | FB84: =I103 -> 0 | FD84: =IF(SUM(G104:I104)>0,SUM(G104:I104),0) -> 0 | FE84: =IF(SUM(K104)>0,SUM(K104),0) -> 0 | FF84: =G104 -> 0 | FG84: =H104 -> 0 | FH84: =I104 -> 0 | FJ84: =LARGE((FD84,EX84,ER84,EL84,EF84,DZ84,DT84,DN84,DH84,DB84,CV84,CP84,CJ84,CD84,BX84,BR84,BL84,BF84,AZ84,AT84,AN84,AH84),1) -> 276 | FK84: =LARGE((BT84,BZ84,CF84,CL84,CR84,CX84,DD84,DJ84,DP84,DV84,EB84,EH84,EN84,ET84,EZ84,FF84,BN84,BH84,BB84,AV84,AP84,AJ84),1) -> 96 | FL84: =LARGE((BU84,CA84,CG84,CM84,CS84,CY84,DE84,DK84,DQ84,DW84,EC84,EI84,EO84,EU84,FA84,FG84,BO84,BI84,BC84,AW84,AQ84,AK84),1) -> 95 | FM84: =LARGE((BV84,CB84,CH84,CN84,CT84,CZ84,DF84,DL84,DR84,DX84,ED84,EJ84,EP84,EV84,FB84,FH84,BP84,BJ84,BD84,AX84,AR84,AL84),1) -> 91
A85: Lowndes | B85: 89 | C85: 92 | D85: 79 | E85: 260 | F85: 6 | G85: 93 | H85: 80 | I85: 83 | J85: 256 | K85: 4 | L85: 92 | M85: 94 | N85: 88 | O85: 274 | P85: 11 | Q85: 82 | R85: 86 | S85: 81 | T85: 249 | U85: 4 | V85: 96 | W85: 93 | X85: 80 | Y85: 269 | Z85: 10 | AA85: =IF(SUM(E85,J85,O85,T85,Y85,E111,J111,O111,T111,Y111,E137,J137,O137,T137,Y137)>0,(LARGE((E85,J85,O85,T85,Y85,E111,J111,O111,T111,Y111,E137,J137,O137,T137,Y137),1)+LARGE((E85,J85,O85,T85,Y85,E111,J111,O111,T111,Y111,E137,J137,O137,T137,Y137),2)+LARGE((E85,J85,O85,T85,Y85,E111,J111,O111,T111,Y111,E137,J137,O137,T137,Y137),3)+LARGE((E85,J85,O85,T85,Y85,E111,J111,O111,T111,Y111,E137,J137,O137,T137,Y137),4)),"") -> 1059 | AB85: =IF(SUM(AU114)>0, SUM(AU114),"") -> 31 | AH85: =IF(SUM(L83:N83)>0,SUM(L83:N83),0) -> 255 | AI85: =IF(SUM(P83)>0,SUM(P83),0) -> 10 | AJ85: =L83 -> 88 | AK85: =M83 -> 98 | AL85: =N83 -> 69 | AN85: =IF(SUM(L84:N84)>0,SUM(L84:N84),0) -> 268 | AO85: =IF(SUM(P84)>0,SUM(P84),0) -> 10 | AP85: =L84 -> 85 | AQ85: =M84 -> 94 | AR85: =N84 -> 89 | AT85: =IF(SUM(L85:N85)>0,SUM(L85:N85),0) -> 274 | AU85: =IF(SUM(P85)>0,SUM(P85),0) -> 11 | AV85: =L85 -> 92 | AW85: =M85 -> 94 | AX85: =N85 -> 88 | AZ85: =IF(SUM(L86:N86)>0,SUM(L86:N86),0) -> 261 | BA85: =IF(SUM(P86)>0,SUM(P86),0) -> 6 | BB85: =L86 -> 90 | BC85: =M86 -> 85 | BD85: =N86 -> 86 | BF85: =IF(SUM(L87:N87)>0,SUM(L87:N87),0) -> 262 | BG85: =IF(SUM(P87)>0,SUM(P87),0) -> 9 | BH85: =L87 -> 87 | BI85: =M87 -> 96 | BJ85: =N87 -> 79 | BL85: =IF(SUM(L88:N88)>0,SUM(L88:N88),0) -> 263 | BM85: =IF(SUM(P88)>0,SUM(P88),0) -> 9 | BN85: =L88 -> 90 | BO85: =M88 -> 97 | BP85: =N88 -> 76 | BR85: =IF(SUM(L89:N89)>0,SUM(L89:N89),0) -> 250 | BS85: =IF(SUM(P89)>0,SUM(P89),0) -> 5 | BT85: =L89 -> 87 | BU85: =M89 -> 88 | BV85: =N89 -> 75 | BX85: =IF(SUM(L90:N90)>0,SUM(L90:N90),0) -> 0 | BY85: =IF(SUM(P90)>0,SUM(P90),0) -> 0 | BZ85: =L90 -> 0 | CA85: =M90 -> 0 | CB85: =N90 -> 0 | CD85: =IF(SUM(L91:N91)>0,SUM(L91:N91),0) -> 0 | CE85: =IF(SUM(P91)>0,SUM(P91),0) -> 0 | CF85: =L91 -> 0 | CG85: =M91 -> 0 | CH85: =N91 -> 0 | CJ85: =IF(SUM(L92:N92)>0,SUM(L92:N92),0) -> 0 | CK85: =IF(SUM(P92)>0,SUM(P92),0) -> 0 | CL85: =L92 -> 0 | CM85: =M92 -> 0 | CN85: =N92 -> 0 | CP85: =IF(SUM(L93:N93)>0,SUM(L93:N93),0) -> 0 | CQ85: =IF(SUM(P93)>0,SUM(P93),0) -> 0 | CR85: =L93 -> 0 | CS85: =M93 -> 0 | CT85: =N93 -> 0 | CV85: =IF(SUM(L94:N94)>0,SUM(L94:N94),0) -> 0 | CW85: =IF(SUM(P94)>0,SUM(P94),0) -> 0 | CX85: =L94 -> 0 | CY85: =M94 -> 0 | CZ85: =N94 -> 0 | DB85: =IF(SUM(L95:N95)>0,SUM(L95:N95),0) -> 0 | DC85: =IF(SUM(P95)>0,SUM(P95),0) -> 0 | DD85: =L95 -> 0 | DE85: =M95 -> 0 | DF85: =N95 -> 0 | DH85: =IF(SUM(L96:N96)>0,SUM(L96:N96),0) -> 0 | DI85: =IF(SUM(P96)>0,SUM(P96),0) -> 0 | DJ85: =L96 -> 0 | DK85: =M96 -> 0 | DL85: =N96 -> 0 | DN85: =IF(SUM(L97:N97)>0,SUM(L97:N97),0) -> 0 | DO85: =IF(SUM(P97)>0,SUM(P97),0) -> 0 | DP85: =L97 -> 0 | DQ85: =M97 -> 0 | DR85: =N97 -> 0 | DT85: =IF(SUM(L98:N98)>0,SUM(L98:N98),0) -> 0 | DU85: =IF(SUM(P98)>0,SUM(P98),0) -> 0 | DV85: =L98 -> 0 | DW85: =M98 -> 0 | DX85: =N98 -> 0 | DZ85: =IF(SUM(L99:N99)>0,SUM(L99:N99),0) -> 0 | EA85: =IF(SUM(P99)>0,SUM(P99),0) -> 0 | EB85: =L99 -> 0 | EC85: =M99 -> 0 | ED85: =N99 -> 0 | EF85: =IF(SUM(L100:N100)>0,SUM(L100:N100),0) -> 0 | EG85: =IF(SUM(P100)>0,SUM(P100),0) -> 0 | EH85: =L100 -> 0 | EI85: =M100 -> 0 | EJ85: =N100 -> 0 | EL85: =IF(SUM(L101:N101)>0,SUM(L101:N101),0) -> 0 | EM85: =IF(SUM(P101)>0,SUM(P101),0) -> 0 | EN85: =L101 -> 0 | EO85: =M101 -> 0 | EP85: =N101 -> 0 | ER85: =IF(SUM(L102:N102)>0,SUM(L102:N102),0) -> 0 | ES85: =IF(SUM(P102)>0,SUM(P102),0) -> 0 | ET85: =L102 -> 0 | EU85: =M102 -> 0 | EV85: =N102 -> 0 | EX85: =IF(SUM(L103:N103)>0,SUM(L103:N103),0) -> 0 | EY85: =IF(SUM(P103)>0,SUM(P103),0) -> 0 | EZ85: =L103 -> 0 | FA85: =M103 -> 0 | FB85: =N103 -> 0 | FD85: =IF(SUM(L104:N104)>0,SUM(L104:N104),0) -> 0 | FE85: =IF(SUM(P104)>0,SUM(P104),0) -> 0 | FF85: =L104 -> 0 | FG85: =M104 -> 0 | FH85: =N104 -> 0 | FJ85: =LARGE((FD85,EX85,ER85,EL85,EF85,DZ85,DT85,DN85,DH85,DB85,CV85,CP85,CJ85,CD85,BX85,BR85,BL85,BF85,AZ85,AT85,AN85,AH85),1) -> 274 | FK85: =LARGE((BT85,BZ85,CF85,CL85,CR85,CX85,DD85,DJ85,DP85,DV85,EB85,EH85,EN85,ET85,EZ85,FF85,BN85,BH85,BB85,AV85,AP85,AJ85),1) -> 92 | FL85: =LARGE((BU85,CA85,CG85,CM85,CS85,CY85,DE85,DK85,DQ85,DW85,EC85,EI85,EO85,EU85,FA85,FG85,BO85,BI85,BC85,AW85,AQ85,AK85),1) -> 98 | FM85: =LARGE((BV85,CB85,CH85,CN85,CT85,CZ85,DF85,DL85,DR85,DX85,ED85,EJ85,EP85,EV85,FB85,FH85,BP85,BJ85,BD85,AX85,AR85,AL85),1) -> 89
A86: @ Valdosta | B86: 91 | C86: 96 | D86: 83 | E86: 270 | F86: 8 | G86: 95 | H86: 85 | I86: 87 | J86: 267 | K86: 5 | L86: 90 | M86: 85 | N86: 86 | O86: 261 | P86: 6 | Q86: 79 | R86: 92 | S86: 82 | T86: 253 | U86: 8 | V86: 80 | W86: 90 | X86: 69 | Y86: 239 | Z86: 3 | AA86: =IF(SUM(E86,J86,O86,T86,Y86,E112,J112,O112,T112,Y112,E138,J138,O138,T138,Y138)>0,(LARGE((E86,J86,O86,T86,Y86,E112,J112,O112,T112,Y112,E138,J138,O138,T138,Y138),1)+LARGE((E86,J86,O86,T86,Y86,E112,J112,O112,T112,Y112,E138,J138,O138,T138,Y138),2)+LARGE((E86,J86,O86,T86,Y86,E112,J112,O112,T112,Y112,E138,J138,O138,T138,Y138),3)+LARGE((E86,J86,O86,T86,Y86,E112,J112,O112,T112,Y112,E138,J138,O138,T138,Y138),4)),"") -> 1054 | AB86: =IF(SUM(BA114)>0, SUM(BA114),"") -> 20 | AH86: =IF(SUM(Q83:S83)>0,SUM(Q83:S83),0) -> 240 | AI86: =IF(SUM(U83)>0,SUM(U83),0) -> 0 | AJ86: =Q83 -> 80 | AK86: =R83 -> 82 | AL86: =S83 -> 78 | AN86: =IF(SUM(Q84:S84)>0,SUM(Q84:S84),0) -> 254 | AO86: =IF(SUM(U84)>0,SUM(U84),0) -> 6 | AP86: =Q84 -> 77 | AQ86: =R84 -> 92 | AR86: =S84 -> 85 | AT86: =IF(SUM(Q85:S85)>0,SUM(Q85:S85),0) -> 249 | AU86: =IF(SUM(U85)>0,SUM(U85),0) -> 4 | AV86: =Q85 -> 82 | AW86: =R85 -> 86 | AX86: =S85 -> 81 | AZ86: =IF(SUM(Q86:S86)>0,SUM(Q86:S86),0) -> 253 | BA86: =IF(SUM(U86)>0,SUM(U86),0) -> 8 | BB86: =Q86 -> 79 | BC86: =R86 -> 92 | BD86: =S86 -> 82 | BF86: =IF(SUM(Q87:S87)>0,SUM(Q87:S87),0) -> 0 | BG86: =IF(SUM(U87)>0,SUM(U87),0) -> 0 | BH86: =Q87 -> 0 | BI86: =R87 -> 0 | BJ86: =S87 -> 0 | BL86: =IF(SUM(Q88:S88)>0,SUM(Q88:S88),0) -> 261 | BM86: =IF(SUM(U88)>0,SUM(U88),0) -> 5 | BN86: =Q88 -> 93 | BO86: =R88 -> 88 | BP86: =S88 -> 80 | BR86: =IF(SUM(Q89:S89)>0,SUM(Q89:S89),0) -> 258 | BS86: =IF(SUM(U89)>0,SUM(U89),0) -> 5 | BT86: =Q89 -> 92 | BU86: =R89 -> 92 | BV86: =S89 -> 74 | BX86: =IF(SUM(Q90:S90)>0,SUM(Q90:S90),0) -> 0 | BY86: =IF(SUM(U90)>0,SUM(U90),0) -> 0 | BZ86: =Q90 -> 0 | CA86: =R90 -> 0 | CB86: =S90 -> 0 | CD86: =IF(SUM(Q91:S91)>0,SUM(Q91:S91),0) -> 0 | CE86: =IF(SUM(U91)>0,SUM(U91),0) -> 0 | CF86: =Q91 -> 0 | CG86: =R91 -> 0 | CH86: =S91 -> 0 | CJ86: =IF(SUM(Q92:S92)>0,SUM(Q92:S92),0) -> 261 | CK86: =IF(SUM(U92)>0,SUM(U92),0) -> 3 | CL86: =Q92 -> 88 | CM86: =R92 -> 90 | CN86: =S92 -> 83 | CP86: =IF(SUM(Q93:S93)>0,SUM(Q93:S93),0) -> 266 | CQ86: =IF(SUM(U93)>0,SUM(U93),0) -> 3 | CR86: =Q93 -> 86 | CS86: =R93 -> 92 | CT86: =S93 -> 88 | CV86: =IF(SUM(Q94:S94)>0,SUM(Q94:S94),0) -> 268 | CW86: =IF(SUM(U94)>0,SUM(U94),0) -> 6 | CX86: =Q94 -> 86 | CY86: =R94 -> 92 | CZ86: =S94 -> 90 | DB86: =IF(SUM(Q95:S95)>0,SUM(Q95:S95),0) -> 259 | DC86: =IF(SUM(U95)>0,SUM(U95),0) -> 2 | DD86: =Q95 -> 84 | DE86: =R95 -> 87 | DF86: =S95 -> 88 | DH86: =IF(SUM(Q96:S96)>0,SUM(Q96:S96),0) -> 263 | DI86: =IF(SUM(U96)>0,SUM(U96),0) -> 5 | DJ86: =Q96 -> 89 | DK86: =R96 -> 85 | DL86: =S96 -> 89 | DN86: =IF(SUM(Q97:S97)>0,SUM(Q97:S97),0) -> 0 | DO86: =IF(SUM(U97)>0,SUM(U97),0) -> 0 | DP86: =Q97 -> 0 | DQ86: =R97 -> 0 | DR86: =S97 -> 0 | DT86: =IF(SUM(Q98:S98)>0,SUM(Q98:S98),0) -> 0 | DU86: =IF(SUM(U98)>0,SUM(U98),0) -> 0 | DV86: =Q98 -> 0 | DW86: =R98 -> 0 | DX86: =S98 -> 0 | DZ86: =IF(SUM(Q99:S99)>0,SUM(Q99:S99),0) -> 0 | EA86: =IF(SUM(U99)>0,SUM(U99),0) -> 0 | EB86: =Q99 -> 0 | EC86: =R99 -> 0 | ED86: =S99 -> 0 | EF86: =IF(SUM(Q100:S100)>0,SUM(Q100:S100),0) -> 0 | EG86: =IF(SUM(U100)>0,SUM(U100),0) -> 0 | EH86: =Q100 -> 0 | EI86: =R100 -> 0 | EJ86: =S100 -> 0 | EL86: =IF(SUM(Q101:S101)>0,SUM(Q101:S101),0) -> 0 | EM86: =IF(SUM(U101)>0,SUM(U101),0) -> 0 | EN86: =Q101 -> 0 | EO86: =R101 -> 0 | EP86: =S101 -> 0 | ER86: =IF(SUM(Q102:S102)>0,SUM(Q102:S102),0) -> 0 | ES86: =IF(SUM(U102)>0,SUM(U102),0) -> 0 | ET86: =Q102 -> 0 | EU86: =R102 -> 0 | EV86: =S102 -> 0 | EX86: =IF(SUM(Q103:S103)>0,SUM(Q103:S103),0) -> 0 | EY86: =IF(SUM(U103)>0,SUM(U103),0) -> 0 | EZ86: =Q103 -> 0 | FA86: =R103 -> 0 | FB86: =S103 -> 0 | FD86: =IF(SUM(Q104:S104)>0,SUM(Q104:S104),0) -> 0 | FE86: =IF(SUM(U104)>0,SUM(U104),0) -> 0 | FF86: =Q104 -> 0 | FG86: =R104 -> 0 | FH86: =S104 -> 0 | FJ86: =LARGE((FD86,EX86,ER86,EL86,EF86,DZ86,DT86,DN86,DH86,DB86,CV86,CP86,CJ86,CD86,BX86,BR86,BL86,BF86,AZ86,AT86,AN86,AH86),1) -> 268 | FK86: =LARGE((BT86,BZ86,CF86,CL86,CR86,CX86,DD86,DJ86,DP86,DV86,EB86,EH86,EN86,ET86,EZ86,FF86,BN86,BH86,BB86,AV86,AP86,AJ86),1) -> 93 | FL86: =LARGE((BU86,CA86,CG86,CM86,CS86,CY86,DE86,DK86,DQ86,DW86,EC86,EI86,EO86,EU86,FA86,FG86,BO86,BI86,BC86,AW86,AQ86,AK86),1) -> 92 | FM86: =LARGE((BV86,CB86,CH86,CN86,CT86,CZ86,DF86,DL86,DR86,DX86,ED86,EJ86,EP86,EV86,FB86,FH86,BP86,BJ86,BD86,AX86,AR86,AL86),1) -> 90
A87: Worth | B87: 94 | C87: 89 | D87: 79 | E87: 262 | F87: 4 | G87: 92 | H87: 87 | I87: 91 | J87: 270 | K87: 9 | L87: 87 | M87: 96 | N87: 79 | O87: 262 | P87: 9 | V87: 87 | W87: 80 | X87: 82 | Y87: 249 | Z87: 3 | AA87: =IF(SUM(E87,J87,O87,T87,Y87,E113,J113,O113,T113,Y113,E139,J139,O139,T139,Y139)>0,(LARGE((E87,J87,O87,T87,Y87,E113,J113,O113,T113,Y113,E139,J139,O139,T139,Y139),1)+LARGE((E87,J87,O87,T87,Y87,E113,J113,O113,T113,Y113,E139,J139,O139,T139,Y139),2)+LARGE((E87,J87,O87,T87,Y87,E113,J113,O113,T113,Y113,E139,J139,O139,T139,Y139),3)+LARGE((E87,J87,O87,T87,Y87,E113,J113,O113,T113,Y113,E139,J139,O139,T139,Y139),4)),"") -> 1051 | AB87: =IF(SUM(BG114)>0,SUM(BG114),"") -> 25 | AH87: =IF(SUM(V83:X83)>0,SUM(V83:X83),0) -> 237 | AI87: =IF(SUM(Z83)>0,SUM(Z83),0) -> 2 | AJ87: =V83 -> 73 | AK87: =W83 -> 80 | AL87: =X83 -> 84 | AN87: =IF(SUM(V84:X84)>0,SUM(V84:X84),0) -> 256 | AO87: =IF(SUM(Z84)>0,SUM(Z84),0) -> 4 | AP87: =V84 -> 91 | AQ87: =W84 -> 87 | AR87: =X84 -> 78 | AT87: =IF(SUM(V85:X85)>0,SUM(V85:X85),0) -> 269 | AU87: =IF(SUM(Z85)>0,SUM(Z85),0) -> 10 | AV87: =V85 -> 96 | AW87: =W85 -> 93 | AX87: =X85 -> 80 | AZ87: =IF(SUM(V86:X86)>0,SUM(V86:X86),0) -> 239 | BA87: =IF(SUM(Z86)>0,SUM(Z86),0) -> 3 | BB87: =V86 -> 80 | BC87: =W86 -> 90 | BD87: =X86 -> 69 | BF87: =IF(SUM(V87:X87)>0,SUM(V87:X87),0) -> 249 | BG87: =IF(SUM(Z87)>0,SUM(Z87),0) -> 3 | BH87: =V87 -> 87 | BI87: =W87 -> 80 | BJ87: =X87 -> 82 | BL87: =IF(SUM(V88:X88)>0,SUM(V88:X88),0) -> 251 | BM87: =IF(SUM(Z88)>0,SUM(Z88),0) -> 5 | BN87: =V88 -> 88 | BO87: =W88 -> 86 | BP87: =X88 -> 77 | BR87: =IF(SUM(V89:X89)>0,SUM(V89:X89),0) -> 257 | BS87: =IF(SUM(Z89)>0,SUM(Z89),0) -> 4 | BT87: =V89 -> 84 | BU87: =W89 -> 82 | BV87: =X89 -> 91 | BX87: =IF(SUM(V90:X90)>0,SUM(V90:X90),0) -> 0 | BY87: =IF(SUM(Z90)>0,SUM(Z90),0) -> 0 | BZ87: =V90 -> 0 | CA87: =W90 -> 0 | CB87: =X90 -> 0 | CD87: =IF(SUM(V91:X91)>0,SUM(V91:X91),0) -> 0 | CE87: =IF(SUM(Z91)>0,SUM(Z91),0) -> 0 | CF87: =V91 -> 0 | CG87: =W91 -> 0 | CH87: =X91 -> 0 | CJ87: =IF(SUM(V92:X92)>0,SUM(V92:X92),0) -> 260 | CK87: =IF(SUM(Z92)>0,SUM(Z92),0) -> 4 | CL87: =V92 -> 86 | CM87: =W92 -> 95 | CN87: =X92 -> 79 | CP87: =IF(SUM(V93:X93)>0,SUM(V93:X93),0) -> 256 | CQ87: =IF(SUM(Z93)>0,SUM(Z93),0) -> 4 | CR87: =V93 -> 93 | CS87: =W93 -> 80 | CT87: =X93 -> 83 | CV87: =IF(SUM(V94:X94)>0,SUM(V94:X94),0) -> 261 | CW87: =IF(SUM(Z94)>0,SUM(Z94),0) -> 5 | CX87: =V94 -> 87 | CY87: =W94 -> 90 | CZ87: =X94 -> 84 | DB87: =IF(SUM(V95:X95)>0,SUM(V95:X95),0) -> 264 | DC87: =IF(SUM(Z95)>0,SUM(Z95),0) -> 2 | DD87: =V95 -> 85 | DE87: =W95 -> 92 | DF87: =X95 -> 87 | DH87: =IF(SUM(V96:X96)>0,SUM(V96:X96),0) -> 273 | DI87: =IF(SUM(Z96)>0,SUM(Z96),0) -> 9 | DJ87: =V96 -> 95 | DK87: =W96 -> 88 | DL87: =X96 -> 90 | DN87: =IF(SUM(V97:X97)>0,SUM(V97:X97),0) -> 0 | DO87: =IF(SUM(Z97)>0,SUM(Z97),0) -> 0 | DP87: =V97 -> 0 | DQ87: =W97 -> 0 | DR87: =X97 -> 0 | DT87: =IF(SUM(V98:X98)>0,SUM(V98:X98),0) -> 0 | DU87: =IF(SUM(Z98)>0,SUM(Z98),0) -> 0 | DV87: =V98 -> 0 | DW87: =W98 -> 0 | DX87: =X98 -> 0 | DZ87: =IF(SUM(V99:X99)>0,SUM(V99:X99),0) -> 0 | EA87: =IF(SUM(Z99)>0,SUM(Z99),0) -> 0 | EB87: =V99 -> 0 | EC87: =W99 -> 0 | ED87: =X99 -> 0 | EF87: =IF(SUM(V100:X100)>0,SUM(V100:X100),0) -> 0 | EG87: =IF(SUM(Z100)>0,SUM(Z100),0) -> 0 | EH87: =V100 -> 0 | EI87: =W100 -> 0 | EJ87: =X100 -> 0 | EL87: =IF(SUM(V101:X101)>0,SUM(V101:X101),0) -> 0 | EM87: =IF(SUM(Z101)>0,SUM(Z101),0) -> 0 | EN87: =V101 -> 0 | EO87: =W101 -> 0 | EP87: =X101 -> 0 | ER87: =IF(SUM(V102:X102)>0,SUM(V102:X102),0) -> 0 | ES87: =IF(SUM(Z102)>0,SUM(Z102),0) -> 0 | ET87: =V102 -> 0 | EU87: =W102 -> 0 | EV87: =X102 -> 0 | EX87: =IF(SUM(V103:X103)>0,SUM(V103:X103),0) -> 0 | EY87: =IF(SUM(Z103)>0,SUM(Z103),0) -> 0 | EZ87: =V103 -> 0 | FA87: =W103 -> 0 | FB87: =X103 -> 0 | FD87: =IF(SUM(V104:X104)>0,SUM(V104:X104),0) -> 0 | FE87: =IF(SUM(Z104)>0,SUM(Z104),0) -> 0 | FF87: =V104 -> 0 | FG87: =W104 -> 0 | FH87: =X104 -> 0 | FJ87: =LARGE((FD87,EX87,ER87,EL87,EF87,DZ87,DT87,DN87,DH87,DB87,CV87,CP87,CJ87,CD87,BX87,BR87,BL87,BF87,AZ87,AT87,AN87,AH87),1) -> 273 | FK87: =LARGE((BT87,BZ87,CF87,CL87,CR87,CX87,DD87,DJ87,DP87,DV87,EB87,EH87,EN87,ET87,EZ87,FF87,BN87,BH87,BB87,AV87,AP87,AJ87),1) -> 96 | FL87: =LARGE((BU87,CA87,CG87,CM87,CS87,CY87,DE87,DK87,DQ87,DW87,EC87,EI87,EO87,EU87,FA87,FG87,BO87,BI87,BC87,AW87,AQ87,AK87),1) -> 95 | FM87: =LARGE((BV87,CB87,CH87,CN87,CT87,CZ87,DF87,DL87,DR87,DX87,ED87,EJ87,EP87,EV87,FB87,FH87,BP87,BJ87,BD87,AX87,AR87,AL87),1) -> 91
A88: Turner | B88: 93 | C88: 96 | D88: 85 | E88: 274 | F88: 6 | G88: 92 | H88: 93 | I88: 88 | J88: 273 | K88: 7 | L88: 90 | M88: 97 | N88: 76 | O88: 263 | P88: 9 | Q88: 93 | R88: 88 | S88: 80 | T88: 261 | U88: 5 | V88: 88 | W88: 86 | X88: 77 | Y88: 251 | Z88: 5 | AA88: =IF(SUM(E88,J88,O88,T88,Y88,E114,J114,O114,T114,Y114,E140,J140,O140,T140,Y140)>0,(LARGE((E88,J88,O88,T88,Y88,E114,J114,O114,T114,Y114,E140,J140,O140,T140,Y140),1)+LARGE((E88,J88,O88,T88,Y88,E114,J114,O114,T114,Y114,E140,J140,O140,T140,Y140),2)+LARGE((E88,J88,O88,T88,Y88,E114,J114,O114,T114,Y114,E140,J140,O140,T140,Y140),3)+LARGE((E88,J88,O88,T88,Y88,E114,J114,O114,T114,Y114,E140,J140,O140,T140,Y140),4)),"") -> 1071 | AB88: =IF(SUM(BM114)>0,SUM(BM114),"") -> 27 | AH88: =IF(SUM(B109:D109)>0,SUM(B109:D109),0) -> 232 | AI88: =IF(SUM(F109)>0,SUM(F109),0) -> 1 | AJ88: =B109 -> 86 | AK88: =C109 -> 87 | AL88: =D109 -> 59 | AN88: =IF(SUM(B110:D110)>0,SUM(B110:D110),0) -> 0 | AO88: =IF(SUM(F110)>0,SUM(F110),0) -> 0 | AP88: =B110 -> 0 | AQ88: =C110 -> 0 | AR88: =D110 -> 0 | AT88: =IF(SUM(B111:D111)>0,SUM(B111:D111),0) -> 247 | AU88: =IF(SUM(F111)>0,SUM(F111),0) -> 5 | AV88: =B111 -> 91 | AW88: =C111 -> 82 | AX88: =D111 -> 74 | AZ88: =IF(SUM(B112:D112)>0,SUM(B112:D112),0) -> 0 | BA88: =IF(SUM(F112)>0,SUM(F112),0) -> 0 | BB88: =B112 -> 0 | BC88: =C112 -> 0 | BD88: =D112 -> 0 | BF88: =IF(SUM(B113:D113)>0,SUM(B113:D113),0) -> 256 | BG88: =IF(SUM(F113)>0,SUM(F113),0) -> 4 | BH88: =B113 -> 85 | BI88: =C113 -> 87 | BJ88: =D113 -> 84 | BL88: =IF(SUM(B114:D114)>0,SUM(B114:D114),0) -> 256 | BM88: =IF(SUM(F114)>0,SUM(F114),0) -> 4 | BN88: =B114 -> 92 | BO88: =C114 -> 89 | BP88: =D114 -> 75 | BR88: =IF(SUM(B115:D115)>0,SUM(B115:D115),0) -> 0 | BS88: =IF(SUM(F115)>0,SUM(F115),0) -> 0 | BT88: =B115 -> 0 | BU88: =C115 -> 0 | BV88: =D115 -> 0 | BX88: =IF(SUM(B116:D116)>0,SUM(B116:D116),0) -> 0 | BY88: =IF(SUM(F116)>0,SUM(F116),0) -> 0 | BZ88: =B116 -> 0 | CA88: =C116 -> 0 | CB88: =D116 -> 0 | CD88: =IF(SUM(B117:D117)>0,SUM(B117:D117),0) -> 0 | CE88: =IF(SUM(F117)>0,SUM(F117),0) -> 0 | CF88: =B117 -> 0 | CG88: =C117 -> 0 | CH88: =D117 -> 0 | CJ88: =IF(SUM(B118:D118)>0,SUM(B118:D118),0) -> 260 | CK88: =IF(SUM(F118)>0,SUM(F118),0) -> 10 | CL88: =B118 -> 95 | CM88: =C118 -> 93 | CN88: =D118 -> 72 | CP88: =IF(SUM(B119:D119)>0,SUM(B119:D119),0) -> 0 | CQ88: =IF(SUM(F119)>0,SUM(F119),0) -> 0 | CR88: =B119 -> 0 | CS88: =C119 -> 0 | CT88: =D119 -> 0 | CV88: =IF(SUM(B120:D120)>0,SUM(B120:D120),0) -> 253 | CW88: =IF(SUM(F120)>0,SUM(F120),0) -> 2 | CX88: =B120 -> 80 | CY88: =C120 -> 91 | CZ88: =D120 -> 82 | DB88: =IF(SUM(B121:D121)>0,SUM(B121:D121),0) -> 0 | DC88: =IF(SUM(F121)>0,SUM(F121),0) -> 0 | DD88: =B121 -> 0 | DE88: =C121 -> 0 | DF88: =D121 -> 0 | DH88: =IF(SUM(B122:D122)>0,SUM(B122:D122),0) -> 0 | DI88: =IF(SUM(F122)>0,SUM(F122),0) -> 0 | DJ88: =B122 -> 0 | DK88: =C122 -> 0 | DL88: =D122 -> 0 | DN88: =IF(SUM(B123:D123)>0,SUM(B123:D123),0) -> 0 | DO88: =IF(SUM(F123)>0,SUM(F123),0) -> 0 | DP88: =B123 -> 0 | DQ88: =C123 -> 0 | DR88: =D123 -> 0 | DT88: =IF(SUM(B124:D124)>0,SUM(B124:D124),0) -> 0 | DU88: =IF(SUM(F124)>0,SUM(F124),0) -> 0 | DV88: =B124 -> 0 | DW88: =C124 -> 0 | DX88: =D124 -> 0 | DZ88: =IF(SUM(B125:D125)>0,SUM(B125:D125),0) -> 0 | EA88: =IF(SUM(F125)>0,SUM(F125),0) -> 0 | EB88: =B125 -> 0 | EC88: =C125 -> 0 | ED88: =D125 -> 0 | EF88: =IF(SUM(B126:D126)>0,SUM(B126:D126),0) -> 0 | EG88: =IF(SUM(F126)>0,SUM(F126),0) -> 0 | EH88: =B126 -> 0 | EI88: =C126 -> 0 | EJ88: =D126 -> 0 | EL88: =IF(SUM(B127:D127)>0,SUM(B127:D127),0) -> 0 | EM88: =IF(SUM(F127)>0,SUM(F127),0) -> 0 | EN88: =B127 -> 0 | EO88: =C127 -> 0 | EP88: =D127 -> 0 | ER88: =IF(SUM(B128:D128)>0,SUM(B128:D128),0) -> 0 | ES88: =IF(SUM(F128)>0,SUM(F128),0) -> 0 | ET88: =B128 -> 0 | EU88: =C128 -> 0 | EV88: =D128 -> 0 | EX88: =IF(SUM(B129:D129)>0,SUM(B129:D129),0) -> 0 | EY88: =IF(SUM(F129)>0,SUM(F129),0) -> 0 | EZ88: =B129 -> 0 | FA88: =C129 -> 0 | FB88: =D129 -> 0 | FD88: =IF(SUM(B130:D130)>0,SUM(B130:D130),0) -> 0 | FE88: =IF(SUM(F130)>0,SUM(F130),0) -> 0 | FF88: =B130 -> 0 | FG88: =C130 -> 0 | FH88: =D130 -> 0 | FJ88: =LARGE((FD88,EX88,ER88,EL88,EF88,DZ88,DT88,DN88,DH88,DB88,CV88,CP88,CJ88,CD88,BX88,BR88,BL88,BF88,AZ88,AT88,AN88,AH88),1) -> 260 | FK88: =LARGE((BT88,BZ88,CF88,CL88,CR88,CX88,DD88,DJ88,DP88,DV88,EB88,EH88,EN88,ET88,EZ88,FF88,BN88,BH88,BB88,AV88,AP88,AJ88),1) -> 95 | FL88: =LARGE((BU88,CA88,CG88,CM88,CS88,CY88,DE88,DK88,DQ88,DW88,EC88,EI88,EO88,EU88,FA88,FG88,BO88,BI88,BC88,AW88,AQ88,AK88),1) -> 93 | FM88: =LARGE((BV88,CB88,CH88,CN88,CT88,CZ88,DF88,DL88,DR88,DX88,ED88,EJ88,EP88,EV88,FB88,FH88,BP88,BJ88,BD88,AX88,AR88,AL88),1) -> 84
A89: @ Crisp | B89: 91 | C89: 96 | D89: 86 | E89: 273 | F89: 5 | G89: 81 | H89: 92 | I89: 77 | J89: =IF(SUM(G89:I89)>0,SUM(G89:I89),"") -> 250 | K89: 2 | L89: 87 | M89: 88 | N89: 75 | O89: 250 | P89: 5 | Q89: 92 | R89: 92 | S89: 74 | T89: 258 | U89: 5 | V89: 84 | W89: 82 | X89: 91 | Y89: 257 | Z89: 4 | AA89: =IF(SUM(E89,J89,O89,T89,Y89,E115,J115,O115,T115,Y115,E141,J141,O141,T141,Y141)>0,(LARGE((E89,J89,O89,T89,Y89,E115,J115,O115,T115,Y115,E141,J141,O141,T141,Y141),1)+LARGE((E89,J89,O89,T89,Y89,E115,J115,O115,T115,Y115,E141,J141,O141,T141,Y141),2)+LARGE((E89,J89,O89,T89,Y89,E115,J115,O115,T115,Y115,E141,J141,O141,T141,Y141),3)+LARGE((E89,J89,O89,T89,Y89,E115,J115,O115,T115,Y115,E141,J141,O141,T141,Y141),4)),"") -> 1047 | AB89: =IF(SUM(BS114)>0,SUM(BS114),"") -> 22 | AH89: =IF(SUM(G109:I109)>0,SUM(G109:I109),0) -> 0 | AI89: =IF(SUM(K109)>0,SUM(K109),0) -> 0 | AJ89: =G109 -> 0 | AK89: =H109 -> 0 | AL89: =I109 -> 0 | AN89: =IF(SUM(G110:I110)>0,SUM(G110:I110),0) -> 0 | AO89: =IF(SUM(K110)>0,SUM(K110),0) -> 0 | AP89: =G110 -> 0 | AQ89: =H110 -> 0 | AR89: =I110 -> 0 | AT89: =IF(SUM(G111:I111)>0,SUM(G111:I111),0) -> 248 | AU89: =IF(SUM(K111)>0,SUM(K111),0) -> 5 | AV89: =G111 -> 83 | AW89: =H111 -> 86 | AX89: =I111 -> 79 | AZ89: =IF(SUM(G112:I112)>0,SUM(G112:I112),0) -> 0 | BA89: =IF(SUM(K112)>0,SUM(K112),0) -> 0 | BB89: =G112 -> 0 | BC89: =H112 -> 0 | BD89: =I112 -> 0 | BF89: =IF(SUM(G113:I113)>0,SUM(G113:I113),0) -> 244 | BG89: =IF(SUM(K113)>0,SUM(K113),0) -> 3 | BH89: =G113 -> 84 | BI89: =H113 -> 85 | BJ89: =I113 -> 75 | BL89: =IF(SUM(G114:I114)>0,SUM(G114:I114),0) -> 246 | BM89: =IF(SUM(K114)>0,SUM(K114),0) -> 2 | BN89: =G114 -> 86 | BO89: =H114 -> 81 | BP89: =I114 -> 79 | BR89: =IF(SUM(G115:I115)>0,SUM(G115:I115),0) -> 259 | BS89: =IF(SUM(K115)>0,SUM(K115),0) -> 8 | BT89: =G115 -> 87 | BU89: =H115 -> 94 | BV89: =I115 -> 78 | BX89: =IF(SUM(G116:I116)>0,SUM(G116:I116),0) -> 0 | BY89: =IF(SUM(K116)>0,SUM(K116),0) -> 0 | BZ89: =G116 -> 0 | CA89: =H116 -> 0 | CB89: =I116 -> 0 | CD89: =IF(SUM(G117:I117)>0,SUM(G117:I117),0) -> 0 | CE89: =IF(SUM(K117)>0,SUM(K117),0) -> 0 | CF89: =G117 -> 0 | CG89: =H117 -> 0 | CH89: =I117 -> 0 | CJ89: =IF(SUM(G118:I118)>0,SUM(G118:I118),0) -> 0 | CK89: =IF(SUM(K118)>0,SUM(K118),0) -> 0 | CL89: =G118 -> 0 | CM89: =H118 -> 0 | CN89: =I118 -> 0 | CP89: =IF(SUM(G119:I119)>0,SUM(G119:I119),0) -> 0 | CQ89: =IF(SUM(K119)>0,SUM(K119),0) -> 0 | CR89: =G119 -> 0 | CS89: =H119 -> 0 | CT89: =I119 -> 0 | CV89: =IF(SUM(G120:I120)>0,SUM(G120:I120),0) -> 237 | CW89: =IF(SUM(K120)>0,SUM(K120),0) -> 2 | CX89: =G120 -> 89 | CY89: =H120 -> 90 | CZ89: =I120 -> 58 | DB89: =IF(SUM(G121:I121)>0,SUM(G121:I121),0) -> 0 | DC89: =IF(SUM(K121)>0,SUM(K121),0) -> 0 | DD89: =G121 -> 0 | DE89: =H121 -> 0 | DF89: =I121 -> 0 | DH89: =IF(SUM(G122:I122)>0,SUM(G122:I122),0) -> 0 | DI89: =IF(SUM(K122)>0,SUM(K122),0) -> 0 | DJ89: =G122 -> 0 | DK89: =H122 -> 0 | DL89: =I122 -> 0 | DN89: =IF(SUM(G123:I123)>0,SUM(G123:I123),0) -> 0 | DO89: =IF(SUM(K123)>0,SUM(K123),0) -> 0 | DP89: =G123 -> 0 | DQ89: =H123 -> 0 | DR89: =I123 -> 0 | DT89: =IF(SUM(G124:I124)>0,SUM(G124:I124),0) -> 0 | DU89: =IF(SUM(K124)>0,SUM(K124),0) -> 0 | DV89: =G124 -> 0 | DW89: =H124 -> 0 | DX89: =I124 -> 0 | DZ89: =IF(SUM(G125:I125)>0,SUM(G125:I125),0) -> 0 | EA89: =IF(SUM(K125)>0,SUM(K125),0) -> 0 | EB89: =G125 -> 0 | EC89: =H125 -> 0 | ED89: =I125 -> 0 | EF89: =IF(SUM(G126:I126)>0,SUM(G126:I126),0) -> 0 | EG89: =IF(SUM(K126)>0,SUM(K126),0) -> 0 | EH89: =G126 -> 0 | EI89: =H126 -> 0 | EJ89: =I126 -> 0 | EL89: =IF(SUM(G127:I127)>0,SUM(G127:I127),0) -> 0 | EM89: =IF(SUM(K127)>0,SUM(K127),0) -> 0 | EN89: =G127 -> 0 | EO89: =H127 -> 0 | EP89: =I127 -> 0 | ER89: =IF(SUM(G128:I128)>0,SUM(G128:I128),0) -> 0 | ES89: =IF(SUM(K128)>0,SUM(K128),0) -> 0 | ET89: =G128 -> 0 | EU89: =H128 -> 0 | EV89: =I128 -> 0 | EX89: =IF(SUM(G129:I129)>0,SUM(G129:I129),0) -> 0 | EY89: =IF(SUM(K129)>0,SUM(K129),0) -> 0 | EZ89: =G129 -> 0 | FA89: =H129 -> 0 | FB89: =I129 -> 0 | FD89: =IF(SUM(G130:I130)>0,SUM(G130:I130),0) -> 0 | FE89: =IF(SUM(K130)>0,SUM(K130),0) -> 0 | FF89: =G130 -> 0 | FG89: =H130 -> 0 | FH89: =I130 -> 0 | FJ89: =LARGE((FD89,EX89,ER89,EL89,EF89,DZ89,DT89,DN89,DH89,DB89,CV89,CP89,CJ89,CD89,BX89,BR89,BL89,BF89,AZ89,AT89,AN89,AH89),1) -> 259 | FK89: =LARGE((BT89,BZ89,CF89,CL89,CR89,CX89,DD89,DJ89,DP89,DV89,EB89,EH89,EN89,ET89,EZ89,FF89,BN89,BH89,BB89,AV89,AP89,AJ89),1) -> 89 | FL89: =LARGE((BU89,CA89,CG89,CM89,CS89,CY89,DE89,DK89,DQ89,DW89,EC89,EI89,EO89,EU89,FA89,FG89,BO89,BI89,BC89,AW89,AQ89,AK89),1) -> 94 | FM89: =LARGE((BV89,CB89,CH89,CN89,CT89,CZ89,DF89,DL89,DR89,DX89,ED89,EJ89,EP89,EV89,FB89,FH89,BP89,BJ89,BD89,AX89,AR89,AL89),1) -> 79
A90: BYE | J90: =IF(SUM(G90:I90)>0,SUM(G90:I90),"") ->  | AA90: =IF(SUM(E90,J90,O90,T90,Y90,E116,J116,O116,T116,Y116,E142,J142,O142,T142,Y142)>0,(LARGE((E90,J90,O90,T90,Y90,E116,J116,O116,T116,Y116,E142,J142,O142,T142,Y142),1)+LARGE((E90,J90,O90,T90,Y90,E116,J116,O116,T116,Y116,E142,J142,O142,T142,Y142),2)+LARGE((E90,J90,O90,T90,Y90,E116,J116,O116,T116,Y116,E142,J142,O142,T142,Y142),3)+LARGE((E90,J90,O90,T90,Y90,E116,J116,O116,T116,Y116,E142,J142,O142,T142,Y142),4)),"") ->  | AB90: =IF(SUM(BY114)>0,SUM(BY114),"") ->  | AH90: =IF(SUM(L109:N109)>0,SUM(L109:N109),0) -> 0 | AI90: =IF(SUM(P109)>0,SUM(P109),0) -> 0 | AJ90: =L109 -> 0 | AK90: =M109 -> 0 | AL90: =N109 -> 0 | AN90: =IF(SUM(L110:N110)>0,SUM(L110:N110),0) -> 0 | AO90: =IF(SUM(P110)>0,SUM(P110),0) -> 0 | AP90: =L110 -> 0 | AQ90: =M110 -> 0 | AR90: =N110 -> 0 | AT90: =IF(SUM(L111:N111)>0,SUM(L111:N111),0) -> 227 | AU90: =IF(SUM(P111)>0,SUM(P111),0) -> 0 | AV90: =L111 -> 79 | AW90: =M111 -> 83 | AX90: =N111 -> 65 | AZ90: =IF(SUM(L112:N112)>0,SUM(L112:N112),0) -> 256 | BA90: =IF(SUM(P112)>0,SUM(P112),0) -> 1 | BB90: =L112 -> 87 | BC90: =M112 -> 84 | BD90: =N112 -> 85 | BF90: =IF(SUM(L113:N113)>0,SUM(L113:N113),0) -> 253 | BG90: =IF(SUM(P113)>0,SUM(P113),0) -> 1 | BH90: =L113 -> 92 | BI90: =M113 -> 91 | BJ90: =N113 -> 70 | BL90: =IF(SUM(L114:N114)>0,SUM(L114:N114),0) -> 255 | BM90: =IF(SUM(P114)>0,SUM(P114),0) -> 5 | BN90: =L114 -> 87 | BO90: =M114 -> 90 | BP90: =N114 -> 78 | BR90: =IF(SUM(L115:N115)>0,SUM(L115:N115),0) -> 0 | BS90: =IF(SUM(P115)>0,SUM(P115),0) -> 0 | BT90: =L115 -> 0 | BU90: =M115 -> 0 | BV90: =N115 -> 0 | BX90: =IF(SUM(L116:N116)>0,SUM(L116:N116),0) -> 0 | BY90: =IF(SUM(P116)>0,SUM(P116),0) -> 0 | BZ90: =L116 -> 0 | CA90: =M116 -> 0 | CB90: =N116 -> 0 | CD90: =IF(SUM(L117:N117)>0,SUM(L117:N117),0) -> 0 | CE90: =IF(SUM(P117)>0,SUM(P117),0) -> 0 | CF90: =L117 -> 0 | CG90: =M117 -> 0 | CH90: =N117 -> 0 | CJ90: =IF(SUM(L118:N118)>0,SUM(L118:N118),0) -> 0 | CK90: =IF(SUM(P118)>0,SUM(P118),0) -> 0 | CL90: =L118 -> 0 | CM90: =M118 -> 0 | CN90: =N118 -> 0 | CP90: =IF(SUM(L119:N119)>0,SUM(L119:N119),0) -> 265 | CQ90: =IF(SUM(P119)>0,SUM(P119),0) -> 6 | CR90: =L119 -> 87 | CS90: =M119 -> 92 | CT90: =N119 -> 86 | CV90: =IF(SUM(L120:N120)>0,SUM(L120:N120),0) -> 265 | CW90: =IF(SUM(P120)>0,SUM(P120),0) -> 5 | CX90: =L120 -> 93 | CY90: =M120 -> 92 | CZ90: =N120 -> 80 | DB90: =IF(SUM(L121:N121)>0,SUM(L121:N121),0) -> 247 | DC90: =IF(SUM(P121)>0,SUM(P121),0) -> 5 | DD90: =L121 -> 88 | DE90: =M121 -> 96 | DF90: =N121 -> 63 | DH90: =IF(SUM(L122:N122)>0,SUM(L122:N122),0) -> 255 | DI90: =IF(SUM(P122)>0,SUM(P122),0) -> 3 | DJ90: =L122 -> 91 | DK90: =M122 -> 78 | DL90: =N122 -> 86 | DN90: =IF(SUM(L123:N123)>0,SUM(L123:N123),0) -> 0 | DO90: =IF(SUM(P123)>0,SUM(P123),0) -> 0 | DP90: =L123 -> 0 | DQ90: =M123 -> 0 | DR90: =N123 -> 0 | DT90: =IF(SUM(L124:N124)>0,SUM(L124:N124),0) -> 0 | DU90: =IF(SUM(P124)>0,SUM(P124),0) -> 0 | DV90: =L124 -> 0 | DW90: =M124 -> 0 | DX90: =N124 -> 0 | DZ90: =IF(SUM(L125:N125)>0,SUM(L125:N125),0) -> 0 | EA90: =IF(SUM(P125)>0,SUM(P125),0) -> 0 | EB90: =L125 -> 0 | EC90: =M125 -> 0 | ED90: =N125 -> 0 | EF90: =IF(SUM(L126:N126)>0,SUM(L126:N126),0) -> 0 | EG90: =IF(SUM(P126)>0,SUM(P126),0) -> 0 | EH90: =L126 -> 0 | EI90: =M126 -> 0 | EJ90: =N126 -> 0 | EL90: =IF(SUM(L127:N127)>0,SUM(L127:N127),0) -> 0 | EM90: =IF(SUM(P127)>0,SUM(P127),0) -> 0 | EN90: =L127 -> 0 | EO90: =M127 -> 0 | EP90: =N127 -> 0 | ER90: =IF(SUM(L128:N128)>0,SUM(L128:N128),0) -> 0 | ES90: =IF(SUM(P128)>0,SUM(P128),0) -> 0 | ET90: =L128 -> 0 | EU90: =M128 -> 0 | EV90: =N128 -> 0 | EX90: =IF(SUM(L129:N129)>0,SUM(L129:N129),0) -> 0 | EY90: =IF(SUM(P129)>0,SUM(P129),0) -> 0 | EZ90: =L129 -> 0 | FA90: =M129 -> 0 | FB90: =N129 -> 0 | FD90: =IF(SUM(L130:N130)>0,SUM(L130:N130),0) -> 0 | FE90: =IF(SUM(P130)>0,SUM(P130),0) -> 0 | FF90: =L130 -> 0 | FG90: =M130 -> 0 | FH90: =N130 -> 0 | FJ90: =LARGE((FD90,EX90,ER90,EL90,EF90,DZ90,DT90,DN90,DH90,DB90,CV90,CP90,CJ90,CD90,BX90,BR90,BL90,BF90,AZ90,AT90,AN90,AH90),1) -> 265 | FK90: =LARGE((BT90,BZ90,CF90,CL90,CR90,CX90,DD90,DJ90,DP90,DV90,EB90,EH90,EN90,ET90,EZ90,FF90,BN90,BH90,BB90,AV90,AP90,AJ90),1) -> 93 | FL90: =LARGE((BU90,CA90,CG90,CM90,CS90,CY90,DE90,DK90,DQ90,DW90,EC90,EI90,EO90,EU90,FA90,FG90,BO90,BI90,BC90,AW90,AQ90,AK90),1) -> 96 | FM90: =LARGE((BV90,CB90,CH90,CN90,CT90,CZ90,DF90,DL90,DR90,DX90,ED90,EJ90,EP90,EV90,FB90,FH90,BP90,BJ90,BD90,AX90,AR90,AL90),1) -> 86
A91: BYE | J91: =IF(SUM(G91:I91)>0,SUM(G91:I91),"") ->  | AA91: =IF(SUM(E91,J91,O91,T91,Y91,E117,J117,O117,T117,Y117,E143,J143,O143,T143,Y143)>0,(LARGE((E91,J91,O91,T91,Y91,E117,J117,O117,T117,Y117,E143,J143,O143,T143,Y143),1)+LARGE((E91,J91,O91,T91,Y91,E117,J117,O117,T117,Y117,E143,J143,O143,T143,Y143),2)+LARGE((E91,J91,O91,T91,Y91,E117,J117,O117,T117,Y117,E143,J143,O143,T143,Y143),3)+LARGE((E91,J91,O91,T91,Y91,E117,J117,O117,T117,Y117,E143,J143,O143,T143,Y143),4)),"") ->  | AB91: =IF(SUM(CE114)>0,SUM(CE114),"") ->  | AH91: =IF(SUM(Q109:S109)>0,SUM(Q109:S109),0) -> 0 | AI91: =IF(SUM(U109)>0,SUM(U109),0) -> 0 | AJ91: =Q109 -> 0 | AK91: =R109 -> 0 | AL91: =S109 -> 0 | AN91: =IF(SUM(Q110:S110)>0,SUM(Q110:S110),0) -> 0 | AO91: =IF(SUM(U110)>0,SUM(U110),0) -> 0 | AP91: =Q110 -> 0 | AQ91: =R110 -> 0 | AR91: =S110 -> 0 | AT91: =IF(SUM(Q111:S111)>0,SUM(Q111:S111),0) -> 223 | AU91: =IF(SUM(U111)>0,SUM(U111),0) -> 4 | AV91: =Q111 -> 75 | AW91: =R111 -> 77 | AX91: =S111 -> 71 | AZ91: =IF(SUM(Q112:S112)>0,SUM(Q112:S112),0) -> 0 | BA91: =IF(SUM(U112)>0,SUM(U112),0) -> 0 | BB91: =Q112 -> 0 | BC91: =R112 -> 0 | BD91: =S112 -> 0 | BF91: =IF(SUM(Q113:S113)>0,SUM(Q113:S113),0) -> 257 | BG91: =IF(SUM(U113)>0,SUM(U113),0) -> 3 | BH91: =Q113 -> 85 | BI91: =R113 -> 91 | BJ91: =S113 -> 81 | BL91: =IF(SUM(Q114:S114)>0,SUM(Q114:S114),0) -> 256 | BM91: =IF(SUM(U114)>0,SUM(U114),0) -> 6 | BN91: =Q114 -> 87 | BO91: =R114 -> 93 | BP91: =S114 -> 76 | BR91: =IF(SUM(Q115:S115)>0,SUM(Q115:S115),0) -> 0 | BS91: =IF(SUM(U115)>0,SUM(U115),0) -> 0 | BT91: =Q115 -> 0 | BU91: =R115 -> 0 | BV91: =S115 -> 0 | BX91: =IF(SUM(Q116:S116)>0,SUM(Q116:S116),0) -> 0 | BY91: =IF(SUM(U116)>0,SUM(U116),0) -> 0 | BZ91: =Q116 -> 0 | CA91: =R116 -> 0 | CB91: =S116 -> 0 | CD91: =IF(SUM(Q117:S117)>0,SUM(Q117:S117),0) -> 0 | CE91: =IF(SUM(U117)>0,SUM(U117),0) -> 0 | CF91: =Q117 -> 0 | CG91: =R117 -> 0 | CH91: =S117 -> 0 | CJ91: =IF(SUM(Q118:S118)>0,SUM(Q118:S118),0) -> 0 | CK91: =IF(SUM(U118)>0,SUM(U118),0) -> 0 | CL91: =Q118 -> 0 | CM91: =R118 -> 0 | CN91: =S118 -> 0 | CP91: =IF(SUM(Q119:S119)>0,SUM(Q119:S119),0) -> 0 | CQ91: =IF(SUM(U119)>0,SUM(U119),0) -> 0 | CR91: =Q119 -> 0 | CS91: =R119 -> 0 | CT91: =S119 -> 0 | CV91: =IF(SUM(Q120:S120)>0,SUM(Q120:S120),0) -> 0 | CW91: =IF(SUM(U120)>0,SUM(U120),0) -> 0 | CX91: =Q120 -> 0 | CY91: =R120 -> 0 | CZ91: =S120 -> 0 | DB91: =IF(SUM(Q121:S121)>0,SUM(Q121:S121),0) -> 0 | DC91: =IF(SUM(U121)>0,SUM(U121),0) -> 0 | DD91: =Q121 -> 0 | DE91: =R121 -> 0 | DF91: =S121 -> 0 | DH91: =IF(SUM(Q122:S122)>0,SUM(Q122:S122),0) -> 0 | DI91: =IF(SUM(U122)>0,SUM(U122),0) -> 0 | DJ91: =Q122 -> 0 | DK91: =R122 -> 0 | DL91: =S122 -> 0 | DN91: =IF(SUM(Q123:S123)>0,SUM(Q123:S123),0) -> 0 | DO91: =IF(SUM(U123)>0,SUM(U123),0) -> 0 | DP91: =Q123 -> 0 | DQ91: =R123 -> 0 | DR91: =S123 -> 0 | DT91: =IF(SUM(Q124:S124)>0,SUM(Q124:S124),0) -> 0 | DU91: =IF(SUM(U124)>0,SUM(U124),0) -> 0 | DV91: =Q124 -> 0 | DW91: =R124 -> 0 | DX91: =S124 -> 0 | DZ91: =IF(SUM(Q125:S125)>0,SUM(Q125:S125),0) -> 0 | EA91: =IF(SUM(U125)>0,SUM(U125),0) -> 0 | EB91: =Q125 -> 0 | EC91: =R125 -> 0 | ED91: =S125 -> 0 | EF91: =IF(SUM(Q126:S126)>0,SUM(Q126:S126),0) -> 0 | EG91: =IF(SUM(U126)>0,SUM(U126),0) -> 0 | EH91: =Q126 -> 0 | EI91: =R126 -> 0 | EJ91: =S126 -> 0 | EL91: =IF(SUM(Q127:S127)>0,SUM(Q127:S127),0) -> 0 | EM91: =IF(SUM(U127)>0,SUM(U127),0) -> 0 | EN91: =Q127 -> 0 | EO91: =R127 -> 0 | EP91: =S127 -> 0 | ER91: =IF(SUM(Q128:S128)>0,SUM(Q128:S128),0) -> 0 | ES91: =IF(SUM(U128)>0,SUM(U128),0) -> 0 | ET91: =Q128 -> 0 | EU91: =R128 -> 0 | EV91: =S128 -> 0 | EX91: =IF(SUM(Q129:S129)>0,SUM(Q129:S129),0) -> 0 | EY91: =IF(SUM(U129)>0,SUM(U129),0) -> 0 | EZ91: =Q129 -> 0 | FA91: =R129 -> 0 | FB91: =S129 -> 0 | FD91: =IF(SUM(Q130:S130)>0,SUM(Q130:S130),0) -> 0 | FE91: =IF(SUM(U130)>0,SUM(U130),0) -> 0 | FF91: =Q130 -> 0 | FG91: =R130 -> 0 | FH91: =S130 -> 0 | FJ91: =LARGE((FD91,EX91,ER91,EL91,EF91,DZ91,DT91,DN91,DH91,DB91,CV91,CP91,CJ91,CD91,BX91,BR91,BL91,BF91,AZ91,AT91,AN91,AH91),1) -> 257 | FK91: =LARGE((BT91,BZ91,CF91,CL91,CR91,CX91,DD91,DJ91,DP91,DV91,EB91,EH91,EN91,ET91,EZ91,FF91,BN91,BH91,BB91,AV91,AP91,AJ91),1) -> 87 | FL91: =LARGE((BU91,CA91,CG91,CM91,CS91,CY91,DE91,DK91,DQ91,DW91,EC91,EI91,EO91,EU91,FA91,FG91,BO91,BI91,BC91,AW91,AQ91,AK91),1) -> 93 | FM91: =LARGE((BV91,CB91,CH91,CN91,CT91,CZ91,DF91,DL91,DR91,DX91,ED91,EJ91,EP91,EV91,FB91,FH91,BP91,BJ91,BD91,AX91,AR91,AL91),1) -> 81
A92: Westover | B92: 94 | C92: 95 | D92: 90 | E92: 279 | F92: 7 | J92: =IF(SUM(G92:I92)>0,SUM(G92:I92),"") ->  | Q92: 88 | R92: 90 | S92: 83 | T92: 261 | U92: 3 | V92: 86 | W92: 95 | X92: 79 | Y92: 260 | Z92: 4 | AA92: =IF(SUM(E92,J92,O92,T92,Y92,E118,J118,O118,T118,Y118,E144,J144,O144,T144,Y144)>0,(LARGE((E92,J92,O92,T92,Y92,E118,J118,O118,T118,Y118,E144,J144,O144,T144,Y144),1)+LARGE((E92,J92,O92,T92,Y92,E118,J118,O118,T118,Y118,E144,J144,O144,T144,Y144),2)+LARGE((E92,J92,O92,T92,Y92,E118,J118,O118,T118,Y118,E144,J144,O144,T144,Y144),3)+LARGE((E92,J92,O92,T92,Y92,E118,J118,O118,T118,Y118,E144,J144,O144,T144,Y144),4)),"") -> 1060 | AB92: =IF(SUM(CK114)>0,SUM(CK114),"") -> 24 | AH92: =IF(SUM(V109:X109)>0,SUM(V109:X109),0) -> 0 | AI92: =IF(SUM(Z109)>0,SUM(Z109),0) -> 0 | AJ92: =V109 -> 0 | AK92: =W109 -> 0 | AL92: =X109 -> 0 | AN92: =IF(SUM(V110:X110)>0,SUM(V110:X110),0) -> 0 | AO92: =IF(SUM(Z110)>0,SUM(Z110),0) -> 0 | AP92: =V110 -> 0 | AQ92: =W110 -> 0 | AR92: =X110 -> 0 | AT92: =IF(SUM(V111:X111)>0,SUM(V111:X111),0) -> 0 | AU92: =IF(SUM(Z111)>0,SUM(Z111),0) -> 0 | AV92: =V111 -> 0 | AW92: =W111 -> 0 | AX92: =X111 -> 0 | AZ92: =IF(SUM(V112:X112)>0,SUM(V112:X112),0) -> 0 | BA92: =IF(SUM(Z112)>0,SUM(Z112),0) -> 0 | BB92: =V112 -> 0 | BC92: =W112 -> 0 | BD92: =X112 -> 0 | BF92: =IF(SUM(V113:X113)>0,SUM(V113:X113),0) -> 222 | BG92: =IF(SUM(Z113)>0,SUM(Z113),0) -> 2 | BH92: =V113 -> 83 | BI92: =W113 -> 82 | BJ92: =X113 -> 57 | BL92: =IF(SUM(V114:X114)>0,SUM(V114:X114),0) -> 0 | BM92: =IF(SUM(Z114)>0,SUM(Z114),0) -> 0 | BN92: =V114 -> 0 | BO92: =W114 -> 0 | BP92: =X114 -> 0 | BR92: =IF(SUM(V115:X115)>0,SUM(V115:X115),0) -> 0 | BS92: =IF(SUM(Z115)>0,SUM(Z115),0) -> 0 | BT92: =V115 -> 0 | BU92: =W115 -> 0 | BV92: =X115 -> 0 | BX92: =IF(SUM(V116:X116)>0,SUM(V116:X116),0) -> 0 | BY92: =IF(SUM(Z116)>0,SUM(Z116),0) -> 0 | BZ92: =V116 -> 0 | CA92: =W116 -> 0 | CB92: =X116 -> 0 | CD92: =IF(SUM(V117:X117)>0,SUM(V117:X117),0) -> 0 | CE92: =IF(SUM(Z117)>0,SUM(Z117),0) -> 0 | CF92: =V117 -> 0 | CG92: =W117 -> 0 | CH92: =X117 -> 0 | CJ92: =IF(SUM(V118:X118)>0,SUM(V118:X118),0) -> 0 | CK92: =IF(SUM(Z118)>0,SUM(Z118),0) -> 0 | CL92: =V118 -> 0 | CM92: =W118 -> 0 | CN92: =X118 -> 0 | CP92: =IF(SUM(V119:X119)>0,SUM(V119:X119),0) -> 0 | CQ92: =IF(SUM(Z119)>0,SUM(Z119),0) -> 0 | CR92: =V119 -> 0 | CS92: =W119 -> 0 | CT92: =X119 -> 0 | CV92: =IF(SUM(V120:X120)>0,SUM(V120:X120),0) -> 0 | CW92: =IF(SUM(Z120)>0,SUM(Z120),0) -> 0 | CX92: =V120 -> 0 | CY92: =W120 -> 0 | CZ92: =X120 -> 0 | DB92: =IF(SUM(V121:X121)>0,SUM(V121:X121),0) -> 0 | DC92: =IF(SUM(Z121)>0,SUM(Z121),0) -> 0 | DD92: =V121 -> 0 | DE92: =W121 -> 0 | DF92: =X121 -> 0 | DH92: =IF(SUM(V122:X122)>0,SUM(V122:X122),0) -> 0 | DI92: =IF(SUM(Z122)>0,SUM(Z122),0) -> 0 | DJ92: =V122 -> 0 | DK92: =W122 -> 0 | DL92: =X122 -> 0 | DN92: =IF(SUM(V123:X123)>0,SUM(V123:X123),0) -> 0 | DO92: =IF(SUM(Z123)>0,SUM(Z123),0) -> 0 | DP92: =V123 -> 0 | DQ92: =W123 -> 0 | DR92: =X123 -> 0 | DT92: =IF(SUM(V124:X124)>0,SUM(V124:X124),0) -> 0 | DU92: =IF(SUM(Z124)>0,SUM(Z124),0) -> 0 | DV92: =V124 -> 0 | DW92: =W124 -> 0 | DX92: =X124 -> 0 | DZ92: =IF(SUM(V125:X125)>0,SUM(V125:X125),0) -> 0 | EA92: =IF(SUM(Z125)>0,SUM(Z125),0) -> 0 | EB92: =V125 -> 0 | EC92: =W125 -> 0 | ED92: =X125 -> 0 | EF92: =IF(SUM(V126:X126)>0,SUM(V126:X126),0) -> 0 | EG92: =IF(SUM(Z126)>0,SUM(Z126),0) -> 0 | EH92: =V126 -> 0 | EI92: =W126 -> 0 | EJ92: =X126 -> 0 | EL92: =IF(SUM(V127:X127)>0,SUM(V127:X127),0) -> 0 | EM92: =IF(SUM(Z127)>0,SUM(Z127),0) -> 0 | EN92: =V127 -> 0 | EO92: =W127 -> 0 | EP92: =X127 -> 0 | ER92: =IF(SUM(V128:X128)>0,SUM(V128:X128),0) -> 0 | ES92: =IF(SUM(Z128)>0,SUM(Z128),0) -> 0 | ET92: =V128 -> 0 | EU92: =W128 -> 0 | EV92: =X128 -> 0 | EX92: =IF(SUM(V129:X129)>0,SUM(V129:X129),0) -> 0 | EY92: =IF(SUM(Z129)>0,SUM(Z129),0) -> 0 | EZ92: =V129 -> 0 | FA92: =W129 -> 0 | FB92: =X129 -> 0 | FD92: =IF(SUM(V130:X130)>0,SUM(V130:X130),0) -> 0 | FE92: =IF(SUM(Z130)>0,SUM(Z130),0) -> 0 | FF92: =V130 -> 0 | FG92: =W130 -> 0 | FH92: =X130 -> 0 | FJ92: =LARGE((FD92,EX92,ER92,EL92,EF92,DZ92,DT92,DN92,DH92,DB92,CV92,CP92,CJ92,CD92,BX92,BR92,BL92,BF92,AZ92,AT92,AN92,AH92),1) -> 222 | FK92: =LARGE((BT92,BZ92,CF92,CL92,CR92,CX92,DD92,DJ92,DP92,DV92,EB92,EH92,EN92,ET92,EZ92,FF92,BN92,BH92,BB92,AV92,AP92,AJ92),1) -> 83 | FL92: =LARGE((BU92,CA92,CG92,CM92,CS92,CY92,DE92,DK92,DQ92,DW92,EC92,EI92,EO92,EU92,FA92,FG92,BO92,BI92,BC92,AW92,AQ92,AK92),1) -> 82 | FM92: =LARGE((BV92,CB92,CH92,CN92,CT92,CZ92,DF92,DL92,DR92,DX92,ED92,EJ92,EP92,EV92,FB92,FH92,BP92,BJ92,BD92,AX92,AR92,AL92),1) -> 57
A93: Cairo | B93: 87 | C93: 92 | D93: 91 | E93: 270 | F93: 8 | G93: 93 | H93: 90 | I93: 90 | J93: 273 | K93: 4 | Q93: 86 | R93: 92 | S93: 88 | T93: 266 | U93: 3 | V93: 93 | W93: 80 | X93: 83 | Y93: 256 | Z93: 4 | AA93: =IF(SUM(E93,J93,O93,T93,Y93,E119,J119,O119,T119,Y119,E145,J145,O145,T145,Y145)>0,(LARGE((E93,J93,O93,T93,Y93,E119,J119,O119,T119,Y119,E145,J145,O145,T145,Y145),1)+LARGE((E93,J93,O93,T93,Y93,E119,J119,O119,T119,Y119,E145,J145,O145,T145,Y145),2)+LARGE((E93,J93,O93,T93,Y93,E119,J119,O119,T119,Y119,E145,J145,O145,T145,Y145),3)+LARGE((E93,J93,O93,T93,Y93,E119,J119,O119,T119,Y119,E145,J145,O145,T145,Y145),4)),"") -> 1074 | AB93: =IF(SUM(CQ114)>0,SUM(CQ114),"") -> 21 | AH93: =IF(SUM(B135:D135)>0,SUM(B135:D135),0) -> 0 | AI93: =IF(SUM(F135)>0,SUM(F135),0) -> 0 | AJ93: =B135 -> 0 | AK93: =C135 -> 0 | AL93: =D135 -> 0 | AN93: =IF(SUM(B136:D136)>0,SUM(B136:D136),0) -> 0 | AO93: =IF(SUM(F136)>0,SUM(F136),0) -> 0 | AP93: =B136 -> 0 | AQ93: =C136 -> 0 | AR93: =D136 -> 0 | AT93: =IF(SUM(B137:D137)>0,SUM(B137:D137),0) -> 0 | AU93: =IF(SUM(F137)>0,SUM(F137),0) -> 0 | AV93: =B137 -> 0 | AW93: =C137 -> 0 | AX93: =D137 -> 0 | AZ93: =IF(SUM(B138:D138)>0,SUM(B138:D138),0) -> 0 | BA93: =IF(SUM(F138)>0,SUM(F138),0) -> 0 | BB93: =B138 -> 0 | BC93: =C138 -> 0 | BD93: =D138 -> 0 | BF93: =IF(SUM(B139:D139)>0,SUM(B139:D139),0) -> 0 | BG93: =IF(SUM(F139)>0,SUM(F139),0) -> 0 | BH93: =B139 -> 0 | BI93: =C139 -> 0 | BJ93: =D139 -> 0 | BL93: =IF(SUM(B140:D140)>0,SUM(B140:D140),0) -> 251 | BM93: =IF(SUM(F140)>0,SUM(F140),0) -> 4 | BN93: =B140 -> 86 | BO93: =C140 -> 90 | BP93: =D140 -> 75 | BR93: =IF(SUM(B141:D141)>0,SUM(B141:D141),0) -> 0 | BS93: =IF(SUM(F141)>0,SUM(F141),0) -> 0 | BT93: =B141 -> 0 | BU93: =C141 -> 0 | BV93: =D141 -> 0 | BX93: =IF(SUM(B142:D142)>0,SUM(B142:D142),0) -> 0 | BY93: =IF(SUM(F142)>0,SUM(F142),0) -> 0 | BZ93: =B142 -> 0 | CA93: =C142 -> 0 | CB93: =D142 -> 0 | CD93: =IF(SUM(B143:D143)>0,SUM(B143:D143),0) -> 0 | CE93: =IF(SUM(F143)>0,SUM(F143),0) -> 0 | CF93: =B143 -> 0 | CG93: =C143 -> 0 | CH93: =D143 -> 0 | CJ93: =IF(SUM(B144:D144)>0,SUM(B144:D144),0) -> 249 | CK93: =IF(SUM(F144)>0,SUM(F144),0) -> 3 | CL93: =B144 -> 81 | CM93: =C144 -> 94 | CN93: =D144 -> 74 | CP93: =IF(SUM(B145:D145)>0,SUM(B145:D145),0) -> 0 | CQ93: =IF(SUM(F145)>0,SUM(F145),0) -> 0 | CR93: =B145 -> 0 | CS93: =C145 -> 0 | CT93: =D145 -> 0 | CV93: =IF(SUM(B146:D146)>0,SUM(B146:D146),0) -> 0 | CW93: =IF(SUM(F146)>0,SUM(F146),0) -> 0 | CX93: =B146 -> 0 | CY93: =C146 -> 0 | CZ93: =D146 -> 0 | DB93: =IF(SUM(B147:D147)>0,SUM(B147:D147),0) -> 0 | DC93: =IF(SUM(F147)>0,SUM(F147),0) -> 0 | DD93: =B147 -> 0 | DE93: =C147 -> 0 | DF93: =D147 -> 0 | DH93: =IF(SUM(B148:D148)>0,SUM(B148:D148),0) -> 0 | DI93: =IF(SUM(F148)>0,SUM(F148),0) -> 0 | DJ93: =B148 -> 0 | DK93: =C148 -> 0 | DL93: =D148 -> 0 | DN93: =IF(SUM(B149:D149)>0,SUM(B149:D149),0) -> 0 | DO93: =IF(SUM(F149)>0,SUM(F149),0) -> 0 | DP93: =B149 -> 0 | DQ93: =C149 -> 0 | DR93: =D149 -> 0 | DT93: =IF(SUM(B150:D150)>0,SUM(B150:D150),0) -> 0 | DU93: =IF(SUM(F150)>0,SUM(F150),0) -> 0 | DV93: =B150 -> 0 | DW93: =C150 -> 0 | DX93: =D150 -> 0 | DZ93: =IF(SUM(B151:D151)>0,SUM(B151:D151),0) -> 0 | EA93: =IF(SUM(F151)>0,SUM(F151),0) -> 0 | EB93: =B151 -> 0 | EC93: =C151 -> 0 | ED93: =D151 -> 0 | EF93: =IF(SUM(B152:D152)>0,SUM(B152:D152),0) -> 0 | EG93: =IF(SUM(F152)>0,SUM(F152),0) -> 0 | EH93: =B152 -> 0 | EI93: =C152 -> 0 | EJ93: =D152 -> 0 | EL93: =IF(SUM(B153:D153)>0,SUM(B153:D153),0) -> 0 | EM93: =IF(SUM(F153)>0,SUM(F153),0) -> 0 | EN93: =B153 -> 0 | EO93: =C153 -> 0 | EP93: =D153 -> 0 | ER93: =IF(SUM(B154:D154)>0,SUM(B154:D154),0) -> 0 | ES93: =IF(SUM(F154)>0,SUM(F154),0) -> 0 | ET93: =B154 -> 0 | EU93: =C154 -> 0 | EV93: =D154 -> 0 | EX93: =IF(SUM(B155:D155)>0,SUM(B155:D155),0) -> 0 | EY93: =IF(SUM(F155)>0,SUM(F155),0) -> 0 | EZ93: =B155 -> 0 | FA93: =C155 -> 0 | FB93: =D155 -> 0 | FD93: =IF(SUM(B156:D156)>0,SUM(B156:D156),0) -> 0 | FE93: =IF(SUM(F156)>0,SUM(F156),0) -> 0 | FF93: =B156 -> 0 | FG93: =C156 -> 0 | FH93: =D156 -> 0 | FJ93: =LARGE((FD93,EX93,ER93,EL93,EF93,DZ93,DT93,DN93,DH93,DB93,CV93,CP93,CJ93,CD93,BX93,BR93,BL93,BF93,AZ93,AT93,AN93,AH93),1) -> 251 | FK93: =LARGE((BT93,BZ93,CF93,CL93,CR93,CX93,DD93,DJ93,DP93,DV93,EB93,EH93,EN93,ET93,EZ93,FF93,BN93,BH93,BB93,AV93,AP93,AJ93),1) -> 86 | FL93: =LARGE((BU93,CA93,CG93,CM93,CS93,CY93,DE93,DK93,DQ93,DW93,EC93,EI93,EO93,EU93,FA93,FG93,BO93,BI93,BC93,AW93,AQ93,AK93),1) -> 94 | FM93: =LARGE((BV93,CB93,CH93,CN93,CT93,CZ93,DF93,DL93,DR93,DX93,ED93,EJ93,EP93,EV93,FB93,FH93,BP93,BJ93,BD93,AX93,AR93,AL93),1) -> 75
A94: @ Lowndes | B94: 92 | C94: 89 | D94: 89 | E94: 270 | F94: 7 | G94: 92 | H94: 95 | I94: 89 | J94: 276 | K94: 10 | Q94: 86 | R94: 92 | S94: 90 | T94: 268 | U94: 6 | V94: 87 | W94: 90 | X94: 84 | Y94: 261 | Z94: 5 | AA94: =IF(SUM(E94,J94,O94,T94,Y94,E120,J120,O120,T120,Y120,E146,J146,O146,T146,Y146)>0,(LARGE((E94,J94,O94,T94,Y94,E120,J120,O120,T120,Y120,E146,J146,O146,T146,Y146),1)+LARGE((E94,J94,O94,T94,Y94,E120,J120,O120,T120,Y120,E146,J146,O146,T146,Y146),2)+LARGE((E94,J94,O94,T94,Y94,E120,J120,O120,T120,Y120,E146,J146,O146,T146,Y146),3)+LARGE((E94,J94,O94,T94,Y94,E120,J120,O120,T120,Y120,E146,J146,O146,T146,Y146),4)),"") -> 1079 | AB94: =IF(SUM(CW114)>0,SUM(CW114),"") -> 28 | AH94: =IF(SUM(G135:I135)>0,SUM(G135:I135),0) -> 0 | AI94: =IF(SUM(K135)>0,SUM(K135),0) -> 0 | AJ94: =G135 -> 0 | AK94: =H135 -> 0 | AL94: =I135 -> 0 | AN94: =IF(SUM(G136:I136)>0,SUM(G136:I136),0) -> 0 | AO94: =IF(SUM(K136)>0,SUM(K136),0) -> 0 | AP94: =G136 -> 0 | AQ94: =H136 -> 0 | AR94: =I136 -> 0 | AT94: =IF(SUM(G137:I137)>0,SUM(G137:I137),0) -> 0 | AU94: =IF(SUM(K137)>0,SUM(K137),0) -> 0 | AV94: =G137 -> 0 | AW94: =H137 -> 0 | AX94: =I137 -> 0 | AZ94: =IF(SUM(G138:I138)>0,SUM(G138:I138),0) -> 0 | BA94: =IF(SUM(K138)>0,SUM(K138),0) -> 0 | BB94: =G138 -> 0 | BC94: =H138 -> 0 | BD94: =I138 -> 0 | BF94: =IF(SUM(G139:I139)>0,SUM(G139:I139),0) -> 0 | BG94: =IF(SUM(K139)>0,SUM(K139),0) -> 0 | BH94: =G139 -> 0 | BI94: =H139 -> 0 | BJ94: =I139 -> 0 | BL94: =IF(SUM(G140:I140)>0,SUM(G140:I140),0) -> 0 | BM94: =IF(SUM(K140)>0,SUM(K140),0) -> 0 | BN94: =G140 -> 0 | BO94: =H140 -> 0 | BP94: =I140 -> 0 | BR94: =IF(SUM(G141:I141)>0,SUM(G141:I141),0) -> 0 | BS94: =IF(SUM(K141)>0,SUM(K141),0) -> 0 | BT94: =G141 -> 0 | BU94: =H141 -> 0 | BV94: =I141 -> 0 | BX94: =IF(SUM(G142:I142)>0,SUM(G142:I142),0) -> 0 | BY94: =IF(SUM(K142)>0,SUM(K142),0) -> 0 | BZ94: =G142 -> 0 | CA94: =H142 -> 0 | CB94: =I142 -> 0 | CD94: =IF(SUM(G143:I143)>0,SUM(G143:I143),0) -> 0 | CE94: =IF(SUM(K143)>0,SUM(K143),0) -> 0 | CF94: =G143 -> 0 | CG94: =H143 -> 0 | CH94: =I143 -> 0 | CJ94: =IF(SUM(G144:I144)>0,SUM(G144:I144),0) -> 0 | CK94: =IF(SUM(K144)>0,SUM(K144),0) -> 0 | CL94: =G144 -> 0 | CM94: =H144 -> 0 | CN94: =I144 -> 0 | CP94: =IF(SUM(G145:I145)>0,SUM(G145:I145),0) -> 0 | CQ94: =IF(SUM(K145)>0,SUM(K145),0) -> 0 | CR94: =G145 -> 0 | CS94: =H145 -> 0 | CT94: =I145 -> 0 | CV94: =IF(SUM(G146:I146)>0,SUM(G146:I146),0) -> 0 | CW94: =IF(SUM(K146)>0,SUM(K146),0) -> 0 | CX94: =G146 -> 0 | CY94: =H146 -> 0 | CZ94: =I146 -> 0 | DB94: =IF(SUM(G147:I147)>0,SUM(G147:I147),0) -> 0 | DC94: =IF(SUM(K147)>0,SUM(K147),0) -> 0 | DD94: =G147 -> 0 | DE94: =H147 -> 0 | DF94: =I147 -> 0 | DH94: =IF(SUM(G148:I148)>0,SUM(G148:I148),0) -> 0 | DI94: =IF(SUM(K148)>0,SUM(K148),0) -> 0 | DJ94: =G148 -> 0 | DK94: =H148 -> 0 | DL94: =I148 -> 0 | DN94: =IF(SUM(G149:I149)>0,SUM(G149:I149),0) -> 0 | DO94: =IF(SUM(K149)>0,SUM(K149),0) -> 0 | DP94: =G149 -> 0 | DQ94: =H149 -> 0 | DR94: =I149 -> 0 | DT94: =IF(SUM(G150:I150)>0,SUM(G150:I150),0) -> 0 | DU94: =IF(SUM(K150)>0,SUM(K150),0) -> 0 | DV94: =G150 -> 0 | DW94: =H150 -> 0 | DX94: =I150 -> 0 | DZ94: =IF(SUM(G151:I151)>0,SUM(G151:I151),0) -> 0 | EA94: =IF(SUM(K151)>0,SUM(K151),0) -> 0 | EB94: =G151 -> 0 | EC94: =H151 -> 0 | ED94: =I151 -> 0 | EF94: =IF(SUM(G152:I152)>0,SUM(G152:I152),0) -> 0 | EG94: =IF(SUM(K152)>0,SUM(K152),0) -> 0 | EH94: =G152 -> 0 | EI94: =H152 -> 0 | EJ94: =I152 -> 0 | EL94: =IF(SUM(G153:I153)>0,SUM(G153:I153),0) -> 0 | EM94: =IF(SUM(K153)>0,SUM(K153),0) -> 0 | EN94: =G153 -> 0 | EO94: =H153 -> 0 | EP94: =I153 -> 0 | ER94: =IF(SUM(G154:I154)>0,SUM(G154:I154),0) -> 0 | ES94: =IF(SUM(K154)>0,SUM(K154),0) -> 0 | ET94: =G154 -> 0 | EU94: =H154 -> 0 | EV94: =I154 -> 0 | EX94: =IF(SUM(G155:I155)>0,SUM(G155:I155),0) -> 0 | EY94: =IF(SUM(K155)>0,SUM(K155),0) -> 0 | EZ94: =G155 -> 0 | FA94: =H155 -> 0 | FB94: =I155 -> 0 | FD94: =IF(SUM(G156:I156)>0,SUM(G156:I156),0) -> 0 | FE94: =IF(SUM(K156)>0,SUM(K156),0) -> 0 | FF94: =G156 -> 0 | FG94: =H156 -> 0 | FH94: =I156 -> 0 | FJ94: =LARGE((FD94,EX94,ER94,EL94,EF94,DZ94,DT94,DN94,DH94,DB94,CV94,CP94,CJ94,CD94,BX94,BR94,BL94,BF94,AZ94,AT94,AN94,AH94),1) -> 0 | FK94: =LARGE((BT94,BZ94,CF94,CL94,CR94,CX94,DD94,DJ94,DP94,DV94,EB94,EH94,EN94,ET94,EZ94,FF94,BN94,BH94,BB94,AV94,AP94,AJ94),1) -> 0 | FL94: =LARGE((BU94,CA94,CG94,CM94,CS94,CY94,DE94,DK94,DQ94,DW94,EC94,EI94,EO94,EU94,FA94,FG94,BO94,BI94,BC94,AW94,AQ94,AK94),1) -> 0 | FM94: =LARGE((BV94,CB94,CH94,CN94,CT94,CZ94,DF94,DL94,DR94,DX94,ED94,EJ94,EP94,EV94,FB94,FH94,BP94,BJ94,BD94,AX94,AR94,AL94),1) -> 0
A95: Valdosta | B95: 91 | C95: 95 | D95: 92 | E95: 278 | F95: 7 | G95: 96 | H95: 93 | I95: 86 | J95: 275 | K95: 9 | Q95: 84 | R95: 87 | S95: 88 | T95: 259 | U95: 2 | V95: 85 | W95: 92 | X95: 87 | Y95: 264 | Z95: 2 | AA95: =IF(SUM(E95,J95,O95,T95,Y95,E121,J121,O121,T121,Y121,E147,J147,O147,T147,Y147)>0,(LARGE((E95,J95,O95,T95,Y95,E121,J121,O121,T121,Y121,E147,J147,O147,T147,Y147),1)+LARGE((E95,J95,O95,T95,Y95,E121,J121,O121,T121,Y121,E147,J147,O147,T147,Y147),2)+LARGE((E95,J95,O95,T95,Y95,E121,J121,O121,T121,Y121,E147,J147,O147,T147,Y147),3)+LARGE((E95,J95,O95,T95,Y95,E121,J121,O121,T121,Y121,E147,J147,O147,T147,Y147),4)),"") -> 1076 | AB95: =IF(SUM(DC114)>0,SUM(DC114),"") -> 20 | AH95: =IF(SUM(L135:N135)>0,SUM(L135:N135),0) -> 0 | AI95: =IF(SUM(P135)>0,SUM(P135),0) -> 0 | AJ95: =L135 -> 0 | AK95: =M135 -> 0 | AL95: =N135 -> 0 | AN95: =IF(SUM(L136:N136)>0,SUM(L136:N136),0) -> 0 | AO95: =IF(SUM(P136)>0,SUM(P136),0) -> 0 | AP95: =L136 -> 0 | AQ95: =M136 -> 0 | AR95: =N136 -> 0 | AT95: =IF(SUM(L137:N137)>0,SUM(L137:N137),0) -> 0 | AU95: =IF(SUM(P137)>0,SUM(P137),0) -> 0 | AV95: =L137 -> 0 | AW95: =M137 -> 0 | AX95: =N137 -> 0 | AZ95: =IF(SUM(L138:N138)>0,SUM(L138:N138),0) -> 0 | BA95: =IF(SUM(P138)>0,SUM(P138),0) -> 0 | BB95: =L138 -> 0 | BC95: =M138 -> 0 | BD95: =N138 -> 0 | BF95: =IF(SUM(L139:N139)>0,SUM(L139:N139),0) -> 0 | BG95: =IF(SUM(P139)>0,SUM(P139),0) -> 0 | BH95: =L139 -> 0 | BI95: =M139 -> 0 | BJ95: =N139 -> 0 | BL95: =IF(SUM(L140:N140)>0,SUM(L140:N140),0) -> 0 | BM95: =IF(SUM(P140)>0,SUM(P140),0) -> 0 | BN95: =L140 -> 0 | BO95: =M140 -> 0 | BP95: =N140 -> 0 | BR95: =IF(SUM(L141:N141)>0,SUM(L141:N141),0) -> 0 | BS95: =IF(SUM(P141)>0,SUM(P141),0) -> 0 | BT95: =L141 -> 0 | BU95: =M141 -> 0 | BV95: =N141 -> 0 | BX95: =IF(SUM(L142:N142)>0,SUM(L142:N142),0) -> 0 | BY95: =IF(SUM(P142)>0,SUM(P142),0) -> 0 | BZ95: =L142 -> 0 | CA95: =M142 -> 0 | CB95: =N142 -> 0 | CD95: =IF(SUM(L143:N143)>0,SUM(L143:N143),0) -> 0 | CE95: =IF(SUM(P143)>0,SUM(P143),0) -> 0 | CF95: =L143 -> 0 | CG95: =M143 -> 0 | CH95: =N143 -> 0 | CJ95: =IF(SUM(L144:N144)>0,SUM(L144:N144),0) -> 0 | CK95: =IF(SUM(P144)>0,SUM(P144),0) -> 0 | CL95: =L144 -> 0 | CM95: =M144 -> 0 | CN95: =N144 -> 0 | CP95: =IF(SUM(L145:N145)>0,SUM(L145:N145),0) -> 0 | CQ95: =IF(SUM(P145)>0,SUM(P145),0) -> 0 | CR95: =L145 -> 0 | CS95: =M145 -> 0 | CT95: =N145 -> 0 | CV95: =IF(SUM(L146:N146)>0,SUM(L146:N146),0) -> 0 | CW95: =IF(SUM(P146)>0,SUM(P146),0) -> 0 | CX95: =L146 -> 0 | CY95: =M146 -> 0 | CZ95: =N146 -> 0 | DB95: =IF(SUM(L147:N147)>0,SUM(L147:N147),0) -> 0 | DC95: =IF(SUM(P147)>0,SUM(P147),0) -> 0 | DD95: =L147 -> 0 | DE95: =M147 -> 0 | DF95: =N147 -> 0 | DH95: =IF(SUM(L148:N148)>0,SUM(L148:N148),0) -> 0 | DI95: =IF(SUM(P148)>0,SUM(P148),0) -> 0 | DJ95: =L148 -> 0 | DK95: =M148 -> 0 | DL95: =N148 -> 0 | DN95: =IF(SUM(L149:N149)>0,SUM(L149:N149),0) -> 0 | DO95: =IF(SUM(P149)>0,SUM(P149),0) -> 0 | DP95: =L149 -> 0 | DQ95: =M149 -> 0 | DR95: =N149 -> 0 | DT95: =IF(SUM(L150:N150)>0,SUM(L150:N150),0) -> 0 | DU95: =IF(SUM(P150)>0,SUM(P150),0) -> 0 | DV95: =L150 -> 0 | DW95: =M150 -> 0 | DX95: =N150 -> 0 | DZ95: =IF(SUM(L151:N151)>0,SUM(L151:N151),0) -> 0 | EA95: =IF(SUM(P151)>0,SUM(P151),0) -> 0 | EB95: =L151 -> 0 | EC95: =M151 -> 0 | ED95: =N151 -> 0 | EF95: =IF(SUM(L152:N152)>0,SUM(L152:N152),0) -> 0 | EG95: =IF(SUM(P152)>0,SUM(P152),0) -> 0 | EH95: =L152 -> 0 | EI95: =M152 -> 0 | EJ95: =N152 -> 0 | EL95: =IF(SUM(L153:N153)>0,SUM(L153:N153),0) -> 0 | EM95: =IF(SUM(P153)>0,SUM(P153),0) -> 0 | EN95: =L153 -> 0 | EO95: =M153 -> 0 | EP95: =N153 -> 0 | ER95: =IF(SUM(L154:N154)>0,SUM(L154:N154),0) -> 0 | ES95: =IF(SUM(P154)>0,SUM(P154),0) -> 0 | ET95: =L154 -> 0 | EU95: =M154 -> 0 | EV95: =N154 -> 0 | EX95: =IF(SUM(L155:N155)>0,SUM(L155:N155),0) -> 0 | EY95: =IF(SUM(P155)>0,SUM(P155),0) -> 0 | EZ95: =L155 -> 0 | FA95: =M155 -> 0 | FB95: =N155 -> 0 | FD95: =IF(SUM(L156:N156)>0,SUM(L156:N156),0) -> 0 | FE95: =IF(SUM(P156)>0,SUM(P156),0) -> 0 | FF95: =L156 -> 0 | FG95: =M156 -> 0 | FH95: =N156 -> 0 | FJ95: =LARGE((FD95,EX95,ER95,EL95,EF95,DZ95,DT95,DN95,DH95,DB95,CV95,CP95,CJ95,CD95,BX95,BR95,BL95,BF95,AZ95,AT95,AN95,AH95),1) -> 0 | FK95: =LARGE((BT95,BZ95,CF95,CL95,CR95,CX95,DD95,DJ95,DP95,DV95,EB95,EH95,EN95,ET95,EZ95,FF95,BN95,BH95,BB95,AV95,AP95,AJ95),1) -> 0 | FL95: =LARGE((BU95,CA95,CG95,CM95,CS95,CY95,DE95,DK95,DQ95,DW95,EC95,EI95,EO95,EU95,FA95,FG95,BO95,BI95,BC95,AW95,AQ95,AK95),1) -> 0 | FM95: =LARGE((BV95,CB95,CH95,CN95,CT95,CZ95,DF95,DL95,DR95,DX95,ED95,EJ95,EP95,EV95,FB95,FH95,BP95,BJ95,BD95,AX95,AR95,AL95),1) -> 0
A96: @ Worth | B96: 99 | C96: 86 | D96: 91 | E96: 276 | F96: 7 | G96: 92 | H96: 84 | I96: 91 | J96: 267 | K96: 7 | Q96: 89 | R96: 85 | S96: 89 | T96: 263 | U96: 5 | V96: 95 | W96: 88 | X96: 90 | Y96: 273 | Z96: 9 | AA96: =IF(SUM(E96,J96,O96,T96,Y96,E122,J122,O122,T122,Y122,E148,J148,O148,T148,Y148)>0,(LARGE((E96,J96,O96,T96,Y96,E122,J122,O122,T122,Y122,E148,J148,O148,T148,Y148),1)+LARGE((E96,J96,O96,T96,Y96,E122,J122,O122,T122,Y122,E148,J148,O148,T148,Y148),2)+LARGE((E96,J96,O96,T96,Y96,E122,J122,O122,T122,Y122,E148,J148,O148,T148,Y148),3)+LARGE((E96,J96,O96,T96,Y96,E122,J122,O122,T122,Y122,E148,J148,O148,T148,Y148),4)),"") -> 1079 | AB96: =IF(SUM(DI114)>0,SUM(DI114),"") -> 28 | AH96: =IF(SUM(Q135:S135)>0,SUM(Q135:S135),0) -> 0 | AI96: =IF(SUM(U135)>0,SUM(U135),0) -> 0 | AJ96: =Q135 -> 0 | AK96: =R135 -> 0 | AL96: =S135 -> 0 | AN96: =IF(SUM(Q136:S136)>0,SUM(Q136:S136),0) -> 0 | AO96: =IF(SUM(U136)>0,SUM(U136),0) -> 0 | AP96: =Q136 -> 0 | AQ96: =R136 -> 0 | AR96: =S136 -> 0 | AT96: =IF(SUM(Q137:S137)>0,SUM(Q137:S137),0) -> 0 | AU96: =IF(SUM(U137)>0,SUM(U137),0) -> 0 | AV96: =Q137 -> 0 | AW96: =R137 -> 0 | AX96: =S137 -> 0 | AZ96: =IF(SUM(Q138:S138)>0,SUM(Q138:S138),0) -> 0 | BA96: =IF(SUM(U138)>0,SUM(U138),0) -> 0 | BB96: =Q138 -> 0 | BC96: =R138 -> 0 | BD96: =S138 -> 0 | BF96: =IF(SUM(Q139:S139)>0,SUM(Q139:S139),0) -> 0 | BG96: =IF(SUM(U139)>0,SUM(U139),0) -> 0 | BH96: =Q139 -> 0 | BI96: =R139 -> 0 | BJ96: =S139 -> 0 | BL96: =IF(SUM(Q140:S140)>0,SUM(Q140:S140),0) -> 0 | BM96: =IF(SUM(U140)>0,SUM(U140),0) -> 0 | BN96: =Q140 -> 0 | BO96: =R140 -> 0 | BP96: =S140 -> 0 | BR96: =IF(SUM(Q141:S141)>0,SUM(Q141:S141),0) -> 0 | BS96: =IF(SUM(U141)>0,SUM(U141),0) -> 0 | BT96: =Q141 -> 0 | BU96: =R141 -> 0 | BV96: =S141 -> 0 | BX96: =IF(SUM(Q142:S142)>0,SUM(Q142:S142),0) -> 0 | BY96: =IF(SUM(U142)>0,SUM(U142),0) -> 0 | BZ96: =Q142 -> 0 | CA96: =R142 -> 0 | CB96: =S142 -> 0 | CD96: =IF(SUM(Q143:S143)>0,SUM(Q143:S143),0) -> 0 | CE96: =IF(SUM(U143)>0,SUM(U143),0) -> 0 | CF96: =Q143 -> 0 | CG96: =R143 -> 0 | CH96: =S143 -> 0 | CJ96: =IF(SUM(Q144:S144)>0,SUM(Q144:S144),0) -> 0 | CK96: =IF(SUM(U144)>0,SUM(U144),0) -> 0 | CL96: =Q144 -> 0 | CM96: =R144 -> 0 | CN96: =S144 -> 0 | CP96: =IF(SUM(Q145:S145)>0,SUM(Q145:S145),0) -> 0 | CQ96: =IF(SUM(U145)>0,SUM(U145),0) -> 0 | CR96: =Q145 -> 0 | CS96: =R145 -> 0 | CT96: =S145 -> 0 | CV96: =IF(SUM(Q146:S146)>0,SUM(Q146:S146),0) -> 0 | CW96: =IF(SUM(U146)>0,SUM(U146),0) -> 0 | CX96: =Q146 -> 0 | CY96: =R146 -> 0 | CZ96: =S146 -> 0 | DB96: =IF(SUM(Q147:S147)>0,SUM(Q147:S147),0) -> 0 | DC96: =IF(SUM(U147)>0,SUM(U147),0) -> 0 | DD96: =Q147 -> 0 | DE96: =R147 -> 0 | DF96: =S147 -> 0 | DH96: =IF(SUM(Q148:S148)>0,SUM(Q148:S148),0) -> 0 | DI96: =IF(SUM(U148)>0,SUM(U148),0) -> 0 | DJ96: =Q148 -> 0 | DK96: =R148 -> 0 | DL96: =S148 -> 0 | DN96: =IF(SUM(Q149:S149)>0,SUM(Q149:S149),0) -> 0 | DO96: =IF(SUM(U149)>0,SUM(U149),0) -> 0 | DP96: =Q149 -> 0 | DQ96: =R149 -> 0 | DR96: =S149 -> 0 | DT96: =IF(SUM(Q150:S150)>0,SUM(Q150:S150),0) -> 0 | DU96: =IF(SUM(U150)>0,SUM(U150),0) -> 0 | DV96: =Q150 -> 0 | DW96: =R150 -> 0 | DX96: =S150 -> 0 | DZ96: =IF(SUM(Q151:S151)>0,SUM(Q151:S151),0) -> 0 | EA96: =IF(SUM(U151)>0,SUM(U151),0) -> 0 | EB96: =Q151 -> 0 | EC96: =R151 -> 0 | ED96: =S151 -> 0 | EF96: =IF(SUM(Q152:S152)>0,SUM(Q152:S152),0) -> 0 | EG96: =IF(SUM(U152)>0,SUM(U152),0) -> 0 | EH96: =Q152 -> 0 | EI96: =R152 -> 0 | EJ96: =S152 -> 0 | EL96: =IF(SUM(Q153:S153)>0,SUM(Q153:S153),0) -> 0 | EM96: =IF(SUM(U153)>0,SUM(U153),0) -> 0 | EN96: =Q153 -> 0 | EO96: =R153 -> 0 | EP96: =S153 -> 0 | ER96: =IF(SUM(Q154:S154)>0,SUM(Q154:S154),0) -> 0 | ES96: =IF(SUM(U154)>0,SUM(U154),0) -> 0 | ET96: =Q154 -> 0 | EU96: =R154 -> 0 | EV96: =S154 -> 0 | EX96: =IF(SUM(Q155:S155)>0,SUM(Q155:S155),0) -> 0 | EY96: =IF(SUM(U155)>0,SUM(U155),0) -> 0 | EZ96: =Q155 -> 0 | FA96: =R155 -> 0 | FB96: =S155 -> 0 | FD96: =IF(SUM(Q156:S156)>0,SUM(Q156:S156),0) -> 0 | FE96: =IF(SUM(U156)>0,SUM(U156),0) -> 0 | FF96: =Q156 -> 0 | FG96: =R156 -> 0 | FH96: =S156 -> 0 | FJ96: =LARGE((FD96,EX96,ER96,EL96,EF96,DZ96,DT96,DN96,DH96,DB96,CV96,CP96,CJ96,CD96,BX96,BR96,BL96,BF96,AZ96,AT96,AN96,AH96),1) -> 0 | FK96: =LARGE((BT96,BZ96,CF96,CL96,CR96,CX96,DD96,DJ96,DP96,DV96,EB96,EH96,EN96,ET96,EZ96,FF96,BN96,BH96,BB96,AV96,AP96,AJ96),1) -> 0 | FL96: =LARGE((BU96,CA96,CG96,CM96,CS96,CY96,DE96,DK96,DQ96,DW96,EC96,EI96,EO96,EU96,FA96,FG96,BO96,BI96,BC96,AW96,AQ96,AK96),1) -> 0 | FM96: =LARGE((BV96,CB96,CH96,CN96,CT96,CZ96,DF96,DL96,DR96,DX96,ED96,EJ96,EP96,EV96,FB96,FH96,BP96,BJ96,BD96,AX96,AR96,AL96),1) -> 0
AA97: =IF(SUM(E97,J97,O97,T97,Y97,E123,J123,O123,T123,Y123,E149,J149,O149,T149,Y149)>0,(LARGE((E97,J97,O97,T97,Y97,E123,J123,O123,T123,Y123,E149,J149,O149,T149,Y149),1)+LARGE((E97,J97,O97,T97,Y97,E123,J123,O123,T123,Y123,E149,J149,O149,T149,Y149),2)+LARGE((E97,J97,O97,T97,Y97,E123,J123,O123,T123,Y123,E149,J149,O149,T149,Y149),3)+LARGE((E97,J97,O97,T97,Y97,E123,J123,O123,T123,Y123,E149,J149,O149,T149,Y149),4)),"") ->  | AB97: =IF(SUM(DO114)>0,SUM(DO114),"") ->  | AH97: =IF(SUM(V135:X135)>0,SUM(V135:X135),0) -> 0 | AI97: =IF(SUM(Z135)>0,SUM(Z135),0) -> 0 | AJ97: =V135 -> 0 | AK97: =W135 -> 0 | AL97: =X135 -> 0 | AN97: =IF(SUM(V136:X136)>0,SUM(V136:X136),0) -> 0 | AO97: =IF(SUM(Z136)>0,SUM(Z136),0) -> 0 | AP97: =V136 -> 0 | AQ97: =W136 -> 0 | AR97: =X136 -> 0 | AT97: =IF(SUM(V137:X137)>0,SUM(V137:X137),0) -> 0 | AU97: =IF(SUM(Z137)>0,SUM(Z137),0) -> 0 | AV97: =V137 -> 0 | AW97: =W137 -> 0 | AX97: =X137 -> 0 | AZ97: =IF(SUM(V138:X138)>0,SUM(V138:X138),0) -> 0 | BA97: =IF(SUM(Z138)>0,SUM(Z138),0) -> 0 | BB97: =V138 -> 0 | BC97: =W138 -> 0 | BD97: =X138 -> 0 | BF97: =IF(SUM(V139:X139)>0,SUM(V139:X139),0) -> 0 | BG97: =IF(SUM(Z139)>0,SUM(Z139),0) -> 0 | BH97: =V139 -> 0 | BI97: =W139 -> 0 | BJ97: =X139 -> 0 | BL97: =IF(SUM(V140:X140)>0,SUM(V140:X140),0) -> 0 | BM97: =IF(SUM(Z140)>0,SUM(Z140),0) -> 0 | BN97: =V140 -> 0 | BO97: =W140 -> 0 | BP97: =X140 -> 0 | BR97: =IF(SUM(V141:X141)>0,SUM(V141:X141),0) -> 0 | BS97: =IF(SUM(Z141)>0,SUM(Z141),0) -> 0 | BT97: =V141 -> 0 | BU97: =W141 -> 0 | BV97: =X141 -> 0 | BX97: =IF(SUM(V142:X142)>0,SUM(V142:X142),0) -> 0 | BY97: =IF(SUM(Z142)>0,SUM(Z142),0) -> 0 | BZ97: =V142 -> 0 | CA97: =W142 -> 0 | CB97: =X142 -> 0 | CD97: =IF(SUM(V143:X143)>0,SUM(V143:X143),0) -> 0 | CE97: =IF(SUM(Z143)>0,SUM(Z143),0) -> 0 | CF97: =V143 -> 0 | CG97: =W143 -> 0 | CH97: =X143 -> 0 | CJ97: =IF(SUM(V144:X144)>0,SUM(V144:X144),0) -> 0 | CK97: =IF(SUM(Z144)>0,SUM(Z144),0) -> 0 | CL97: =V144 -> 0 | CM97: =W144 -> 0 | CN97: =X144 -> 0 | CP97: =IF(SUM(V145:X145)>0,SUM(V145:X145),0) -> 0 | CQ97: =IF(SUM(Z145)>0,SUM(Z145),0) -> 0 | CR97: =V145 -> 0 | CS97: =W145 -> 0 | CT97: =X145 -> 0 | CV97: =IF(SUM(V146:X146)>0,SUM(V146:X146),0) -> 0 | CW97: =IF(SUM(Z146)>0,SUM(Z146),0) -> 0 | CX97: =V146 -> 0 | CY97: =W146 -> 0 | CZ97: =X146 -> 0 | DB97: =IF(SUM(V147:X147)>0,SUM(V147:X147),0) -> 0 | DC97: =IF(SUM(Z147)>0,SUM(Z147),0) -> 0 | DD97: =V147 -> 0 | DE97: =W147 -> 0 | DF97: =X147 -> 0 | DH97: =IF(SUM(V148:X148)>0,SUM(V148:X148),0) -> 0 | DI97: =IF(SUM(Z148)>0,SUM(Z148),0) -> 0 | DJ97: =V148 -> 0 | DK97: =W148 -> 0 | DL97: =X148 -> 0 | DN97: =IF(SUM(V149:X149)>0,SUM(V149:X149),0) -> 0 | DO97: =IF(SUM(Z149)>0,SUM(Z149),0) -> 0 | DP97: =V149 -> 0 | DQ97: =W149 -> 0 | DR97: =X149 -> 0 | DT97: =IF(SUM(V150:X150)>0,SUM(V150:X150),0) -> 0 | DU97: =IF(SUM(Z150)>0,SUM(Z150),0) -> 0 | DV97: =V150 -> 0 | DW97: =W150 -> 0 | DX97: =X150 -> 0 | DZ97: =IF(SUM(V151:X151)>0,SUM(V151:X151),0) -> 0 | EA97: =IF(SUM(Z151)>0,SUM(Z151),0) -> 0 | EB97: =V151 -> 0 | EC97: =W151 -> 0 | ED97: =X151 -> 0 | EF97: =IF(SUM(V152:X152)>0,SUM(V152:X152),0) -> 0 | EG97: =IF(SUM(Z152)>0,SUM(Z152),0) -> 0 | EH97: =V152 -> 0 | EI97: =W152 -> 0 | EJ97: =X152 -> 0 | EL97: =IF(SUM(V153:X153)>0,SUM(V153:X153),0) -> 0 | EM97: =IF(SUM(Z153)>0,SUM(Z153),0) -> 0 | EN97: =V153 -> 0 | EO97: =W153 -> 0 | EP97: =X153 -> 0 | ER97: =IF(SUM(V154:X154)>0,SUM(V154:X154),0) -> 0 | ES97: =IF(SUM(Z154)>0,SUM(Z154),0) -> 0 | ET97: =V154 -> 0 | EU97: =W154 -> 0 | EV97: =X154 -> 0 | EX97: =IF(SUM(V155:X155)>0,SUM(V155:X155),0) -> 0 | EY97: =IF(SUM(Z155)>0,SUM(Z155),0) -> 0 | EZ97: =V155 -> 0 | FA97: =W155 -> 0 | FB97: =X155 -> 0 | FD97: =IF(SUM(V156:X156)>0,SUM(V156:X156),0) -> 0 | FE97: =IF(SUM(Z156)>0,SUM(Z156),0) -> 0 | FF97: =V156 -> 0 | FG97: =W156 -> 0 | FH97: =X156 -> 0 | FJ97: =LARGE((FD97,EX97,ER97,EL97,EF97,DZ97,DT97,DN97,DH97,DB97,CV97,CP97,CJ97,CD97,BX97,BR97,BL97,BF97,AZ97,AT97,AN97,AH97),1) -> 0 | FK97: =LARGE((BT97,BZ97,CF97,CL97,CR97,CX97,DD97,DJ97,DP97,DV97,EB97,EH97,EN97,ET97,EZ97,FF97,BN97,BH97,BB97,AV97,AP97,AJ97),1) -> 0 | FL97: =LARGE((BU97,CA97,CG97,CM97,CS97,CY97,DE97,DK97,DQ97,DW97,EC97,EI97,EO97,EU97,FA97,FG97,BO97,BI97,BC97,AW97,AQ97,AK97),1) -> 0 | FM97: =LARGE((BV97,CB97,CH97,CN97,CT97,CZ97,DF97,DL97,DR97,DX97,ED97,EJ97,EP97,EV97,FB97,FH97,BP97,BJ97,BD97,AX97,AR97,AL97),1) -> 0
AA98: =IF(SUM(E98,J98,O98,T98,Y98,E124,J124,O124,T124,Y124,E150,J150,O150,T150,Y150)>0,(LARGE((E98,J98,O98,T98,Y98,E124,J124,O124,T124,Y124,E150,J150,O150,T150,Y150),1)+LARGE((E98,J98,O98,T98,Y98,E124,J124,O124,T124,Y124,E150,J150,O150,T150,Y150),2)+LARGE((E98,J98,O98,T98,Y98,E124,J124,O124,T124,Y124,E150,J150,O150,T150,Y150),3)+LARGE((E98,J98,O98,T98,Y98,E124,J124,O124,T124,Y124,E150,J150,O150,T150,Y150),4)),"") ->  | AB98: =IF(SUM(DU114)>0,SUM(DU114),"") ->  | AH98: =SUM(AH83:AH97) -> 1501 | AI98: =SUM(AI83:AI97) -> 26 | AJ98: =SUM(AJ83:AJ97) -> 512 | AK98: =SUM(AK83:AK97) -> 527 | AL98: =SUM(AL83:AL97) -> 462 | AN98: =SUM(AN83:AN97) -> 1317 | AO98: =SUM(AO83:AO97) -> 38 | AP98: =SUM(AP83:AP97) -> 429 | AQ98: =SUM(AQ83:AQ97) -> 463 | AR98: =SUM(AR83:AR97) -> 425 | AT98: =SUM(AT83:AT97) -> 2253 | AU98: =SUM(AU83:AU97) -> 49 | AV98: =SUM(AV83:AV97) -> 780 | AW98: =SUM(AW83:AW97) -> 773 | AX98: =SUM(AX83:AX97) -> 700 | AZ98: =SUM(AZ83:AZ97) -> 1546 | BA98: =SUM(BA83:BA97) -> 31 | BB98: =SUM(BB83:BB97) -> 522 | BC98: =SUM(BC83:BC97) -> 532 | BD98: =SUM(BD83:BD97) -> 492 | BF98: =SUM(BF83:BF97) -> 2275 | BG98: =SUM(BG83:BG97) -> 38 | BH98: =SUM(BH83:BH97) -> 789 | BI98: =SUM(BI83:BI97) -> 788 | BJ98: =SUM(BJ83:BJ97) -> 698 | BL98: =SUM(BL83:BL97) -> 2586 | BM98: =SUM(BM83:BM97) -> 53 | BN98: =SUM(BN83:BN97) -> 894 | BO98: =SUM(BO83:BO97) -> 903 | BP98: =SUM(BP83:BP97) -> 789 | BR98: =SUM(BR83:BR97) -> 1547 | BS98: =SUM(BS83:BS97) -> 29 | BT98: =SUM(BT83:BT97) -> 522 | BU98: =SUM(BU83:BU97) -> 544 | BV98: =SUM(BV83:BV97) -> 481 | BX98: =SUM(BX83:BX97) -> 0 | BY98: =SUM(BY83:BY97) -> 0 | BZ98: =SUM(BZ83:BZ97) -> 0 | CA98: =SUM(CA83:CA97) -> 0 | CB98: =SUM(CB83:CB97) -> 0 | CD98: =SUM(CD83:CD97) -> 0 | CE98: =SUM(CE83:CE97) -> 0 | CF98: =SUM(CF83:CF97) -> 0 | CG98: =SUM(CG83:CG97) -> 0 | CH98: =SUM(CH83:CH97) -> 0 | CJ98: =SUM(CJ83:CJ97) -> 1309 | CK98: =SUM(CK83:CK97) -> 27 | CL98: =SUM(CL83:CL97) -> 444 | CM98: =SUM(CM83:CM97) -> 467 | CN98: =SUM(CN83:CN97) -> 398 | CP98: =SUM(CP83:CP97) -> 1330 | CQ98: =SUM(CQ83:CQ97) -> 25 | CR98: =SUM(CR83:CR97) -> 446 | CS98: =SUM(CS83:CS97) -> 446 | CT98: =SUM(CT83:CT97) -> 438 | CV98: =SUM(CV83:CV97) -> 1830 | CW98: =SUM(CW83:CW97) -> 37 | CX98: =SUM(CX83:CX97) -> 619 | CY98: =SUM(CY83:CY97) -> 639 | CZ98: =SUM(CZ83:CZ97) -> 572 | DB98: =SUM(DB83:DB97) -> 1323 | DC98: =SUM(DC83:DC97) -> 25 | DD98: =SUM(DD83:DD97) -> 444 | DE98: =SUM(DE83:DE97) -> 463 | DF98: =SUM(DF83:DF97) -> 416 | DH98: =SUM(DH83:DH97) -> 1334 | DI98: =SUM(DI83:DI97) -> 31 | DJ98: =SUM(DJ83:DJ97) -> 466 | DK98: =SUM(DK83:DK97) -> 421 | DL98: =SUM(DL83:DL97) -> 447 | DN98: =SUM(DN83:DN97) -> 0 | DO98: =SUM(DO83:DO97) -> 0 | DP98: =SUM(DP83:DP97) -> 0 | DQ98: =SUM(DQ83:DQ97) -> 0 | DR98: =SUM(DR83:DR97) -> 0 | DT98: =SUM(DT83:DT97) -> 0 | DU98: =SUM(DU83:DU97) -> 0 | DV98: =SUM(DV83:DV97) -> 0 | DW98: =SUM(DW83:DW97) -> 0 | DX98: =SUM(DX83:DX97) -> 0 | DZ98: =SUM(DZ83:DZ97) -> 0 | EA98: =SUM(EA83:EA97) -> 0 | EB98: =SUM(EB83:EB97) -> 0 | EC98: =SUM(EC83:EC97) -> 0 | ED98: =SUM(ED83:ED97) -> 0 | EF98: =SUM(EF83:EF97) -> 0 | EG98: =SUM(EG83:EG97) -> 0 | EH98: =SUM(EH83:EH97) -> 0 | EI98: =SUM(EI83:EI97) -> 0 | EJ98: =SUM(EJ83:EJ97) -> 0 | EL98: =SUM(EL83:EL97) -> 0 | EM98: =SUM(EM83:EM97) -> 0 | EN98: =SUM(EN83:EN97) -> 0 | EO98: =SUM(EO83:EO97) -> 0 | EP98: =SUM(EP83:EP97) -> 0 | ER98: =SUM(ER83:ER97) -> 0 | ES98: =SUM(ES83:ES97) -> 0 | ET98: =SUM(ET83:ET97) -> 0 | EU98: =SUM(EU83:EU97) -> 0 | EV98: =SUM(EV83:EV97) -> 0 | EX98: =SUM(EX83:EX97) -> 0 | EY98: =SUM(EY83:EY97) -> 0 | EZ98: =SUM(EZ83:EZ97) -> 0 | FA98: =SUM(FA83:FA97) -> 0 | FB98: =SUM(FB83:FB97) -> 0 | FD98: =SUM(FD83:FD97) -> 0 | FE98: =SUM(FE83:FE97) -> 0 | FF98: =SUM(FF83:FF97) -> 0 | FG98: =SUM(FG83:FG97) -> 0 | FH98: =SUM(FH83:FH97) -> 0
E99: =IF(SUM(B99:D99)>0,SUM(B99:D99),"") ->  | AA99: =IF(SUM(E99,J99,O99,T99,Y99,E125,J125,O125,T125,Y125,E151,J151,O151,T151,Y151)>0,(LARGE((E99,J99,O99,T99,Y99,E125,J125,O125,T125,Y125,E151,J151,O151,T151,Y151),1)+LARGE((E99,J99,O99,T99,Y99,E125,J125,O125,T125,Y125,E151,J151,O151,T151,Y151),2)+LARGE((E99,J99,O99,T99,Y99,E125,J125,O125,T125,Y125,E151,J151,O151,T151,Y151),3)+LARGE((E99,J99,O99,T99,Y99,E125,J125,O125,T125,Y125,E151,J151,O151,T151,Y151),4)),"") ->  | AB99: =IF(SUM(EA114)>0,SUM(EA114),"") ->  | AK99: =TEXT(AH83, "000")&TEXT(AI83, "-00") & TEXT(AL83, "-000") & TEXT(AK83, "-000") & TEXT(AJ83, "-000") -> 273-06-087-093-093 | AL99: =COUNTIF(AK99:AK113, ">=" & AK99) -> 1 | AM99: =RANK(AL99,AL99:AL113,1)+COUNTIF(AK99:AK99,AK99)-1 -> 1 | AQ99: =TEXT(AN83, "000") & TEXT(AO83, "-00") & TEXT(AR83, "-000") & TEXT(AQ83, "-000") & TEXT(AP83, "-000") -> 272-10-086-099-087 | AR99: =COUNTIF(AQ99:AQ113, ">=" & AQ99) -> 1 | AS99: =RANK(AR99,AR99:AR113,1)+COUNTIF(AQ99:AQ99,AQ99)-1 -> 1 | AW99: =TEXT(AT83, "000") & TEXT(AU83, "-00") & TEXT(AX83, "-000") & TEXT(AW83, "-000") & TEXT(AV83, "-000") -> 260-06-079-092-089 | AX99: =COUNTIF(AW99:AW113, ">=" & AW99) -> 3 | AY99: =RANK(AX99,AX99:AX113,1)+COUNTIF(AW99:AW99,AW99)-1 -> 3 | BC99: =TEXT(AZ83, "000") & TEXT(BA83, "-00") & TEXT(BD83, "-000") & TEXT(BC83, "-000") & TEXT(BB83, "-000") -> 270-08-083-096-091 | BD99: =COUNTIF(BC99:BC113, ">=" & BC99) -> 1 | BE99: =RANK(BD99,BD99:BD113,1)+COUNTIF(BC99:BC99,BC99)-1 -> 1 | BI99: =TEXT(BF83, "000") & TEXT(BG83, "-00") & TEXT(BJ83, "-000") & TEXT(BI83, "-000") & TEXT(BH83, "-000") -> 262-04-079-089-094 | BJ99: =COUNTIF(BI99:BI113, ">=" & BI99) -> 3 | BK99: =RANK(BJ99,BJ99:BJ113,1)+COUNTIF(BI99:BI99,BI99)-1 -> 3 | BO99: =TEXT(BL83, "000") & TEXT(BM83, "-00") & TEXT(BP83, "-000") & TEXT(BO83, "-000") & TEXT(BN83, "-000") -> 274-06-085-096-093 | BP99: =COUNTIF(BO99:BO113, ">=" & BO99) -> 1 | BQ99: =RANK(BP99,BP99:BP113,1)+COUNTIF(BO99:BO99,BO99)-1 -> 1 | BU99: =TEXT(BR83, "000") & TEXT(BS83, "-00") & TEXT(BV83, "-000") & TEXT(BU83, "-000") & TEXT(BT83, "-000") -> 273-05-086-096-091 | BV99: =COUNTIF(BU99:BU113, ">=" & BU99) -> 1 | BW99: =RANK(BV99,BV99:BV113,1)+COUNTIF(BU99:BU99,BU99)-1 -> 1 | CA99: =TEXT(BX83, "000") & TEXT(BY83, "-00") & TEXT(CB83, "-000") & TEXT(CA83, "-000") & TEXT(BZ83, "-000") -> 000-00-000-000-000 | CB99: =COUNTIF(CA99:CA113, ">=" & CA99) -> 15 | CC99: =RANK(CB99,CB99:CB113,1)+COUNTIF(CA99:CA99,CA99)-1 -> 1 | CG99: =TEXT(CD83, "000") & TEXT(CE83, "-00") & TEXT(CH83, "-000") & TEXT(CG83, "-000") & TEXT(CF83, "-000") -> 000-00-000-000-000 | CH99: =COUNTIF(CG99:CG113, ">=" & CG99) -> 15 | CI99: =RANK(CH99,CH99:CH113,1)+COUNTIF(CG99:CG99,CG99)-1 -> 1 | CM99: =TEXT(CJ83, "000") & TEXT(CK83, "-00") & TEXT(CN83, "-000") & TEXT(CM83, "-000") & TEXT(CL83, "-000") -> 279-07-090-095-094 | CN99: =COUNTIF(CM99:CM113, ">=" & CM99) -> 1 | CO99: =RANK(CN99,CN99:CN113,1)+COUNTIF(CM99:CM99,CM99)-1 -> 1 | CS99: =TEXT(CP83, "000") & TEXT(CQ83, "-00") & TEXT(CT83, "-000") & TEXT(CS83, "-000") & TEXT(CR83, "-000") -> 270-08-091-092-087 | CT99: =COUNTIF(CS99:CS113, ">=" & CS99) -> 2 | CU99: =RANK(CT99,CT99:CT113,1)+COUNTIF(CS99:CS99,CS99)-1 -> 2 | CY99: =TEXT(CV83, "000") & TEXT(CW83, "-00") & TEXT(CZ83, "-000") & TEXT(CY83, "-000") & TEXT(CX83, "-000") -> 270-07-089-089-092 | CZ99: =COUNTIF(CY99:CY113, ">=" & CY99) -> 2 | DA99: =RANK(CZ99,CZ99:CZ113,1)+COUNTIF(CY99:CY99,CY99)-1 -> 2 | DE99: =TEXT(DB83, "000") & TEXT(DC83, "-00") & TEXT(DF83, "-000") & TEXT(DE83, "-000") & TEXT(DD83, "-000") -> 278-07-092-095-091 | DF99: =COUNTIF(DE99:DE113, ">=" & DE99) -> 1 | DG99: =RANK(DF99,DF99:DF113,1)+COUNTIF(DE99:DE99,DE99)-1 -> 1 | DK99: =TEXT(DH83, "000") & TEXT(DI83, "-00") & TEXT(DL83, "-000") & TEXT(DK83, "-000") & TEXT(DJ83, "-000") -> 276-07-091-086-099 | DL99: =COUNTIF(DK99:DK113, ">=" & DK99) -> 1 | DM99: =RANK(DL99,DL99:DL113,1)+COUNTIF(DK99:DK99,DK99)-1 -> 1 | DQ99: =TEXT(DN83, "000") & TEXT(DO83, "-00") & TEXT(DR83, "-000") & TEXT(DQ83, "-000") & TEXT(DP83, "-000") -> 000-00-000-000-000 | DR99: =COUNTIF(DQ99:DQ113, ">=" & DQ99) -> 15 | DS99: =RANK(DR99,DR99:DR113,1)+COUNTIF(DQ99:DQ99,DQ99)-1 -> 1 | DW99: =TEXT(DT83, "000") & TEXT(DU83, "-00") & TEXT(DX83, "-000") & TEXT(DW83, "-000") & TEXT(DV83, "-000") -> 000-00-000-000-000 | DX99: =COUNTIF(DW99:DW113, ">=" & DW99) -> 15 | DY99: =RANK(DX99,DX99:DX113,1)+COUNTIF(DW99:DW99,DW99)-1 -> 1 | EC99: =TEXT(DZ83, "000") & TEXT(EA83, "-00") & TEXT(ED83, "-000") & TEXT(EC83, "-000") & TEXT(EB83, "-000") -> 000-00-000-000-000 | ED99: =COUNTIF(EC99:EC113, ">=" & EC99) -> 15 | EE99: =RANK(ED99,ED99:ED113,1)+COUNTIF(EC99:EC99,EC99)-1 -> 1 | EI99: =TEXT(EF83, "000") & TEXT(EG83, "-00") & TEXT(EJ83, "-000") & TEXT(EI83, "-000") & TEXT(EH83, "-000") -> 000-00-000-000-000 | EJ99: =COUNTIF(EI99:EI113, ">=" & EI99) -> 15 | EK99: =RANK(EJ99,EJ99:EJ113,1)+COUNTIF(EI99:EI99,EI99)-1 -> 1 | EO99: =TEXT(EL83, "000") & TEXT(EM83, "-00") & TEXT(EP83, "-000") & TEXT(EO83, "-000") & TEXT(EN83, "-000") -> 000-00-000-000-000 | EP99: =COUNTIF(EO99:EO113, ">=" & EO99) -> 15 | EQ99: =RANK(EP99,EP99:EP113,1)+COUNTIF(EO99:EO99,EO99)-1 -> 1 | EU99: =TEXT(ER83, "000") & TEXT(ES83, "-00") & TEXT(EV83, "-000") & TEXT(EU83, "-000") & TEXT(ET83, "-000") -> 000-00-000-000-000 | EV99: =COUNTIF(EU99:EU113, ">=" & EU99) -> 15 | EW99: =RANK(EV99,EV99:EV113,1)+COUNTIF(EU99:EU99,EU99)-1 -> 1 | FA99: =TEXT(EX83, "000") & TEXT(EY83, "-00") & TEXT(FB83, "-000") & TEXT(FA83, "-000") & TEXT(EZ83, "-000") -> 000-00-000-000-000 | FB99: =COUNTIF(FA99:FA113, ">=" & FA99) -> 15 | FC99: =RANK(FB99,FB99:FB113,1)+COUNTIF(FA99:FA99,FA99)-1 -> 1 | FG99: =TEXT(FD83, "000") & TEXT(FE83, "-00") & TEXT(FH83, "-000") & TEXT(FG83, "-000") & TEXT(FF83, "-000") -> 000-00-000-000-000 | FH99: =COUNTIF(FG99:FG113, ">=" & FG99) -> 15 | FI99: =RANK(FH99,FH99:FH113,1)+COUNTIF(FG99:FG99,FG99)-1 -> 1
